Workbook

Sheet InputC - Operations
F1: Project IRR
F2: Equity IRR
D3: Active Scenario | F3: 1 | K3: ='InputC-Financing'!K3 -> Base Case | L3: ='InputC-Financing'!L3 -> P90 Debt Size Case | M3: ='InputC-Financing'!M3 -> P99 Debt Size Case | N3: ='InputC-Financing'!N3 -> Maximum Debt to Capital Case | O3: ='InputC-Financing'!O3 -> Stress Case for Credit | P3: ='InputC-Financing'!P3 -> P90 and No Inflation | Q3: ='InputC-Financing'!Q3 -> Higher EPC | R3: ='InputC-Financing'!R3 -> Lower PPA | S3: ='InputC-Financing'!S3 -> Shareholder Loan
E4: Applied (Fixed) | F4: From Index | K4: 1 | L4: 2 | M4: 3 | N4: 4 | O4: 5 | P4: 6 | Q4: 7 | R4: 8 | S4: 9
B6: Model Timeline
D7: Financial Close Date | E7: 2023-01-01 | F7: =INDEX($K7:$S7,case_active) -> 2023-01-01 | G7: Date | K7: 2023-01-01 | L7: 2023-01-01 | M7: 2023-01-01 | N7: 2023-01-01 | O7: 2023-01-01 | P7: 2023-01-01 | Q7: 2023-01-01 | R7: 2023-01-01 | S7: 2023-01-01
D8: Construction Period | E8: =F8 -> 11 | F8: =INDEX(K8:S8,case_active) -> 11 | G8: Month | K8: 11 | L8: =K8 -> 11 | M8: 11 | N8: 11 | O8: 11 | P8: 11 | Q8: 14 | R8: 14 | S8: 14
D9: Commerical Operation Date | E9: 2023-12-01 | F9: =INDEX(K9:S9,case_active) -> 2023-12-01 | G9: Date | K9: =EDATE(K7,K8) -> 2023-12-01 | L9: =EDATE(L7,L8) -> 2023-12-01 | M9: 2023-12-01 | N9: 2023-12-01 | O9: 2023-12-01 | P9: 2023-12-01 | Q9: 2024-03-01 | R9: 2024-03-01 | S9: 2024-03-01
D10: Operating Life | E10: 35 | F10: =INDEX(K10:S10,case_active) -> 35 | G10: Years | K10: 35 | L10: 35 | M10: 35 | N10: 30 | O10: 35 | P10: 35 | Q10: 35 | R10: 35 | S10: 35
D11: Period After Operating Life | E11: 2058-12-01 | F11: =INDEX(K11:S11,case_active) -> 2058-12-01 | G11: Date | K11: =EDATE(K9,K10*Months) -> 2058-12-01 | L11: 2058-12-01 | M11: 2058-12-01 | N11: 2053-12-01 | O11: 2058-12-01 | P11: 2058-12-01 | Q11: 2059-03-01 | R11: 2059-03-01 | S11: 2059-03-01
D13: Months in Period for Semi-Annual | E13: 6 | F13: =INDEX(K13:S13,case_active) -> 6 | G13: Months | K13: 6 | L13: 6 | M13: 6 | N13: 6 | O13: 6 | P13: 6 | Q13: 6 | R13: 6 | S13: 6
D14: Months in Period pre-COD | E14: 1 | F14: =INDEX(K14:S14,case_active) -> 1 | G14: Months | K14: 1 | L14: 1 | M14: 1 | N14: 1 | O14: 1 | P14: 1 | Q14: 1 | R14: 1 | S14: 1
B16: Solar Plant Details
D17: Capacity of Plant | E17: 132 | F17: =INDEX(K17:S17,case_active) -> 132 | G17: MWp | K17: 132 | L17: 132 | M17: 132 | N17: 132 | O17: 132 | P17: 132 | Q17: 132 | R17: 132 | S17: 132
D19: Standard Deviation in Resoruce | E19: =Resource_Base -> 0.1 | F19: =INDEX(K19:S19,case_active) -> 0.1 | G19: % | K19: 0.1 | L19: 0.1 | M19: 0.1 | N19: 0.1 | O19: 0.1 | P19: 0.1 | Q19: 0.1 | R19: 0.1 | S19: 0.1
D20: Complement of P Value | E20: 0.1 | F20: =INDEX(K20:S20,case_active) -> 0.5 | G20: % | K20: 0.5 | L20: 0.1 | M20: 0.01 | N20: 0.1 | O20: 0.05 | P20: 0.1 | Q20: 0.1 | R20: 0.1 | S20: 0.1
D22: Annual Yield | E22: =_xlfn.NORM.INV(E20,$K$22,E19*$K$22) -> 1726.25279 | F22: =INDEX(K22:S22,case_active) -> 1980 | G22: MWh/MWp | K22: 1980 | L22: =_xlfn.NORM.INV(L20,$K$22,L19*$K$22) -> 1726.25279 | M22: =_xlfn.NORM.INV(M20,$K$22,M19*$K$22) -> 1519.383121 | N22: 1726.25279 | O22: 1654.318982 | P22: 1726.25279 | Q22: 1726.25279 | R22: 1726.25279 | S22: 1726.25279
D24: Plant Availability Code | E24: 0.99 | F24: =INDEX(K24:S24,case_active) -> 0.99 | G24: % | K24: 0.99 | L24: 0.99 | M24: 0.99 | N24: 0.99 | O24: 0.99 | P24: 0.99 | Q24: 0.99 | R24: 0.99 | S24: 0.99
D25: Degradation Code to InputS | E25: 1 | F25: =INDEX(K25:S25,case_active) -> 1 | G25: Code | H25: =InputS!D41 -> Base Degradation | K25: 1 | L25: 1 | M25: 1 | N25: 3 | O25: 2 | P25: 1 | Q25: 1 | R25: 1 | S25: 1
B27: Revenues
D28: PPA Inflation Rate Code to InputS | E28: 2 | F28: =INDEX(K28:S28,case_active) -> 2 | G28: % p.a. | H28: On costs and Revenues | K28: 2 | L28: 2 | M28: 2 | N28: 2 | O28: 2 | P28: 2 | Q28: 1 | R28: 2 | S28: 2
D30: PPA Term Contract | E30: 35 | F30: =INDEX(K30:S30,case_active) -> 35 | G30: Years | K30: =K10 -> 35 | L30: 35 | M30: 35 | N30: 30 | O30: 35 | P30: 35 | Q30: 35 | R30: 35 | S30: 35
D31: Offtake Amount | E31: 1 | F31: =INDEX(K31:S31,case_active) -> 1 | G31: % | H31: Of Total Production | K31: 1 | L31: 1 | M31: 1 | N31: 1 | O31: 1 | P31: 1 | Q31: 1 | R31: 1 | S31: 1
D33: Power Price for Offtake (USD 2021) | E33: 33 | F33: =INDEX(K33:S33,case_active) -> 33 | G33: USD/MWh | H33: Real Terms - 2021 | K33: 33 | L33: 33 | M33: 33 | N33: 33 | O33: 33 | P33: 30 | Q33: 33 | R33: 33 | S33: 33
D34: Apply PPA Inflation | E34: 1 | F34: =INDEX(K34:S34,case_active) -> 1 | G34: Flag | H34: 1 =Yes; 0 - No | K34: 1 | L34: 1 | M34: 1 | N34: 1 | O34: 1 | P34: 1 | Q34: 1 | R34: 1 | S34: 1
D35: Start Date for PPA Inflation | E35: 2023-12-01 | F35: =INDEX(K35:S35,case_active) -> 2023-12-01 | G35: Date | K35: =K9 -> 2023-12-01 | L35: =L9 -> 2023-12-01 | M35: =M9 -> 2023-12-01 | N35: 2023-12-01 | O35: 2023-12-01 | P35: 2023-12-01 | Q35: 2024-03-01 | R35: 2024-03-01 | S35: 2024-03-01
D37: Revenues Arrear Collection | E37: 2 | F37: =INDEX(K37:S37,case_active) -> 2 | G37: Months | H37: Received in Arrears | K37: 2 | L37: 2 | M37: 2 | N37: 2 | O37: 2 | P37: 2 | Q37: 2 | R37: 2 | S37: 2
B39: Operation and Maintenance
D40: Land Lease | E40: 300000 | F40: =INDEX(K40:S40,case_active) -> 300000 | G40: USD/Yr | H40: Payable Through Construction | K40: 300000 | L40: 300000 | M40: 300000 | N40: 300000 | O40: 300000 | P40: 300000 | Q40: 300000 | R40: 300000 | S40: 300000
D41: Land Lease Infaltion Start | E41: 2023-01-01 | F41: =INDEX(K41:S41,case_active) -> 2023-01-01 | K41: 2023-01-01 | L41: 2023-01-01 | M41: 2023-01-01 | N41: 2023-01-01 | O41: 2023-01-01 | P41: 2023-01-01 | Q41: 2023-01-01 | R41: 2023-01-01 | S41: 2023-01-01
D43: O&M per Year without Inflation - Initial Contract | E43: 9.5 | F43: =INDEX(K43:S43,case_active) -> 9.5 | G43: USD/kWp-yr | H43: Starting OpEx | K43: 9.5 | L43: 9.5 | M43: 9.5 | N43: 9.5 | O43: 9.5 | P43: 9.5 | Q43: 9.5 | R43: 9.5 | S43: 9.5
D44: Initial Period End for O&M | E44: 5 | F44: =INDEX(K44:S44,case_active) -> 5 | G44: Years | K44: 5 | L44: 5 | M44: 5 | N44: 5 | O44: 5 | P44: 5 | Q44: 5 | R44: 5 | S44: 5
D45: O&M per Year after Initial Period | E45: 8 | F45: =INDEX(K45:S45,case_active) -> 7.5 | G45: USD/kWp | H45: Due to Economies of Scale | K45: 7.5 | L45: 8 | M45: 8 | N45: 7.5 | O45: 15 | P45: 7.5 | Q45: 7.5 | R45: 7.5 | S45: 7.5
D47: Insurance During Operation | E47: 4 | F47: =INDEX(K47:S47,case_active) -> 4 | G47: USD/kWp-yr | H47: Yearly Estimate | K47: 4 | L47: 4 | M47: 4 | N47: 4 | O47: 4 | P47: 4 | Q47: 4 | R47: 4 | S47: 4
D49: Operation and Maintenance Payment Arrears | E49: 2 | F49: =INDEX(K49:S49,case_active) -> 2 | G49: Months | K49: 2 | L49: 2 | M49: 2 | N49: 2 | O49: 2 | P49: 2 | Q49: 2 | R49: 2 | S49: 2
B51: Capital Expenditures | H51: Paid at Financial Close
D52: EPC Contractor | E52: 900 | F52: =INDEX(K52:S52,case_active) -> 900 | G52: USD/kWp | K52: 900 | L52: 900 | M52: 900 | N52: 900 | O52: 900 | P52: 900 | Q52: 1200 | R52: 1000 | S52: 1000
D53: S-curve Code to InputS | E53: 1 | F53: =INDEX(K53:S53,case_active) -> 1 | G53: Code | H53: Detailed in Input-S | K53: 1 | L53: 1 | M53: 3 | N53: 3 | O53: 1 | P53: 1 | Q53: 1 | R53: 1 | S53: 1
D54: Developer Fee | E54: 3600000 | F54: =INDEX(K54:S54,case_active) -> 3600000 | G54: USD | H54: Paid to Developer | K54: 3600000 | L54: 3600000 | M54: 3600000 | N54: 3600000 | O54: 3600000 | P54: 3600000 | Q54: 3600000 | R54: 3600000 | S54: 3600000
D55: Period of Developer Bonus | E55: 2023-12-01 | F55: =INDEX(K55:S55,case_active) -> 2023-01-01 | G55: Date | H55: Assume paid in Fin Close (up-front) | K55: =K7 -> 2023-01-01 | L55: =L9 -> 2023-12-01 | M55: =M7 -> 2023-01-01 | N55: =N7 -> 2023-01-01 | O55: 2023-01-01 | P55: 2023-01-01 | Q55: 2023-01-01 | R55: 2023-01-01 | S55: 2023-01-01
B57: Taxes and Capital Allowance
D58: Bonus Depreciation | G58: Percent | K58: 0 | L58: 0 | M58: 0 | N58: 0 | O58: 0 | P58: 0 | Q58: 0 | R58: 0 | S58: 0
D59: Depreciaion Life | E59: 5 | F59: =INDEX(K59:S59,case_active) -> 5 | G59: Years | K59: 5 | L59: 5 | M59: 5 | N59: 5 | O59: 5 | P59: 5 | Q59: 5 | R59: 5 | S59: 5
D60: Declining Balance Factor | E60: 2 | F60: =INDEX(K60:S60,case_active) -> 2 | G60: Factor | K60: 2 | L60: 2 | M60: 2 | N60: 2 | O60: 2 | P60: 2 | Q60: 2 | R60: 2 | S60: 2
D61: Tax Depreciation Code Number | E61: 1 | F61: =INDEX(K61:S61,case_active) -> 1 | G61: Code | K61: 1 | L61: 1 | M61: 2 | N61: 1 | O61: 1 | P61: 2 | Q61: 2 | R61: 2 | S61: 2
D62: Tax Rate | E62: 0.21 | F62: =INDEX(K62:S62,case_active) -> 0.21 | G62: % | K62: 0.21 | L62: 0.21 | M62: 0.21 | N62: 0.21 | O62: 0.21 | P62: 0.21 | Q62: 0.21 | R62: 0.21 | S62: 0.21
B64: Constants
D65: Months in Year | F65: 12 | G65: Months
D66: Inflation Days in Year | F66: 365 | G66: Days Inflation
D67: Semi-Annual Periods | F67: 2 | G67: Semi
D68: Days in 360 Year | F68: 360 | G68: Year 360

Sheet InputC-Financing
E1: Project IRR
E2: Equity IRR
B3: Active Scenario | E3: =case_active -> 1 | K3: Base Case | L3: P90 Debt Size Case | M3: P99 Debt Size Case | N3: Maximum Debt to Capital Case | O3: Stress Case for Credit | P3: P90 and No Inflation | Q3: Higher EPC | R3: Lower PPA | S3: Shareholder Loan
E4: Applied | F4: Index | K4: 1 | L4: 2 | M4: 3 | N4: 4 | O4: 5 | P4: 6 | Q4: 7 | R4: 8 | S4: 9
B5: Dates
C6: Financial Close | E6: 2023-01-01 | F6: =INDEX(K6:S6,$E$3) -> 2023-01-01 | G6: Date | K6: ='InputC - Operations'!K7 -> 2023-01-01 | L6: ='InputC - Operations'!L7 -> 2023-01-01 | M6: ='InputC - Operations'!M7 -> 2023-01-01 | N6: ='InputC - Operations'!N7 -> 2023-01-01 | O6: ='InputC - Operations'!O7 -> 2023-01-01 | P6: ='InputC - Operations'!P7 -> 2023-01-01 | Q6: ='InputC - Operations'!Q7 -> 2023-01-01 | R6: ='InputC - Operations'!R7 -> 2023-01-01 | S6: ='InputC - Operations'!S7 -> 2023-01-01
C7: Commercial Operation | E7: 2023-12-01 | F7: =INDEX(K7:S7,$E$3) -> 2023-12-01 | G7: Date | K7: ='InputC - Operations'!K9 -> 2023-12-01 | L7: ='InputC - Operations'!L9 -> 2023-12-01 | M7: ='InputC - Operations'!M9 -> 2023-12-01 | N7: ='InputC - Operations'!N9 -> 2023-12-01 | O7: ='InputC - Operations'!O9 -> 2023-12-01 | P7: ='InputC - Operations'!P9 -> 2023-12-01 | Q7: ='InputC - Operations'!Q9 -> 2024-03-01 | R7: ='InputC - Operations'!R9 -> 2024-03-01 | S7: ='InputC - Operations'!S9 -> 2024-03-01
B9: Funding
C10: First Repayment Month | E10: 12 | F10: =INDEX(K10:S10,$E$3) -> 12 | G10: Month | K10: =MONTH(K7) -> 12 | L10: =MONTH(L7) -> 12 | M10: 12 | N10: 12 | O10: 12 | P10: 12 | Q10: 3 | R10: 3 | S10: 3
C11: Second Repayment Month | E11: 6 | F11: =INDEX(K11:S11,$E$3) -> 6 | G11: Month | K11: =MONTH(EDATE(K7,6)) -> 6 | L11: =MONTH(EDATE(L7,6)) -> 6 | M11: 6 | N11: 6 | O11: 6 | P11: 6 | Q11: 9 | R11: 9 | S11: 9
C13: Senior Debt
D14: Maximum Debt to Capital | E14: 0.8 | F14: =INDEX(K14:S14,$E$3) -> 0.8 | G14: % | H14: Tested through DSCR | K14: 0.8 | L14: 0.8 | M14: 0.8 | N14: 0.8 | O14: 0.8 | P14: 0.8 | Q14: 0.8 | R14: 0.8 | S14: 0.8
D15: Minimum DSCR | E15: 1.3 | F15: =INDEX(K15:S15,$E$3) -> 1.3 | K15: 1.3 | L15: 1.3 | M15: 1 | N15: 1 | O15: 1.3 | P15: 1.3 | Q15: 1.3 | R15: 1.3 | S15: 1.3
D16: Fix Debt Size | E16: FALSE | F16: =INDEX(K16:S16,$E$3) -> TRUE | G16: Flag | K16: TRUE | L16: FALSE | M16: FALSE | N16: FALSE | O16: TRUE | P16: TRUE | Q16: TRUE | R16: TRUE | S16: TRUE
D17: Debt Size from DSCR | E17: TRUE | F17: =INDEX(K17:S17,$E$3) -> TRUE | G17: Flag | K17: TRUE | L17: TRUE | M17: TRUE | N17: FALSE | O17: TRUE | P17: TRUE | Q17: TRUE | R17: TRUE | S17: TRUE
D18: Debt Size from Debt to Capital | E18: FALSE | F18: =INDEX(K18:S18,$E$3) -> FALSE | G18: Flag | K18: =NOT(K17) -> FALSE | L18: =NOT(L17) -> FALSE | M18: FALSE | N18: TRUE | O18: FALSE | P18: FALSE | Q18: FALSE | R18: FALSE | S18: FALSE
D20: Equity Up-Front Funding | E20: TRUE | F20: =INDEX(K20:S20,$E$3) -> TRUE | G20: Flag | K20: TRUE | L20: TRUE | M20: TRUE | N20: TRUE | O20: TRUE | P20: TRUE | Q20: TRUE | R20: TRUE | S20: TRUE
D21: Pro-Rata Funding | E21: FALSE | F21: =INDEX(K21:S21,$E$3) -> FALSE | G21: Flag | K21: =NOT(K20) -> FALSE | L21: =NOT(L20) -> FALSE | M21: FALSE | N21: FALSE | O21: FALSE | P21: FALSE | Q21: FALSE | R21: FALSE | S21: FALSE
D23: Debt Tenor | E23: 25 | F23: =INDEX(K23:S23,$E$3) -> 25 | G23: Years | K23: 25 | L23: 25 | M23: 25 | N23: 25 | O23: 25 | P23: 25 | Q23: 25 | R23: 25 | S23: 25
D24: End of Debt Repayment | E24: 2048-12-01 | F24: =INDEX(K24:S24,$E$3) -> 2048-12-01 | K24: =EDATE(K7,K23*Months) -> 2048-12-01 | L24: 2048-12-01 | M24: 2048-12-01 | N24: 2048-12-01 | O24: 2048-12-01 | P24: 2048-12-01 | Q24: 2049-03-01 | R24: 2049-03-01 | S24: 2049-03-01
D25: Interest and Principal Repayments Timing | E25: 6 | F25: =INDEX(K25:S25,$E$3) -> 6 | G25: Months | H25: Every 6 Months | K25: 6 | L25: 6 | M25: 6 | N25: 6 | O25: 6 | P25: 6 | Q25: 6 | R25: 6 | S25: 6
D27: Base Interest Rate | E27: 0.035 | F27: =INDEX(K27:S27,$E$3) -> 0.035 | G27: % p.a. | H27: Annual Rate | K27: 0.035 | L27: 0.035 | M27: 0.035 | N27: 0.035 | O27: 0.035 | P27: 0.035 | Q27: 0.035 | R27: 0.035 | S27: 0.035
D28: Code for Credit Spread | E28: 2 | F28: =INDEX(K28:S28,$E$3) -> 2 | G28: Code | K28: 2 | L28: 2 | M28: 1 | N28: 1 | O28: 2 | P28: 2 | Q28: 1 | R28: 1 | S28: 1
D29: Up-Front Fee | E29: 0.01 | F29: =INDEX(K29:S29,$E$3) -> 0.01 | G29: % | K29: 0.01 | L29: 0.01 | M29: 0.01 | N29: 0.01 | O29: 0.01 | P29: 0.01 | Q29: 0.01 | R29: 0.01 | S29: 0.01
D30: Commitment Fee | E30: 0.007 | F30: =INDEX(K30:S30,$E$3) -> 0.007 | G30: % p.a. | K30: 0.007 | L30: 0.007 | M30: 0.007 | N30: 0.007 | O30: 0.007 | P30: 0.007 | Q30: 0.007 | R30: 0.007 | S30: 0.007
D32: DSRA Months | E32: 6 | F32: =INDEX(K32:S32,$E$3) -> 6 | G32: Months | K32: 6 | L32: 6 | M32: 6 | N32: 6 | O32: 6 | P32: 6 | Q32: 6 | R32: 6 | S32: 6

Sheet InputS
A1: =RIGHT(CELL("filename",A1),LEN(CELL("filename",A1))- SEARCH("]",CELL("filename",A1))) -> InputS
C3: EPC - S-Curve
B5: Construction
D6: Construction Period | G6: Month | L6: 1 | M6: 2 | N6: 3 | O6: 4 | P6: 5 | Q6: 6 | R6: 7 | S6: 8 | T6: 9 | U6: 10 | V6: 11 | W6: 12 | X6: 13 | Y6: 14 | Z6: 15 | AA6: 16 | AB6: 17 | AC6: 18 | AD6: 19 | AE6: 20 | AF6: 21 | AG6: 22 | AH6: 23 | AI6: 24
D7: Construction Year | G7: Year | L7: =ROUNDUP(L6/12,0) -> 1 | M7: =ROUNDUP(M6/12,0) -> 1 | N7: 1 | O7: 1 | P7: 1 | Q7: 1 | R7: 1 | S7: 1 | T7: 1 | U7: 1 | V7: 1 | W7: 1 | X7: 2 | Y7: 2 | Z7: 2 | AA7: 2 | AB7: 2 | AC7: 2 | AD7: 2 | AE7: 2 | AF7: 2 | AG7: 2 | AH7: 2 | AI7: 2
D8: Construction Months | G8: Flag | H8: ='InputC - Operations'!E8 -> 11 | L8: =L6<=$H$8 -> TRUE | M8: TRUE | N8: TRUE | O8: TRUE | P8: TRUE | Q8: TRUE | R8: TRUE | S8: TRUE | T8: TRUE | U8: TRUE | V8: TRUE | W8: FALSE | X8: FALSE | Y8: FALSE | Z8: FALSE | AA8: FALSE | AB8: FALSE | AC8: FALSE | AD8: FALSE | AE8: FALSE | AF8: FALSE | AG8: FALSE | AH8: FALSE | AI8: FALSE
C10: S-Curve - Scenario Number | G10: Code | H10: ='InputC - Operations'!E53 -> 1
D12: S-Curve - Base Case | F12: 1 | G12: % | H12: =SUM(L12:BI12) -> 1 | L12: 0.25 | M12: 0.1 | N12: 0 | O12: 0.15 | P12: 0.2 | Q12: 0.3 | R12: 0 | S12: 0 | T12: 0 | U12: 0 | V12: 0 | W12: 0 | X12: 0 | Y12: 0 | Z12: 0 | AA12: 0 | AB12: 0 | AC12: 0 | AD12: 0 | AE12: 0 | AF12: 0 | AG12: 0 | AH12: 0 | AI12: 0
D13: S-Curve - Flat Case | F13: 2 | G13: % | H13: =SUM(L13:BI13) -> 1 | L13: =1/$H$8*L8 -> 0.09090909091 | M13: 0.09090909091 | N13: 0.09090909091 | O13: 0.09090909091 | P13: 0.09090909091 | Q13: 0.09090909091 | R13: 0.09090909091 | S13: 0.09090909091 | T13: 0.09090909091 | U13: 0.09090909091 | V13: 0.09090909091 | W13: 0 | X13: 0 | Y13: 0 | Z13: 0 | AA13: 0 | AB13: 0 | AC13: 0 | AD13: 0 | AE13: 0 | AF13: 0 | AG13: 0 | AH13: 0 | AI13: 0
D14: S-Curve - Front Loaded Case | F14: 3 | G14: % | H14: =SUM(L14:BI14) -> 1 | L14: 0.4 | M14: 0.3 | N14: 0.2 | O14: 0.1 | P14: 0 | Q14: 0 | R14: 0 | S14: 0 | T14: 0 | U14: 0 | V14: 0 | W14: 0 | X14: 0 | Y14: 0 | Z14: 0 | AA14: 0 | AB14: 0 | AC14: 0 | AD14: 0 | AE14: 0 | AF14: 0 | AG14: 0 | AH14: 0 | AI14: 0
D16: =INDEX(D12:D14,$H$10) -> S-Curve - Base Case | G16: % | H16: =SUM(I16:XFD16) -> 1 | L16: =INDEX(L12:L15,$H$10) -> 0.25 | M16: =INDEX(M12:M15,$H$10) -> 0.1 | N16: =INDEX(N12:N15,$H$10) -> 0 | O16: =INDEX(O12:O15,$H$10) -> 0.15 | P16: =INDEX(P12:P15,$H$10) -> 0.2 | Q16: =INDEX(Q12:Q15,$H$10) -> 0.3 | R16: =INDEX(R12:R15,$H$10) -> 0 | S16: =INDEX(S12:S15,$H$10) -> 0 | T16: =INDEX(T12:T15,$H$10) -> 0 | U16: =INDEX(U12:U15,$H$10) -> 0 | V16: =INDEX(V12:V15,$H$10) -> 0 | W16: =INDEX(W12:W15,$H$10) -> 0 | X16: =INDEX(X12:X15,$H$10) -> 0 | Y16: =INDEX(Y12:Y15,$H$10) -> 0 | Z16: =INDEX(Z12:Z15,$H$10) -> 0 | AA16: =INDEX(AA12:AA15,$H$10) -> 0 | AB16: =INDEX(AB12:AB15,$H$10) -> 0 | AC16: =INDEX(AC12:AC15,$H$10) -> 0 | AD16: =INDEX(AD12:AD15,$H$10) -> 0 | AE16: =INDEX(AE12:AE15,$H$10) -> 0 | AF16: =INDEX(AF12:AF15,$H$10) -> 0 | AG16: =INDEX(AG12:AG15,$H$10) -> 0 | AH16: =INDEX(AH12:AH15,$H$10) -> 0 | AI16: =INDEX(AI12:AI15,$H$10) -> 0
C18: Solar Seasonality
D19: Month Name | K19: 1 | L19: Jan | M19: Feb | N19: March | O19: April | P19: May | Q19: June | R19: July | S19: August | T19: Sept | U19: October | V19: Nov | W19: Dec
D20: Month Number | G20: Counter | L20: 1 | M20: 2 | N20: 3 | O20: 4 | P20: 5 | Q20: 6 | R20: 7 | S20: 8 | T20: 9 | U20: 10 | V20: 11 | W20: 12
D21: Resource Availability | G21: % | H21: =SUM(L21:W21) -> 1 | L21: 0.06666666667 | M21: 0.06666666667 | N21: 0.08 | O21: 0.085 | P21: 0.09 | Q21: 0.12 | R21: 0.12 | S21: 0.09 | T21: 0.08 | U21: 0.07 | V21: 0.065 | W21: 0.06666666667
B23: Macro Economic
C24: General Inflation Rate | G24: Code | H24: ='InputC - Operations'!E28 -> 2
D26: Year | L26: 2021 | M26: 2022 | N26: 2023 | O26: 2024 | P26: 2025 | Q26: 2026 | R26: 2027 | S26: 2028 | T26: 2029
D27: Base Case | F27: 1 | G27: % | L27: 0.015 | M27: 0.04 | N27: 0.035 | O27: 0.03 | P27: 0.03 | Q27: 0.03 | R27: 0.03 | S27: 0.03 | T27: 0.03
D28: High Inflation | F28: 2 | G28: % | L28: 0.015 | M28: 0.04 | N28: 0.04 | O28: 0.04 | P28: 0.04 | Q28: 0.04 | R28: 0.04 | S28: 0.04 | T28: 0.04
D29: Low Inflation | F29: 3 | G29: % | L29: 0.015 | M29: 0.04 | N29: 0.02 | O29: 0.02 | P29: 0.015 | Q29: 0.015 | R29: 0.015 | S29: 0.015 | T29: 0.015
D31: =INDEX(D27:D29,$H$24) -> High Inflation | G31: % | L31: =INDEX(L27:L29,$H$24) -> 0.015 | M31: =INDEX(M27:M29,$H$24) -> 0.04 | N31: =INDEX(N27:N29,$H$24) -> 0.04 | O31: =INDEX(O27:O29,$H$24) -> 0.04 | P31: =INDEX(P27:P29,$H$24) -> 0.04 | Q31: =INDEX(Q27:Q29,$H$24) -> 0.04 | R31: =INDEX(R27:R29,$H$24) -> 0.04 | S31: =INDEX(S27:S29,$H$24) -> 0.04 | T31: =INDEX(T27:T29,$H$24) -> 0.04
C33: Degradation Rate | G33: Code | H33: ='InputC - Operations'!E25 -> 1
D35: Age - Annual | G35: Year | K35: 0 | L35: 1 | M35: 2 | N35: 3 | O35: 4 | P35: 5 | Q35: 6 | R35: 7 | S35: 8 | T35: 9 | U35: 10 | V35: 11 | W35: 12
D37: Base Degradation | F37: 1 | G37: % | L37: 0.0075 | M37: 0.005 | N37: 0.005 | O37: 0.005 | P37: 0.005 | Q37: 0.005 | R37: 0.005 | S37: 0.005 | T37: 0.005 | U37: 0.005 | V37: 0.005 | W37: 0.005
D38: High Degradation | F38: 2 | G38: % | L38: 0.0075 | M38: 0.0075 | N38: 0.0075 | O38: 0.0075 | P38: 0.0075 | Q38: 0.0075 | R38: 0.0075 | S38: 0.0075 | T38: 0.0075 | U38: 0.0075 | V38: 0.0075 | W38: 0.0075
D39: Low Degredation | F39: 3 | G39: % | L39: 0.004 | M39: 0.004 | N39: 0.004 | O39: 0.004 | P39: 0.004 | Q39: 0.004 | R39: 0.004 | S39: 0.004 | T39: 0.004 | U39: 0.004 | V39: 0.004 | W39: 0.004
D41: =INDEX(D37:D39,$H$33) -> Base Degradation | G41: % | L41: =INDEX(L37:L39,$H$33) -> 0.0075 | M41: =INDEX(M37:M39,$H$33) -> 0.005 | N41: =INDEX(N37:N39,$H$33) -> 0.005 | O41: =INDEX(O37:O39,$H$33) -> 0.005 | P41: =INDEX(P37:P39,$H$33) -> 0.005 | Q41: =INDEX(Q37:Q39,$H$33) -> 0.005 | R41: =INDEX(R37:R39,$H$33) -> 0.005 | S41: =INDEX(S37:S39,$H$33) -> 0.005 | T41: =INDEX(T37:T39,$H$33) -> 0.005 | U41: =INDEX(U37:U39,$H$33) -> 0.005 | V41: =INDEX(V37:V39,$H$33) -> 0.005 | W41: =INDEX(W37:W39,$H$33) -> 0.005
C43: Depreciaion Rate
D45: Life | G45: Years | H45: ='InputC - Operations'!F59 -> 5
D46: Factor | G46: Factor | H46: ='InputC - Operations'!F60 -> 2
D48: Year | L48: 0 | M48: 1 | N48: 2 | O48: 3 | P48: 4 | Q48: 5 | R48: 6 | S48: 7 | T48: 8 | U48: 9 | V48: 10 | W48: 11 | X48: 12 | Y48: 13 | Z48: 14
D49: Annual Depreciation Rate | G49: % | M49: =IFERROR(VDB(1,0,$H$45,L48,M48,$H$46),0) -> 0.4 | N49: =IFERROR(VDB(1,0,$H$45,M48,N48,$H$46),0) -> 0.24 | O49: 0.144 | P49: 0.108 | Q49: 0.108 | R49: 0 | S49: 0 | T49: 0 | U49: 0 | V49: 0 | W49: 0 | X49: 0 | Y49: 0 | Z49: 0
B51: Financing
C52: Credit Spread | G52: Code | H52: ='InputC-Financing'!E28 -> 2
D54: Repayment Period | L54: 0 | M54: 1 | N54: 3 | O54: 5 | P54: 7 | Q54: 10
D56: Credit Spread in Term Sheet | F56: 1 | G56: % | L56: 0.015 | M56: 0.0175 | N56: =M56+0.25% -> 0.02 | O56: =N56+0.25% -> 0.0225 | P56: 0.025 | Q56: =P56 -> 0.025
D57: Flat Credit Spread | F57: 2 | G57: % | L57: =L56 -> 0.015 | M57: =M56 -> 0.0175 | N57: =M57 -> 0.0175 | O57: =N57 -> 0.0175 | P57: 0.0175 | Q57: 0.0175
D58: Upside Credit Spread | F58: 3 | G58: % | L58: =L57 -> 0.015 | M58: =M57 -> 0.0175 | N58: 0.015 | O58: 0.015 | P58: 0.015 | Q58: 0.015
D60: =INDEX(D56:D58,$H$52) -> Flat Credit Spread | G60: % | L60: =INDEX(L56:L58,$H$52) -> 0.015 | M60: =INDEX(M56:M58,$H$52) -> 0.0175 | N60: =INDEX(N56:N58,$H$52) -> 0.0175 | O60: =INDEX(O56:O58,$H$52) -> 0.0175 | P60: =INDEX(P56:P58,$H$52) -> 0.0175 | Q60: =INDEX(Q56:Q58,$H$52) -> 0.0175
C63: Repayment
D64: Repayment Period | L64: 0 | M64: 1 | N64: 2 | O64: 3 | P64: 4 | Q64: 5 | R64: 6 | S64: 7 | T64: 8 | U64: 9 | V64: 10 | W64: 11 | X64: 12 | Y64: 13 | Z64: 14 | AA64: 15 | AB64: 16 | AC64: 17 | AD64: 18 | AE64: 19 | AF64: 20 | AG64: 21 | AH64: 22 | AI64: 23 | AJ64: 24 | AK64: 25 | AL64: 26 | AM64: 27 | AN64: 28 | AO64: 29 | AP64: 30 | AQ64: 31 | AR64: 32 | AS64: 33 | AT64: 34 | AU64: 35 | AV64: 36 | AW64: 37 | AX64: 38 | AY64: 39 | AZ64: 40 | BA64: 41 | BB64: 42 | BC64: 43 | BD64: 44 | BE64: 45 | BF64: 46 | BG64: 47 | BH64: 48 | BI64: 49 | BJ64: 50 | BK64: 51 | BL64: 52 | BM64: 53 | BN64: 54 | BO64: 55 | BP64: 56 | BQ64: 57 | BR64: 58 | BS64: 59 | BT64: 60 | BU64: 61 | BV64: 62 | BW64: 63 | BX64: 64 | BY64: 65 | BZ64: 66 | CA64: 67 | CB64: 68 | CC64: 69 | CD64: 70 | CE64: 71 | CF64: 72 | CG64: 73 | CH64: 74
D65: Current Repayment Scenario
D67: Repayment Copied for Case 1 | F67: 1 | J67: =SUM(L67:XFD67) -> 0 | L67: FALSE | M67: FALSE | N67: FALSE | O67: FALSE | P67: FALSE | Q67: FALSE | R67: FALSE | S67: FALSE | T67: FALSE | U67: FALSE | V67: FALSE | W67: FALSE | X67: FALSE | Y67: FALSE | Z67: FALSE | AA67: FALSE | AB67: FALSE | AC67: FALSE | AD67: FALSE | AE67: FALSE | AF67: FALSE | AG67: FALSE | AH67: FALSE | AI67: FALSE | AJ67: FALSE | AK67: FALSE | AL67: FALSE | AM67: FALSE | AN67: FALSE | AO67: FALSE | AP67: FALSE | AQ67: FALSE | AR67: FALSE | AS67: FALSE | AT67: FALSE | AU67: FALSE | AV67: FALSE | AW67: FALSE | AX67: FALSE | AY67: FALSE | AZ67: FALSE | BA67: FALSE | BB67: FALSE | BC67: FALSE | BD67: FALSE | BE67: FALSE | BF67: FALSE | BG67: FALSE | BH67: FALSE | BI67: FALSE | BJ67: FALSE | BK67: FALSE | BL67: FALSE | BM67: FALSE | BN67: FALSE | BO67: FALSE | BP67: FALSE | BQ67: FALSE | BR67: FALSE | BS67: FALSE | BT67: FALSE | BU67: FALSE | BV67: FALSE | BW67: FALSE | BX67: FALSE | BY67: FALSE | BZ67: FALSE | CA67: FALSE | CB67: FALSE | CC67: FALSE | CD67: FALSE | CE67: FALSE | CF67: FALSE | CG67: FALSE | CH67: FALSE | CI67: Repayment1
D68: Repayment Copied for Case 2 | F68: 2 | J68: =SUM(L68:XFD68) -> 1 | L68: 0 | M68: -0.01404126088 | N68: 0.00361724365 | O68: -0.007561485053 | P68: 0.004641226632 | Q68: -0.006869971241 | R68: 0.005788286401 | S68: -0.006103111976 | T68: 0.00702713118 | U68: -0.005404450495 | V68: 0.008359755678 | W68: -0.003563197057 | X68: 0.01098826195 | Y68: -0.002063840318 | Z68: 0.01265088349 | AA68: -0.0008288590719 | AB68: 0.01443915004 | AC68: 0.0003755106925 | AD68: 0.01635722875 | AE68: 0.001981239776 | AF68: 0.01842098093 | AG68: 0.003575661239 | AH68: 0.02063573469 | AI68: 0.005306371711 | AJ68: 0.02301095776 | AK68: 0.007052730004 | AL68: 0.02555321132 | AM68: 0.009209840619 | AN68: 0.0282798384 | AO68: 0.0114056916 | AP68: 0.03119878126 | AQ68: 0.01377738406 | AR68: 0.03432191964 | AS68: 0.01623009763 | AT68: 0.03765898861 | AU68: 0.01909173275 | AV68: 0.04122880504 | AW68: 0.02206203364 | AX68: 0.04504274835 | AY68: 0.02525805919 | AZ68: 0.04911570161 | BA68: 0.02862523809 | BB68: 0.05346156713 | BC68: 0.03238375311 | BD68: 0.05810057543 | BE68: 0.03634654257 | BF68: 0.06304858848 | BG68: 0.04059783762 | BH68: 0.06674103748 | BI68: 0.03413519865 | BJ68: 0.05933264922 | BK68: -5.747633179e-17 | BL68: -5.932603541e-17 | BM68: -6.057646128e-17 | BN68: -6.252593329e-17 | BO68: -6.384380401e-17 | BP68: -6.589842566e-17 | BQ68: -6.765708989e-17 | BR68: -6.946268848e-17 | BS68: -7.092676647e-17 | BT68: -7.320933206e-17 | BU68: -7.475237875e-17 | BV68: -7.715806022e-17 | BW68: -7.878433499e-17 | BX68: -8.131977289e-17 | BY68: -8.348999433e-17 | BZ68: -8.571813355e-17 | CA68: -8.752483058e-17 | CB68: -9.034155515e-17 | CC68: -9.22457009e-17 | CD68: -1.199726106e-16 | CE68: -1.199726106e-16 | CF68: -1.199726106e-16 | CG68: -1.199726106e-16 | CH68: -1.199726106e-16 | CI68: Repayment2
D69: Repayment Copied for Case 3 | F69: 3 | J69: 1 | L69: 0 | M69: -0.0135456023 | N69: 0.005734414522 | O69: -0.008021954708 | P69: 0.00560730295 | Q69: -0.008544283323 | R69: 0.005540288277 | S69: -0.009062436623 | T69: 0.005491910979 | U69: -0.008462530347 | V69: 0.006800456195 | W69: -0.006464686805 | X69: 0.009739284546 | Y69: -0.004889583722 | Z69: 0.01144106465 | AA69: -0.003663469864 | AB69: 0.01328461977 | AC69: -0.002476637371 | AD69: 0.01527483782 | AE69: -0.0008252004184 | AF69: 0.01743218306 | AG69: 0.000811653266 | AH69: 0.01976318934 | AI69: 0.002606446449 | AJ69: 0.02227991445 | AK69: 0.004416812224 | AL69: 0.02499050648 | AM69: 0.006712451547 | AN69: 0.0279177548 | AO69: 0.009053896651 | AP69: 0.03107180919 | AQ69: 0.01160479887 | AR69: 0.03446819174 | AS69: 0.01425127813 | AT69: 0.03811949833 | AU69: 0.01739236906 | AV69: 0.04205095574 | AW69: 0.02066610968 | AX69: 0.04627759898 | AY69: 0.02421600449 | AZ69: 0.05081937977 | BA69: 0.02797489388 | BB69: 0.05569489391 | BC69: 0.0322209427 | BD69: 0.06093187511 | BE69: 0.03672152824 | BF69: 0.06655189749 | BG69: 0.04158442685 | BH69: 0.07258057283 | BI69: 0.04681385433 | BJ69: 0.07904451819 | BK69: -1.119376607e-16 | BL69: -1.159668015e-16 | BM69: -1.188507627e-16 | BN69: -1.231287372e-16 | BO69: -1.261908076e-16 | BP69: -1.307329833e-16 | BQ69: -1.347203393e-16 | BR69: -1.388293096e-16 | BS69: -1.422818352e-16 | BT69: -1.474031995e-16 | BU69: -1.51068948e-16 | BV69: -1.565066e-16 | BW69: -1.603987396e-16 | BX69: -1.661722129e-16 | BY69: -1.712404654e-16 | BZ69: -1.764632996e-16 | CA69: -1.808517393e-16 | CB69: -1.873614083e-16 | CC69: -1.920208715e-16 | CD69: -2.591477333e-16 | CE69: -2.591477333e-16 | CF69: -2.591477333e-16 | CG69: -2.591477333e-16 | CH69: -2.591477333e-16 | CI69: Repayment3
D70: Repayment Copied for Case 4 | F70: 4 | J70: 1 | L70: 0 | M70: -0.006146925535 | N70: -0.00887007865 | O70: 0.0009483598074 | P70: -0.00939345115 | Q70: 0.0008848372168 | R70: -0.009910338451 | S70: 0.0008483386457 | T70: -0.0105919293 | U70: 0.002166952441 | V70: -0.009577739751 | W70: 0.004595906272 | X70: -0.007108753291 | Y70: 0.006820701267 | Z70: -0.005860888289 | AA70: 0.008754971576 | AB70: -0.004634360043 | AC70: 0.01087122819 | AD70: -0.002900574483 | AE70: 0.01319440147 | AF70: -0.001156566491 | AG70: 0.01573511288 | AH70: 0.000781033756 | AI70: 0.01851010955 | AJ70: 0.002762676423 | AK70: 0.02153225038 | AL70: 0.005296176879 | AM70: 0.02483055421 | AN70: 0.007913640043 | AO70: 0.02842078221 | AP70: 0.01079503195 | AQ70: 0.03232490801 | AR70: 0.01381819029 | AS70: 0.03656205225 | AT70: 0.01743010697 | AU70: 0.04116585897 | AV70: 0.02123426989 | AW70: 0.04615908373 | AX70: 0.02539516866 | AY70: 0.05157047438 | AZ70: 0.02983946528 | BA70: 0.0574276726 | BB70: 0.03489584511 | BC70: 0.06376952032 | BD70: 0.04029944322 | BE70: 0.07062821312 | BF70: 0.04618179437 | BG70: 0.07804126534 | BH70: 0.05254831255 | BI70: 0.08492279125 | BJ70: 0.04627410393 | BK70: -7.314172451e-18 | BL70: -7.415563842e-18 | BM70: -7.765884364e-18 | BN70: -7.873537529e-18 | BO70: -8.245493302e-18 | BP70: -8.405981672e-18 | BQ70: -8.756138535e-18 | BR70: -8.877518919e-18 | BS70: -9.29690403e-18 | BT70: -1.434293105e-17 | BU70: -1.434293105e-17 | BV70: -1.434293105e-17 | BW70: -1.434293105e-17 | BX70: -1.434293105e-17 | BY70: -1.434293105e-17 | BZ70: -1.434293105e-17 | CA70: -1.434293105e-17 | CB70: -1.434293105e-17 | CC70: -1.434293105e-17 | CD70: -1.434293105e-17 | CE70: -1.434293105e-17 | CF70: -1.434293105e-17 | CG70: -1.434293105e-17 | CH70: -1.434293105e-17 | CI70: Repayment4
D71: Repayment Copied for Case 5 | F71: 5 | J71: 1 | L71: 0 | M71: -0.006146925535 | N71: -0.00887007865 | O71: 0.0009483598074 | P71: -0.00939345115 | Q71: 0.0008848372168 | R71: -0.009910338451 | S71: 0.0008483386457 | T71: -0.0105919293 | U71: 0.002166952441 | V71: -0.009577739751 | W71: 0.004595906272 | X71: -0.007108753291 | Y71: 0.006820701267 | Z71: -0.005860888289 | AA71: 0.008754971576 | AB71: -0.004634360043 | AC71: 0.01087122819 | AD71: -0.002900574483 | AE71: 0.01319440147 | AF71: -0.001156566491 | AG71: 0.01573511288 | AH71: 0.000781033756 | AI71: 0.01851010955 | AJ71: 0.002762676423 | AK71: 0.02153225038 | AL71: 0.005296176879 | AM71: 0.02483055421 | AN71: 0.007913640043 | AO71: 0.02842078221 | AP71: 0.01079503195 | AQ71: 0.03232490801 | AR71: 0.01381819029 | AS71: 0.03656205225 | AT71: 0.01743010697 | AU71: 0.04116585897 | AV71: 0.02123426989 | AW71: 0.04615908373 | AX71: 0.02539516866 | AY71: 0.05157047438 | AZ71: 0.02983946528 | BA71: 0.0574276726 | BB71: 0.03489584511 | BC71: 0.06376952032 | BD71: 0.04029944322 | BE71: 0.07062821312 | BF71: 0.04618179437 | BG71: 0.07804126534 | BH71: 0.05254831255 | BI71: 0.08492279125 | BJ71: 0.04627410393 | BK71: -7.314172451e-18 | BL71: -7.415563842e-18 | BM71: -7.765884364e-18 | BN71: -7.873537529e-18 | BO71: -8.245493302e-18 | BP71: -8.405981672e-18 | BQ71: -8.756138535e-18 | BR71: -8.877518919e-18 | BS71: -9.29690403e-18 | BT71: -1.434293105e-17 | BU71: -1.434293105e-17 | BV71: -1.434293105e-17 | BW71: -1.434293105e-17 | BX71: -1.434293105e-17 | BY71: -1.434293105e-17 | BZ71: -1.434293105e-17 | CA71: -1.434293105e-17 | CB71: -1.434293105e-17 | CC71: -1.434293105e-17 | CD71: -1.434293105e-17 | CE71: -1.434293105e-17 | CF71: -1.434293105e-17 | CG71: -1.434293105e-17 | CH71: -1.434293105e-17 | CI71: Repayment5
D72: Repayment Copied for Case 6 | F72: 6 | J72: 1 | L72: 0 | M72: -0.006146925535 | N72: -0.00887007865 | O72: 0.0009483598074 | P72: -0.00939345115 | Q72: 0.0008848372168 | R72: -0.009910338451 | S72: 0.0008483386457 | T72: -0.0105919293 | U72: 0.002166952441 | V72: -0.009577739751 | W72: 0.004595906272 | X72: -0.007108753291 | Y72: 0.006820701267 | Z72: -0.005860888289 | AA72: 0.008754971576 | AB72: -0.004634360043 | AC72: 0.01087122819 | AD72: -0.002900574483 | AE72: 0.01319440147 | AF72: -0.001156566491 | AG72: 0.01573511288 | AH72: 0.000781033756 | AI72: 0.01851010955 | AJ72: 0.002762676423 | AK72: 0.02153225038 | AL72: 0.005296176879 | AM72: 0.02483055421 | AN72: 0.007913640043 | AO72: 0.02842078221 | AP72: 0.01079503195 | AQ72: 0.03232490801 | AR72: 0.01381819029 | AS72: 0.03656205225 | AT72: 0.01743010697 | AU72: 0.04116585897 | AV72: 0.02123426989 | AW72: 0.04615908373 | AX72: 0.02539516866 | AY72: 0.05157047438 | AZ72: 0.02983946528 | BA72: 0.0574276726 | BB72: 0.03489584511 | BC72: 0.06376952032 | BD72: 0.04029944322 | BE72: 0.07062821312 | BF72: 0.04618179437 | BG72: 0.07804126534 | BH72: 0.05254831255 | BI72: 0.08492279125 | BJ72: 0.04627410393 | BK72: -7.314172451e-18 | BL72: -7.415563842e-18 | BM72: -7.765884364e-18 | BN72: -7.873537529e-18 | BO72: -8.245493302e-18 | BP72: -8.405981672e-18 | BQ72: -8.756138535e-18 | BR72: -8.877518919e-18 | BS72: -9.29690403e-18 | BT72: -1.434293105e-17 | BU72: -1.434293105e-17 | BV72: -1.434293105e-17 | BW72: -1.434293105e-17 | BX72: -1.434293105e-17 | BY72: -1.434293105e-17 | BZ72: -1.434293105e-17 | CA72: -1.434293105e-17 | CB72: -1.434293105e-17 | CC72: -1.434293105e-17 | CD72: -1.434293105e-17 | CE72: -1.434293105e-17 | CF72: -1.434293105e-17 | CG72: -1.434293105e-17 | CH72: -1.434293105e-17 | CI72: Repayment6
D73: Repayment Copied for Case 7 | F73: 7 | J73: 1 | L73: 0 | M73: -0.006146925535 | N73: -0.00887007865 | O73: 0.0009483598074 | P73: -0.00939345115 | Q73: 0.0008848372168 | R73: -0.009910338451 | S73: 0.0008483386457 | T73: -0.0105919293 | U73: 0.002166952441 | V73: -0.009577739751 | W73: 0.004595906272 | X73: -0.007108753291 | Y73: 0.006820701267 | Z73: -0.005860888289 | AA73: 0.008754971576 | AB73: -0.004634360043 | AC73: 0.01087122819 | AD73: -0.002900574483 | AE73: 0.01319440147 | AF73: -0.001156566491 | AG73: 0.01573511288 | AH73: 0.000781033756 | AI73: 0.01851010955 | AJ73: 0.002762676423 | AK73: 0.02153225038 | AL73: 0.005296176879 | AM73: 0.02483055421 | AN73: 0.007913640043 | AO73: 0.02842078221 | AP73: 0.01079503195 | AQ73: 0.03232490801 | AR73: 0.01381819029 | AS73: 0.03656205225 | AT73: 0.01743010697 | AU73: 0.04116585897 | AV73: 0.02123426989 | AW73: 0.04615908373 | AX73: 0.02539516866 | AY73: 0.05157047438 | AZ73: 0.02983946528 | BA73: 0.0574276726 | BB73: 0.03489584511 | BC73: 0.06376952032 | BD73: 0.04029944322 | BE73: 0.07062821312 | BF73: 0.04618179437 | BG73: 0.07804126534 | BH73: 0.05254831255 | BI73: 0.08492279125 | BJ73: 0.04627410393 | BK73: -7.314172451e-18 | BL73: -7.415563842e-18 | BM73: -7.765884364e-18 | BN73: -7.873537529e-18 | BO73: -8.245493302e-18 | BP73: -8.405981672e-18 | BQ73: -8.756138535e-18 | BR73: -8.877518919e-18 | BS73: -9.29690403e-18 | BT73: -1.434293105e-17 | BU73: -1.434293105e-17 | BV73: -1.434293105e-17 | BW73: -1.434293105e-17 | BX73: -1.434293105e-17 | BY73: -1.434293105e-17 | BZ73: -1.434293105e-17 | CA73: -1.434293105e-17 | CB73: -1.434293105e-17 | CC73: -1.434293105e-17 | CD73: -1.434293105e-17 | CE73: -1.434293105e-17 | CF73: -1.434293105e-17 | CG73: -1.434293105e-17 | CH73: -1.434293105e-17 | CI73: Repayment7
D74: Repayment Copied for Case 8 | F74: 8 | J74: 1 | L74: 0 | M74: -0.006146925535 | N74: -0.00887007865 | O74: 0.0009483598074 | P74: -0.00939345115 | Q74: 0.0008848372168 | R74: -0.009910338451 | S74: 0.0008483386457 | T74: -0.0105919293 | U74: 0.002166952441 | V74: -0.009577739751 | W74: 0.004595906272 | X74: -0.007108753291 | Y74: 0.006820701267 | Z74: -0.005860888289 | AA74: 0.008754971576 | AB74: -0.004634360043 | AC74: 0.01087122819 | AD74: -0.002900574483 | AE74: 0.01319440147 | AF74: -0.001156566491 | AG74: 0.01573511288 | AH74: 0.000781033756 | AI74: 0.01851010955 | AJ74: 0.002762676423 | AK74: 0.02153225038 | AL74: 0.005296176879 | AM74: 0.02483055421 | AN74: 0.007913640043 | AO74: 0.02842078221 | AP74: 0.01079503195 | AQ74: 0.03232490801 | AR74: 0.01381819029 | AS74: 0.03656205225 | AT74: 0.01743010697 | AU74: 0.04116585897 | AV74: 0.02123426989 | AW74: 0.04615908373 | AX74: 0.02539516866 | AY74: 0.05157047438 | AZ74: 0.02983946528 | BA74: 0.0574276726 | BB74: 0.03489584511 | BC74: 0.06376952032 | BD74: 0.04029944322 | BE74: 0.07062821312 | BF74: 0.04618179437 | BG74: 0.07804126534 | BH74: 0.05254831255 | BI74: 0.08492279125 | BJ74: 0.04627410393 | BK74: -7.314172451e-18 | BL74: -7.415563842e-18 | BM74: -7.765884364e-18 | BN74: -7.873537529e-18 | BO74: -8.245493302e-18 | BP74: -8.405981672e-18 | BQ74: -8.756138535e-18 | BR74: -8.877518919e-18 | BS74: -9.29690403e-18 | BT74: -1.434293105e-17 | BU74: -1.434293105e-17 | BV74: -1.434293105e-17 | BW74: -1.434293105e-17 | BX74: -1.434293105e-17 | BY74: -1.434293105e-17 | BZ74: -1.434293105e-17 | CA74: -1.434293105e-17 | CB74: -1.434293105e-17 | CC74: -1.434293105e-17 | CD74: -1.434293105e-17 | CE74: -1.434293105e-17 | CF74: -1.434293105e-17 | CG74: -1.434293105e-17 | CH74: -1.434293105e-17 | CI74: Repayment8
D76: Fixed Repayment Scenario | F76: =IF('InputC-Financing'!#REF!,'InputC-Financing'!#REF!,'InputC-Financing'!#REF!) ->  | L76: =INDEX(L67:L74,$F$76) ->  | M76: =INDEX(M67:M74,$F$76) ->  | N76: =INDEX(N67:N74,$F$76) ->  | O76: =INDEX(O67:O74,$F$76) ->  | P76: =INDEX(P67:P74,$F$76) ->  | Q76: =INDEX(Q67:Q74,$F$76) ->  | R76: =INDEX(R67:R74,$F$76) ->  | S76: =INDEX(S67:S74,$F$76) ->  | T76: =INDEX(T67:T74,$F$76) ->  | U76: =INDEX(U67:U74,$F$76) ->  | V76: =INDEX(V67:V74,$F$76) ->  | W76: =INDEX(W67:W74,$F$76) ->  | X76: =INDEX(X67:X74,$F$76) ->  | Y76: =INDEX(Y67:Y74,$F$76) ->  | Z76: =INDEX(Z67:Z74,$F$76) ->  | AA76: =INDEX(AA67:AA74,$F$76) ->  | AB76: =INDEX(AB67:AB74,$F$76) ->  | AC76: =INDEX(AC67:AC74,$F$76) ->  | AD76: =INDEX(AD67:AD74,$F$76) ->  | AE76: =INDEX(AE67:AE74,$F$76) ->  | AF76: =INDEX(AF67:AF74,$F$76) ->  | AG76: =INDEX(AG67:AG74,$F$76) ->  | AH76: =INDEX(AH67:AH74,$F$76) ->  | AI76: =INDEX(AI67:AI74,$F$76) ->  | AJ76: =INDEX(AJ67:AJ74,$F$76) ->  | AK76: =INDEX(AK67:AK74,$F$76) ->  | AL76: =INDEX(AL67:AL74,$F$76) ->  | AM76: =INDEX(AM67:AM74,$F$76) ->  | AN76: =INDEX(AN67:AN74,$F$76) ->  | AO76: =INDEX(AO67:AO74,$F$76) ->  | AP76: =INDEX(AP67:AP74,$F$76) ->  | AQ76: =INDEX(AQ67:AQ74,$F$76) ->  | AR76: =INDEX(AR67:AR74,$F$76) ->  | AS76: =INDEX(AS67:AS74,$F$76) ->  | AT76: =INDEX(AT67:AT74,$F$76) ->  | AU76: =INDEX(AU67:AU74,$F$76) ->  | AV76: =INDEX(AV67:AV74,$F$76) ->  | AW76: =INDEX(AW67:AW74,$F$76) ->  | AX76: =INDEX(AX67:AX74,$F$76) ->  | AY76: =INDEX(AY67:AY74,$F$76) ->  | AZ76: =INDEX(AZ67:AZ74,$F$76) ->  | BA76: =INDEX(BA67:BA74,$F$76) ->  | BB76: =INDEX(BB67:BB74,$F$76) ->  | BC76: =INDEX(BC67:BC74,$F$76) ->  | BD76: =INDEX(BD67:BD74,$F$76) ->  | BE76: =INDEX(BE67:BE74,$F$76) ->  | BF76: =INDEX(BF67:BF74,$F$76) ->  | BG76: =INDEX(BG67:BG74,$F$76) ->  | BH76: =INDEX(BH67:BH74,$F$76) ->  | BI76: =INDEX(BI67:BI74,$F$76) ->  | BJ76: =INDEX(BJ67:BJ74,$F$76) ->  | BK76: =INDEX(BK67:BK74,$F$76) ->  | BL76: =INDEX(BL67:BL74,$F$76) ->  | BM76: =INDEX(BM67:BM74,$F$76) ->  | BN76: =INDEX(BN67:BN74,$F$76) ->  | BO76: =INDEX(BO67:BO74,$F$76) ->  | BP76: =INDEX(BP67:BP74,$F$76) ->  | BQ76: =INDEX(BQ67:BQ74,$F$76) ->  | BR76: =INDEX(BR67:BR74,$F$76) ->  | BS76: =INDEX(BS67:BS74,$F$76) ->  | BT76: =INDEX(BT67:BT74,$F$76) ->  | BU76: =INDEX(BU67:BU74,$F$76) ->  | BV76: =INDEX(BV67:BV74,$F$76) ->  | BW76: =INDEX(BW67:BW74,$F$76) ->  | BX76: =INDEX(BX67:BX74,$F$76) ->  | BY76: =INDEX(BY67:BY74,$F$76) ->  | BZ76: =INDEX(BZ67:BZ74,$F$76) ->  | CA76: =INDEX(CA67:CA74,$F$76) ->  | CB76: =INDEX(CB67:CB74,$F$76) ->  | CC76: =INDEX(CC67:CC74,$F$76) ->  | CD76: =INDEX(CD67:CD74,$F$76) ->  | CE76: =INDEX(CE67:CE74,$F$76) ->  | CF76: =INDEX(CF67:CF74,$F$76) ->  | CG76: =INDEX(CG67:CG74,$F$76) ->  | CH76: =INDEX(CH67:CH74,$F$76) -> 
D77: Debt Structuring Case | F77: =INDEX('InputC-Financing'!$K$3:$S$3,InputS!F76) -> 

Sheet Operation Monthly
A1: =MID(CELL("filename"),FIND("]",CELL("filename"),1)+1,250) -> Introduction
E2: Constant | F2: Constant | G2: Unit
D3: Period Number | G3: Number | L3: 1 | M3: 2 | N3: 3 | O3: 4 | P3: 5 | Q3: 6 | R3: 7 | S3: 8 | T3: 9 | U3: 10 | V3: 11 | W3: 12 | X3: 13 | Y3: 14 | Z3: 15 | AA3: 16 | AB3: 17 | AC3: 18 | AD3: 19 | AE3: 20 | AF3: 21 | AG3: 22 | AH3: 23 | AI3: 24 | AJ3: 25 | AK3: 26 | AL3: 27 | AM3: 28 | AN3: 29 | AO3: 30 | AP3: 31 | AQ3: 32 | AR3: 33 | AS3: 34 | AT3: 35 | AU3: 36 | AV3: 37 | AW3: 38 | AX3: 39 | AY3: 40 | AZ3: 41 | BA3: 42 | BB3: 43 | BC3: 44 | BD3: 45 | BE3: 46 | BF3: 47 | BG3: 48 | BH3: 49 | BI3: 50 | BJ3: 51 | BK3: 52 | BL3: 53 | BM3: 54 | BN3: 55 | BO3: 56 | BP3: 57 | BQ3: 58 | BR3: 59 | BS3: 60 | BT3: 61 | BU3: 62 | BV3: 63 | BW3: 64 | BX3: 65 | BY3: 66 | BZ3: 67 | CA3: 68 | CB3: 69 | CC3: 70 | CD3: 71 | CE3: 72 | CF3: 73 | CG3: 74 | CH3: 75 | CI3: 76 | CJ3: 77 | CK3: 78 | CL3: 79 | CM3: 80 | CN3: 81 | CO3: 82 | CP3: 83 | CQ3: 84 | CR3: 85 | CS3: 86 | CT3: 87 | CU3: 88 | CV3: 89 | CW3: 90 | CX3: 91 | CY3: 92 | CZ3: 93 | DA3: 94 | DB3: 95 | DC3: 96 | DD3: 97 | DE3: 98 | DF3: 99 | DG3: 100 | DH3: 101 | DI3: 102 | DJ3: 103 | DK3: 104 | DL3: 105 | DM3: 106 | DN3: 107 | DO3: 108 | DP3: 109 | DQ3: 110 | DR3: 111 | DS3: 112 | DT3: 113 | DU3: 114 | DV3: 115 | DW3: 116 | DX3: 117 | DY3: 118 | DZ3: 119 | EA3: 120 | EB3: 121 | EC3: 122 | ED3: 123 | EE3: 124 | EF3: 125 | EG3: 126 | EH3: 127 | EI3: 128 | EJ3: 129 | EK3: 130 | EL3: 131 | EM3: 132 | EN3: 133 | EO3: 134 | EP3: 135 | EQ3: 136 | ER3: 137 | ES3: 138 | ET3: 139 | EU3: 140 | EV3: 141 | EW3: 142 | EX3: 143 | EY3: 144 | EZ3: 145 | FA3: 146 | FB3: 147 | FC3: 148 | FD3: 149 | FE3: 150 | FF3: 151 | FG3: 152 | FH3: 153 | FI3: 154 | FJ3: 155 | FK3: 156 | FL3: 157 | FM3: 158 | FN3: 159 | FO3: 160 | FP3: 161 | FQ3: 162 | FR3: 163 | FS3: 164 | FT3: 165 | FU3: 166 | FV3: 167 | FW3: 168 | FX3: 169 | FY3: 170 | FZ3: 171 | GA3: 172 | GB3: 173 | GC3: 174 | GD3: 175 | GE3: 176 | GF3: 177 | GG3: 178 | GH3: 179 | GI3: 180 | GJ3: 181 | GK3: 182 | GL3: 183 | GM3: 184 | GN3: 185 | GO3: 186 | GP3: 187 | GQ3: 188 | GR3: 189 | GS3: 190 | GT3: 191 | GU3: 192 | GV3: 193 | GW3: 194 | GX3: 195 | GY3: 196 | GZ3: 197 | HA3: 198 | HB3: 199 | HC3: 200 | HD3: 201 | HE3: 202 | HF3: 203 | HG3: 204 | HH3: 205 | HI3: 206 | HJ3: 207 | HK3: 208 | HL3: 209 | HM3: 210 | HN3: 211 | HO3: 212 | HP3: 213 | HQ3: 214 | HR3: 215 | HS3: 216 | HT3: 217 | HU3: 218 | HV3: 219 | HW3: 220 | HX3: 221 | HY3: 222 | HZ3: 223 | IA3: 224 | IB3: 225 | IC3: 226 | ID3: 227 | IE3: 228 | IF3: 229 | IG3: 230 | IH3: 231 | II3: 232 | IJ3: 233 | IK3: 234 | IL3: 235 | IM3: 236 | IN3: 237 | IO3: 238 | IP3: 239 | IQ3: 240 | IR3: 241 | IS3: 242 | IT3: 243 | IU3: 244 | IV3: 245 | IW3: 246 | IX3: 247 | IY3: 248 | IZ3: 249 | JA3: 250 | JB3: 251 | JC3: 252 | JD3: 253 | JE3: 254 | JF3: 255 | JG3: 256 | JH3: 257 | JI3: 258 | JJ3: 259 | JK3: 260 | JL3: 261 | JM3: 262 | JN3: 263 | JO3: 264 | JP3: 265 | JQ3: 266 | JR3: 267 | JS3: 268 | JT3: 269 | JU3: 270 | JV3: 271 | JW3: 272 | JX3: 273 | JY3: 274 | JZ3: 275 | KA3: 276 | KB3: 277 | KC3: 278 | KD3: 279 | KE3: 280 | KF3: 281 | KG3: 282 | KH3: 283 | KI3: 284 | KJ3: 285 | KK3: 286 | KL3: 287 | KM3: 288 | KN3: 289 | KO3: 290 | KP3: 291 | KQ3: 292 | KR3: 293 | KS3: 294 | KT3: 295 | KU3: 296 | KV3: 297 | KW3: 298 | KX3: 299 | KY3: 300 | KZ3: 301 | LA3: 302 | LB3: 303 | LC3: 304 | LD3: 305 | LE3: 306 | LF3: 307 | LG3: 308 | LH3: 309 | LI3: 310 | LJ3: 311 | LK3: 312 | LL3: 313 | LM3: 314 | LN3: 315 | LO3: 316 | LP3: 317 | LQ3: 318 | LR3: 319 | LS3: 320 | LT3: 321 | LU3: 322 | LV3: 323 | LW3: 324 | LX3: 325 | LY3: 326 | LZ3: 327 | MA3: 328 | MB3: 329 | MC3: 330 | MD3: 331 | ME3: 332 | MF3: 333 | MG3: 334 | MH3: 335 | MI3: 336 | MJ3: 337 | MK3: 338 | ML3: 339 | MM3: 340 | MN3: 341 | MO3: 342 | MP3: 343 | MQ3: 344 | MR3: 345 | MS3: 346 | MT3: 347 | MU3: 348 | MV3: 349 | MW3: 350 | MX3: 351 | MY3: 352 | MZ3: 353 | NA3: 354 | NB3: 355 | NC3: 356 | ND3: 357 | NE3: 358 | NF3: 359 | NG3: 360 | NH3: 361 | NI3: 362 | NJ3: 363 | NK3: 364 | NL3: 365 | NM3: 366 | NN3: 367 | NO3: 368 | NP3: 369 | NQ3: 370 | NR3: 371 | NS3: 372 | NT3: 373 | NU3: 374 | NV3: 375 | NW3: 376 | NX3: 377 | NY3: 378 | NZ3: 379 | OA3: 380 | OB3: 381 | OC3: 382 | OD3: 383 | OE3: 384 | OF3: 385 | OG3: 386 | OH3: 387 | OI3: 388 | OJ3: 389 | OK3: 390 | OL3: 391 | OM3: 392 | ON3: 393 | OO3: 394 | OP3: 395 | OQ3: 396 | OR3: 397 | OS3: 398 | OT3: 399 | OU3: 400 | OV3: 401 | OW3: 402 | OX3: 403 | OY3: 404 | OZ3: 405 | PA3: 406 | PB3: 407 | PC3: 408 | PD3: 409 | PE3: 410 | PF3: 411 | PG3: 412 | PH3: 413 | PI3: 414 | PJ3: 415 | PK3: 416 | PL3: 417 | PM3: 418 | PN3: 419 | PO3: 420 | PP3: 421 | PQ3: 422 | PR3: 423 | PS3: 424 | PT3: 425 | PU3: 426 | PV3: 427 | PW3: 428 | PX3: 429 | PY3: 430 | PZ3: 431 | QA3: 432 | QB3: 433 | QC3: 434 | QD3: 435 | QE3: 436 | QF3: 437 | QG3: 438 | QH3: 439 | QI3: 440 | QJ3: 441 | QK3: 442 | QL3: 443 | QM3: 444 | QN3: 445 | QO3: 446 | QP3: 447 | QQ3: 448 | QR3: 449 | QS3: 450 | QT3: 451 | QU3: 452 | QV3: 453 | QW3: 454 | QX3: 455 | QY3: 456 | QZ3: 457 | RA3: 458 | RB3: 459 | RC3: 460 | RD3: 461 | RE3: 462 | RF3: 463 | RG3: 464 | RH3: 465 | RI3: 466 | RJ3: 467 | RK3: 468 | RL3: 469 | RM3: 470 | RN3: 471 | RO3: 472 | RP3: 473 | RQ3: 474 | RR3: 475 | RS3: 476 | RT3: 477 | RU3: 478 | RV3: 479 | RW3: 480 | RX3: 481 | RY3: 482 | RZ3: 483 | SA3: 484 | SB3: 485 | SC3: 486 | SD3: 487 | SE3: 488 | SF3: 489 | SG3: 490 | SH3: 491 | SI3: 492 | SJ3: 493 | SK3: 494 | SL3: 495 | SM3: 496 | SN3: 497 | SO3: 498 | SP3: 499 | SQ3: 500
D4: Start of Period | E4: ='InputC - Operations'!$F$7 -> 2023-01-01 | G4: Date | L4: =K5+1 -> 2023-01-01 | M4: =L5+1 -> 2023-02-01 | N4: 2023-03-01 | O4: 2023-04-01 | P4: 2023-05-01 | Q4: 2023-06-01 | R4: 2023-07-01 | S4: 2023-08-01 | T4: 2023-09-01 | U4: 2023-10-01 | V4: 2023-11-01 | W4: 2023-12-01 | X4: 2024-01-01 | Y4: 2024-02-01 | Z4: 2024-03-01 | AA4: 2024-04-01 | AB4: 2024-05-01 | AC4: 2024-06-01 | AD4: 2024-07-01 | AE4: 2024-08-01 | AF4: 2024-09-01 | AG4: 2024-10-01 | AH4: 2024-11-01 | AI4: 2024-12-01 | AJ4: 2025-01-01 | AK4: 2025-02-01 | AL4: 2025-03-01 | AM4: 2025-04-01 | AN4: 2025-05-01 | AO4: 2025-06-01 | AP4: 2025-07-01 | AQ4: 2025-08-01 | AR4: 2025-09-01 | AS4: 2025-10-01 | AT4: 2025-11-01 | AU4: 2025-12-01 | AV4: 2026-01-01 | AW4: 2026-02-01 | AX4: 2026-03-01 | AY4: 2026-04-01 | AZ4: 2026-05-01 | BA4: 2026-06-01 | BB4: 2026-07-01 | BC4: 2026-08-01 | BD4: 2026-09-01 | BE4: 2026-10-01 | BF4: 2026-11-01 | BG4: 2026-12-01 | BH4: 2027-01-01 | BI4: 2027-02-01 | BJ4: 2027-03-01 | BK4: 2027-04-01 | BL4: 2027-05-01 | BM4: 2027-06-01 | BN4: 2027-07-01 | BO4: 2027-08-01 | BP4: 2027-09-01 | BQ4: 2027-10-01 | BR4: 2027-11-01 | BS4: 2027-12-01 | BT4: 2028-01-01 | BU4: 2028-02-01 | BV4: 2028-03-01 | BW4: 2028-04-01 | BX4: 2028-05-01 | BY4: =BX5+1 -> 2028-06-01 | BZ4: 2028-07-01 | CA4: 2028-08-01 | CB4: 2028-09-01 | CC4: 2028-10-01 | CD4: 2028-11-01 | CE4: 2028-12-01 | CF4: 2029-01-01 | CG4: 2029-02-01 | CH4: 2029-03-01 | CI4: 2029-04-01 | CJ4: 2029-05-01 | CK4: 2029-06-01 | CL4: 2029-07-01 | CM4: 2029-08-01 | CN4: 2029-09-01 | CO4: 2029-10-01 | CP4: 2029-11-01 | CQ4: 2029-12-01 | CR4: 2030-01-01 | CS4: 2030-02-01 | CT4: 2030-03-01 | CU4: 2030-04-01 | CV4: 2030-05-01 | CW4: 2030-06-01 | CX4: 2030-07-01 | CY4: 2030-08-01 | CZ4: 2030-09-01 | DA4: 2030-10-01 | DB4: 2030-11-01 | DC4: 2030-12-01 | DD4: 2031-01-01 | DE4: 2031-02-01 | DF4: 2031-03-01 | DG4: 2031-04-01 | DH4: 2031-05-01 | DI4: 2031-06-01 | DJ4: 2031-07-01 | DK4: 2031-08-01 | DL4: 2031-09-01 | DM4: 2031-10-01 | DN4: 2031-11-01 | DO4: 2031-12-01 | DP4: 2032-01-01 | DQ4: 2032-02-01 | DR4: 2032-03-01 | DS4: 2032-04-01 | DT4: 2032-05-01 | DU4: 2032-06-01 | DV4: 2032-07-01 | DW4: 2032-08-01 | DX4: 2032-09-01 | DY4: 2032-10-01 | DZ4: 2032-11-01 | EA4: 2032-12-01 | EB4: 2033-01-01 | EC4: 2033-02-01 | ED4: 2033-03-01 | EE4: 2033-04-01 | EF4: 2033-05-01 | EG4: 2033-06-01 | EH4: 2033-07-01 | EI4: 2033-08-01 | EJ4: 2033-09-01 | EK4: =EJ5+1 -> 2033-10-01 | EL4: 2033-11-01 | EM4: 2033-12-01 | EN4: 2034-01-01 | EO4: 2034-02-01 | EP4: 2034-03-01 | EQ4: 2034-04-01 | ER4: 2034-05-01 | ES4: 2034-06-01 | ET4: 2034-07-01 | EU4: 2034-08-01 | EV4: 2034-09-01 | EW4: 2034-10-01 | EX4: 2034-11-01 | EY4: 2034-12-01 | EZ4: 2035-01-01 | FA4: 2035-02-01 | FB4: 2035-03-01 | FC4: 2035-04-01 | FD4: 2035-05-01 | FE4: 2035-06-01 | FF4: 2035-07-01 | FG4: 2035-08-01 | FH4: 2035-09-01 | FI4: 2035-10-01 | FJ4: 2035-11-01 | FK4: 2035-12-01 | FL4: 2036-01-01 | FM4: 2036-02-01 | FN4: 2036-03-01 | FO4: 2036-04-01 | FP4: 2036-05-01 | FQ4: 2036-06-01 | FR4: 2036-07-01 | FS4: 2036-08-01 | FT4: 2036-09-01 | FU4: 2036-10-01 | FV4: 2036-11-01 | FW4: 2036-12-01 | FX4: 2037-01-01 | FY4: 2037-02-01 | FZ4: 2037-03-01 | GA4: 2037-04-01 | GB4: 2037-05-01 | GC4: 2037-06-01 | GD4: 2037-07-01 | GE4: 2037-08-01 | GF4: 2037-09-01 | GG4: 2037-10-01 | GH4: 2037-11-01 | GI4: 2037-12-01 | GJ4: 2038-01-01 | GK4: 2038-02-01 | GL4: 2038-03-01 | GM4: 2038-04-01 | GN4: 2038-05-01 | GO4: 2038-06-01 | GP4: 2038-07-01 | GQ4: 2038-08-01 | GR4: 2038-09-01 | GS4: 2038-10-01 | GT4: 2038-11-01 | GU4: 2038-12-01 | GV4: 2039-01-01 | GW4: =GV5+1 -> 2039-02-01 | GX4: 2039-03-01 | GY4: 2039-04-01 | GZ4: 2039-05-01 | HA4: 2039-06-01 | HB4: 2039-07-01 | HC4: 2039-08-01 | HD4: 2039-09-01 | HE4: 2039-10-01 | HF4: 2039-11-01 | HG4: 2039-12-01 | HH4: 2040-01-01 | HI4: 2040-02-01 | HJ4: 2040-03-01 | HK4: 2040-04-01 | HL4: 2040-05-01 | HM4: 2040-06-01 | HN4: 2040-07-01 | HO4: 2040-08-01 | HP4: 2040-09-01 | HQ4: 2040-10-01 | HR4: 2040-11-01 | HS4: 2040-12-01 | HT4: 2041-01-01 | HU4: 2041-02-01 | HV4: 2041-03-01 | HW4: 2041-04-01 | HX4: 2041-05-01 | HY4: 2041-06-01 | HZ4: 2041-07-01 | IA4: 2041-08-01 | IB4: 2041-09-01 | IC4: 2041-10-01 | ID4: 2041-11-01 | IE4: 2041-12-01 | IF4: 2042-01-01 | IG4: 2042-02-01 | IH4: 2042-03-01 | II4: 2042-04-01 | IJ4: 2042-05-01 | IK4: 2042-06-01 | IL4: 2042-07-01 | IM4: 2042-08-01 | IN4: 2042-09-01 | IO4: 2042-10-01 | IP4: 2042-11-01 | IQ4: 2042-12-01 | IR4: 2043-01-01 | IS4: 2043-02-01 | IT4: 2043-03-01 | IU4: 2043-04-01 | IV4: 2043-05-01 | IW4: 2043-06-01 | IX4: 2043-07-01 | IY4: 2043-08-01 | IZ4: 2043-09-01 | JA4: 2043-10-01 | JB4: 2043-11-01 | JC4: 2043-12-01 | JD4: 2044-01-01 | JE4: 2044-02-01 | JF4: 2044-03-01 | JG4: 2044-04-01 | JH4: 2044-05-01 | JI4: =JH5+1 -> 2044-06-01 | JJ4: 2044-07-01 | JK4: 2044-08-01 | JL4: 2044-09-01 | JM4: 2044-10-01 | JN4: 2044-11-01 | JO4: 2044-12-01 | JP4: 2045-01-01 | JQ4: 2045-02-01 | JR4: 2045-03-01 | JS4: 2045-04-01 | JT4: 2045-05-01 | JU4: 2045-06-01 | JV4: 2045-07-01 | JW4: 2045-08-01 | JX4: 2045-09-01 | JY4: 2045-10-01 | JZ4: 2045-11-01 | KA4: 2045-12-01 | KB4: 2046-01-01 | KC4: 2046-02-01 | KD4: 2046-03-01 | KE4: 2046-04-01 | KF4: 2046-05-01 | KG4: 2046-06-01 | KH4: 2046-07-01 | KI4: 2046-08-01 | KJ4: 2046-09-01 | KK4: 2046-10-01 | KL4: 2046-11-01 | KM4: 2046-12-01 | KN4: 2047-01-01 | KO4: 2047-02-01 | KP4: 2047-03-01 | KQ4: 2047-04-01 | KR4: 2047-05-01 | KS4: 2047-06-01 | KT4: 2047-07-01 | KU4: 2047-08-01 | KV4: 2047-09-01 | KW4: 2047-10-01 | KX4: 2047-11-01 | KY4: 2047-12-01 | KZ4: 2048-01-01 | LA4: 2048-02-01 | LB4: 2048-03-01 | LC4: 2048-04-01 | LD4: 2048-05-01 | LE4: 2048-06-01 | LF4: 2048-07-01 | LG4: 2048-08-01 | LH4: 2048-09-01 | LI4: 2048-10-01 | LJ4: 2048-11-01 | LK4: 2048-12-01 | LL4: 2049-01-01 | LM4: 2049-02-01 | LN4: 2049-03-01 | LO4: 2049-04-01 | LP4: 2049-05-01 | LQ4: 2049-06-01 | LR4: 2049-07-01 | LS4: 2049-08-01 | LT4: 2049-09-01 | LU4: =LT5+1 -> 2049-10-01 | LV4: 2049-11-01 | LW4: 2049-12-01 | LX4: 2050-01-01 | LY4: 2050-02-01 | LZ4: 2050-03-01 | MA4: 2050-04-01 | MB4: 2050-05-01 | MC4: 2050-06-01 | MD4: 2050-07-01 | ME4: 2050-08-01 | MF4: 2050-09-01 | MG4: 2050-10-01 | MH4: 2050-11-01 | MI4: 2050-12-01 | MJ4: 2051-01-01 | MK4: 2051-02-01 | ML4: 2051-03-01 | MM4: 2051-04-01 | MN4: 2051-05-01 | MO4: 2051-06-01 | MP4: 2051-07-01 | MQ4: 2051-08-01 | MR4: 2051-09-01 | MS4: 2051-10-01 | MT4: 2051-11-01 | MU4: 2051-12-01 | MV4: 2052-01-01 | MW4: 2052-02-01 | MX4: 2052-03-01 | MY4: 2052-04-01 | MZ4: 2052-05-01 | NA4: 2052-06-01 | NB4: 2052-07-01 | NC4: 2052-08-01 | ND4: 2052-09-01 | NE4: 2052-10-01 | NF4: 2052-11-01 | NG4: 2052-12-01 | NH4: 2053-01-01 | NI4: 2053-02-01 | NJ4: 2053-03-01 | NK4: 2053-04-01 | NL4: 2053-05-01 | NM4: 2053-06-01 | NN4: 2053-07-01 | NO4: 2053-08-01 | NP4: 2053-09-01 | NQ4: 2053-10-01 | NR4: 2053-11-01 | NS4: 2053-12-01 | NT4: 2054-01-01 | NU4: 2054-02-01 | NV4: 2054-03-01 | NW4: 2054-04-01 | NX4: 2054-05-01 | NY4: 2054-06-01 | NZ4: 2054-07-01 | OA4: 2054-08-01 | OB4: 2054-09-01 | OC4: 2054-10-01 | OD4: 2054-11-01 | OE4: 2054-12-01 | OF4: 2055-01-01 | OG4: =OF5+1 -> 2055-02-01 | OH4: 2055-03-01 | OI4: 2055-04-01 | OJ4: 2055-05-01 | OK4: 2055-06-01 | OL4: 2055-07-01 | OM4: 2055-08-01 | ON4: 2055-09-01 | OO4: 2055-10-01 | OP4: 2055-11-01 | OQ4: 2055-12-01 | OR4: 2056-01-01 | OS4: 2056-02-01 | OT4: 2056-03-01 | OU4: 2056-04-01 | OV4: 2056-05-01 | OW4: 2056-06-01 | OX4: 2056-07-01 | OY4: 2056-08-01 | OZ4: 2056-09-01 | PA4: 2056-10-01 | PB4: 2056-11-01 | PC4: 2056-12-01 | PD4: 2057-01-01 | PE4: 2057-02-01 | PF4: 2057-03-01 | PG4: 2057-04-01 | PH4: 2057-05-01 | PI4: 2057-06-01 | PJ4: 2057-07-01 | PK4: 2057-08-01 | PL4: 2057-09-01 | PM4: 2057-10-01 | PN4: 2057-11-01 | PO4: 2057-12-01 | PP4: 2058-01-01 | PQ4: 2058-02-01 | PR4: 2058-03-01 | PS4: 2058-04-01 | PT4: 2058-05-01 | PU4: 2058-06-01 | PV4: 2058-07-01 | PW4: 2058-08-01 | PX4: 2058-09-01 | PY4: 2058-10-01 | PZ4: 2058-11-01 | QA4: 2058-12-01 | QB4: 2059-01-01 | QC4: 2059-02-01 | QD4: 2059-03-01 | QE4: 2059-04-01 | QF4: 2059-05-01 | QG4: 2059-06-01 | QH4: 2059-07-01 | QI4: 2059-08-01 | QJ4: 2059-09-01 | QK4: 2059-10-01 | QL4: 2059-11-01 | QM4: 2059-12-01 | QN4: 2060-01-01 | QO4: 2060-02-01 | QP4: 2060-03-01 | QQ4: 2060-04-01 | QR4: 2060-05-01 | QS4: =QR5+1 -> 2060-06-01 | QT4: 2060-07-01 | QU4: 2060-08-01 | QV4: 2060-09-01 | QW4: 2060-10-01 | QX4: 2060-11-01 | QY4: 2060-12-01 | QZ4: 2061-01-01 | RA4: 2061-02-01 | RB4: 2061-03-01 | RC4: 2061-04-01 | RD4: 2061-05-01 | RE4: 2061-06-01 | RF4: 2061-07-01 | RG4: 2061-08-01 | RH4: 2061-09-01 | RI4: 2061-10-01 | RJ4: 2061-11-01 | RK4: 2061-12-01 | RL4: 2062-01-01 | RM4: 2062-02-01 | RN4: 2062-03-01 | RO4: 2062-04-01 | RP4: 2062-05-01 | RQ4: 2062-06-01 | RR4: 2062-07-01 | RS4: 2062-08-01 | RT4: 2062-09-01 | RU4: 2062-10-01 | RV4: 2062-11-01 | RW4: 2062-12-01 | RX4: 2063-01-01 | RY4: 2063-02-01 | RZ4: 2063-03-01 | SA4: 2063-04-01 | SB4: 2063-05-01 | SC4: 2063-06-01 | SD4: 2063-07-01 | SE4: 2063-08-01 | SF4: 2063-09-01 | SG4: 2063-10-01 | SH4: 2063-11-01 | SI4: 2063-12-01 | SJ4: 2064-01-01 | SK4: 2064-02-01 | SL4: 2064-03-01 | SM4: 2064-04-01 | SN4: 2064-05-01 | SO4: 2064-06-01 | SP4: 2064-07-01 | SQ4: 2064-08-01
D5: End of Period | G5: Date | K5: =E4-1 -> 2022-12-31 | L5: =EDATE(L4,1)-1 -> 2023-01-31 | M5: =EDATE(M4,1)-1 -> 2023-02-28 | N5: 2023-03-31 | O5: 2023-04-30 | P5: 2023-05-31 | Q5: 2023-06-30 | R5: 2023-07-31 | S5: 2023-08-31 | T5: 2023-09-30 | U5: 2023-10-31 | V5: 2023-11-30 | W5: 2023-12-31 | X5: 2024-01-31 | Y5: 2024-02-29 | Z5: 2024-03-31 | AA5: 2024-04-30 | AB5: 2024-05-31 | AC5: 2024-06-30 | AD5: 2024-07-31 | AE5: 2024-08-31 | AF5: 2024-09-30 | AG5: 2024-10-31 | AH5: 2024-11-30 | AI5: 2024-12-31 | AJ5: 2025-01-31 | AK5: 2025-02-28 | AL5: 2025-03-31 | AM5: 2025-04-30 | AN5: 2025-05-31 | AO5: 2025-06-30 | AP5: 2025-07-31 | AQ5: 2025-08-31 | AR5: 2025-09-30 | AS5: 2025-10-31 | AT5: 2025-11-30 | AU5: 2025-12-31 | AV5: 2026-01-31 | AW5: 2026-02-28 | AX5: 2026-03-31 | AY5: 2026-04-30 | AZ5: 2026-05-31 | BA5: 2026-06-30 | BB5: 2026-07-31 | BC5: 2026-08-31 | BD5: 2026-09-30 | BE5: 2026-10-31 | BF5: 2026-11-30 | BG5: 2026-12-31 | BH5: 2027-01-31 | BI5: 2027-02-28 | BJ5: 2027-03-31 | BK5: 2027-04-30 | BL5: 2027-05-31 | BM5: 2027-06-30 | BN5: 2027-07-31 | BO5: 2027-08-31 | BP5: 2027-09-30 | BQ5: 2027-10-31 | BR5: 2027-11-30 | BS5: 2027-12-31 | BT5: 2028-01-31 | BU5: 2028-02-29 | BV5: 2028-03-31 | BW5: 2028-04-30 | BX5: 2028-05-31 | BY5: =EDATE(BY4,1)-1 -> 2028-06-30 | BZ5: 2028-07-31 | CA5: 2028-08-31 | CB5: 2028-09-30 | CC5: 2028-10-31 | CD5: 2028-11-30 | CE5: 2028-12-31 | CF5: 2029-01-31 | CG5: 2029-02-28 | CH5: 2029-03-31 | CI5: 2029-04-30 | CJ5: 2029-05-31 | CK5: 2029-06-30 | CL5: 2029-07-31 | CM5: 2029-08-31 | CN5: 2029-09-30 | CO5: 2029-10-31 | CP5: 2029-11-30 | CQ5: 2029-12-31 | CR5: 2030-01-31 | CS5: 2030-02-28 | CT5: 2030-03-31 | CU5: 2030-04-30 | CV5: 2030-05-31 | CW5: 2030-06-30 | CX5: 2030-07-31 | CY5: 2030-08-31 | CZ5: 2030-09-30 | DA5: 2030-10-31 | DB5: 2030-11-30 | DC5: 2030-12-31 | DD5: 2031-01-31 | DE5: 2031-02-28 | DF5: 2031-03-31 | DG5: 2031-04-30 | DH5: 2031-05-31 | DI5: 2031-06-30 | DJ5: 2031-07-31 | DK5: 2031-08-31 | DL5: 2031-09-30 | DM5: 2031-10-31 | DN5: 2031-11-30 | DO5: 2031-12-31 | DP5: 2032-01-31 | DQ5: 2032-02-29 | DR5: 2032-03-31 | DS5: 2032-04-30 | DT5: 2032-05-31 | DU5: 2032-06-30 | DV5: 2032-07-31 | DW5: 2032-08-31 | DX5: 2032-09-30 | DY5: 2032-10-31 | DZ5: 2032-11-30 | EA5: 2032-12-31 | EB5: 2033-01-31 | EC5: 2033-02-28 | ED5: 2033-03-31 | EE5: 2033-04-30 | EF5: 2033-05-31 | EG5: 2033-06-30 | EH5: 2033-07-31 | EI5: 2033-08-31 | EJ5: 2033-09-30 | EK5: =EDATE(EK4,1)-1 -> 2033-10-31 | EL5: 2033-11-30 | EM5: 2033-12-31 | EN5: 2034-01-31 | EO5: 2034-02-28 | EP5: 2034-03-31 | EQ5: 2034-04-30 | ER5: 2034-05-31 | ES5: 2034-06-30 | ET5: 2034-07-31 | EU5: 2034-08-31 | EV5: 2034-09-30 | EW5: 2034-10-31 | EX5: 2034-11-30 | EY5: 2034-12-31 | EZ5: 2035-01-31 | FA5: 2035-02-28 | FB5: 2035-03-31 | FC5: 2035-04-30 | FD5: 2035-05-31 | FE5: 2035-06-30 | FF5: 2035-07-31 | FG5: 2035-08-31 | FH5: 2035-09-30 | FI5: 2035-10-31 | FJ5: 2035-11-30 | FK5: 2035-12-31 | FL5: 2036-01-31 | FM5: 2036-02-29 | FN5: 2036-03-31 | FO5: 2036-04-30 | FP5: 2036-05-31 | FQ5: 2036-06-30 | FR5: 2036-07-31 | FS5: 2036-08-31 | FT5: 2036-09-30 | FU5: 2036-10-31 | FV5: 2036-11-30 | FW5: 2036-12-31 | FX5: 2037-01-31 | FY5: 2037-02-28 | FZ5: 2037-03-31 | GA5: 2037-04-30 | GB5: 2037-05-31 | GC5: 2037-06-30 | GD5: 2037-07-31 | GE5: 2037-08-31 | GF5: 2037-09-30 | GG5: 2037-10-31 | GH5: 2037-11-30 | GI5: 2037-12-31 | GJ5: 2038-01-31 | GK5: 2038-02-28 | GL5: 2038-03-31 | GM5: 2038-04-30 | GN5: 2038-05-31 | GO5: 2038-06-30 | GP5: 2038-07-31 | GQ5: 2038-08-31 | GR5: 2038-09-30 | GS5: 2038-10-31 | GT5: 2038-11-30 | GU5: 2038-12-31 | GV5: 2039-01-31 | GW5: =EDATE(GW4,1)-1 -> 2039-02-28 | GX5: 2039-03-31 | GY5: 2039-04-30 | GZ5: 2039-05-31 | HA5: 2039-06-30 | HB5: 2039-07-31 | HC5: 2039-08-31 | HD5: 2039-09-30 | HE5: 2039-10-31 | HF5: 2039-11-30 | HG5: 2039-12-31 | HH5: 2040-01-31 | HI5: 2040-02-29 | HJ5: 2040-03-31 | HK5: 2040-04-30 | HL5: 2040-05-31 | HM5: 2040-06-30 | HN5: 2040-07-31 | HO5: 2040-08-31 | HP5: 2040-09-30 | HQ5: 2040-10-31 | HR5: 2040-11-30 | HS5: 2040-12-31 | HT5: 2041-01-31 | HU5: 2041-02-28 | HV5: 2041-03-31 | HW5: 2041-04-30 | HX5: 2041-05-31 | HY5: 2041-06-30 | HZ5: 2041-07-31 | IA5: 2041-08-31 | IB5: 2041-09-30 | IC5: 2041-10-31 | ID5: 2041-11-30 | IE5: 2041-12-31 | IF5: 2042-01-31 | IG5: 2042-02-28 | IH5: 2042-03-31 | II5: 2042-04-30 | IJ5: 2042-05-31 | IK5: 2042-06-30 | IL5: 2042-07-31 | IM5: 2042-08-31 | IN5: 2042-09-30 | IO5: 2042-10-31 | IP5: 2042-11-30 | IQ5: 2042-12-31 | IR5: 2043-01-31 | IS5: 2043-02-28 | IT5: 2043-03-31 | IU5: 2043-04-30 | IV5: 2043-05-31 | IW5: 2043-06-30 | IX5: 2043-07-31 | IY5: 2043-08-31 | IZ5: 2043-09-30 | JA5: 2043-10-31 | JB5: 2043-11-30 | JC5: 2043-12-31 | JD5: 2044-01-31 | JE5: 2044-02-29 | JF5: 2044-03-31 | JG5: 2044-04-30 | JH5: 2044-05-31 | JI5: =EDATE(JI4,1)-1 -> 2044-06-30 | JJ5: 2044-07-31 | JK5: 2044-08-31 | JL5: 2044-09-30 | JM5: 2044-10-31 | JN5: 2044-11-30 | JO5: 2044-12-31 | JP5: 2045-01-31 | JQ5: 2045-02-28 | JR5: 2045-03-31 | JS5: 2045-04-30 | JT5: 2045-05-31 | JU5: 2045-06-30 | JV5: 2045-07-31 | JW5: 2045-08-31 | JX5: 2045-09-30 | JY5: 2045-10-31 | JZ5: 2045-11-30 | KA5: 2045-12-31 | KB5: 2046-01-31 | KC5: 2046-02-28 | KD5: 2046-03-31 | KE5: 2046-04-30 | KF5: 2046-05-31 | KG5: 2046-06-30 | KH5: 2046-07-31 | KI5: 2046-08-31 | KJ5: 2046-09-30 | KK5: 2046-10-31 | KL5: 2046-11-30 | KM5: 2046-12-31 | KN5: 2047-01-31 | KO5: 2047-02-28 | KP5: 2047-03-31 | KQ5: 2047-04-30 | KR5: 2047-05-31 | KS5: 2047-06-30 | KT5: 2047-07-31 | KU5: 2047-08-31 | KV5: 2047-09-30 | KW5: 2047-10-31 | KX5: 2047-11-30 | KY5: 2047-12-31 | KZ5: 2048-01-31 | LA5: 2048-02-29 | LB5: 2048-03-31 | LC5: 2048-04-30 | LD5: 2048-05-31 | LE5: 2048-06-30 | LF5: 2048-07-31 | LG5: 2048-08-31 | LH5: 2048-09-30 | LI5: 2048-10-31 | LJ5: 2048-11-30 | LK5: 2048-12-31 | LL5: 2049-01-31 | LM5: 2049-02-28 | LN5: 2049-03-31 | LO5: 2049-04-30 | LP5: 2049-05-31 | LQ5: 2049-06-30 | LR5: 2049-07-31 | LS5: 2049-08-31 | LT5: 2049-09-30 | LU5: =EDATE(LU4,1)-1 -> 2049-10-31 | LV5: 2049-11-30 | LW5: 2049-12-31 | LX5: 2050-01-31 | LY5: 2050-02-28 | LZ5: 2050-03-31 | MA5: 2050-04-30 | MB5: 2050-05-31 | MC5: 2050-06-30 | MD5: 2050-07-31 | ME5: 2050-08-31 | MF5: 2050-09-30 | MG5: 2050-10-31 | MH5: 2050-11-30 | MI5: 2050-12-31 | MJ5: 2051-01-31 | MK5: 2051-02-28 | ML5: 2051-03-31 | MM5: 2051-04-30 | MN5: 2051-05-31 | MO5: 2051-06-30 | MP5: 2051-07-31 | MQ5: 2051-08-31 | MR5: 2051-09-30 | MS5: 2051-10-31 | MT5: 2051-11-30 | MU5: 2051-12-31 | MV5: 2052-01-31 | MW5: 2052-02-29 | MX5: 2052-03-31 | MY5: 2052-04-30 | MZ5: 2052-05-31 | NA5: 2052-06-30 | NB5: 2052-07-31 | NC5: 2052-08-31 | ND5: 2052-09-30 | NE5: 2052-10-31 | NF5: 2052-11-30 | NG5: 2052-12-31 | NH5: 2053-01-31 | NI5: 2053-02-28 | NJ5: 2053-03-31 | NK5: 2053-04-30 | NL5: 2053-05-31 | NM5: 2053-06-30 | NN5: 2053-07-31 | NO5: 2053-08-31 | NP5: 2053-09-30 | NQ5: 2053-10-31 | NR5: 2053-11-30 | NS5: 2053-12-31 | NT5: 2054-01-31 | NU5: 2054-02-28 | NV5: 2054-03-31 | NW5: 2054-04-30 | NX5: 2054-05-31 | NY5: 2054-06-30 | NZ5: 2054-07-31 | OA5: 2054-08-31 | OB5: 2054-09-30 | OC5: 2054-10-31 | OD5: 2054-11-30 | OE5: 2054-12-31 | OF5: 2055-01-31 | OG5: =EDATE(OG4,1)-1 -> 2055-02-28 | OH5: 2055-03-31 | OI5: 2055-04-30 | OJ5: 2055-05-31 | OK5: 2055-06-30 | OL5: 2055-07-31 | OM5: 2055-08-31 | ON5: 2055-09-30 | OO5: 2055-10-31 | OP5: 2055-11-30 | OQ5: 2055-12-31 | OR5: 2056-01-31 | OS5: 2056-02-29 | OT5: 2056-03-31 | OU5: 2056-04-30 | OV5: 2056-05-31 | OW5: 2056-06-30 | OX5: 2056-07-31 | OY5: 2056-08-31 | OZ5: 2056-09-30 | PA5: 2056-10-31 | PB5: 2056-11-30 | PC5: 2056-12-31 | PD5: 2057-01-31 | PE5: 2057-02-28 | PF5: 2057-03-31 | PG5: 2057-04-30 | PH5: 2057-05-31 | PI5: 2057-06-30 | PJ5: 2057-07-31 | PK5: 2057-08-31 | PL5: 2057-09-30 | PM5: 2057-10-31 | PN5: 2057-11-30 | PO5: 2057-12-31 | PP5: 2058-01-31 | PQ5: 2058-02-28 | PR5: 2058-03-31 | PS5: 2058-04-30 | PT5: 2058-05-31 | PU5: 2058-06-30 | PV5: 2058-07-31 | PW5: 2058-08-31 | PX5: 2058-09-30 | PY5: 2058-10-31 | PZ5: 2058-11-30 | QA5: 2058-12-31 | QB5: 2059-01-31 | QC5: 2059-02-28 | QD5: 2059-03-31 | QE5: 2059-04-30 | QF5: 2059-05-31 | QG5: 2059-06-30 | QH5: 2059-07-31 | QI5: 2059-08-31 | QJ5: 2059-09-30 | QK5: 2059-10-31 | QL5: 2059-11-30 | QM5: 2059-12-31 | QN5: 2060-01-31 | QO5: 2060-02-29 | QP5: 2060-03-31 | QQ5: 2060-04-30 | QR5: 2060-05-31 | QS5: =EDATE(QS4,1)-1 -> 2060-06-30 | QT5: 2060-07-31 | QU5: 2060-08-31 | QV5: 2060-09-30 | QW5: 2060-10-31 | QX5: 2060-11-30 | QY5: 2060-12-31 | QZ5: 2061-01-31 | RA5: 2061-02-28 | RB5: 2061-03-31 | RC5: 2061-04-30 | RD5: 2061-05-31 | RE5: 2061-06-30 | RF5: 2061-07-31 | RG5: 2061-08-31 | RH5: 2061-09-30 | RI5: 2061-10-31 | RJ5: 2061-11-30 | RK5: 2061-12-31 | RL5: 2062-01-31 | RM5: 2062-02-28 | RN5: 2062-03-31 | RO5: 2062-04-30 | RP5: 2062-05-31 | RQ5: 2062-06-30 | RR5: 2062-07-31 | RS5: 2062-08-31 | RT5: 2062-09-30 | RU5: 2062-10-31 | RV5: 2062-11-30 | RW5: 2062-12-31 | RX5: 2063-01-31 | RY5: 2063-02-28 | RZ5: 2063-03-31 | SA5: 2063-04-30 | SB5: 2063-05-31 | SC5: 2063-06-30 | SD5: 2063-07-31 | SE5: 2063-08-31 | SF5: 2063-09-30 | SG5: 2063-10-31 | SH5: 2063-11-30 | SI5: 2063-12-31 | SJ5: 2064-01-31 | SK5: 2064-02-29 | SL5: 2064-03-31 | SM5: 2064-04-30 | SN5: 2064-05-31 | SO5: 2064-06-30 | SP5: 2064-07-31 | SQ5: 2064-08-31
D6: Pre-COD Flag | E6: ='InputC - Operations'!$F$9 -> 2023-12-01 | G6: Flag | L6: =L4<$E$6 -> TRUE | M6: TRUE | N6: TRUE | O6: TRUE | P6: TRUE | Q6: TRUE | R6: TRUE | S6: TRUE | T6: TRUE | U6: TRUE | V6: TRUE | W6: FALSE | X6: FALSE | Y6: FALSE | Z6: FALSE | AA6: FALSE | AB6: FALSE | AC6: FALSE | AD6: FALSE | AE6: FALSE | AF6: FALSE | AG6: FALSE | AH6: FALSE | AI6: FALSE | AJ6: FALSE | AK6: FALSE | AL6: FALSE | AM6: FALSE | AN6: FALSE | AO6: FALSE | AP6: FALSE | AQ6: FALSE | AR6: FALSE | AS6: FALSE | AT6: FALSE | AU6: FALSE | AV6: FALSE | AW6: FALSE | AX6: FALSE | AY6: FALSE | AZ6: FALSE | BA6: FALSE | BB6: FALSE | BC6: FALSE | BD6: FALSE | BE6: FALSE | BF6: FALSE | BG6: FALSE | BH6: FALSE | BI6: FALSE | BJ6: FALSE | BK6: FALSE | BL6: FALSE | BM6: FALSE | BN6: FALSE | BO6: FALSE | BP6: FALSE | BQ6: FALSE | BR6: FALSE | BS6: FALSE | BT6: FALSE | BU6: FALSE | BV6: FALSE | BW6: FALSE | BX6: =BX4<$E$6 -> FALSE | BY6: FALSE | BZ6: FALSE | CA6: FALSE | CB6: FALSE | CC6: FALSE | CD6: FALSE | CE6: FALSE | CF6: FALSE | CG6: FALSE | CH6: FALSE | CI6: FALSE | CJ6: FALSE | CK6: FALSE | CL6: FALSE | CM6: FALSE | CN6: FALSE | CO6: FALSE | CP6: FALSE | CQ6: FALSE | CR6: FALSE | CS6: FALSE | CT6: FALSE | CU6: FALSE | CV6: FALSE | CW6: FALSE | CX6: FALSE | CY6: FALSE | CZ6: FALSE | DA6: FALSE | DB6: FALSE | DC6: FALSE | DD6: FALSE | DE6: FALSE | DF6: FALSE | DG6: FALSE | DH6: FALSE | DI6: FALSE | DJ6: FALSE | DK6: FALSE | DL6: FALSE | DM6: FALSE | DN6: FALSE | DO6: FALSE | DP6: FALSE | DQ6: FALSE | DR6: FALSE | DS6: FALSE | DT6: FALSE | DU6: FALSE | DV6: FALSE | DW6: FALSE | DX6: FALSE | DY6: FALSE | DZ6: FALSE | EA6: FALSE | EB6: FALSE | EC6: FALSE | ED6: FALSE | EE6: FALSE | EF6: FALSE | EG6: FALSE | EH6: FALSE | EI6: FALSE | EJ6: =EJ4<$E$6 -> FALSE | EK6: FALSE | EL6: FALSE | EM6: FALSE | EN6: FALSE | EO6: FALSE | EP6: FALSE | EQ6: FALSE | ER6: FALSE | ES6: FALSE | ET6: FALSE | EU6: FALSE | EV6: FALSE | EW6: FALSE | EX6: FALSE | EY6: FALSE | EZ6: FALSE | FA6: FALSE | FB6: FALSE | FC6: FALSE | FD6: FALSE | FE6: FALSE | FF6: FALSE | FG6: FALSE | FH6: FALSE | FI6: FALSE | FJ6: FALSE | FK6: FALSE | FL6: FALSE | FM6: FALSE | FN6: FALSE | FO6: FALSE | FP6: FALSE | FQ6: FALSE | FR6: FALSE | FS6: FALSE | FT6: FALSE | FU6: FALSE | FV6: FALSE | FW6: FALSE | FX6: FALSE | FY6: FALSE | FZ6: FALSE | GA6: FALSE | GB6: FALSE | GC6: FALSE | GD6: FALSE | GE6: FALSE | GF6: FALSE | GG6: FALSE | GH6: FALSE | GI6: FALSE | GJ6: FALSE | GK6: FALSE | GL6: FALSE | GM6: FALSE | GN6: FALSE | GO6: FALSE | GP6: FALSE | GQ6: FALSE | GR6: FALSE | GS6: FALSE | GT6: FALSE | GU6: FALSE | GV6: =GV4<$E$6 -> FALSE | GW6: FALSE | GX6: FALSE | GY6: FALSE | GZ6: FALSE | HA6: FALSE | HB6: FALSE | HC6: FALSE | HD6: FALSE | HE6: FALSE | HF6: FALSE | HG6: FALSE | HH6: FALSE | HI6: FALSE | HJ6: FALSE | HK6: FALSE | HL6: FALSE | HM6: FALSE | HN6: FALSE | HO6: FALSE | HP6: FALSE | HQ6: FALSE | HR6: FALSE | HS6: FALSE | HT6: FALSE | HU6: FALSE | HV6: FALSE | HW6: FALSE | HX6: FALSE | HY6: FALSE | HZ6: FALSE | IA6: FALSE | IB6: FALSE | IC6: FALSE | ID6: FALSE | IE6: FALSE | IF6: FALSE | IG6: FALSE | IH6: FALSE | II6: FALSE | IJ6: FALSE | IK6: FALSE | IL6: FALSE | IM6: FALSE | IN6: FALSE | IO6: FALSE | IP6: FALSE | IQ6: FALSE | IR6: FALSE | IS6: FALSE | IT6: FALSE | IU6: FALSE | IV6: FALSE | IW6: FALSE | IX6: FALSE | IY6: FALSE | IZ6: FALSE | JA6: FALSE | JB6: FALSE | JC6: FALSE | JD6: FALSE | JE6: FALSE | JF6: FALSE | JG6: FALSE | JH6: =JH4<$E$6 -> FALSE | JI6: FALSE | JJ6: FALSE | JK6: FALSE | JL6: FALSE | JM6: FALSE | JN6: FALSE | JO6: FALSE | JP6: FALSE | JQ6: FALSE | JR6: FALSE | JS6: FALSE | JT6: FALSE | JU6: FALSE | JV6: FALSE | JW6: FALSE | JX6: FALSE | JY6: FALSE | JZ6: FALSE | KA6: FALSE | KB6: FALSE | KC6: FALSE | KD6: FALSE | KE6: FALSE | KF6: FALSE | KG6: FALSE | KH6: FALSE | KI6: FALSE | KJ6: FALSE | KK6: FALSE | KL6: FALSE | KM6: FALSE | KN6: FALSE | KO6: FALSE | KP6: FALSE | KQ6: FALSE | KR6: FALSE | KS6: FALSE | KT6: FALSE | KU6: FALSE | KV6: FALSE | KW6: FALSE | KX6: FALSE | KY6: FALSE | KZ6: FALSE | LA6: FALSE | LB6: FALSE | LC6: FALSE | LD6: FALSE | LE6: FALSE | LF6: FALSE | LG6: FALSE | LH6: FALSE | LI6: FALSE | LJ6: FALSE | LK6: FALSE | LL6: FALSE | LM6: FALSE | LN6: FALSE | LO6: FALSE | LP6: FALSE | LQ6: FALSE | LR6: FALSE | LS6: FALSE | LT6: =LT4<$E$6 -> FALSE | LU6: FALSE | LV6: FALSE | LW6: FALSE | LX6: FALSE | LY6: FALSE | LZ6: FALSE | MA6: FALSE | MB6: FALSE | MC6: FALSE | MD6: FALSE | ME6: FALSE | MF6: FALSE | MG6: FALSE | MH6: FALSE | MI6: FALSE | MJ6: FALSE | MK6: FALSE | ML6: FALSE | MM6: FALSE | MN6: FALSE | MO6: FALSE | MP6: FALSE | MQ6: FALSE | MR6: FALSE | MS6: FALSE | MT6: FALSE | MU6: FALSE | MV6: FALSE | MW6: FALSE | MX6: FALSE | MY6: FALSE | MZ6: FALSE | NA6: FALSE | NB6: FALSE | NC6: FALSE | ND6: FALSE | NE6: FALSE | NF6: FALSE | NG6: FALSE | NH6: FALSE | NI6: FALSE | NJ6: FALSE | NK6: FALSE | NL6: FALSE | NM6: FALSE | NN6: FALSE | NO6: FALSE | NP6: FALSE | NQ6: FALSE | NR6: FALSE | NS6: FALSE | NT6: FALSE | NU6: FALSE | NV6: FALSE | NW6: FALSE | NX6: FALSE | NY6: FALSE | NZ6: FALSE | OA6: FALSE | OB6: FALSE | OC6: FALSE | OD6: FALSE | OE6: FALSE | OF6: =OF4<$E$6 -> FALSE | OG6: FALSE | OH6: FALSE | OI6: FALSE | OJ6: FALSE | OK6: FALSE | OL6: FALSE | OM6: FALSE | ON6: FALSE | OO6: FALSE | OP6: FALSE | OQ6: FALSE | OR6: FALSE | OS6: FALSE | OT6: FALSE | OU6: FALSE | OV6: FALSE | OW6: FALSE | OX6: FALSE | OY6: FALSE | OZ6: FALSE | PA6: FALSE | PB6: FALSE | PC6: FALSE | PD6: FALSE | PE6: FALSE | PF6: FALSE | PG6: FALSE | PH6: FALSE | PI6: FALSE | PJ6: FALSE | PK6: FALSE | PL6: FALSE | PM6: FALSE | PN6: FALSE | PO6: FALSE | PP6: FALSE | PQ6: FALSE | PR6: FALSE | PS6: FALSE | PT6: FALSE | PU6: FALSE | PV6: FALSE | PW6: FALSE | PX6: FALSE | PY6: FALSE | PZ6: FALSE | QA6: FALSE | QB6: FALSE | QC6: FALSE | QD6: FALSE | QE6: FALSE | QF6: FALSE | QG6: FALSE | QH6: FALSE | QI6: FALSE | QJ6: FALSE | QK6: FALSE | QL6: FALSE | QM6: FALSE | QN6: FALSE | QO6: FALSE | QP6: FALSE | QQ6: FALSE | QR6: =QR4<$E$6 -> FALSE | QS6: FALSE | QT6: FALSE | QU6: FALSE | QV6: FALSE | QW6: FALSE | QX6: FALSE | QY6: FALSE | QZ6: FALSE | RA6: FALSE | RB6: FALSE | RC6: FALSE | RD6: FALSE | RE6: FALSE | RF6: FALSE | RG6: FALSE | RH6: FALSE | RI6: FALSE | RJ6: FALSE | RK6: FALSE | RL6: FALSE | RM6: FALSE | RN6: FALSE | RO6: FALSE | RP6: FALSE | RQ6: FALSE | RR6: FALSE | RS6: FALSE | RT6: FALSE | RU6: FALSE | RV6: FALSE | RW6: FALSE | RX6: FALSE | RY6: FALSE | RZ6: FALSE | SA6: FALSE | SB6: FALSE | SC6: FALSE | SD6: FALSE | SE6: FALSE | SF6: FALSE | SG6: FALSE | SH6: FALSE | SI6: FALSE | SJ6: FALSE | SK6: FALSE | SL6: FALSE | SM6: FALSE | SN6: FALSE | SO6: FALSE | SP6: FALSE | SQ6: FALSE
D7: Operations Flag | E7: ='InputC - Operations'!$F$9 -> 2023-12-01 | F7: ='InputC - Operations'!$F$11 -> 2058-12-01 | G7: Flag | L7: =AND(L4>=$E$7,L4<$F$7) -> FALSE | M7: FALSE | N7: FALSE | O7: FALSE | P7: FALSE | Q7: FALSE | R7: FALSE | S7: FALSE | T7: FALSE | U7: FALSE | V7: FALSE | W7: TRUE | X7: TRUE | Y7: TRUE | Z7: TRUE | AA7: TRUE | AB7: TRUE | AC7: TRUE | AD7: TRUE | AE7: TRUE | AF7: TRUE | AG7: TRUE | AH7: TRUE | AI7: TRUE | AJ7: TRUE | AK7: TRUE | AL7: TRUE | AM7: TRUE | AN7: TRUE | AO7: TRUE | AP7: TRUE | AQ7: TRUE | AR7: TRUE | AS7: TRUE | AT7: TRUE | AU7: TRUE | AV7: TRUE | AW7: TRUE | AX7: TRUE | AY7: TRUE | AZ7: TRUE | BA7: TRUE | BB7: TRUE | BC7: TRUE | BD7: TRUE | BE7: TRUE | BF7: TRUE | BG7: TRUE | BH7: TRUE | BI7: TRUE | BJ7: TRUE | BK7: TRUE | BL7: TRUE | BM7: TRUE | BN7: TRUE | BO7: TRUE | BP7: TRUE | BQ7: TRUE | BR7: TRUE | BS7: TRUE | BT7: TRUE | BU7: TRUE | BV7: TRUE | BW7: TRUE | BX7: =AND(BX4>=$E$7,BX4<$F$7) -> TRUE | BY7: TRUE | BZ7: TRUE | CA7: TRUE | CB7: TRUE | CC7: TRUE | CD7: TRUE | CE7: TRUE | CF7: TRUE | CG7: TRUE | CH7: TRUE | CI7: TRUE | CJ7: TRUE | CK7: TRUE | CL7: TRUE | CM7: TRUE | CN7: TRUE | CO7: TRUE | CP7: TRUE | CQ7: TRUE | CR7: TRUE | CS7: TRUE | CT7: TRUE | CU7: TRUE | CV7: TRUE | CW7: TRUE | CX7: TRUE | CY7: TRUE | CZ7: TRUE | DA7: TRUE | DB7: TRUE | DC7: TRUE | DD7: TRUE | DE7: TRUE | DF7: TRUE | DG7: TRUE | DH7: TRUE | DI7: TRUE | DJ7: TRUE | DK7: TRUE | DL7: TRUE | DM7: TRUE | DN7: TRUE | DO7: TRUE | DP7: TRUE | DQ7: TRUE | DR7: TRUE | DS7: TRUE | DT7: TRUE | DU7: TRUE | DV7: TRUE | DW7: TRUE | DX7: TRUE | DY7: TRUE | DZ7: TRUE | EA7: TRUE | EB7: TRUE | EC7: TRUE | ED7: TRUE | EE7: TRUE | EF7: TRUE | EG7: TRUE | EH7: TRUE | EI7: TRUE | EJ7: =AND(EJ4>=$E$7,EJ4<$F$7) -> TRUE | EK7: TRUE | EL7: TRUE | EM7: TRUE | EN7: TRUE | EO7: TRUE | EP7: TRUE | EQ7: TRUE | ER7: TRUE | ES7: TRUE | ET7: TRUE | EU7: TRUE | EV7: TRUE | EW7: TRUE | EX7: TRUE | EY7: TRUE | EZ7: TRUE | FA7: TRUE | FB7: TRUE | FC7: TRUE | FD7: TRUE | FE7: TRUE | FF7: TRUE | FG7: TRUE | FH7: TRUE | FI7: TRUE | FJ7: TRUE | FK7: TRUE | FL7: TRUE | FM7: TRUE | FN7: TRUE | FO7: TRUE | FP7: TRUE | FQ7: TRUE | FR7: TRUE | FS7: TRUE | FT7: TRUE | FU7: TRUE | FV7: TRUE | FW7: TRUE | FX7: TRUE | FY7: TRUE | FZ7: TRUE | GA7: TRUE | GB7: TRUE | GC7: TRUE | GD7: TRUE | GE7: TRUE | GF7: TRUE | GG7: TRUE | GH7: TRUE | GI7: TRUE | GJ7: TRUE | GK7: TRUE | GL7: TRUE | GM7: TRUE | GN7: TRUE | GO7: TRUE | GP7: TRUE | GQ7: TRUE | GR7: TRUE | GS7: TRUE | GT7: TRUE | GU7: TRUE | GV7: =AND(GV4>=$E$7,GV4<$F$7) -> TRUE | GW7: TRUE | GX7: TRUE | GY7: TRUE | GZ7: TRUE | HA7: TRUE | HB7: TRUE | HC7: TRUE | HD7: TRUE | HE7: TRUE | HF7: TRUE | HG7: TRUE | HH7: TRUE | HI7: TRUE | HJ7: TRUE | HK7: TRUE | HL7: TRUE | HM7: TRUE | HN7: TRUE | HO7: TRUE | HP7: TRUE | HQ7: TRUE | HR7: TRUE | HS7: TRUE | HT7: TRUE | HU7: TRUE | HV7: TRUE | HW7: TRUE | HX7: TRUE | HY7: TRUE | HZ7: TRUE | IA7: TRUE | IB7: TRUE | IC7: TRUE | ID7: TRUE | IE7: TRUE | IF7: TRUE | IG7: TRUE | IH7: TRUE | II7: TRUE | IJ7: TRUE | IK7: TRUE | IL7: TRUE | IM7: TRUE | IN7: TRUE | IO7: TRUE | IP7: TRUE | IQ7: TRUE | IR7: TRUE | IS7: TRUE | IT7: TRUE | IU7: TRUE | IV7: TRUE | IW7: TRUE | IX7: TRUE | IY7: TRUE | IZ7: TRUE | JA7: TRUE | JB7: TRUE | JC7: TRUE | JD7: TRUE | JE7: TRUE | JF7: TRUE | JG7: TRUE | JH7: =AND(JH4>=$E$7,JH4<$F$7) -> TRUE | JI7: TRUE | JJ7: TRUE | JK7: TRUE | JL7: TRUE | JM7: TRUE | JN7: TRUE | JO7: TRUE | JP7: TRUE | JQ7: TRUE | JR7: TRUE | JS7: TRUE | JT7: TRUE | JU7: TRUE | JV7: TRUE | JW7: TRUE | JX7: TRUE | JY7: TRUE | JZ7: TRUE | KA7: TRUE | KB7: TRUE | KC7: TRUE | KD7: TRUE | KE7: TRUE | KF7: TRUE | KG7: TRUE | KH7: TRUE | KI7: TRUE | KJ7: TRUE | KK7: TRUE | KL7: TRUE | KM7: TRUE | KN7: TRUE | KO7: TRUE | KP7: TRUE | KQ7: TRUE | KR7: TRUE | KS7: TRUE | KT7: TRUE | KU7: TRUE | KV7: TRUE | KW7: TRUE | KX7: TRUE | KY7: TRUE | KZ7: TRUE | LA7: TRUE | LB7: TRUE | LC7: TRUE | LD7: TRUE | LE7: TRUE | LF7: TRUE | LG7: TRUE | LH7: TRUE | LI7: TRUE | LJ7: TRUE | LK7: TRUE | LL7: TRUE | LM7: TRUE | LN7: TRUE | LO7: TRUE | LP7: TRUE | LQ7: TRUE | LR7: TRUE | LS7: TRUE | LT7: =AND(LT4>=$E$7,LT4<$F$7) -> TRUE | LU7: TRUE | LV7: TRUE | LW7: TRUE | LX7: TRUE | LY7: TRUE | LZ7: TRUE | MA7: TRUE | MB7: TRUE | MC7: TRUE | MD7: TRUE | ME7: TRUE | MF7: TRUE | MG7: TRUE | MH7: TRUE | MI7: TRUE | MJ7: TRUE | MK7: TRUE | ML7: TRUE | MM7: TRUE | MN7: TRUE | MO7: TRUE | MP7: TRUE | MQ7: TRUE | MR7: TRUE | MS7: TRUE | MT7: TRUE | MU7: TRUE | MV7: TRUE | MW7: TRUE | MX7: TRUE | MY7: TRUE | MZ7: TRUE | NA7: TRUE | NB7: TRUE | NC7: TRUE | ND7: TRUE | NE7: TRUE | NF7: TRUE | NG7: TRUE | NH7: TRUE | NI7: TRUE | NJ7: TRUE | NK7: TRUE | NL7: TRUE | NM7: TRUE | NN7: TRUE | NO7: TRUE | NP7: TRUE | NQ7: TRUE | NR7: TRUE | NS7: TRUE | NT7: TRUE | NU7: TRUE | NV7: TRUE | NW7: TRUE | NX7: TRUE | NY7: TRUE | NZ7: TRUE | OA7: TRUE | OB7: TRUE | OC7: TRUE | OD7: TRUE | OE7: TRUE | OF7: =AND(OF4>=$E$7,OF4<$F$7) -> TRUE | OG7: TRUE | OH7: TRUE | OI7: TRUE | OJ7: TRUE | OK7: TRUE | OL7: TRUE | OM7: TRUE | ON7: TRUE | OO7: TRUE | OP7: TRUE | OQ7: TRUE | OR7: TRUE | OS7: TRUE | OT7: TRUE | OU7: TRUE | OV7: TRUE | OW7: TRUE | OX7: TRUE | OY7: TRUE | OZ7: TRUE | PA7: TRUE | PB7: TRUE | PC7: TRUE | PD7: TRUE | PE7: TRUE | PF7: TRUE | PG7: TRUE | PH7: TRUE | PI7: TRUE | PJ7: TRUE | PK7: TRUE | PL7: TRUE | PM7: TRUE | PN7: TRUE | PO7: TRUE | PP7: TRUE | PQ7: TRUE | PR7: TRUE | PS7: TRUE | PT7: TRUE | PU7: TRUE | PV7: TRUE | PW7: TRUE | PX7: TRUE | PY7: TRUE | PZ7: TRUE | QA7: FALSE | QB7: FALSE | QC7: FALSE | QD7: FALSE | QE7: FALSE | QF7: FALSE | QG7: FALSE | QH7: FALSE | QI7: FALSE | QJ7: FALSE | QK7: FALSE | QL7: FALSE | QM7: FALSE | QN7: FALSE | QO7: FALSE | QP7: FALSE | QQ7: FALSE | QR7: =AND(QR4>=$E$7,QR4<$F$7) -> FALSE | QS7: FALSE | QT7: FALSE | QU7: FALSE | QV7: FALSE | QW7: FALSE | QX7: FALSE | QY7: FALSE | QZ7: FALSE | RA7: FALSE | RB7: FALSE | RC7: FALSE | RD7: FALSE | RE7: FALSE | RF7: FALSE | RG7: FALSE | RH7: FALSE | RI7: FALSE | RJ7: FALSE | RK7: FALSE | RL7: FALSE | RM7: FALSE | RN7: FALSE | RO7: FALSE | RP7: FALSE | RQ7: FALSE | RR7: FALSE | RS7: FALSE | RT7: FALSE | RU7: FALSE | RV7: FALSE | RW7: FALSE | RX7: FALSE | RY7: FALSE | RZ7: FALSE | SA7: FALSE | SB7: FALSE | SC7: FALSE | SD7: FALSE | SE7: FALSE | SF7: FALSE | SG7: FALSE | SH7: FALSE | SI7: FALSE | SJ7: FALSE | SK7: FALSE | SL7: FALSE | SM7: FALSE | SN7: FALSE | SO7: FALSE | SP7: FALSE | SQ7: FALSE
D8: Year | G8: Year | L8: =YEAR(L4) -> 2023 | M8: =YEAR(M4) -> 2023 | N8: 2023 | O8: 2023 | P8: 2023 | Q8: 2023 | R8: 2023 | S8: 2023 | T8: 2023 | U8: 2023 | V8: 2023 | W8: 2023 | X8: 2024 | Y8: 2024 | Z8: 2024 | AA8: 2024 | AB8: 2024 | AC8: 2024 | AD8: 2024 | AE8: 2024 | AF8: 2024 | AG8: 2024 | AH8: 2024 | AI8: 2024 | AJ8: 2025 | AK8: 2025 | AL8: 2025 | AM8: 2025 | AN8: 2025 | AO8: 2025 | AP8: 2025 | AQ8: 2025 | AR8: 2025 | AS8: 2025 | AT8: 2025 | AU8: 2025 | AV8: 2026 | AW8: 2026 | AX8: 2026 | AY8: 2026 | AZ8: 2026 | BA8: 2026 | BB8: 2026 | BC8: 2026 | BD8: 2026 | BE8: 2026 | BF8: 2026 | BG8: 2026 | BH8: 2027 | BI8: 2027 | BJ8: 2027 | BK8: 2027 | BL8: 2027 | BM8: 2027 | BN8: 2027 | BO8: 2027 | BP8: 2027 | BQ8: 2027 | BR8: 2027 | BS8: 2027 | BT8: 2028 | BU8: 2028 | BV8: 2028 | BW8: 2028 | BX8: 2028 | BY8: =YEAR(BY4) -> 2028 | BZ8: 2028 | CA8: 2028 | CB8: 2028 | CC8: 2028 | CD8: 2028 | CE8: 2028 | CF8: 2029 | CG8: 2029 | CH8: 2029 | CI8: 2029 | CJ8: 2029 | CK8: 2029 | CL8: 2029 | CM8: 2029 | CN8: 2029 | CO8: 2029 | CP8: 2029 | CQ8: 2029 | CR8: 2030 | CS8: 2030 | CT8: 2030 | CU8: 2030 | CV8: 2030 | CW8: 2030 | CX8: 2030 | CY8: 2030 | CZ8: 2030 | DA8: 2030 | DB8: 2030 | DC8: 2030 | DD8: 2031 | DE8: 2031 | DF8: 2031 | DG8: 2031 | DH8: 2031 | DI8: 2031 | DJ8: 2031 | DK8: 2031 | DL8: 2031 | DM8: 2031 | DN8: 2031 | DO8: 2031 | DP8: 2032 | DQ8: 2032 | DR8: 2032 | DS8: 2032 | DT8: 2032 | DU8: 2032 | DV8: 2032 | DW8: 2032 | DX8: 2032 | DY8: 2032 | DZ8: 2032 | EA8: 2032 | EB8: 2033 | EC8: 2033 | ED8: 2033 | EE8: 2033 | EF8: 2033 | EG8: 2033 | EH8: 2033 | EI8: 2033 | EJ8: 2033 | EK8: =YEAR(EK4) -> 2033 | EL8: 2033 | EM8: 2033 | EN8: 2034 | EO8: 2034 | EP8: 2034 | EQ8: 2034 | ER8: 2034 | ES8: 2034 | ET8: 2034 | EU8: 2034 | EV8: 2034 | EW8: 2034 | EX8: 2034 | EY8: 2034 | EZ8: 2035 | FA8: 2035 | FB8: 2035 | FC8: 2035 | FD8: 2035 | FE8: 2035 | FF8: 2035 | FG8: 2035 | FH8: 2035 | FI8: 2035 | FJ8: 2035 | FK8: 2035 | FL8: 2036 | FM8: 2036 | FN8: 2036 | FO8: 2036 | FP8: 2036 | FQ8: 2036 | FR8: 2036 | FS8: 2036 | FT8: 2036 | FU8: 2036 | FV8: 2036 | FW8: 2036 | FX8: 2037 | FY8: 2037 | FZ8: 2037 | GA8: 2037 | GB8: 2037 | GC8: 2037 | GD8: 2037 | GE8: 2037 | GF8: 2037 | GG8: 2037 | GH8: 2037 | GI8: 2037 | GJ8: 2038 | GK8: 2038 | GL8: 2038 | GM8: 2038 | GN8: 2038 | GO8: 2038 | GP8: 2038 | GQ8: 2038 | GR8: 2038 | GS8: 2038 | GT8: 2038 | GU8: 2038 | GV8: 2039 | GW8: =YEAR(GW4) -> 2039 | GX8: 2039 | GY8: 2039 | GZ8: 2039 | HA8: 2039 | HB8: 2039 | HC8: 2039 | HD8: 2039 | HE8: 2039 | HF8: 2039 | HG8: 2039 | HH8: 2040 | HI8: 2040 | HJ8: 2040 | HK8: 2040 | HL8: 2040 | HM8: 2040 | HN8: 2040 | HO8: 2040 | HP8: 2040 | HQ8: 2040 | HR8: 2040 | HS8: 2040 | HT8: 2041 | HU8: 2041 | HV8: 2041 | HW8: 2041 | HX8: 2041 | HY8: 2041 | HZ8: 2041 | IA8: 2041 | IB8: 2041 | IC8: 2041 | ID8: 2041 | IE8: 2041 | IF8: 2042 | IG8: 2042 | IH8: 2042 | II8: 2042 | IJ8: 2042 | IK8: 2042 | IL8: 2042 | IM8: 2042 | IN8: 2042 | IO8: 2042 | IP8: 2042 | IQ8: 2042 | IR8: 2043 | IS8: 2043 | IT8: 2043 | IU8: 2043 | IV8: 2043 | IW8: 2043 | IX8: 2043 | IY8: 2043 | IZ8: 2043 | JA8: 2043 | JB8: 2043 | JC8: 2043 | JD8: 2044 | JE8: 2044 | JF8: 2044 | JG8: 2044 | JH8: 2044 | JI8: =YEAR(JI4) -> 2044 | JJ8: 2044 | JK8: 2044 | JL8: 2044 | JM8: 2044 | JN8: 2044 | JO8: 2044 | JP8: 2045 | JQ8: 2045 | JR8: 2045 | JS8: 2045 | JT8: 2045 | JU8: 2045 | JV8: 2045 | JW8: 2045 | JX8: 2045 | JY8: 2045 | JZ8: 2045 | KA8: 2045 | KB8: 2046 | KC8: 2046 | KD8: 2046 | KE8: 2046 | KF8: 2046 | KG8: 2046 | KH8: 2046 | KI8: 2046 | KJ8: 2046 | KK8: 2046 | KL8: 2046 | KM8: 2046 | KN8: 2047 | KO8: 2047 | KP8: 2047 | KQ8: 2047 | KR8: 2047 | KS8: 2047 | KT8: 2047 | KU8: 2047 | KV8: 2047 | KW8: 2047 | KX8: 2047 | KY8: 2047 | KZ8: 2048 | LA8: 2048 | LB8: 2048 | LC8: 2048 | LD8: 2048 | LE8: 2048 | LF8: 2048 | LG8: 2048 | LH8: 2048 | LI8: 2048 | LJ8: 2048 | LK8: 2048 | LL8: 2049 | LM8: 2049 | LN8: 2049 | LO8: 2049 | LP8: 2049 | LQ8: 2049 | LR8: 2049 | LS8: 2049 | LT8: 2049 | LU8: =YEAR(LU4) -> 2049 | LV8: 2049 | LW8: 2049 | LX8: 2050 | LY8: 2050 | LZ8: 2050 | MA8: 2050 | MB8: 2050 | MC8: 2050 | MD8: 2050 | ME8: 2050 | MF8: 2050 | MG8: 2050 | MH8: 2050 | MI8: 2050 | MJ8: 2051 | MK8: 2051 | ML8: 2051 | MM8: 2051 | MN8: 2051 | MO8: 2051 | MP8: 2051 | MQ8: 2051 | MR8: 2051 | MS8: 2051 | MT8: 2051 | MU8: 2051 | MV8: 2052 | MW8: 2052 | MX8: 2052 | MY8: 2052 | MZ8: 2052 | NA8: 2052 | NB8: 2052 | NC8: 2052 | ND8: 2052 | NE8: 2052 | NF8: 2052 | NG8: 2052 | NH8: 2053 | NI8: 2053 | NJ8: 2053 | NK8: 2053 | NL8: 2053 | NM8: 2053 | NN8: 2053 | NO8: 2053 | NP8: 2053 | NQ8: 2053 | NR8: 2053 | NS8: 2053 | NT8: 2054 | NU8: 2054 | NV8: 2054 | NW8: 2054 | NX8: 2054 | NY8: 2054 | NZ8: 2054 | OA8: 2054 | OB8: 2054 | OC8: 2054 | OD8: 2054 | OE8: 2054 | OF8: 2055 | OG8: =YEAR(OG4) -> 2055 | OH8: 2055 | OI8: 2055 | OJ8: 2055 | OK8: 2055 | OL8: 2055 | OM8: 2055 | ON8: 2055 | OO8: 2055 | OP8: 2055 | OQ8: 2055 | OR8: 2056 | OS8: 2056 | OT8: 2056 | OU8: 2056 | OV8: 2056 | OW8: 2056 | OX8: 2056 | OY8: 2056 | OZ8: 2056 | PA8: 2056 | PB8: 2056 | PC8: 2056 | PD8: 2057 | PE8: 2057 | PF8: 2057 | PG8: 2057 | PH8: 2057 | PI8: 2057 | PJ8: 2057 | PK8: 2057 | PL8: 2057 | PM8: 2057 | PN8: 2057 | PO8: 2057 | PP8: 2058 | PQ8: 2058 | PR8: 2058 | PS8: 2058 | PT8: 2058 | PU8: 2058 | PV8: 2058 | PW8: 2058 | PX8: 2058 | PY8: 2058 | PZ8: 2058 | QA8: 2058 | QB8: 2059 | QC8: 2059 | QD8: 2059 | QE8: 2059 | QF8: 2059 | QG8: 2059 | QH8: 2059 | QI8: 2059 | QJ8: 2059 | QK8: 2059 | QL8: 2059 | QM8: 2059 | QN8: 2060 | QO8: 2060 | QP8: 2060 | QQ8: 2060 | QR8: 2060 | QS8: =YEAR(QS4) -> 2060 | QT8: 2060 | QU8: 2060 | QV8: 2060 | QW8: 2060 | QX8: 2060 | QY8: 2060 | QZ8: 2061 | RA8: 2061 | RB8: 2061 | RC8: 2061 | RD8: 2061 | RE8: 2061 | RF8: 2061 | RG8: 2061 | RH8: 2061 | RI8: 2061 | RJ8: 2061 | RK8: 2061 | RL8: 2062 | RM8: 2062 | RN8: 2062 | RO8: 2062 | RP8: 2062 | RQ8: 2062 | RR8: 2062 | RS8: 2062 | RT8: 2062 | RU8: 2062 | RV8: 2062 | RW8: 2062 | RX8: 2063 | RY8: 2063 | RZ8: 2063 | SA8: 2063 | SB8: 2063 | SC8: 2063 | SD8: 2063 | SE8: 2063 | SF8: 2063 | SG8: 2063 | SH8: 2063 | SI8: 2063 | SJ8: 2064 | SK8: 2064 | SL8: 2064 | SM8: 2064 | SN8: 2064 | SO8: 2064 | SP8: 2064 | SQ8: 2064
B10: Monthly and Semi-Annual Date for Financing
D11: Counter from COD | G11: Counter | L11: =K11+L7 -> 0 | M11: =L11+M7 -> 0 | N11: 0 | O11: 0 | P11: 0 | Q11: 0 | R11: 0 | S11: 0 | T11: 0 | U11: 0 | V11: 0 | W11: 1 | X11: 2 | Y11: 3 | Z11: 4 | AA11: 5 | AB11: 6 | AC11: 7 | AD11: 8 | AE11: 9 | AF11: 10 | AG11: 11 | AH11: 12 | AI11: 13 | AJ11: 14 | AK11: 15 | AL11: 16 | AM11: 17 | AN11: 18 | AO11: 19 | AP11: 20 | AQ11: 21 | AR11: 22 | AS11: 23 | AT11: 24 | AU11: 25 | AV11: 26 | AW11: 27 | AX11: 28 | AY11: 29 | AZ11: 30 | BA11: 31 | BB11: 32 | BC11: 33 | BD11: 34 | BE11: 35 | BF11: 36 | BG11: 37 | BH11: 38 | BI11: 39 | BJ11: 40 | BK11: 41 | BL11: 42 | BM11: 43 | BN11: 44 | BO11: 45 | BP11: 46 | BQ11: 47 | BR11: 48 | BS11: 49 | BT11: 50 | BU11: 51 | BV11: 52 | BW11: 53 | BX11: 54 | BY11: =BX11+BY7 -> 55 | BZ11: 56 | CA11: 57 | CB11: 58 | CC11: 59 | CD11: 60 | CE11: 61 | CF11: 62 | CG11: 63 | CH11: 64 | CI11: 65 | CJ11: 66 | CK11: 67 | CL11: 68 | CM11: 69 | CN11: 70 | CO11: 71 | CP11: 72 | CQ11: 73 | CR11: 74 | CS11: 75 | CT11: 76 | CU11: 77 | CV11: 78 | CW11: 79 | CX11: 80 | CY11: 81 | CZ11: 82 | DA11: 83 | DB11: 84 | DC11: 85 | DD11: 86 | DE11: 87 | DF11: 88 | DG11: 89 | DH11: 90 | DI11: 91 | DJ11: 92 | DK11: 93 | DL11: 94 | DM11: 95 | DN11: 96 | DO11: 97 | DP11: 98 | DQ11: 99 | DR11: 100 | DS11: 101 | DT11: 102 | DU11: 103 | DV11: 104 | DW11: 105 | DX11: 106 | DY11: 107 | DZ11: 108 | EA11: 109 | EB11: 110 | EC11: 111 | ED11: 112 | EE11: 113 | EF11: 114 | EG11: 115 | EH11: 116 | EI11: 117 | EJ11: 118 | EK11: =EJ11+EK7 -> 119 | EL11: 120 | EM11: 121 | EN11: 122 | EO11: 123 | EP11: 124 | EQ11: 125 | ER11: 126 | ES11: 127 | ET11: 128 | EU11: 129 | EV11: 130 | EW11: 131 | EX11: 132 | EY11: 133 | EZ11: 134 | FA11: 135 | FB11: 136 | FC11: 137 | FD11: 138 | FE11: 139 | FF11: 140 | FG11: 141 | FH11: 142 | FI11: 143 | FJ11: 144 | FK11: 145 | FL11: 146 | FM11: 147 | FN11: 148 | FO11: 149 | FP11: 150 | FQ11: 151 | FR11: 152 | FS11: 153 | FT11: 154 | FU11: 155 | FV11: 156 | FW11: 157 | FX11: 158 | FY11: 159 | FZ11: 160 | GA11: 161 | GB11: 162 | GC11: 163 | GD11: 164 | GE11: 165 | GF11: 166 | GG11: 167 | GH11: 168 | GI11: 169 | GJ11: 170 | GK11: 171 | GL11: 172 | GM11: 173 | GN11: 174 | GO11: 175 | GP11: 176 | GQ11: 177 | GR11: 178 | GS11: 179 | GT11: 180 | GU11: 181 | GV11: 182 | GW11: =GV11+GW7 -> 183 | GX11: 184 | GY11: 185 | GZ11: 186 | HA11: 187 | HB11: 188 | HC11: 189 | HD11: 190 | HE11: 191 | HF11: 192 | HG11: 193 | HH11: 194 | HI11: 195 | HJ11: 196 | HK11: 197 | HL11: 198 | HM11: 199 | HN11: 200 | HO11: 201 | HP11: 202 | HQ11: 203 | HR11: 204 | HS11: 205 | HT11: 206 | HU11: 207 | HV11: 208 | HW11: 209 | HX11: 210 | HY11: 211 | HZ11: 212 | IA11: 213 | IB11: 214 | IC11: 215 | ID11: 216 | IE11: 217 | IF11: 218 | IG11: 219 | IH11: 220 | II11: 221 | IJ11: 222 | IK11: 223 | IL11: 224 | IM11: 225 | IN11: 226 | IO11: 227 | IP11: 228 | IQ11: 229 | IR11: 230 | IS11: 231 | IT11: 232 | IU11: 233 | IV11: 234 | IW11: 235 | IX11: 236 | IY11: 237 | IZ11: 238 | JA11: 239 | JB11: 240 | JC11: 241 | JD11: 242 | JE11: 243 | JF11: 244 | JG11: 245 | JH11: 246 | JI11: =JH11+JI7 -> 247 | JJ11: 248 | JK11: 249 | JL11: 250 | JM11: 251 | JN11: 252 | JO11: 253 | JP11: 254 | JQ11: 255 | JR11: 256 | JS11: 257 | JT11: 258 | JU11: 259 | JV11: 260 | JW11: 261 | JX11: 262 | JY11: 263 | JZ11: 264 | KA11: 265 | KB11: 266 | KC11: 267 | KD11: 268 | KE11: 269 | KF11: 270 | KG11: 271 | KH11: 272 | KI11: 273 | KJ11: 274 | KK11: 275 | KL11: 276 | KM11: 277 | KN11: 278 | KO11: 279 | KP11: 280 | KQ11: 281 | KR11: 282 | KS11: 283 | KT11: 284 | KU11: 285 | KV11: 286 | KW11: 287 | KX11: 288 | KY11: 289 | KZ11: 290 | LA11: 291 | LB11: 292 | LC11: 293 | LD11: 294 | LE11: 295 | LF11: 296 | LG11: 297 | LH11: 298 | LI11: 299 | LJ11: 300 | LK11: 301 | LL11: 302 | LM11: 303 | LN11: 304 | LO11: 305 | LP11: 306 | LQ11: 307 | LR11: 308 | LS11: 309 | LT11: 310 | LU11: =LT11+LU7 -> 311 | LV11: 312 | LW11: 313 | LX11: 314 | LY11: 315 | LZ11: 316 | MA11: 317 | MB11: 318 | MC11: 319 | MD11: 320 | ME11: 321 | MF11: 322 | MG11: 323 | MH11: 324 | MI11: 325 | MJ11: 326 | MK11: 327 | ML11: 328 | MM11: 329 | MN11: 330 | MO11: 331 | MP11: 332 | MQ11: 333 | MR11: 334 | MS11: 335 | MT11: 336 | MU11: 337 | MV11: 338 | MW11: 339 | MX11: 340 | MY11: 341 | MZ11: 342 | NA11: 343 | NB11: 344 | NC11: 345 | ND11: 346 | NE11: 347 | NF11: 348 | NG11: 349 | NH11: 350 | NI11: 351 | NJ11: 352 | NK11: 353 | NL11: 354 | NM11: 355 | NN11: 356 | NO11: 357 | NP11: 358 | NQ11: 359 | NR11: 360 | NS11: 361 | NT11: 362 | NU11: 363 | NV11: 364 | NW11: 365 | NX11: 366 | NY11: 367 | NZ11: 368 | OA11: 369 | OB11: 370 | OC11: 371 | OD11: 372 | OE11: 373 | OF11: 374 | OG11: =OF11+OG7 -> 375 | OH11: 376 | OI11: 377 | OJ11: 378 | OK11: 379 | OL11: 380 | OM11: 381 | ON11: 382 | OO11: 383 | OP11: 384 | OQ11: 385 | OR11: 386 | OS11: 387 | OT11: 388 | OU11: 389 | OV11: 390 | OW11: 391 | OX11: 392 | OY11: 393 | OZ11: 394 | PA11: 395 | PB11: 396 | PC11: 397 | PD11: 398 | PE11: 399 | PF11: 400 | PG11: 401 | PH11: 402 | PI11: 403 | PJ11: 404 | PK11: 405 | PL11: 406 | PM11: 407 | PN11: 408 | PO11: 409 | PP11: 410 | PQ11: 411 | PR11: 412 | PS11: 413 | PT11: 414 | PU11: 415 | PV11: 416 | PW11: 417 | PX11: 418 | PY11: 419 | PZ11: 420 | QA11: 420 | QB11: 420 | QC11: 420 | QD11: 420 | QE11: 420 | QF11: 420 | QG11: 420 | QH11: 420 | QI11: 420 | QJ11: 420 | QK11: 420 | QL11: 420 | QM11: 420 | QN11: 420 | QO11: 420 | QP11: 420 | QQ11: 420 | QR11: 420 | QS11: =QR11+QS7 -> 420 | QT11: 420 | QU11: 420 | QV11: 420 | QW11: 420 | QX11: 420 | QY11: 420 | QZ11: 420 | RA11: 420 | RB11: 420 | RC11: 420 | RD11: 420 | RE11: 420 | RF11: 420 | RG11: 420 | RH11: 420 | RI11: 420 | RJ11: 420 | RK11: 420 | RL11: 420 | RM11: 420 | RN11: 420 | RO11: 420 | RP11: 420 | RQ11: 420 | RR11: 420 | RS11: 420 | RT11: 420 | RU11: 420 | RV11: 420 | RW11: 420 | RX11: 420 | RY11: 420 | RZ11: 420 | SA11: 420 | SB11: 420 | SC11: 420 | SD11: 420 | SE11: 420 | SF11: 420 | SG11: 420 | SH11: 420 | SI11: 420 | SJ11: 420 | SK11: 420 | SL11: 420 | SM11: 420 | SN11: 420 | SO11: 420 | SP11: 420 | SQ11: 420
D12: Flag for Semi Annual Period | E12: ='InputC-Financing'!E10 -> 12 | F12: ='InputC-Financing'!E11 -> 6 | G12: Flag | H12: Months --> | L12: =OR(MONTH(L4)=$E$12,MONTH(L4)=$F$12)*L7 -> 0 | M12: 0 | N12: 0 | O12: 0 | P12: 0 | Q12: 0 | R12: 0 | S12: 0 | T12: 0 | U12: 0 | V12: 0 | W12: 1 | X12: 0 | Y12: 0 | Z12: 0 | AA12: 0 | AB12: 0 | AC12: 1 | AD12: 0 | AE12: 0 | AF12: 0 | AG12: 0 | AH12: 0 | AI12: 1 | AJ12: 0 | AK12: 0 | AL12: 0 | AM12: 0 | AN12: 0 | AO12: 1 | AP12: 0 | AQ12: 0 | AR12: 0 | AS12: 0 | AT12: 0 | AU12: 1 | AV12: 0 | AW12: 0 | AX12: 0 | AY12: 0 | AZ12: 0 | BA12: 1 | BB12: 0 | BC12: 0 | BD12: 0 | BE12: 0 | BF12: 0 | BG12: 1 | BH12: 0 | BI12: 0 | BJ12: 0 | BK12: 0 | BL12: 0 | BM12: 1 | BN12: 0 | BO12: 0 | BP12: 0 | BQ12: 0 | BR12: 0 | BS12: 1 | BT12: 0 | BU12: 0 | BV12: 0 | BW12: 0 | BX12: =OR(MONTH(BX4)=$E$12,MONTH(BX4)=$F$12)*BX7 -> 0 | BY12: 1 | BZ12: 0 | CA12: 0 | CB12: 0 | CC12: 0 | CD12: 0 | CE12: 1 | CF12: 0 | CG12: 0 | CH12: 0 | CI12: 0 | CJ12: 0 | CK12: 1 | CL12: 0 | CM12: 0 | CN12: 0 | CO12: 0 | CP12: 0 | CQ12: 1 | CR12: 0 | CS12: 0 | CT12: 0 | CU12: 0 | CV12: 0 | CW12: 1 | CX12: 0 | CY12: 0 | CZ12: 0 | DA12: 0 | DB12: 0 | DC12: 1 | DD12: 0 | DE12: 0 | DF12: 0 | DG12: 0 | DH12: 0 | DI12: 1 | DJ12: 0 | DK12: 0 | DL12: 0 | DM12: 0 | DN12: 0 | DO12: 1 | DP12: 0 | DQ12: 0 | DR12: 0 | DS12: 0 | DT12: 0 | DU12: 1 | DV12: 0 | DW12: 0 | DX12: 0 | DY12: 0 | DZ12: 0 | EA12: 1 | EB12: 0 | EC12: 0 | ED12: 0 | EE12: 0 | EF12: 0 | EG12: 1 | EH12: 0 | EI12: 0 | EJ12: =OR(MONTH(EJ4)=$E$12,MONTH(EJ4)=$F$12)*EJ7 -> 0 | EK12: 0 | EL12: 0 | EM12: 1 | EN12: 0 | EO12: 0 | EP12: 0 | EQ12: 0 | ER12: 0 | ES12: 1 | ET12: 0 | EU12: 0 | EV12: 0 | EW12: 0 | EX12: 0 | EY12: 1 | EZ12: 0 | FA12: 0 | FB12: 0 | FC12: 0 | FD12: 0 | FE12: 1 | FF12: 0 | FG12: 0 | FH12: 0 | FI12: 0 | FJ12: 0 | FK12: 1 | FL12: 0 | FM12: 0 | FN12: 0 | FO12: 0 | FP12: 0 | FQ12: 1 | FR12: 0 | FS12: 0 | FT12: 0 | FU12: 0 | FV12: 0 | FW12: 1 | FX12: 0 | FY12: 0 | FZ12: 0 | GA12: 0 | GB12: 0 | GC12: 1 | GD12: 0 | GE12: 0 | GF12: 0 | GG12: 0 | GH12: 0 | GI12: 1 | GJ12: 0 | GK12: 0 | GL12: 0 | GM12: 0 | GN12: 0 | GO12: 1 | GP12: 0 | GQ12: 0 | GR12: 0 | GS12: 0 | GT12: 0 | GU12: 1 | GV12: =OR(MONTH(GV4)=$E$12,MONTH(GV4)=$F$12)*GV7 -> 0 | GW12: 0 | GX12: 0 | GY12: 0 | GZ12: 0 | HA12: 1 | HB12: 0 | HC12: 0 | HD12: 0 | HE12: 0 | HF12: 0 | HG12: 1 | HH12: 0 | HI12: 0 | HJ12: 0 | HK12: 0 | HL12: 0 | HM12: 1 | HN12: 0 | HO12: 0 | HP12: 0 | HQ12: 0 | HR12: 0 | HS12: 1 | HT12: 0 | HU12: 0 | HV12: 0 | HW12: 0 | HX12: 0 | HY12: 1 | HZ12: 0 | IA12: 0 | IB12: 0 | IC12: 0 | ID12: 0 | IE12: 1 | IF12: 0 | IG12: 0 | IH12: 0 | II12: 0 | IJ12: 0 | IK12: 1 | IL12: 0 | IM12: 0 | IN12: 0 | IO12: 0 | IP12: 0 | IQ12: 1 | IR12: 0 | IS12: 0 | IT12: 0 | IU12: 0 | IV12: 0 | IW12: 1 | IX12: 0 | IY12: 0 | IZ12: 0 | JA12: 0 | JB12: 0 | JC12: 1 | JD12: 0 | JE12: 0 | JF12: 0 | JG12: 0 | JH12: =OR(MONTH(JH4)=$E$12,MONTH(JH4)=$F$12)*JH7 -> 0 | JI12: 1 | JJ12: 0 | JK12: 0 | JL12: 0 | JM12: 0 | JN12: 0 | JO12: 1 | JP12: 0 | JQ12: 0 | JR12: 0 | JS12: 0 | JT12: 0 | JU12: 1 | JV12: 0 | JW12: 0 | JX12: 0 | JY12: 0 | JZ12: 0 | KA12: 1 | KB12: 0 | KC12: 0 | KD12: 0 | KE12: 0 | KF12: 0 | KG12: 1 | KH12: 0 | KI12: 0 | KJ12: 0 | KK12: 0 | KL12: 0 | KM12: 1 | KN12: 0 | KO12: 0 | KP12: 0 | KQ12: 0 | KR12: 0 | KS12: 1 | KT12: 0 | KU12: 0 | KV12: 0 | KW12: 0 | KX12: 0 | KY12: 1 | KZ12: 0 | LA12: 0 | LB12: 0 | LC12: 0 | LD12: 0 | LE12: 1 | LF12: 0 | LG12: 0 | LH12: 0 | LI12: 0 | LJ12: 0 | LK12: 1 | LL12: 0 | LM12: 0 | LN12: 0 | LO12: 0 | LP12: 0 | LQ12: 1 | LR12: 0 | LS12: 0 | LT12: =OR(MONTH(LT4)=$E$12,MONTH(LT4)=$F$12)*LT7 -> 0 | LU12: 0 | LV12: 0 | LW12: 1 | LX12: 0 | LY12: 0 | LZ12: 0 | MA12: 0 | MB12: 0 | MC12: 1 | MD12: 0 | ME12: 0 | MF12: 0 | MG12: 0 | MH12: 0 | MI12: 1 | MJ12: 0 | MK12: 0 | ML12: 0 | MM12: 0 | MN12: 0 | MO12: 1 | MP12: 0 | MQ12: 0 | MR12: 0 | MS12: 0 | MT12: 0 | MU12: 1 | MV12: 0 | MW12: 0 | MX12: 0 | MY12: 0 | MZ12: 0 | NA12: 1 | NB12: 0 | NC12: 0 | ND12: 0 | NE12: 0 | NF12: 0 | NG12: 1 | NH12: 0 | NI12: 0 | NJ12: 0 | NK12: 0 | NL12: 0 | NM12: 1 | NN12: 0 | NO12: 0 | NP12: 0 | NQ12: 0 | NR12: 0 | NS12: 1 | NT12: 0 | NU12: 0 | NV12: 0 | NW12: 0 | NX12: 0 | NY12: 1 | NZ12: 0 | OA12: 0 | OB12: 0 | OC12: 0 | OD12: 0 | OE12: 1 | OF12: =OR(MONTH(OF4)=$E$12,MONTH(OF4)=$F$12)*OF7 -> 0 | OG12: 0 | OH12: 0 | OI12: 0 | OJ12: 0 | OK12: 1 | OL12: 0 | OM12: 0 | ON12: 0 | OO12: 0 | OP12: 0 | OQ12: 1 | OR12: 0 | OS12: 0 | OT12: 0 | OU12: 0 | OV12: 0 | OW12: 1 | OX12: 0 | OY12: 0 | OZ12: 0 | PA12: 0 | PB12: 0 | PC12: 1 | PD12: 0 | PE12: 0 | PF12: 0 | PG12: 0 | PH12: 0 | PI12: 1 | PJ12: 0 | PK12: 0 | PL12: 0 | PM12: 0 | PN12: 0 | PO12: 1 | PP12: 0 | PQ12: 0 | PR12: 0 | PS12: 0 | PT12: 0 | PU12: 1 | PV12: 0 | PW12: 0 | PX12: 0 | PY12: 0 | PZ12: 0 | QA12: 0 | QB12: 0 | QC12: 0 | QD12: 0 | QE12: 0 | QF12: 0 | QG12: 0 | QH12: 0 | QI12: 0 | QJ12: 0 | QK12: 0 | QL12: 0 | QM12: 0 | QN12: 0 | QO12: 0 | QP12: 0 | QQ12: 0 | QR12: =OR(MONTH(QR4)=$E$12,MONTH(QR4)=$F$12)*QR7 -> 0 | QS12: 0 | QT12: 0 | QU12: 0 | QV12: 0 | QW12: 0 | QX12: 0 | QY12: 0 | QZ12: 0 | RA12: 0 | RB12: 0 | RC12: 0 | RD12: 0 | RE12: 0 | RF12: 0 | RG12: 0 | RH12: 0 | RI12: 0 | RJ12: 0 | RK12: 0 | RL12: 0 | RM12: 0 | RN12: 0 | RO12: 0 | RP12: 0 | RQ12: 0 | RR12: 0 | RS12: 0 | RT12: 0 | RU12: 0 | RV12: 0 | RW12: 0 | RX12: 0 | RY12: 0 | RZ12: 0 | SA12: 0 | SB12: 0 | SC12: 0 | SD12: 0 | SE12: 0 | SF12: 0 | SG12: 0 | SH12: 0 | SI12: 0 | SJ12: 0 | SK12: 0 | SL12: 0 | SM12: 0 | SN12: 0 | SO12: 0 | SP12: 0 | SQ12: 0
D13: COD Flag | E13: =E7 -> 2023-12-01 | G13: Flag | L13: =($E$13=L4)*1 -> 0 | M13: =($E$13=M4)*1 -> 0 | N13: 0 | O13: 0 | P13: 0 | Q13: 0 | R13: 0 | S13: 0 | T13: 0 | U13: 0 | V13: 0 | W13: 1 | X13: 0 | Y13: 0 | Z13: 0 | AA13: 0 | AB13: 0 | AC13: 0 | AD13: 0 | AE13: 0 | AF13: 0 | AG13: 0 | AH13: 0 | AI13: 0 | AJ13: 0 | AK13: 0 | AL13: 0 | AM13: 0 | AN13: 0 | AO13: 0 | AP13: 0 | AQ13: 0 | AR13: 0 | AS13: 0 | AT13: 0 | AU13: 0 | AV13: 0 | AW13: 0 | AX13: 0 | AY13: 0 | AZ13: 0 | BA13: 0 | BB13: 0 | BC13: 0 | BD13: 0 | BE13: 0 | BF13: 0 | BG13: 0 | BH13: 0 | BI13: 0 | BJ13: 0 | BK13: 0 | BL13: 0 | BM13: 0 | BN13: 0 | BO13: 0 | BP13: 0 | BQ13: 0 | BR13: 0 | BS13: 0 | BT13: 0 | BU13: 0 | BV13: 0 | BW13: 0 | BX13: 0 | BY13: =($E$13=BY4)*1 -> 0 | BZ13: 0 | CA13: 0 | CB13: 0 | CC13: 0 | CD13: 0 | CE13: 0 | CF13: 0 | CG13: 0 | CH13: 0 | CI13: 0 | CJ13: 0 | CK13: 0 | CL13: 0 | CM13: 0 | CN13: 0 | CO13: 0 | CP13: 0 | CQ13: 0 | CR13: 0 | CS13: 0 | CT13: 0 | CU13: 0 | CV13: 0 | CW13: 0 | CX13: 0 | CY13: 0 | CZ13: 0 | DA13: 0 | DB13: 0 | DC13: 0 | DD13: 0 | DE13: 0 | DF13: 0 | DG13: 0 | DH13: 0 | DI13: 0 | DJ13: 0 | DK13: 0 | DL13: 0 | DM13: 0 | DN13: 0 | DO13: 0 | DP13: 0 | DQ13: 0 | DR13: 0 | DS13: 0 | DT13: 0 | DU13: 0 | DV13: 0 | DW13: 0 | DX13: 0 | DY13: 0 | DZ13: 0 | EA13: 0 | EB13: 0 | EC13: 0 | ED13: 0 | EE13: 0 | EF13: 0 | EG13: 0 | EH13: 0 | EI13: 0 | EJ13: 0 | EK13: =($E$13=EK4)*1 -> 0 | EL13: 0 | EM13: 0 | EN13: 0 | EO13: 0 | EP13: 0 | EQ13: 0 | ER13: 0 | ES13: 0 | ET13: 0 | EU13: 0 | EV13: 0 | EW13: 0 | EX13: 0 | EY13: 0 | EZ13: 0 | FA13: 0 | FB13: 0 | FC13: 0 | FD13: 0 | FE13: 0 | FF13: 0 | FG13: 0 | FH13: 0 | FI13: 0 | FJ13: 0 | FK13: 0 | FL13: 0 | FM13: 0 | FN13: 0 | FO13: 0 | FP13: 0 | FQ13: 0 | FR13: 0 | FS13: 0 | FT13: 0 | FU13: 0 | FV13: 0 | FW13: 0 | FX13: 0 | FY13: 0 | FZ13: 0 | GA13: 0 | GB13: 0 | GC13: 0 | GD13: 0 | GE13: 0 | GF13: 0 | GG13: 0 | GH13: 0 | GI13: 0 | GJ13: 0 | GK13: 0 | GL13: 0 | GM13: 0 | GN13: 0 | GO13: 0 | GP13: 0 | GQ13: 0 | GR13: 0 | GS13: 0 | GT13: 0 | GU13: 0 | GV13: 0 | GW13: =($E$13=GW4)*1 -> 0 | GX13: 0 | GY13: 0 | GZ13: 0 | HA13: 0 | HB13: 0 | HC13: 0 | HD13: 0 | HE13: 0 | HF13: 0 | HG13: 0 | HH13: 0 | HI13: 0 | HJ13: 0 | HK13: 0 | HL13: 0 | HM13: 0 | HN13: 0 | HO13: 0 | HP13: 0 | HQ13: 0 | HR13: 0 | HS13: 0 | HT13: 0 | HU13: 0 | HV13: 0 | HW13: 0 | HX13: 0 | HY13: 0 | HZ13: 0 | IA13: 0 | IB13: 0 | IC13: 0 | ID13: 0 | IE13: 0 | IF13: 0 | IG13: 0 | IH13: 0 | II13: 0 | IJ13: 0 | IK13: 0 | IL13: 0 | IM13: 0 | IN13: 0 | IO13: 0 | IP13: 0 | IQ13: 0 | IR13: 0 | IS13: 0 | IT13: 0 | IU13: 0 | IV13: 0 | IW13: 0 | IX13: 0 | IY13: 0 | IZ13: 0 | JA13: 0 | JB13: 0 | JC13: 0 | JD13: 0 | JE13: 0 | JF13: 0 | JG13: 0 | JH13: 0 | JI13: =($E$13=JI4)*1 -> 0 | JJ13: 0 | JK13: 0 | JL13: 0 | JM13: 0 | JN13: 0 | JO13: 0 | JP13: 0 | JQ13: 0 | JR13: 0 | JS13: 0 | JT13: 0 | JU13: 0 | JV13: 0 | JW13: 0 | JX13: 0 | JY13: 0 | JZ13: 0 | KA13: 0 | KB13: 0 | KC13: 0 | KD13: 0 | KE13: 0 | KF13: 0 | KG13: 0 | KH13: 0 | KI13: 0 | KJ13: 0 | KK13: 0 | KL13: 0 | KM13: 0 | KN13: 0 | KO13: 0 | KP13: 0 | KQ13: 0 | KR13: 0 | KS13: 0 | KT13: 0 | KU13: 0 | KV13: 0 | KW13: 0 | KX13: 0 | KY13: 0 | KZ13: 0 | LA13: 0 | LB13: 0 | LC13: 0 | LD13: 0 | LE13: 0 | LF13: 0 | LG13: 0 | LH13: 0 | LI13: 0 | LJ13: 0 | LK13: 0 | LL13: 0 | LM13: 0 | LN13: 0 | LO13: 0 | LP13: 0 | LQ13: 0 | LR13: 0 | LS13: 0 | LT13: 0 | LU13: =($E$13=LU4)*1 -> 0 | LV13: 0 | LW13: 0 | LX13: 0 | LY13: 0 | LZ13: 0 | MA13: 0 | MB13: 0 | MC13: 0 | MD13: 0 | ME13: 0 | MF13: 0 | MG13: 0 | MH13: 0 | MI13: 0 | MJ13: 0 | MK13: 0 | ML13: 0 | MM13: 0 | MN13: 0 | MO13: 0 | MP13: 0 | MQ13: 0 | MR13: 0 | MS13: 0 | MT13: 0 | MU13: 0 | MV13: 0 | MW13: 0 | MX13: 0 | MY13: 0 | MZ13: 0 | NA13: 0 | NB13: 0 | NC13: 0 | ND13: 0 | NE13: 0 | NF13: 0 | NG13: 0 | NH13: 0 | NI13: 0 | NJ13: 0 | NK13: 0 | NL13: 0 | NM13: 0 | NN13: 0 | NO13: 0 | NP13: 0 | NQ13: 0 | NR13: 0 | NS13: 0 | NT13: 0 | NU13: 0 | NV13: 0 | NW13: 0 | NX13: 0 | NY13: 0 | NZ13: 0 | OA13: 0 | OB13: 0 | OC13: 0 | OD13: 0 | OE13: 0 | OF13: 0 | OG13: =($E$13=OG4)*1 -> 0 | OH13: 0 | OI13: 0 | OJ13: 0 | OK13: 0 | OL13: 0 | OM13: 0 | ON13: 0 | OO13: 0 | OP13: 0 | OQ13: 0 | OR13: 0 | OS13: 0 | OT13: 0 | OU13: 0 | OV13: 0 | OW13: 0 | OX13: 0 | OY13: 0 | OZ13: 0 | PA13: 0 | PB13: 0 | PC13: 0 | PD13: 0 | PE13: 0 | PF13: 0 | PG13: 0 | PH13: 0 | PI13: 0 | PJ13: 0 | PK13: 0 | PL13: 0 | PM13: 0 | PN13: 0 | PO13: 0 | PP13: 0 | PQ13: 0 | PR13: 0 | PS13: 0 | PT13: 0 | PU13: 0 | PV13: 0 | PW13: 0 | PX13: 0 | PY13: 0 | PZ13: 0 | QA13: 0 | QB13: 0 | QC13: 0 | QD13: 0 | QE13: 0 | QF13: 0 | QG13: 0 | QH13: 0 | QI13: 0 | QJ13: 0 | QK13: 0 | QL13: 0 | QM13: 0 | QN13: 0 | QO13: 0 | QP13: 0 | QQ13: 0 | QR13: 0 | QS13: =($E$13=QS4)*1 -> 0 | QT13: 0 | QU13: 0 | QV13: 0 | QW13: 0 | QX13: 0 | QY13: 0 | QZ13: 0 | RA13: 0 | RB13: 0 | RC13: 0 | RD13: 0 | RE13: 0 | RF13: 0 | RG13: 0 | RH13: 0 | RI13: 0 | RJ13: 0 | RK13: 0 | RL13: 0 | RM13: 0 | RN13: 0 | RO13: 0 | RP13: 0 | RQ13: 0 | RR13: 0 | RS13: 0 | RT13: 0 | RU13: 0 | RV13: 0 | RW13: 0 | RX13: 0 | RY13: 0 | RZ13: 0 | SA13: 0 | SB13: 0 | SC13: 0 | SD13: 0 | SE13: 0 | SF13: 0 | SG13: 0 | SH13: 0 | SI13: 0 | SJ13: 0 | SK13: 0 | SL13: 0 | SM13: 0 | SN13: 0 | SO13: 0 | SP13: 0 | SQ13: 0
D14: Semi-Annual Counter | G14: Counter | K14: 0 | L14: =IF(OR(L12,L13),0,K14+1) -> 1 | M14: =IF(OR(M12,M13),0,L14+1) -> 2 | N14: 3 | O14: 4 | P14: 5 | Q14: 6 | R14: 7 | S14: 8 | T14: 9 | U14: 10 | V14: 11 | W14: 0 | X14: 1 | Y14: 2 | Z14: 3 | AA14: 4 | AB14: 5 | AC14: 0 | AD14: 1 | AE14: 2 | AF14: 3 | AG14: 4 | AH14: 5 | AI14: 0 | AJ14: 1 | AK14: 2 | AL14: 3 | AM14: 4 | AN14: 5 | AO14: 0 | AP14: 1 | AQ14: 2 | AR14: 3 | AS14: 4 | AT14: 5 | AU14: 0 | AV14: 1 | AW14: 2 | AX14: 3 | AY14: 4 | AZ14: 5 | BA14: 0 | BB14: 1 | BC14: 2 | BD14: 3 | BE14: 4 | BF14: 5 | BG14: 0 | BH14: 1 | BI14: 2 | BJ14: 3 | BK14: 4 | BL14: 5 | BM14: 0 | BN14: 1 | BO14: 2 | BP14: 3 | BQ14: 4 | BR14: 5 | BS14: 0 | BT14: 1 | BU14: 2 | BV14: 3 | BW14: 4 | BX14: 5 | BY14: =IF(OR(BY12,BY13),0,BX14+1) -> 0 | BZ14: 1 | CA14: 2 | CB14: 3 | CC14: 4 | CD14: 5 | CE14: 0 | CF14: 1 | CG14: 2 | CH14: 3 | CI14: 4 | CJ14: 5 | CK14: 0 | CL14: 1 | CM14: 2 | CN14: 3 | CO14: 4 | CP14: 5 | CQ14: 0 | CR14: 1 | CS14: 2 | CT14: 3 | CU14: 4 | CV14: 5 | CW14: 0 | CX14: 1 | CY14: 2 | CZ14: 3 | DA14: 4 | DB14: 5 | DC14: 0 | DD14: 1 | DE14: 2 | DF14: 3 | DG14: 4 | DH14: 5 | DI14: 0 | DJ14: 1 | DK14: 2 | DL14: 3 | DM14: 4 | DN14: 5 | DO14: 0 | DP14: 1 | DQ14: 2 | DR14: 3 | DS14: 4 | DT14: 5 | DU14: 0 | DV14: 1 | DW14: 2 | DX14: 3 | DY14: 4 | DZ14: 5 | EA14: 0 | EB14: 1 | EC14: 2 | ED14: 3 | EE14: 4 | EF14: 5 | EG14: 0 | EH14: 1 | EI14: 2 | EJ14: 3 | EK14: =IF(OR(EK12,EK13),0,EJ14+1) -> 4 | EL14: 5 | EM14: 0 | EN14: 1 | EO14: 2 | EP14: 3 | EQ14: 4 | ER14: 5 | ES14: 0 | ET14: 1 | EU14: 2 | EV14: 3 | EW14: 4 | EX14: 5 | EY14: 0 | EZ14: 1 | FA14: 2 | FB14: 3 | FC14: 4 | FD14: 5 | FE14: 0 | FF14: 1 | FG14: 2 | FH14: 3 | FI14: 4 | FJ14: 5 | FK14: 0 | FL14: 1 | FM14: 2 | FN14: 3 | FO14: 4 | FP14: 5 | FQ14: 0 | FR14: 1 | FS14: 2 | FT14: 3 | FU14: 4 | FV14: 5 | FW14: 0 | FX14: 1 | FY14: 2 | FZ14: 3 | GA14: 4 | GB14: 5 | GC14: 0 | GD14: 1 | GE14: 2 | GF14: 3 | GG14: 4 | GH14: 5 | GI14: 0 | GJ14: 1 | GK14: 2 | GL14: 3 | GM14: 4 | GN14: 5 | GO14: 0 | GP14: 1 | GQ14: 2 | GR14: 3 | GS14: 4 | GT14: 5 | GU14: 0 | GV14: 1 | GW14: =IF(OR(GW12,GW13),0,GV14+1) -> 2 | GX14: 3 | GY14: 4 | GZ14: 5 | HA14: 0 | HB14: 1 | HC14: 2 | HD14: 3 | HE14: 4 | HF14: 5 | HG14: 0 | HH14: 1 | HI14: 2 | HJ14: 3 | HK14: 4 | HL14: 5 | HM14: 0 | HN14: 1 | HO14: 2 | HP14: 3 | HQ14: 4 | HR14: 5 | HS14: 0 | HT14: 1 | HU14: 2 | HV14: 3 | HW14: 4 | HX14: 5 | HY14: 0 | HZ14: 1 | IA14: 2 | IB14: 3 | IC14: 4 | ID14: 5 | IE14: 0 | IF14: 1 | IG14: 2 | IH14: 3 | II14: 4 | IJ14: 5 | IK14: 0 | IL14: 1 | IM14: 2 | IN14: 3 | IO14: 4 | IP14: 5 | IQ14: 0 | IR14: 1 | IS14: 2 | IT14: 3 | IU14: 4 | IV14: 5 | IW14: 0 | IX14: 1 | IY14: 2 | IZ14: 3 | JA14: 4 | JB14: 5 | JC14: 0 | JD14: 1 | JE14: 2 | JF14: 3 | JG14: 4 | JH14: 5 | JI14: =IF(OR(JI12,JI13),0,JH14+1) -> 0 | JJ14: 1 | JK14: 2 | JL14: 3 | JM14: 4 | JN14: 5 | JO14: 0 | JP14: 1 | JQ14: 2 | JR14: 3 | JS14: 4 | JT14: 5 | JU14: 0 | JV14: 1 | JW14: 2 | JX14: 3 | JY14: 4 | JZ14: 5 | KA14: 0 | KB14: 1 | KC14: 2 | KD14: 3 | KE14: 4 | KF14: 5 | KG14: 0 | KH14: 1 | KI14: 2 | KJ14: 3 | KK14: 4 | KL14: 5 | KM14: 0 | KN14: 1 | KO14: 2 | KP14: 3 | KQ14: 4 | KR14: 5 | KS14: 0 | KT14: 1 | KU14: 2 | KV14: 3 | KW14: 4 | KX14: 5 | KY14: 0 | KZ14: 1 | LA14: 2 | LB14: 3 | LC14: 4 | LD14: 5 | LE14: 0 | LF14: 1 | LG14: 2 | LH14: 3 | LI14: 4 | LJ14: 5 | LK14: 0 | LL14: 1 | LM14: 2 | LN14: 3 | LO14: 4 | LP14: 5 | LQ14: 0 | LR14: 1 | LS14: 2 | LT14: 3 | LU14: =IF(OR(LU12,LU13),0,LT14+1) -> 4 | LV14: 5 | LW14: 0 | LX14: 1 | LY14: 2 | LZ14: 3 | MA14: 4 | MB14: 5 | MC14: 0 | MD14: 1 | ME14: 2 | MF14: 3 | MG14: 4 | MH14: 5 | MI14: 0 | MJ14: 1 | MK14: 2 | ML14: 3 | MM14: 4 | MN14: 5 | MO14: 0 | MP14: 1 | MQ14: 2 | MR14: 3 | MS14: 4 | MT14: 5 | MU14: 0 | MV14: 1 | MW14: 2 | MX14: 3 | MY14: 4 | MZ14: 5 | NA14: 0 | NB14: 1 | NC14: 2 | ND14: 3 | NE14: 4 | NF14: 5 | NG14: 0 | NH14: 1 | NI14: 2 | NJ14: 3 | NK14: 4 | NL14: 5 | NM14: 0 | NN14: 1 | NO14: 2 | NP14: 3 | NQ14: 4 | NR14: 5 | NS14: 0 | NT14: 1 | NU14: 2 | NV14: 3 | NW14: 4 | NX14: 5 | NY14: 0 | NZ14: 1 | OA14: 2 | OB14: 3 | OC14: 4 | OD14: 5 | OE14: 0 | OF14: 1 | OG14: =IF(OR(OG12,OG13),0,OF14+1) -> 2 | OH14: 3 | OI14: 4 | OJ14: 5 | OK14: 0 | OL14: 1 | OM14: 2 | ON14: 3 | OO14: 4 | OP14: 5 | OQ14: 0 | OR14: 1 | OS14: 2 | OT14: 3 | OU14: 4 | OV14: 5 | OW14: 0 | OX14: 1 | OY14: 2 | OZ14: 3 | PA14: 4 | PB14: 5 | PC14: 0 | PD14: 1 | PE14: 2 | PF14: 3 | PG14: 4 | PH14: 5 | PI14: 0 | PJ14: 1 | PK14: 2 | PL14: 3 | PM14: 4 | PN14: 5 | PO14: 0 | PP14: 1 | PQ14: 2 | PR14: 3 | PS14: 4 | PT14: 5 | PU14: 0 | PV14: 1 | PW14: 2 | PX14: 3 | PY14: 4 | PZ14: 5 | QA14: 6 | QB14: 7 | QC14: 8 | QD14: 9 | QE14: 10 | QF14: 11 | QG14: 12 | QH14: 13 | QI14: 14 | QJ14: 15 | QK14: 16 | QL14: 17 | QM14: 18 | QN14: 19 | QO14: 20 | QP14: 21 | QQ14: 22 | QR14: 23 | QS14: =IF(OR(QS12,QS13),0,QR14+1) -> 24 | QT14: 25 | QU14: 26 | QV14: 27 | QW14: 28 | QX14: 29 | QY14: 30 | QZ14: 31 | RA14: 32 | RB14: 33 | RC14: 34 | RD14: 35 | RE14: 36 | RF14: 37 | RG14: 38 | RH14: 39 | RI14: 40 | RJ14: 41 | RK14: 42 | RL14: 43 | RM14: 44 | RN14: 45 | RO14: 46 | RP14: 47 | RQ14: 48 | RR14: 49 | RS14: 50 | RT14: 51 | RU14: 52 | RV14: 53 | RW14: 54 | RX14: 55 | RY14: 56 | RZ14: 57 | SA14: 58 | SB14: 59 | SC14: 60 | SD14: 61 | SE14: 62 | SF14: 63 | SG14: 64 | SH14: 65 | SI14: 66 | SJ14: 67 | SK14: 68 | SL14: 69 | SM14: 70 | SN14: 71 | SO14: 72 | SP14: 73 | SQ14: 74
D15: Forward Semi-Annual Date with Same Dates | G15: Date | L15: =IF(L6,L4,OFFSET(L4,0,-L14)) -> 2023-01-01 | M15: =IF(M6,M4,OFFSET(M4,0,-M14)) -> 2023-02-01 | N15: 2023-03-01 | O15: 2023-04-01 | P15: 2023-05-01 | Q15: 2023-06-01 | R15: 2023-07-01 | S15: 2023-08-01 | T15: 2023-09-01 | U15: 2023-10-01 | V15: 2023-11-01 | W15: 2023-12-01 | X15: 2023-12-01 | Y15: 2023-12-01 | Z15: 2023-12-01 | AA15: 2023-12-01 | AB15: 2023-12-01 | AC15: 2024-06-01 | AD15: 2024-06-01 | AE15: 2024-06-01 | AF15: 2024-06-01 | AG15: 2024-06-01 | AH15: 2024-06-01 | AI15: 2024-12-01 | AJ15: 2024-12-01 | AK15: 2024-12-01 | AL15: 2024-12-01 | AM15: 2024-12-01 | AN15: 2024-12-01 | AO15: 2025-06-01 | AP15: 2025-06-01 | AQ15: 2025-06-01 | AR15: 2025-06-01 | AS15: 2025-06-01 | AT15: 2025-06-01 | AU15: 2025-12-01 | AV15: 2025-12-01 | AW15: 2025-12-01 | AX15: 2025-12-01 | AY15: 2025-12-01 | AZ15: 2025-12-01 | BA15: 2026-06-01 | BB15: 2026-06-01 | BC15: 2026-06-01 | BD15: 2026-06-01 | BE15: 2026-06-01 | BF15: 2026-06-01 | BG15: 2026-12-01 | BH15: 2026-12-01 | BI15: 2026-12-01 | BJ15: 2026-12-01 | BK15: 2026-12-01 | BL15: 2026-12-01 | BM15: 2027-06-01 | BN15: 2027-06-01 | BO15: 2027-06-01 | BP15: 2027-06-01 | BQ15: 2027-06-01 | BR15: 2027-06-01 | BS15: 2027-12-01 | BT15: 2027-12-01 | BU15: 2027-12-01 | BV15: 2027-12-01 | BW15: 2027-12-01 | BX15: 2027-12-01 | BY15: =IF(BY6,BY4,OFFSET(BY4,0,-BY14)) -> 2028-06-01 | BZ15: 2028-06-01 | CA15: 2028-06-01 | CB15: 2028-06-01 | CC15: 2028-06-01 | CD15: 2028-06-01 | CE15: 2028-12-01 | CF15: 2028-12-01 | CG15: 2028-12-01 | CH15: 2028-12-01 | CI15: 2028-12-01 | CJ15: 2028-12-01 | CK15: 2029-06-01 | CL15: 2029-06-01 | CM15: 2029-06-01 | CN15: 2029-06-01 | CO15: 2029-06-01 | CP15: 2029-06-01 | CQ15: 2029-12-01 | CR15: 2029-12-01 | CS15: 2029-12-01 | CT15: 2029-12-01 | CU15: 2029-12-01 | CV15: 2029-12-01 | CW15: 2030-06-01 | CX15: 2030-06-01 | CY15: 2030-06-01 | CZ15: 2030-06-01 | DA15: 2030-06-01 | DB15: 2030-06-01 | DC15: 2030-12-01 | DD15: 2030-12-01 | DE15: 2030-12-01 | DF15: 2030-12-01 | DG15: 2030-12-01 | DH15: 2030-12-01 | DI15: 2031-06-01 | DJ15: 2031-06-01 | DK15: 2031-06-01 | DL15: 2031-06-01 | DM15: 2031-06-01 | DN15: 2031-06-01 | DO15: 2031-12-01 | DP15: 2031-12-01 | DQ15: 2031-12-01 | DR15: 2031-12-01 | DS15: 2031-12-01 | DT15: 2031-12-01 | DU15: 2032-06-01 | DV15: 2032-06-01 | DW15: 2032-06-01 | DX15: 2032-06-01 | DY15: 2032-06-01 | DZ15: 2032-06-01 | EA15: 2032-12-01 | EB15: 2032-12-01 | EC15: 2032-12-01 | ED15: 2032-12-01 | EE15: 2032-12-01 | EF15: 2032-12-01 | EG15: 2033-06-01 | EH15: 2033-06-01 | EI15: 2033-06-01 | EJ15: 2033-06-01 | EK15: =IF(EK6,EK4,OFFSET(EK4,0,-EK14)) -> 2033-06-01 | EL15: 2033-06-01 | EM15: 2033-12-01 | EN15: 2033-12-01 | EO15: 2033-12-01 | EP15: 2033-12-01 | EQ15: 2033-12-01 | ER15: 2033-12-01 | ES15: 2034-06-01 | ET15: 2034-06-01 | EU15: 2034-06-01 | EV15: 2034-06-01 | EW15: 2034-06-01 | EX15: 2034-06-01 | EY15: 2034-12-01 | EZ15: 2034-12-01 | FA15: 2034-12-01 | FB15: 2034-12-01 | FC15: 2034-12-01 | FD15: 2034-12-01 | FE15: 2035-06-01 | FF15: 2035-06-01 | FG15: 2035-06-01 | FH15: 2035-06-01 | FI15: 2035-06-01 | FJ15: 2035-06-01 | FK15: 2035-12-01 | FL15: 2035-12-01 | FM15: 2035-12-01 | FN15: 2035-12-01 | FO15: 2035-12-01 | FP15: 2035-12-01 | FQ15: 2036-06-01 | FR15: 2036-06-01 | FS15: 2036-06-01 | FT15: 2036-06-01 | FU15: 2036-06-01 | FV15: 2036-06-01 | FW15: 2036-12-01 | FX15: 2036-12-01 | FY15: 2036-12-01 | FZ15: 2036-12-01 | GA15: 2036-12-01 | GB15: 2036-12-01 | GC15: 2037-06-01 | GD15: 2037-06-01 | GE15: 2037-06-01 | GF15: 2037-06-01 | GG15: 2037-06-01 | GH15: 2037-06-01 | GI15: 2037-12-01 | GJ15: 2037-12-01 | GK15: 2037-12-01 | GL15: 2037-12-01 | GM15: 2037-12-01 | GN15: 2037-12-01 | GO15: 2038-06-01 | GP15: 2038-06-01 | GQ15: 2038-06-01 | GR15: 2038-06-01 | GS15: 2038-06-01 | GT15: 2038-06-01 | GU15: 2038-12-01 | GV15: 2038-12-01 | GW15: =IF(GW6,GW4,OFFSET(GW4,0,-GW14)) -> 2038-12-01 | GX15: 2038-12-01 | GY15: 2038-12-01 | GZ15: 2038-12-01 | HA15: 2039-06-01 | HB15: 2039-06-01 | HC15: 2039-06-01 | HD15: 2039-06-01 | HE15: 2039-06-01 | HF15: 2039-06-01 | HG15: 2039-12-01 | HH15: 2039-12-01 | HI15: 2039-12-01 | HJ15: 2039-12-01 | HK15: 2039-12-01 | HL15: 2039-12-01 | HM15: 2040-06-01 | HN15: 2040-06-01 | HO15: 2040-06-01 | HP15: 2040-06-01 | HQ15: 2040-06-01 | HR15: 2040-06-01 | HS15: 2040-12-01 | HT15: 2040-12-01 | HU15: 2040-12-01 | HV15: 2040-12-01 | HW15: 2040-12-01 | HX15: 2040-12-01 | HY15: 2041-06-01 | HZ15: 2041-06-01 | IA15: 2041-06-01 | IB15: 2041-06-01 | IC15: 2041-06-01 | ID15: 2041-06-01 | IE15: 2041-12-01 | IF15: 2041-12-01 | IG15: 2041-12-01 | IH15: 2041-12-01 | II15: 2041-12-01 | IJ15: 2041-12-01 | IK15: 2042-06-01 | IL15: 2042-06-01 | IM15: 2042-06-01 | IN15: 2042-06-01 | IO15: 2042-06-01 | IP15: 2042-06-01 | IQ15: 2042-12-01 | IR15: 2042-12-01 | IS15: 2042-12-01 | IT15: 2042-12-01 | IU15: 2042-12-01 | IV15: 2042-12-01 | IW15: 2043-06-01 | IX15: 2043-06-01 | IY15: 2043-06-01 | IZ15: 2043-06-01 | JA15: 2043-06-01 | JB15: 2043-06-01 | JC15: 2043-12-01 | JD15: 2043-12-01 | JE15: 2043-12-01 | JF15: 2043-12-01 | JG15: 2043-12-01 | JH15: 2043-12-01 | JI15: =IF(JI6,JI4,OFFSET(JI4,0,-JI14)) -> 2044-06-01 | JJ15: 2044-06-01 | JK15: 2044-06-01 | JL15: 2044-06-01 | JM15: 2044-06-01 | JN15: 2044-06-01 | JO15: 2044-12-01 | JP15: 2044-12-01 | JQ15: 2044-12-01 | JR15: 2044-12-01 | JS15: 2044-12-01 | JT15: 2044-12-01 | JU15: 2045-06-01 | JV15: 2045-06-01 | JW15: 2045-06-01 | JX15: 2045-06-01 | JY15: 2045-06-01 | JZ15: 2045-06-01 | KA15: 2045-12-01 | KB15: 2045-12-01 | KC15: 2045-12-01 | KD15: 2045-12-01 | KE15: 2045-12-01 | KF15: 2045-12-01 | KG15: 2046-06-01 | KH15: 2046-06-01 | KI15: 2046-06-01 | KJ15: 2046-06-01 | KK15: 2046-06-01 | KL15: 2046-06-01 | KM15: 2046-12-01 | KN15: 2046-12-01 | KO15: 2046-12-01 | KP15: 2046-12-01 | KQ15: 2046-12-01 | KR15: 2046-12-01 | KS15: 2047-06-01 | KT15: 2047-06-01 | KU15: 2047-06-01 | KV15: 2047-06-01 | KW15: 2047-06-01 | KX15: 2047-06-01 | KY15: 2047-12-01 | KZ15: 2047-12-01 | LA15: 2047-12-01 | LB15: 2047-12-01 | LC15: 2047-12-01 | LD15: 2047-12-01 | LE15: 2048-06-01 | LF15: 2048-06-01 | LG15: 2048-06-01 | LH15: 2048-06-01 | LI15: 2048-06-01 | LJ15: 2048-06-01 | LK15: 2048-12-01 | LL15: 2048-12-01 | LM15: 2048-12-01 | LN15: 2048-12-01 | LO15: 2048-12-01 | LP15: 2048-12-01 | LQ15: 2049-06-01 | LR15: 2049-06-01 | LS15: 2049-06-01 | LT15: 2049-06-01 | LU15: =IF(LU6,LU4,OFFSET(LU4,0,-LU14)) -> 2049-06-01 | LV15: 2049-06-01 | LW15: 2049-12-01 | LX15: 2049-12-01 | LY15: 2049-12-01 | LZ15: 2049-12-01 | MA15: 2049-12-01 | MB15: 2049-12-01 | MC15: 2050-06-01 | MD15: 2050-06-01 | ME15: 2050-06-01 | MF15: 2050-06-01 | MG15: 2050-06-01 | MH15: 2050-06-01 | MI15: 2050-12-01 | MJ15: 2050-12-01 | MK15: 2050-12-01 | ML15: 2050-12-01 | MM15: 2050-12-01 | MN15: 2050-12-01 | MO15: 2051-06-01 | MP15: 2051-06-01 | MQ15: 2051-06-01 | MR15: 2051-06-01 | MS15: 2051-06-01 | MT15: 2051-06-01 | MU15: 2051-12-01 | MV15: 2051-12-01 | MW15: 2051-12-01 | MX15: 2051-12-01 | MY15: 2051-12-01 | MZ15: 2051-12-01 | NA15: 2052-06-01 | NB15: 2052-06-01 | NC15: 2052-06-01 | ND15: 2052-06-01 | NE15: 2052-06-01 | NF15: 2052-06-01 | NG15: 2052-12-01 | NH15: 2052-12-01 | NI15: 2052-12-01 | NJ15: 2052-12-01 | NK15: 2052-12-01 | NL15: 2052-12-01 | NM15: 2053-06-01 | NN15: 2053-06-01 | NO15: 2053-06-01 | NP15: 2053-06-01 | NQ15: 2053-06-01 | NR15: 2053-06-01 | NS15: 2053-12-01 | NT15: 2053-12-01 | NU15: 2053-12-01 | NV15: 2053-12-01 | NW15: 2053-12-01 | NX15: 2053-12-01 | NY15: 2054-06-01 | NZ15: 2054-06-01 | OA15: 2054-06-01 | OB15: 2054-06-01 | OC15: 2054-06-01 | OD15: 2054-06-01 | OE15: 2054-12-01 | OF15: 2054-12-01 | OG15: =IF(OG6,OG4,OFFSET(OG4,0,-OG14)) -> 2054-12-01 | OH15: 2054-12-01 | OI15: 2054-12-01 | OJ15: 2054-12-01 | OK15: 2055-06-01 | OL15: 2055-06-01 | OM15: 2055-06-01 | ON15: 2055-06-01 | OO15: 2055-06-01 | OP15: 2055-06-01 | OQ15: 2055-12-01 | OR15: 2055-12-01 | OS15: 2055-12-01 | OT15: 2055-12-01 | OU15: 2055-12-01 | OV15: 2055-12-01 | OW15: 2056-06-01 | OX15: 2056-06-01 | OY15: 2056-06-01 | OZ15: 2056-06-01 | PA15: 2056-06-01 | PB15: 2056-06-01 | PC15: 2056-12-01 | PD15: 2056-12-01 | PE15: 2056-12-01 | PF15: 2056-12-01 | PG15: 2056-12-01 | PH15: 2056-12-01 | PI15: 2057-06-01 | PJ15: 2057-06-01 | PK15: 2057-06-01 | PL15: 2057-06-01 | PM15: 2057-06-01 | PN15: 2057-06-01 | PO15: 2057-12-01 | PP15: 2057-12-01 | PQ15: 2057-12-01 | PR15: 2057-12-01 | PS15: 2057-12-01 | PT15: 2057-12-01 | PU15: 2058-06-01 | PV15: 2058-06-01 | PW15: 2058-06-01 | PX15: 2058-06-01 | PY15: 2058-06-01 | PZ15: 2058-06-01 | QA15: 2058-06-01 | QB15: 2058-06-01 | QC15: 2058-06-01 | QD15: 2058-06-01 | QE15: 2058-06-01 | QF15: 2058-06-01 | QG15: 2058-06-01 | QH15: 2058-06-01 | QI15: 2058-06-01 | QJ15: 2058-06-01 | QK15: 2058-06-01 | QL15: 2058-06-01 | QM15: 2058-06-01 | QN15: 2058-06-01 | QO15: 2058-06-01 | QP15: 2058-06-01 | QQ15: 2058-06-01 | QR15: 2058-06-01 | QS15: =IF(QS6,QS4,OFFSET(QS4,0,-QS14)) -> 2058-06-01 | QT15: 2058-06-01 | QU15: 2058-06-01 | QV15: 2058-06-01 | QW15: 2058-06-01 | QX15: 2058-06-01 | QY15: 2058-06-01 | QZ15: 2058-06-01 | RA15: 2058-06-01 | RB15: 2058-06-01 | RC15: 2058-06-01 | RD15: 2058-06-01 | RE15: 2058-06-01 | RF15: 2058-06-01 | RG15: 2058-06-01 | RH15: 2058-06-01 | RI15: 2058-06-01 | RJ15: 2058-06-01 | RK15: 2058-06-01 | RL15: 2058-06-01 | RM15: 2058-06-01 | RN15: 2058-06-01 | RO15: 2058-06-01 | RP15: 2058-06-01 | RQ15: 2058-06-01 | RR15: 2058-06-01 | RS15: 2058-06-01 | RT15: 2058-06-01 | RU15: 2058-06-01 | RV15: 2058-06-01 | RW15: 2058-06-01 | RX15: 2058-06-01 | RY15: 2058-06-01 | RZ15: 2058-06-01 | SA15: 2058-06-01 | SB15: 2058-06-01 | SC15: 2058-06-01 | SD15: 2058-06-01 | SE15: 2058-06-01 | SF15: 2058-06-01 | SG15: 2058-06-01 | SH15: 2058-06-01 | SI15: 2058-06-01 | SJ15: 2058-06-01 | SK15: 2058-06-01 | SL15: 2058-06-01 | SM15: 2058-06-01 | SN15: 2058-06-01 | SO15: 2058-06-01 | SP15: 2058-06-01 | SQ15: 2058-06-01
B17: Capacity and Production
D18: Capacity in MW | E18: ='InputC - Operations'!E$17 -> 132 | G18: ='InputC - Operations'!G17 -> MWp | L18: =$E$18*L7 -> 0 | M18: 0 | N18: 0 | O18: 0 | P18: 0 | Q18: 0 | R18: 0 | S18: 0 | T18: 0 | U18: 0 | V18: 0 | W18: 132 | X18: 132 | Y18: 132 | Z18: 132 | AA18: 132 | AB18: 132 | AC18: 132 | AD18: 132 | AE18: 132 | AF18: 132 | AG18: 132 | AH18: 132 | AI18: 132 | AJ18: 132 | AK18: 132 | AL18: 132 | AM18: 132 | AN18: 132 | AO18: 132 | AP18: 132 | AQ18: 132 | AR18: 132 | AS18: 132 | AT18: 132 | AU18: 132 | AV18: 132 | AW18: 132 | AX18: 132 | AY18: 132 | AZ18: 132 | BA18: 132 | BB18: 132 | BC18: 132 | BD18: 132 | BE18: 132 | BF18: 132 | BG18: 132 | BH18: 132 | BI18: 132 | BJ18: 132 | BK18: 132 | BL18: 132 | BM18: 132 | BN18: 132 | BO18: 132 | BP18: 132 | BQ18: 132 | BR18: 132 | BS18: 132 | BT18: 132 | BU18: 132 | BV18: 132 | BW18: 132 | BX18: =$E$18*BX7 -> 132 | BY18: 132 | BZ18: 132 | CA18: 132 | CB18: 132 | CC18: 132 | CD18: 132 | CE18: 132 | CF18: 132 | CG18: 132 | CH18: 132 | CI18: 132 | CJ18: 132 | CK18: 132 | CL18: 132 | CM18: 132 | CN18: 132 | CO18: 132 | CP18: 132 | CQ18: 132 | CR18: 132 | CS18: 132 | CT18: 132 | CU18: 132 | CV18: 132 | CW18: 132 | CX18: 132 | CY18: 132 | CZ18: 132 | DA18: 132 | DB18: 132 | DC18: 132 | DD18: 132 | DE18: 132 | DF18: 132 | DG18: 132 | DH18: 132 | DI18: 132 | DJ18: 132 | DK18: 132 | DL18: 132 | DM18: 132 | DN18: 132 | DO18: 132 | DP18: 132 | DQ18: 132 | DR18: 132 | DS18: 132 | DT18: 132 | DU18: 132 | DV18: 132 | DW18: 132 | DX18: 132 | DY18: 132 | DZ18: 132 | EA18: 132 | EB18: 132 | EC18: 132 | ED18: 132 | EE18: 132 | EF18: 132 | EG18: 132 | EH18: 132 | EI18: 132 | EJ18: =$E$18*EJ7 -> 132 | EK18: 132 | EL18: 132 | EM18: 132 | EN18: 132 | EO18: 132 | EP18: 132 | EQ18: 132 | ER18: 132 | ES18: 132 | ET18: 132 | EU18: 132 | EV18: 132 | EW18: 132 | EX18: 132 | EY18: 132 | EZ18: 132 | FA18: 132 | FB18: 132 | FC18: 132 | FD18: 132 | FE18: 132 | FF18: 132 | FG18: 132 | FH18: 132 | FI18: 132 | FJ18: 132 | FK18: 132 | FL18: 132 | FM18: 132 | FN18: 132 | FO18: 132 | FP18: 132 | FQ18: 132 | FR18: 132 | FS18: 132 | FT18: 132 | FU18: 132 | FV18: 132 | FW18: 132 | FX18: 132 | FY18: 132 | FZ18: 132 | GA18: 132 | GB18: 132 | GC18: 132 | GD18: 132 | GE18: 132 | GF18: 132 | GG18: 132 | GH18: 132 | GI18: 132 | GJ18: 132 | GK18: 132 | GL18: 132 | GM18: 132 | GN18: 132 | GO18: 132 | GP18: 132 | GQ18: 132 | GR18: 132 | GS18: 132 | GT18: 132 | GU18: 132 | GV18: =$E$18*GV7 -> 132 | GW18: 132 | GX18: 132 | GY18: 132 | GZ18: 132 | HA18: 132 | HB18: 132 | HC18: 132 | HD18: 132 | HE18: 132 | HF18: 132 | HG18: 132 | HH18: 132 | HI18: 132 | HJ18: 132 | HK18: 132 | HL18: 132 | HM18: 132 | HN18: 132 | HO18: 132 | HP18: 132 | HQ18: 132 | HR18: 132 | HS18: 132 | HT18: 132 | HU18: 132 | HV18: 132 | HW18: 132 | HX18: 132 | HY18: 132 | HZ18: 132 | IA18: 132 | IB18: 132 | IC18: 132 | ID18: 132 | IE18: 132 | IF18: 132 | IG18: 132 | IH18: 132 | II18: 132 | IJ18: 132 | IK18: 132 | IL18: 132 | IM18: 132 | IN18: 132 | IO18: 132 | IP18: 132 | IQ18: 132 | IR18: 132 | IS18: 132 | IT18: 132 | IU18: 132 | IV18: 132 | IW18: 132 | IX18: 132 | IY18: 132 | IZ18: 132 | JA18: 132 | JB18: 132 | JC18: 132 | JD18: 132 | JE18: 132 | JF18: 132 | JG18: 132 | JH18: =$E$18*JH7 -> 132 | JI18: 132 | JJ18: 132 | JK18: 132 | JL18: 132 | JM18: 132 | JN18: 132 | JO18: 132 | JP18: 132 | JQ18: 132 | JR18: 132 | JS18: 132 | JT18: 132 | JU18: 132 | JV18: 132 | JW18: 132 | JX18: 132 | JY18: 132 | JZ18: 132 | KA18: 132 | KB18: 132 | KC18: 132 | KD18: 132 | KE18: 132 | KF18: 132 | KG18: 132 | KH18: 132 | KI18: 132 | KJ18: 132 | KK18: 132 | KL18: 132 | KM18: 132 | KN18: 132 | KO18: 132 | KP18: 132 | KQ18: 132 | KR18: 132 | KS18: 132 | KT18: 132 | KU18: 132 | KV18: 132 | KW18: 132 | KX18: 132 | KY18: 132 | KZ18: 132 | LA18: 132 | LB18: 132 | LC18: 132 | LD18: 132 | LE18: 132 | LF18: 132 | LG18: 132 | LH18: 132 | LI18: 132 | LJ18: 132 | LK18: 132 | LL18: 132 | LM18: 132 | LN18: 132 | LO18: 132 | LP18: 132 | LQ18: 132 | LR18: 132 | LS18: 132 | LT18: =$E$18*LT7 -> 132 | LU18: 132 | LV18: 132 | LW18: 132 | LX18: 132 | LY18: 132 | LZ18: 132 | MA18: 132 | MB18: 132 | MC18: 132 | MD18: 132 | ME18: 132 | MF18: 132 | MG18: 132 | MH18: 132 | MI18: 132 | MJ18: 132 | MK18: 132 | ML18: 132 | MM18: 132 | MN18: 132 | MO18: 132 | MP18: 132 | MQ18: 132 | MR18: 132 | MS18: 132 | MT18: 132 | MU18: 132 | MV18: 132 | MW18: 132 | MX18: 132 | MY18: 132 | MZ18: 132 | NA18: 132 | NB18: 132 | NC18: 132 | ND18: 132 | NE18: 132 | NF18: 132 | NG18: 132 | NH18: 132 | NI18: 132 | NJ18: 132 | NK18: 132 | NL18: 132 | NM18: 132 | NN18: 132 | NO18: 132 | NP18: 132 | NQ18: 132 | NR18: 132 | NS18: 132 | NT18: 132 | NU18: 132 | NV18: 132 | NW18: 132 | NX18: 132 | NY18: 132 | NZ18: 132 | OA18: 132 | OB18: 132 | OC18: 132 | OD18: 132 | OE18: 132 | OF18: =$E$18*OF7 -> 132 | OG18: 132 | OH18: 132 | OI18: 132 | OJ18: 132 | OK18: 132 | OL18: 132 | OM18: 132 | ON18: 132 | OO18: 132 | OP18: 132 | OQ18: 132 | OR18: 132 | OS18: 132 | OT18: 132 | OU18: 132 | OV18: 132 | OW18: 132 | OX18: 132 | OY18: 132 | OZ18: 132 | PA18: 132 | PB18: 132 | PC18: 132 | PD18: 132 | PE18: 132 | PF18: 132 | PG18: 132 | PH18: 132 | PI18: 132 | PJ18: 132 | PK18: 132 | PL18: 132 | PM18: 132 | PN18: 132 | PO18: 132 | PP18: 132 | PQ18: 132 | PR18: 132 | PS18: 132 | PT18: 132 | PU18: 132 | PV18: 132 | PW18: 132 | PX18: 132 | PY18: 132 | PZ18: 132 | QA18: 0 | QB18: 0 | QC18: 0 | QD18: 0 | QE18: 0 | QF18: 0 | QG18: 0 | QH18: 0 | QI18: 0 | QJ18: 0 | QK18: 0 | QL18: 0 | QM18: 0 | QN18: 0 | QO18: 0 | QP18: 0 | QQ18: 0 | QR18: =$E$18*QR7 -> 0 | QS18: 0 | QT18: 0 | QU18: 0 | QV18: 0 | QW18: 0 | QX18: 0 | QY18: 0 | QZ18: 0 | RA18: 0 | RB18: 0 | RC18: 0 | RD18: 0 | RE18: 0 | RF18: 0 | RG18: 0 | RH18: 0 | RI18: 0 | RJ18: 0 | RK18: 0 | RL18: 0 | RM18: 0 | RN18: 0 | RO18: 0 | RP18: 0 | RQ18: 0 | RR18: 0 | RS18: 0 | RT18: 0 | RU18: 0 | RV18: 0 | RW18: 0 | RX18: 0 | RY18: 0 | RZ18: 0 | SA18: 0 | SB18: 0 | SC18: 0 | SD18: 0 | SE18: 0 | SF18: 0 | SG18: 0 | SH18: 0 | SI18: 0 | SJ18: 0 | SK18: 0 | SL18: 0 | SM18: 0 | SN18: 0 | SO18: 0 | SP18: 0 | SQ18: 0
D19: Capacity in kW | E19: ='InputC - Operations'!F17*1000 -> 132000 | G19: kWp | L19: =$E$19*L7 -> 0 | M19: =$E$19*M7 -> 0 | N19: 0 | O19: 0 | P19: 0 | Q19: 0 | R19: 0 | S19: 0 | T19: 0 | U19: 0 | V19: 0 | W19: 132000 | X19: 132000 | Y19: 132000 | Z19: 132000 | AA19: 132000 | AB19: 132000 | AC19: 132000 | AD19: 132000 | AE19: 132000 | AF19: 132000 | AG19: 132000 | AH19: 132000 | AI19: 132000 | AJ19: 132000 | AK19: 132000 | AL19: 132000 | AM19: 132000 | AN19: 132000 | AO19: 132000 | AP19: 132000 | AQ19: 132000 | AR19: 132000 | AS19: 132000 | AT19: 132000 | AU19: 132000 | AV19: 132000 | AW19: 132000 | AX19: 132000 | AY19: 132000 | AZ19: 132000 | BA19: 132000 | BB19: 132000 | BC19: 132000 | BD19: 132000 | BE19: 132000 | BF19: 132000 | BG19: 132000 | BH19: 132000 | BI19: 132000 | BJ19: 132000 | BK19: 132000 | BL19: 132000 | BM19: 132000 | BN19: 132000 | BO19: 132000 | BP19: 132000 | BQ19: 132000 | BR19: 132000 | BS19: 132000 | BT19: 132000 | BU19: 132000 | BV19: 132000 | BW19: 132000 | BX19: 132000 | BY19: =$E$19*BY7 -> 132000 | BZ19: 132000 | CA19: 132000 | CB19: 132000 | CC19: 132000 | CD19: 132000 | CE19: 132000 | CF19: 132000 | CG19: 132000 | CH19: 132000 | CI19: 132000 | CJ19: 132000 | CK19: 132000 | CL19: 132000 | CM19: 132000 | CN19: 132000 | CO19: 132000 | CP19: 132000 | CQ19: 132000 | CR19: 132000 | CS19: 132000 | CT19: 132000 | CU19: 132000 | CV19: 132000 | CW19: 132000 | CX19: 132000 | CY19: 132000 | CZ19: 132000 | DA19: 132000 | DB19: 132000 | DC19: 132000 | DD19: 132000 | DE19: 132000 | DF19: 132000 | DG19: 132000 | DH19: 132000 | DI19: 132000 | DJ19: 132000 | DK19: 132000 | DL19: 132000 | DM19: 132000 | DN19: 132000 | DO19: 132000 | DP19: 132000 | DQ19: 132000 | DR19: 132000 | DS19: 132000 | DT19: 132000 | DU19: 132000 | DV19: 132000 | DW19: 132000 | DX19: 132000 | DY19: 132000 | DZ19: 132000 | EA19: 132000 | EB19: 132000 | EC19: 132000 | ED19: 132000 | EE19: 132000 | EF19: 132000 | EG19: 132000 | EH19: 132000 | EI19: 132000 | EJ19: 132000 | EK19: =$E$19*EK7 -> 132000 | EL19: 132000 | EM19: 132000 | EN19: 132000 | EO19: 132000 | EP19: 132000 | EQ19: 132000 | ER19: 132000 | ES19: 132000 | ET19: 132000 | EU19: 132000 | EV19: 132000 | EW19: 132000 | EX19: 132000 | EY19: 132000 | EZ19: 132000 | FA19: 132000 | FB19: 132000 | FC19: 132000 | FD19: 132000 | FE19: 132000 | FF19: 132000 | FG19: 132000 | FH19: 132000 | FI19: 132000 | FJ19: 132000 | FK19: 132000 | FL19: 132000 | FM19: 132000 | FN19: 132000 | FO19: 132000 | FP19: 132000 | FQ19: 132000 | FR19: 132000 | FS19: 132000 | FT19: 132000 | FU19: 132000 | FV19: 132000 | FW19: 132000 | FX19: 132000 | FY19: 132000 | FZ19: 132000 | GA19: 132000 | GB19: 132000 | GC19: 132000 | GD19: 132000 | GE19: 132000 | GF19: 132000 | GG19: 132000 | GH19: 132000 | GI19: 132000 | GJ19: 132000 | GK19: 132000 | GL19: 132000 | GM19: 132000 | GN19: 132000 | GO19: 132000 | GP19: 132000 | GQ19: 132000 | GR19: 132000 | GS19: 132000 | GT19: 132000 | GU19: 132000 | GV19: 132000 | GW19: =$E$19*GW7 -> 132000 | GX19: 132000 | GY19: 132000 | GZ19: 132000 | HA19: 132000 | HB19: 132000 | HC19: 132000 | HD19: 132000 | HE19: 132000 | HF19: 132000 | HG19: 132000 | HH19: 132000 | HI19: 132000 | HJ19: 132000 | HK19: 132000 | HL19: 132000 | HM19: 132000 | HN19: 132000 | HO19: 132000 | HP19: 132000 | HQ19: 132000 | HR19: 132000 | HS19: 132000 | HT19: 132000 | HU19: 132000 | HV19: 132000 | HW19: 132000 | HX19: 132000 | HY19: 132000 | HZ19: 132000 | IA19: 132000 | IB19: 132000 | IC19: 132000 | ID19: 132000 | IE19: 132000 | IF19: 132000 | IG19: 132000 | IH19: 132000 | II19: 132000 | IJ19: 132000 | IK19: 132000 | IL19: 132000 | IM19: 132000 | IN19: 132000 | IO19: 132000 | IP19: 132000 | IQ19: 132000 | IR19: 132000 | IS19: 132000 | IT19: 132000 | IU19: 132000 | IV19: 132000 | IW19: 132000 | IX19: 132000 | IY19: 132000 | IZ19: 132000 | JA19: 132000 | JB19: 132000 | JC19: 132000 | JD19: 132000 | JE19: 132000 | JF19: 132000 | JG19: 132000 | JH19: 132000 | JI19: =$E$19*JI7 -> 132000 | JJ19: 132000 | JK19: 132000 | JL19: 132000 | JM19: 132000 | JN19: 132000 | JO19: 132000 | JP19: 132000 | JQ19: 132000 | JR19: 132000 | JS19: 132000 | JT19: 132000 | JU19: 132000 | JV19: 132000 | JW19: 132000 | JX19: 132000 | JY19: 132000 | JZ19: 132000 | KA19: 132000 | KB19: 132000 | KC19: 132000 | KD19: 132000 | KE19: 132000 | KF19: 132000 | KG19: 132000 | KH19: 132000 | KI19: 132000 | KJ19: 132000 | KK19: 132000 | KL19: 132000 | KM19: 132000 | KN19: 132000 | KO19: 132000 | KP19: 132000 | KQ19: 132000 | KR19: 132000 | KS19: 132000 | KT19: 132000 | KU19: 132000 | KV19: 132000 | KW19: 132000 | KX19: 132000 | KY19: 132000 | KZ19: 132000 | LA19: 132000 | LB19: 132000 | LC19: 132000 | LD19: 132000 | LE19: 132000 | LF19: 132000 | LG19: 132000 | LH19: 132000 | LI19: 132000 | LJ19: 132000 | LK19: 132000 | LL19: 132000 | LM19: 132000 | LN19: 132000 | LO19: 132000 | LP19: 132000 | LQ19: 132000 | LR19: 132000 | LS19: 132000 | LT19: 132000 | LU19: =$E$19*LU7 -> 132000 | LV19: 132000 | LW19: 132000 | LX19: 132000 | LY19: 132000 | LZ19: 132000 | MA19: 132000 | MB19: 132000 | MC19: 132000 | MD19: 132000 | ME19: 132000 | MF19: 132000 | MG19: 132000 | MH19: 132000 | MI19: 132000 | MJ19: 132000 | MK19: 132000 | ML19: 132000 | MM19: 132000 | MN19: 132000 | MO19: 132000 | MP19: 132000 | MQ19: 132000 | MR19: 132000 | MS19: 132000 | MT19: 132000 | MU19: 132000 | MV19: 132000 | MW19: 132000 | MX19: 132000 | MY19: 132000 | MZ19: 132000 | NA19: 132000 | NB19: 132000 | NC19: 132000 | ND19: 132000 | NE19: 132000 | NF19: 132000 | NG19: 132000 | NH19: 132000 | NI19: 132000 | NJ19: 132000 | NK19: 132000 | NL19: 132000 | NM19: 132000 | NN19: 132000 | NO19: 132000 | NP19: 132000 | NQ19: 132000 | NR19: 132000 | NS19: 132000 | NT19: 132000 | NU19: 132000 | NV19: 132000 | NW19: 132000 | NX19: 132000 | NY19: 132000 | NZ19: 132000 | OA19: 132000 | OB19: 132000 | OC19: 132000 | OD19: 132000 | OE19: 132000 | OF19: 132000 | OG19: =$E$19*OG7 -> 132000 | OH19: 132000 | OI19: 132000 | OJ19: 132000 | OK19: 132000 | OL19: 132000 | OM19: 132000 | ON19: 132000 | OO19: 132000 | OP19: 132000 | OQ19: 132000 | OR19: 132000 | OS19: 132000 | OT19: 132000 | OU19: 132000 | OV19: 132000 | OW19: 132000 | OX19: 132000 | OY19: 132000 | OZ19: 132000 | PA19: 132000 | PB19: 132000 | PC19: 132000 | PD19: 132000 | PE19: 132000 | PF19: 132000 | PG19: 132000 | PH19: 132000 | PI19: 132000 | PJ19: 132000 | PK19: 132000 | PL19: 132000 | PM19: 132000 | PN19: 132000 | PO19: 132000 | PP19: 132000 | PQ19: 132000 | PR19: 132000 | PS19: 132000 | PT19: 132000 | PU19: 132000 | PV19: 132000 | PW19: 132000 | PX19: 132000 | PY19: 132000 | PZ19: 132000 | QA19: 0 | QB19: 0 | QC19: 0 | QD19: 0 | QE19: 0 | QF19: 0 | QG19: 0 | QH19: 0 | QI19: 0 | QJ19: 0 | QK19: 0 | QL19: 0 | QM19: 0 | QN19: 0 | QO19: 0 | QP19: 0 | QQ19: 0 | QR19: 0 | QS19: =$E$19*QS7 -> 0 | QT19: 0 | QU19: 0 | QV19: 0 | QW19: 0 | QX19: 0 | QY19: 0 | QZ19: 0 | RA19: 0 | RB19: 0 | RC19: 0 | RD19: 0 | RE19: 0 | RF19: 0 | RG19: 0 | RH19: 0 | RI19: 0 | RJ19: 0 | RK19: 0 | RL19: 0 | RM19: 0 | RN19: 0 | RO19: 0 | RP19: 0 | RQ19: 0 | RR19: 0 | RS19: 0 | RT19: 0 | RU19: 0 | RV19: 0 | RW19: 0 | RX19: 0 | RY19: 0 | RZ19: 0 | SA19: 0 | SB19: 0 | SC19: 0 | SD19: 0 | SE19: 0 | SF19: 0 | SG19: 0 | SH19: 0 | SI19: 0 | SJ19: 0 | SK19: 0 | SL19: 0 | SM19: 0 | SN19: 0 | SO19: 0 | SP19: 0 | SQ19: 0
D21: Annual Yield | E21: =to_norminv -> 1726.25279 | G21: kWh/kWp | L21: =$E$21*L7 -> 0 | M21: 0 | N21: 0 | O21: 0 | P21: 0 | Q21: 0 | R21: 0 | S21: 0 | T21: 0 | U21: 0 | V21: 0 | W21: 1726.25279 | X21: 1726.25279 | Y21: 1726.25279 | Z21: 1726.25279 | AA21: 1726.25279 | AB21: 1726.25279 | AC21: 1726.25279 | AD21: 1726.25279 | AE21: 1726.25279 | AF21: 1726.25279 | AG21: 1726.25279 | AH21: 1726.25279 | AI21: 1726.25279 | AJ21: 1726.25279 | AK21: 1726.25279 | AL21: 1726.25279 | AM21: 1726.25279 | AN21: 1726.25279 | AO21: 1726.25279 | AP21: 1726.25279 | AQ21: 1726.25279 | AR21: 1726.25279 | AS21: 1726.25279 | AT21: 1726.25279 | AU21: 1726.25279 | AV21: 1726.25279 | AW21: 1726.25279 | AX21: 1726.25279 | AY21: 1726.25279 | AZ21: 1726.25279 | BA21: 1726.25279 | BB21: 1726.25279 | BC21: 1726.25279 | BD21: 1726.25279 | BE21: 1726.25279 | BF21: 1726.25279 | BG21: 1726.25279 | BH21: 1726.25279 | BI21: 1726.25279 | BJ21: 1726.25279 | BK21: 1726.25279 | BL21: 1726.25279 | BM21: 1726.25279 | BN21: 1726.25279 | BO21: 1726.25279 | BP21: 1726.25279 | BQ21: 1726.25279 | BR21: 1726.25279 | BS21: 1726.25279 | BT21: 1726.25279 | BU21: 1726.25279 | BV21: 1726.25279 | BW21: 1726.25279 | BX21: =$E$21*BX7 -> 1726.25279 | BY21: 1726.25279 | BZ21: 1726.25279 | CA21: 1726.25279 | CB21: 1726.25279 | CC21: 1726.25279 | CD21: 1726.25279 | CE21: 1726.25279 | CF21: 1726.25279 | CG21: 1726.25279 | CH21: 1726.25279 | CI21: 1726.25279 | CJ21: 1726.25279 | CK21: 1726.25279 | CL21: 1726.25279 | CM21: 1726.25279 | CN21: 1726.25279 | CO21: 1726.25279 | CP21: 1726.25279 | CQ21: 1726.25279 | CR21: 1726.25279 | CS21: 1726.25279 | CT21: 1726.25279 | CU21: 1726.25279 | CV21: 1726.25279 | CW21: 1726.25279 | CX21: 1726.25279 | CY21: 1726.25279 | CZ21: 1726.25279 | DA21: 1726.25279 | DB21: 1726.25279 | DC21: 1726.25279 | DD21: 1726.25279 | DE21: 1726.25279 | DF21: 1726.25279 | DG21: 1726.25279 | DH21: 1726.25279 | DI21: 1726.25279 | DJ21: 1726.25279 | DK21: 1726.25279 | DL21: 1726.25279 | DM21: 1726.25279 | DN21: 1726.25279 | DO21: 1726.25279 | DP21: 1726.25279 | DQ21: 1726.25279 | DR21: 1726.25279 | DS21: 1726.25279 | DT21: 1726.25279 | DU21: 1726.25279 | DV21: 1726.25279 | DW21: 1726.25279 | DX21: 1726.25279 | DY21: 1726.25279 | DZ21: 1726.25279 | EA21: 1726.25279 | EB21: 1726.25279 | EC21: 1726.25279 | ED21: 1726.25279 | EE21: 1726.25279 | EF21: 1726.25279 | EG21: 1726.25279 | EH21: 1726.25279 | EI21: 1726.25279 | EJ21: =$E$21*EJ7 -> 1726.25279 | EK21: 1726.25279 | EL21: 1726.25279 | EM21: 1726.25279 | EN21: 1726.25279 | EO21: 1726.25279 | EP21: 1726.25279 | EQ21: 1726.25279 | ER21: 1726.25279 | ES21: 1726.25279 | ET21: 1726.25279 | EU21: 1726.25279 | EV21: 1726.25279 | EW21: 1726.25279 | EX21: 1726.25279 | EY21: 1726.25279 | EZ21: 1726.25279 | FA21: 1726.25279 | FB21: 1726.25279 | FC21: 1726.25279 | FD21: 1726.25279 | FE21: 1726.25279 | FF21: 1726.25279 | FG21: 1726.25279 | FH21: 1726.25279 | FI21: 1726.25279 | FJ21: 1726.25279 | FK21: 1726.25279 | FL21: 1726.25279 | FM21: 1726.25279 | FN21: 1726.25279 | FO21: 1726.25279 | FP21: 1726.25279 | FQ21: 1726.25279 | FR21: 1726.25279 | FS21: 1726.25279 | FT21: 1726.25279 | FU21: 1726.25279 | FV21: 1726.25279 | FW21: 1726.25279 | FX21: 1726.25279 | FY21: 1726.25279 | FZ21: 1726.25279 | GA21: 1726.25279 | GB21: 1726.25279 | GC21: 1726.25279 | GD21: 1726.25279 | GE21: 1726.25279 | GF21: 1726.25279 | GG21: 1726.25279 | GH21: 1726.25279 | GI21: 1726.25279 | GJ21: 1726.25279 | GK21: 1726.25279 | GL21: 1726.25279 | GM21: 1726.25279 | GN21: 1726.25279 | GO21: 1726.25279 | GP21: 1726.25279 | GQ21: 1726.25279 | GR21: 1726.25279 | GS21: 1726.25279 | GT21: 1726.25279 | GU21: 1726.25279 | GV21: =$E$21*GV7 -> 1726.25279 | GW21: 1726.25279 | GX21: 1726.25279 | GY21: 1726.25279 | GZ21: 1726.25279 | HA21: 1726.25279 | HB21: 1726.25279 | HC21: 1726.25279 | HD21: 1726.25279 | HE21: 1726.25279 | HF21: 1726.25279 | HG21: 1726.25279 | HH21: 1726.25279 | HI21: 1726.25279 | HJ21: 1726.25279 | HK21: 1726.25279 | HL21: 1726.25279 | HM21: 1726.25279 | HN21: 1726.25279 | HO21: 1726.25279 | HP21: 1726.25279 | HQ21: 1726.25279 | HR21: 1726.25279 | HS21: 1726.25279 | HT21: 1726.25279 | HU21: 1726.25279 | HV21: 1726.25279 | HW21: 1726.25279 | HX21: 1726.25279 | HY21: 1726.25279 | HZ21: 1726.25279 | IA21: 1726.25279 | IB21: 1726.25279 | IC21: 1726.25279 | ID21: 1726.25279 | IE21: 1726.25279 | IF21: 1726.25279 | IG21: 1726.25279 | IH21: 1726.25279 | II21: 1726.25279 | IJ21: 1726.25279 | IK21: 1726.25279 | IL21: 1726.25279 | IM21: 1726.25279 | IN21: 1726.25279 | IO21: 1726.25279 | IP21: 1726.25279 | IQ21: 1726.25279 | IR21: 1726.25279 | IS21: 1726.25279 | IT21: 1726.25279 | IU21: 1726.25279 | IV21: 1726.25279 | IW21: 1726.25279 | IX21: 1726.25279 | IY21: 1726.25279 | IZ21: 1726.25279 | JA21: 1726.25279 | JB21: 1726.25279 | JC21: 1726.25279 | JD21: 1726.25279 | JE21: 1726.25279 | JF21: 1726.25279 | JG21: 1726.25279 | JH21: =$E$21*JH7 -> 1726.25279 | JI21: 1726.25279 | JJ21: 1726.25279 | JK21: 1726.25279 | JL21: 1726.25279 | JM21: 1726.25279 | JN21: 1726.25279 | JO21: 1726.25279 | JP21: 1726.25279 | JQ21: 1726.25279 | JR21: 1726.25279 | JS21: 1726.25279 | JT21: 1726.25279 | JU21: 1726.25279 | JV21: 1726.25279 | JW21: 1726.25279 | JX21: 1726.25279 | JY21: 1726.25279 | JZ21: 1726.25279 | KA21: 1726.25279 | KB21: 1726.25279 | KC21: 1726.25279 | KD21: 1726.25279 | KE21: 1726.25279 | KF21: 1726.25279 | KG21: 1726.25279 | KH21: 1726.25279 | KI21: 1726.25279 | KJ21: 1726.25279 | KK21: 1726.25279 | KL21: 1726.25279 | KM21: 1726.25279 | KN21: 1726.25279 | KO21: 1726.25279 | KP21: 1726.25279 | KQ21: 1726.25279 | KR21: 1726.25279 | KS21: 1726.25279 | KT21: 1726.25279 | KU21: 1726.25279 | KV21: 1726.25279 | KW21: 1726.25279 | KX21: 1726.25279 | KY21: 1726.25279 | KZ21: 1726.25279 | LA21: 1726.25279 | LB21: 1726.25279 | LC21: 1726.25279 | LD21: 1726.25279 | LE21: 1726.25279 | LF21: 1726.25279 | LG21: 1726.25279 | LH21: 1726.25279 | LI21: 1726.25279 | LJ21: 1726.25279 | LK21: 1726.25279 | LL21: 1726.25279 | LM21: 1726.25279 | LN21: 1726.25279 | LO21: 1726.25279 | LP21: 1726.25279 | LQ21: 1726.25279 | LR21: 1726.25279 | LS21: 1726.25279 | LT21: =$E$21*LT7 -> 1726.25279 | LU21: 1726.25279 | LV21: 1726.25279 | LW21: 1726.25279 | LX21: 1726.25279 | LY21: 1726.25279 | LZ21: 1726.25279 | MA21: 1726.25279 | MB21: 1726.25279 | MC21: 1726.25279 | MD21: 1726.25279 | ME21: 1726.25279 | MF21: 1726.25279 | MG21: 1726.25279 | MH21: 1726.25279 | MI21: 1726.25279 | MJ21: 1726.25279 | MK21: 1726.25279 | ML21: 1726.25279 | MM21: 1726.25279 | MN21: 1726.25279 | MO21: 1726.25279 | MP21: 1726.25279 | MQ21: 1726.25279 | MR21: 1726.25279 | MS21: 1726.25279 | MT21: 1726.25279 | MU21: 1726.25279 | MV21: 1726.25279 | MW21: 1726.25279 | MX21: 1726.25279 | MY21: 1726.25279 | MZ21: 1726.25279 | NA21: 1726.25279 | NB21: 1726.25279 | NC21: 1726.25279 | ND21: 1726.25279 | NE21: 1726.25279 | NF21: 1726.25279 | NG21: 1726.25279 | NH21: 1726.25279 | NI21: 1726.25279 | NJ21: 1726.25279 | NK21: 1726.25279 | NL21: 1726.25279 | NM21: 1726.25279 | NN21: 1726.25279 | NO21: 1726.25279 | NP21: 1726.25279 | NQ21: 1726.25279 | NR21: 1726.25279 | NS21: 1726.25279 | NT21: 1726.25279 | NU21: 1726.25279 | NV21: 1726.25279 | NW21: 1726.25279 | NX21: 1726.25279 | NY21: 1726.25279 | NZ21: 1726.25279 | OA21: 1726.25279 | OB21: 1726.25279 | OC21: 1726.25279 | OD21: 1726.25279 | OE21: 1726.25279 | OF21: =$E$21*OF7 -> 1726.25279 | OG21: 1726.25279 | OH21: 1726.25279 | OI21: 1726.25279 | OJ21: 1726.25279 | OK21: 1726.25279 | OL21: 1726.25279 | OM21: 1726.25279 | ON21: 1726.25279 | OO21: 1726.25279 | OP21: 1726.25279 | OQ21: 1726.25279 | OR21: 1726.25279 | OS21: 1726.25279 | OT21: 1726.25279 | OU21: 1726.25279 | OV21: 1726.25279 | OW21: 1726.25279 | OX21: 1726.25279 | OY21: 1726.25279 | OZ21: 1726.25279 | PA21: 1726.25279 | PB21: 1726.25279 | PC21: 1726.25279 | PD21: 1726.25279 | PE21: 1726.25279 | PF21: 1726.25279 | PG21: 1726.25279 | PH21: 1726.25279 | PI21: 1726.25279 | PJ21: 1726.25279 | PK21: 1726.25279 | PL21: 1726.25279 | PM21: 1726.25279 | PN21: 1726.25279 | PO21: 1726.25279 | PP21: 1726.25279 | PQ21: 1726.25279 | PR21: 1726.25279 | PS21: 1726.25279 | PT21: 1726.25279 | PU21: 1726.25279 | PV21: 1726.25279 | PW21: 1726.25279 | PX21: 1726.25279 | PY21: 1726.25279 | PZ21: 1726.25279 | QA21: 0 | QB21: 0 | QC21: 0 | QD21: 0 | QE21: 0 | QF21: 0 | QG21: 0 | QH21: 0 | QI21: 0 | QJ21: 0 | QK21: 0 | QL21: 0 | QM21: 0 | QN21: 0 | QO21: 0 | QP21: 0 | QQ21: 0 | QR21: =$E$21*QR7 -> 0 | QS21: 0 | QT21: 0 | QU21: 0 | QV21: 0 | QW21: 0 | QX21: 0 | QY21: 0 | QZ21: 0 | RA21: 0 | RB21: 0 | RC21: 0 | RD21: 0 | RE21: 0 | RF21: 0 | RG21: 0 | RH21: 0 | RI21: 0 | RJ21: 0 | RK21: 0 | RL21: 0 | RM21: 0 | RN21: 0 | RO21: 0 | RP21: 0 | RQ21: 0 | RR21: 0 | RS21: 0 | RT21: 0 | RU21: 0 | RV21: 0 | RW21: 0 | RX21: 0 | RY21: 0 | RZ21: 0 | SA21: 0 | SB21: 0 | SC21: 0 | SD21: 0 | SE21: 0 | SF21: 0 | SG21: 0 | SH21: 0 | SI21: 0 | SJ21: 0 | SK21: 0 | SL21: 0 | SM21: 0 | SN21: 0 | SO21: 0 | SP21: 0 | SQ21: 0
D22: Annual Generation b/4 Degrad, Availiblity | G22: MWH | L22: =L21*L18 -> 0 | M22: =M21*M18 -> 0 | N22: 0 | O22: 0 | P22: 0 | Q22: 0 | R22: 0 | S22: 0 | T22: 0 | U22: 0 | V22: 0 | W22: 227865.3683 | X22: 227865.3683 | Y22: 227865.3683 | Z22: 227865.3683 | AA22: 227865.3683 | AB22: 227865.3683 | AC22: 227865.3683 | AD22: 227865.3683 | AE22: 227865.3683 | AF22: 227865.3683 | AG22: 227865.3683 | AH22: 227865.3683 | AI22: 227865.3683 | AJ22: 227865.3683 | AK22: 227865.3683 | AL22: 227865.3683 | AM22: 227865.3683 | AN22: 227865.3683 | AO22: 227865.3683 | AP22: 227865.3683 | AQ22: 227865.3683 | AR22: 227865.3683 | AS22: 227865.3683 | AT22: 227865.3683 | AU22: 227865.3683 | AV22: 227865.3683 | AW22: 227865.3683 | AX22: 227865.3683 | AY22: 227865.3683 | AZ22: 227865.3683 | BA22: 227865.3683 | BB22: 227865.3683 | BC22: 227865.3683 | BD22: 227865.3683 | BE22: 227865.3683 | BF22: 227865.3683 | BG22: 227865.3683 | BH22: 227865.3683 | BI22: 227865.3683 | BJ22: 227865.3683 | BK22: 227865.3683 | BL22: 227865.3683 | BM22: 227865.3683 | BN22: 227865.3683 | BO22: 227865.3683 | BP22: 227865.3683 | BQ22: 227865.3683 | BR22: 227865.3683 | BS22: 227865.3683 | BT22: 227865.3683 | BU22: 227865.3683 | BV22: 227865.3683 | BW22: 227865.3683 | BX22: 227865.3683 | BY22: =BY21*BY18 -> 227865.3683 | BZ22: 227865.3683 | CA22: 227865.3683 | CB22: 227865.3683 | CC22: 227865.3683 | CD22: 227865.3683 | CE22: 227865.3683 | CF22: 227865.3683 | CG22: 227865.3683 | CH22: 227865.3683 | CI22: 227865.3683 | CJ22: 227865.3683 | CK22: 227865.3683 | CL22: 227865.3683 | CM22: 227865.3683 | CN22: 227865.3683 | CO22: 227865.3683 | CP22: 227865.3683 | CQ22: 227865.3683 | CR22: 227865.3683 | CS22: 227865.3683 | CT22: 227865.3683 | CU22: 227865.3683 | CV22: 227865.3683 | CW22: 227865.3683 | CX22: 227865.3683 | CY22: 227865.3683 | CZ22: 227865.3683 | DA22: 227865.3683 | DB22: 227865.3683 | DC22: 227865.3683 | DD22: 227865.3683 | DE22: 227865.3683 | DF22: 227865.3683 | DG22: 227865.3683 | DH22: 227865.3683 | DI22: 227865.3683 | DJ22: 227865.3683 | DK22: 227865.3683 | DL22: 227865.3683 | DM22: 227865.3683 | DN22: 227865.3683 | DO22: 227865.3683 | DP22: 227865.3683 | DQ22: 227865.3683 | DR22: 227865.3683 | DS22: 227865.3683 | DT22: 227865.3683 | DU22: 227865.3683 | DV22: 227865.3683 | DW22: 227865.3683 | DX22: 227865.3683 | DY22: 227865.3683 | DZ22: 227865.3683 | EA22: 227865.3683 | EB22: 227865.3683 | EC22: 227865.3683 | ED22: 227865.3683 | EE22: 227865.3683 | EF22: 227865.3683 | EG22: 227865.3683 | EH22: 227865.3683 | EI22: 227865.3683 | EJ22: 227865.3683 | EK22: =EK21*EK18 -> 227865.3683 | EL22: 227865.3683 | EM22: 227865.3683 | EN22: 227865.3683 | EO22: 227865.3683 | EP22: 227865.3683 | EQ22: 227865.3683 | ER22: 227865.3683 | ES22: 227865.3683 | ET22: 227865.3683 | EU22: 227865.3683 | EV22: 227865.3683 | EW22: 227865.3683 | EX22: 227865.3683 | EY22: 227865.3683 | EZ22: 227865.3683 | FA22: 227865.3683 | FB22: 227865.3683 | FC22: 227865.3683 | FD22: 227865.3683 | FE22: 227865.3683 | FF22: 227865.3683 | FG22: 227865.3683 | FH22: 227865.3683 | FI22: 227865.3683 | FJ22: 227865.3683 | FK22: 227865.3683 | FL22: 227865.3683 | FM22: 227865.3683 | FN22: 227865.3683 | FO22: 227865.3683 | FP22: 227865.3683 | FQ22: 227865.3683 | FR22: 227865.3683 | FS22: 227865.3683 | FT22: 227865.3683 | FU22: 227865.3683 | FV22: 227865.3683 | FW22: 227865.3683 | FX22: 227865.3683 | FY22: 227865.3683 | FZ22: 227865.3683 | GA22: 227865.3683 | GB22: 227865.3683 | GC22: 227865.3683 | GD22: 227865.3683 | GE22: 227865.3683 | GF22: 227865.3683 | GG22: 227865.3683 | GH22: 227865.3683 | GI22: 227865.3683 | GJ22: 227865.3683 | GK22: 227865.3683 | GL22: 227865.3683 | GM22: 227865.3683 | GN22: 227865.3683 | GO22: 227865.3683 | GP22: 227865.3683 | GQ22: 227865.3683 | GR22: 227865.3683 | GS22: 227865.3683 | GT22: 227865.3683 | GU22: 227865.3683 | GV22: 227865.3683 | GW22: =GW21*GW18 -> 227865.3683 | GX22: 227865.3683 | GY22: 227865.3683 | GZ22: 227865.3683 | HA22: 227865.3683 | HB22: 227865.3683 | HC22: 227865.3683 | HD22: 227865.3683 | HE22: 227865.3683 | HF22: 227865.3683 | HG22: 227865.3683 | HH22: 227865.3683 | HI22: 227865.3683 | HJ22: 227865.3683 | HK22: 227865.3683 | HL22: 227865.3683 | HM22: 227865.3683 | HN22: 227865.3683 | HO22: 227865.3683 | HP22: 227865.3683 | HQ22: 227865.3683 | HR22: 227865.3683 | HS22: 227865.3683 | HT22: 227865.3683 | HU22: 227865.3683 | HV22: 227865.3683 | HW22: 227865.3683 | HX22: 227865.3683 | HY22: 227865.3683 | HZ22: 227865.3683 | IA22: 227865.3683 | IB22: 227865.3683 | IC22: 227865.3683 | ID22: 227865.3683 | IE22: 227865.3683 | IF22: 227865.3683 | IG22: 227865.3683 | IH22: 227865.3683 | II22: 227865.3683 | IJ22: 227865.3683 | IK22: 227865.3683 | IL22: 227865.3683 | IM22: 227865.3683 | IN22: 227865.3683 | IO22: 227865.3683 | IP22: 227865.3683 | IQ22: 227865.3683 | IR22: 227865.3683 | IS22: 227865.3683 | IT22: 227865.3683 | IU22: 227865.3683 | IV22: 227865.3683 | IW22: 227865.3683 | IX22: 227865.3683 | IY22: 227865.3683 | IZ22: 227865.3683 | JA22: 227865.3683 | JB22: 227865.3683 | JC22: 227865.3683 | JD22: 227865.3683 | JE22: 227865.3683 | JF22: 227865.3683 | JG22: 227865.3683 | JH22: 227865.3683 | JI22: =JI21*JI18 -> 227865.3683 | JJ22: 227865.3683 | JK22: 227865.3683 | JL22: 227865.3683 | JM22: 227865.3683 | JN22: 227865.3683 | JO22: 227865.3683 | JP22: 227865.3683 | JQ22: 227865.3683 | JR22: 227865.3683 | JS22: 227865.3683 | JT22: 227865.3683 | JU22: 227865.3683 | JV22: 227865.3683 | JW22: 227865.3683 | JX22: 227865.3683 | JY22: 227865.3683 | JZ22: 227865.3683 | KA22: 227865.3683 | KB22: 227865.3683 | KC22: 227865.3683 | KD22: 227865.3683 | KE22: 227865.3683 | KF22: 227865.3683 | KG22: 227865.3683 | KH22: 227865.3683 | KI22: 227865.3683 | KJ22: 227865.3683 | KK22: 227865.3683 | KL22: 227865.3683 | KM22: 227865.3683 | KN22: 227865.3683 | KO22: 227865.3683 | KP22: 227865.3683 | KQ22: 227865.3683 | KR22: 227865.3683 | KS22: 227865.3683 | KT22: 227865.3683 | KU22: 227865.3683 | KV22: 227865.3683 | KW22: 227865.3683 | KX22: 227865.3683 | KY22: 227865.3683 | KZ22: 227865.3683 | LA22: 227865.3683 | LB22: 227865.3683 | LC22: 227865.3683 | LD22: 227865.3683 | LE22: 227865.3683 | LF22: 227865.3683 | LG22: 227865.3683 | LH22: 227865.3683 | LI22: 227865.3683 | LJ22: 227865.3683 | LK22: 227865.3683 | LL22: 227865.3683 | LM22: 227865.3683 | LN22: 227865.3683 | LO22: 227865.3683 | LP22: 227865.3683 | LQ22: 227865.3683 | LR22: 227865.3683 | LS22: 227865.3683 | LT22: 227865.3683 | LU22: =LU21*LU18 -> 227865.3683 | LV22: 227865.3683 | LW22: 227865.3683 | LX22: 227865.3683 | LY22: 227865.3683 | LZ22: 227865.3683 | MA22: 227865.3683 | MB22: 227865.3683 | MC22: 227865.3683 | MD22: 227865.3683 | ME22: 227865.3683 | MF22: 227865.3683 | MG22: 227865.3683 | MH22: 227865.3683 | MI22: 227865.3683 | MJ22: 227865.3683 | MK22: 227865.3683 | ML22: 227865.3683 | MM22: 227865.3683 | MN22: 227865.3683 | MO22: 227865.3683 | MP22: 227865.3683 | MQ22: 227865.3683 | MR22: 227865.3683 | MS22: 227865.3683 | MT22: 227865.3683 | MU22: 227865.3683 | MV22: 227865.3683 | MW22: 227865.3683 | MX22: 227865.3683 | MY22: 227865.3683 | MZ22: 227865.3683 | NA22: 227865.3683 | NB22: 227865.3683 | NC22: 227865.3683 | ND22: 227865.3683 | NE22: 227865.3683 | NF22: 227865.3683 | NG22: 227865.3683 | NH22: 227865.3683 | NI22: 227865.3683 | NJ22: 227865.3683 | NK22: 227865.3683 | NL22: 227865.3683 | NM22: 227865.3683 | NN22: 227865.3683 | NO22: 227865.3683 | NP22: 227865.3683 | NQ22: 227865.3683 | NR22: 227865.3683 | NS22: 227865.3683 | NT22: 227865.3683 | NU22: 227865.3683 | NV22: 227865.3683 | NW22: 227865.3683 | NX22: 227865.3683 | NY22: 227865.3683 | NZ22: 227865.3683 | OA22: 227865.3683 | OB22: 227865.3683 | OC22: 227865.3683 | OD22: 227865.3683 | OE22: 227865.3683 | OF22: 227865.3683 | OG22: =OG21*OG18 -> 227865.3683 | OH22: 227865.3683 | OI22: 227865.3683 | OJ22: 227865.3683 | OK22: 227865.3683 | OL22: 227865.3683 | OM22: 227865.3683 | ON22: 227865.3683 | OO22: 227865.3683 | OP22: 227865.3683 | OQ22: 227865.3683 | OR22: 227865.3683 | OS22: 227865.3683 | OT22: 227865.3683 | OU22: 227865.3683 | OV22: 227865.3683 | OW22: 227865.3683 | OX22: 227865.3683 | OY22: 227865.3683 | OZ22: 227865.3683 | PA22: 227865.3683 | PB22: 227865.3683 | PC22: 227865.3683 | PD22: 227865.3683 | PE22: 227865.3683 | PF22: 227865.3683 | PG22: 227865.3683 | PH22: 227865.3683 | PI22: 227865.3683 | PJ22: 227865.3683 | PK22: 227865.3683 | PL22: 227865.3683 | PM22: 227865.3683 | PN22: 227865.3683 | PO22: 227865.3683 | PP22: 227865.3683 | PQ22: 227865.3683 | PR22: 227865.3683 | PS22: 227865.3683 | PT22: 227865.3683 | PU22: 227865.3683 | PV22: 227865.3683 | PW22: 227865.3683 | PX22: 227865.3683 | PY22: 227865.3683 | PZ22: 227865.3683 | QA22: 0 | QB22: 0 | QC22: 0 | QD22: 0 | QE22: 0 | QF22: 0 | QG22: 0 | QH22: 0 | QI22: 0 | QJ22: 0 | QK22: 0 | QL22: 0 | QM22: 0 | QN22: 0 | QO22: 0 | QP22: 0 | QQ22: 0 | QR22: 0 | QS22: =QS21*QS18 -> 0 | QT22: 0 | QU22: 0 | QV22: 0 | QW22: 0 | QX22: 0 | QY22: 0 | QZ22: 0 | RA22: 0 | RB22: 0 | RC22: 0 | RD22: 0 | RE22: 0 | RF22: 0 | RG22: 0 | RH22: 0 | RI22: 0 | RJ22: 0 | RK22: 0 | RL22: 0 | RM22: 0 | RN22: 0 | RO22: 0 | RP22: 0 | RQ22: 0 | RR22: 0 | RS22: 0 | RT22: 0 | RU22: 0 | RV22: 0 | RW22: 0 | RX22: 0 | RY22: 0 | RZ22: 0 | SA22: 0 | SB22: 0 | SC22: 0 | SD22: 0 | SE22: 0 | SF22: 0 | SG22: 0 | SH22: 0 | SI22: 0 | SJ22: 0 | SK22: 0 | SL22: 0 | SM22: 0 | SN22: 0 | SO22: 0 | SP22: 0 | SQ22: 0
D24: Availability Factor | E24: ='InputC - Operations'!$E$24 -> 0.99 | G24: Pct | L24: =$E$24*L7 -> 0 | M24: 0 | N24: 0 | O24: 0 | P24: 0 | Q24: 0 | R24: 0 | S24: 0 | T24: 0 | U24: 0 | V24: 0 | W24: 0.99 | X24: 0.99 | Y24: 0.99 | Z24: 0.99 | AA24: 0.99 | AB24: 0.99 | AC24: 0.99 | AD24: 0.99 | AE24: 0.99 | AF24: 0.99 | AG24: 0.99 | AH24: 0.99 | AI24: 0.99 | AJ24: 0.99 | AK24: 0.99 | AL24: 0.99 | AM24: 0.99 | AN24: 0.99 | AO24: 0.99 | AP24: 0.99 | AQ24: 0.99 | AR24: 0.99 | AS24: 0.99 | AT24: 0.99 | AU24: 0.99 | AV24: 0.99 | AW24: 0.99 | AX24: 0.99 | AY24: 0.99 | AZ24: 0.99 | BA24: 0.99 | BB24: 0.99 | BC24: 0.99 | BD24: 0.99 | BE24: 0.99 | BF24: 0.99 | BG24: 0.99 | BH24: 0.99 | BI24: 0.99 | BJ24: 0.99 | BK24: 0.99 | BL24: 0.99 | BM24: 0.99 | BN24: 0.99 | BO24: 0.99 | BP24: 0.99 | BQ24: 0.99 | BR24: 0.99 | BS24: 0.99 | BT24: 0.99 | BU24: 0.99 | BV24: 0.99 | BW24: 0.99 | BX24: =$E$24*BX7 -> 0.99 | BY24: 0.99 | BZ24: 0.99 | CA24: 0.99 | CB24: 0.99 | CC24: 0.99 | CD24: 0.99 | CE24: 0.99 | CF24: 0.99 | CG24: 0.99 | CH24: 0.99 | CI24: 0.99 | CJ24: 0.99 | CK24: 0.99 | CL24: 0.99 | CM24: 0.99 | CN24: 0.99 | CO24: 0.99 | CP24: 0.99 | CQ24: 0.99 | CR24: 0.99 | CS24: 0.99 | CT24: 0.99 | CU24: 0.99 | CV24: 0.99 | CW24: 0.99 | CX24: 0.99 | CY24: 0.99 | CZ24: 0.99 | DA24: 0.99 | DB24: 0.99 | DC24: 0.99 | DD24: 0.99 | DE24: 0.99 | DF24: 0.99 | DG24: 0.99 | DH24: 0.99 | DI24: 0.99 | DJ24: 0.99 | DK24: 0.99 | DL24: 0.99 | DM24: 0.99 | DN24: 0.99 | DO24: 0.99 | DP24: 0.99 | DQ24: 0.99 | DR24: 0.99 | DS24: 0.99 | DT24: 0.99 | DU24: 0.99 | DV24: 0.99 | DW24: 0.99 | DX24: 0.99 | DY24: 0.99 | DZ24: 0.99 | EA24: 0.99 | EB24: 0.99 | EC24: 0.99 | ED24: 0.99 | EE24: 0.99 | EF24: 0.99 | EG24: 0.99 | EH24: 0.99 | EI24: 0.99 | EJ24: =$E$24*EJ7 -> 0.99 | EK24: 0.99 | EL24: 0.99 | EM24: 0.99 | EN24: 0.99 | EO24: 0.99 | EP24: 0.99 | EQ24: 0.99 | ER24: 0.99 | ES24: 0.99 | ET24: 0.99 | EU24: 0.99 | EV24: 0.99 | EW24: 0.99 | EX24: 0.99 | EY24: 0.99 | EZ24: 0.99 | FA24: 0.99 | FB24: 0.99 | FC24: 0.99 | FD24: 0.99 | FE24: 0.99 | FF24: 0.99 | FG24: 0.99 | FH24: 0.99 | FI24: 0.99 | FJ24: 0.99 | FK24: 0.99 | FL24: 0.99 | FM24: 0.99 | FN24: 0.99 | FO24: 0.99 | FP24: 0.99 | FQ24: 0.99 | FR24: 0.99 | FS24: 0.99 | FT24: 0.99 | FU24: 0.99 | FV24: 0.99 | FW24: 0.99 | FX24: 0.99 | FY24: 0.99 | FZ24: 0.99 | GA24: 0.99 | GB24: 0.99 | GC24: 0.99 | GD24: 0.99 | GE24: 0.99 | GF24: 0.99 | GG24: 0.99 | GH24: 0.99 | GI24: 0.99 | GJ24: 0.99 | GK24: 0.99 | GL24: 0.99 | GM24: 0.99 | GN24: 0.99 | GO24: 0.99 | GP24: 0.99 | GQ24: 0.99 | GR24: 0.99 | GS24: 0.99 | GT24: 0.99 | GU24: 0.99 | GV24: =$E$24*GV7 -> 0.99 | GW24: 0.99 | GX24: 0.99 | GY24: 0.99 | GZ24: 0.99 | HA24: 0.99 | HB24: 0.99 | HC24: 0.99 | HD24: 0.99 | HE24: 0.99 | HF24: 0.99 | HG24: 0.99 | HH24: 0.99 | HI24: 0.99 | HJ24: 0.99 | HK24: 0.99 | HL24: 0.99 | HM24: 0.99 | HN24: 0.99 | HO24: 0.99 | HP24: 0.99 | HQ24: 0.99 | HR24: 0.99 | HS24: 0.99 | HT24: 0.99 | HU24: 0.99 | HV24: 0.99 | HW24: 0.99 | HX24: 0.99 | HY24: 0.99 | HZ24: 0.99 | IA24: 0.99 | IB24: 0.99 | IC24: 0.99 | ID24: 0.99 | IE24: 0.99 | IF24: 0.99 | IG24: 0.99 | IH24: 0.99 | II24: 0.99 | IJ24: 0.99 | IK24: 0.99 | IL24: 0.99 | IM24: 0.99 | IN24: 0.99 | IO24: 0.99 | IP24: 0.99 | IQ24: 0.99 | IR24: 0.99 | IS24: 0.99 | IT24: 0.99 | IU24: 0.99 | IV24: 0.99 | IW24: 0.99 | IX24: 0.99 | IY24: 0.99 | IZ24: 0.99 | JA24: 0.99 | JB24: 0.99 | JC24: 0.99 | JD24: 0.99 | JE24: 0.99 | JF24: 0.99 | JG24: 0.99 | JH24: =$E$24*JH7 -> 0.99 | JI24: 0.99 | JJ24: 0.99 | JK24: 0.99 | JL24: 0.99 | JM24: 0.99 | JN24: 0.99 | JO24: 0.99 | JP24: 0.99 | JQ24: 0.99 | JR24: 0.99 | JS24: 0.99 | JT24: 0.99 | JU24: 0.99 | JV24: 0.99 | JW24: 0.99 | JX24: 0.99 | JY24: 0.99 | JZ24: 0.99 | KA24: 0.99 | KB24: 0.99 | KC24: 0.99 | KD24: 0.99 | KE24: 0.99 | KF24: 0.99 | KG24: 0.99 | KH24: 0.99 | KI24: 0.99 | KJ24: 0.99 | KK24: 0.99 | KL24: 0.99 | KM24: 0.99 | KN24: 0.99 | KO24: 0.99 | KP24: 0.99 | KQ24: 0.99 | KR24: 0.99 | KS24: 0.99 | KT24: 0.99 | KU24: 0.99 | KV24: 0.99 | KW24: 0.99 | KX24: 0.99 | KY24: 0.99 | KZ24: 0.99 | LA24: 0.99 | LB24: 0.99 | LC24: 0.99 | LD24: 0.99 | LE24: 0.99 | LF24: 0.99 | LG24: 0.99 | LH24: 0.99 | LI24: 0.99 | LJ24: 0.99 | LK24: 0.99 | LL24: 0.99 | LM24: 0.99 | LN24: 0.99 | LO24: 0.99 | LP24: 0.99 | LQ24: 0.99 | LR24: 0.99 | LS24: 0.99 | LT24: =$E$24*LT7 -> 0.99 | LU24: 0.99 | LV24: 0.99 | LW24: 0.99 | LX24: 0.99 | LY24: 0.99 | LZ24: 0.99 | MA24: 0.99 | MB24: 0.99 | MC24: 0.99 | MD24: 0.99 | ME24: 0.99 | MF24: 0.99 | MG24: 0.99 | MH24: 0.99 | MI24: 0.99 | MJ24: 0.99 | MK24: 0.99 | ML24: 0.99 | MM24: 0.99 | MN24: 0.99 | MO24: 0.99 | MP24: 0.99 | MQ24: 0.99 | MR24: 0.99 | MS24: 0.99 | MT24: 0.99 | MU24: 0.99 | MV24: 0.99 | MW24: 0.99 | MX24: 0.99 | MY24: 0.99 | MZ24: 0.99 | NA24: 0.99 | NB24: 0.99 | NC24: 0.99 | ND24: 0.99 | NE24: 0.99 | NF24: 0.99 | NG24: 0.99 | NH24: 0.99 | NI24: 0.99 | NJ24: 0.99 | NK24: 0.99 | NL24: 0.99 | NM24: 0.99 | NN24: 0.99 | NO24: 0.99 | NP24: 0.99 | NQ24: 0.99 | NR24: 0.99 | NS24: 0.99 | NT24: 0.99 | NU24: 0.99 | NV24: 0.99 | NW24: 0.99 | NX24: 0.99 | NY24: 0.99 | NZ24: 0.99 | OA24: 0.99 | OB24: 0.99 | OC24: 0.99 | OD24: 0.99 | OE24: 0.99 | OF24: =$E$24*OF7 -> 0.99 | OG24: 0.99 | OH24: 0.99 | OI24: 0.99 | OJ24: 0.99 | OK24: 0.99 | OL24: 0.99 | OM24: 0.99 | ON24: 0.99 | OO24: 0.99 | OP24: 0.99 | OQ24: 0.99 | OR24: 0.99 | OS24: 0.99 | OT24: 0.99 | OU24: 0.99 | OV24: 0.99 | OW24: 0.99 | OX24: 0.99 | OY24: 0.99 | OZ24: 0.99 | PA24: 0.99 | PB24: 0.99 | PC24: 0.99 | PD24: 0.99 | PE24: 0.99 | PF24: 0.99 | PG24: 0.99 | PH24: 0.99 | PI24: 0.99 | PJ24: 0.99 | PK24: 0.99 | PL24: 0.99 | PM24: 0.99 | PN24: 0.99 | PO24: 0.99 | PP24: 0.99 | PQ24: 0.99 | PR24: 0.99 | PS24: 0.99 | PT24: 0.99 | PU24: 0.99 | PV24: 0.99 | PW24: 0.99 | PX24: 0.99 | PY24: 0.99 | PZ24: 0.99 | QA24: 0 | QB24: 0 | QC24: 0 | QD24: 0 | QE24: 0 | QF24: 0 | QG24: 0 | QH24: 0 | QI24: 0 | QJ24: 0 | QK24: 0 | QL24: 0 | QM24: 0 | QN24: 0 | QO24: 0 | QP24: 0 | QQ24: 0 | QR24: =$E$24*QR7 -> 0 | QS24: 0 | QT24: 0 | QU24: 0 | QV24: 0 | QW24: 0 | QX24: 0 | QY24: 0 | QZ24: 0 | RA24: 0 | RB24: 0 | RC24: 0 | RD24: 0 | RE24: 0 | RF24: 0 | RG24: 0 | RH24: 0 | RI24: 0 | RJ24: 0 | RK24: 0 | RL24: 0 | RM24: 0 | RN24: 0 | RO24: 0 | RP24: 0 | RQ24: 0 | RR24: 0 | RS24: 0 | RT24: 0 | RU24: 0 | RV24: 0 | RW24: 0 | RX24: 0 | RY24: 0 | RZ24: 0 | SA24: 0 | SB24: 0 | SC24: 0 | SD24: 0 | SE24: 0 | SF24: 0 | SG24: 0 | SH24: 0 | SI24: 0 | SJ24: 0 | SK24: 0 | SL24: 0 | SM24: 0 | SN24: 0 | SO24: 0 | SP24: 0 | SQ24: 0
D25: Available Generation | G25: MWH | L25: =L24*L22 -> 0 | M25: =M24*M22 -> 0 | N25: 0 | O25: 0 | P25: 0 | Q25: 0 | R25: 0 | S25: 0 | T25: 0 | U25: 0 | V25: 0 | W25: 225586.7146 | X25: 225586.7146 | Y25: 225586.7146 | Z25: 225586.7146 | AA25: 225586.7146 | AB25: 225586.7146 | AC25: 225586.7146 | AD25: 225586.7146 | AE25: 225586.7146 | AF25: 225586.7146 | AG25: 225586.7146 | AH25: 225586.7146 | AI25: 225586.7146 | AJ25: 225586.7146 | AK25: 225586.7146 | AL25: 225586.7146 | AM25: 225586.7146 | AN25: 225586.7146 | AO25: 225586.7146 | AP25: 225586.7146 | AQ25: 225586.7146 | AR25: 225586.7146 | AS25: 225586.7146 | AT25: 225586.7146 | AU25: 225586.7146 | AV25: 225586.7146 | AW25: 225586.7146 | AX25: 225586.7146 | AY25: 225586.7146 | AZ25: 225586.7146 | BA25: 225586.7146 | BB25: 225586.7146 | BC25: 225586.7146 | BD25: 225586.7146 | BE25: 225586.7146 | BF25: 225586.7146 | BG25: 225586.7146 | BH25: 225586.7146 | BI25: 225586.7146 | BJ25: 225586.7146 | BK25: 225586.7146 | BL25: 225586.7146 | BM25: 225586.7146 | BN25: 225586.7146 | BO25: 225586.7146 | BP25: 225586.7146 | BQ25: 225586.7146 | BR25: 225586.7146 | BS25: 225586.7146 | BT25: 225586.7146 | BU25: 225586.7146 | BV25: 225586.7146 | BW25: 225586.7146 | BX25: 225586.7146 | BY25: =BY24*BY22 -> 225586.7146 | BZ25: 225586.7146 | CA25: 225586.7146 | CB25: 225586.7146 | CC25: 225586.7146 | CD25: 225586.7146 | CE25: 225586.7146 | CF25: 225586.7146 | CG25: 225586.7146 | CH25: 225586.7146 | CI25: 225586.7146 | CJ25: 225586.7146 | CK25: 225586.7146 | CL25: 225586.7146 | CM25: 225586.7146 | CN25: 225586.7146 | CO25: 225586.7146 | CP25: 225586.7146 | CQ25: 225586.7146 | CR25: 225586.7146 | CS25: 225586.7146 | CT25: 225586.7146 | CU25: 225586.7146 | CV25: 225586.7146 | CW25: 225586.7146 | CX25: 225586.7146 | CY25: 225586.7146 | CZ25: 225586.7146 | DA25: 225586.7146 | DB25: 225586.7146 | DC25: 225586.7146 | DD25: 225586.7146 | DE25: 225586.7146 | DF25: 225586.7146 | DG25: 225586.7146 | DH25: 225586.7146 | DI25: 225586.7146 | DJ25: 225586.7146 | DK25: 225586.7146 | DL25: 225586.7146 | DM25: 225586.7146 | DN25: 225586.7146 | DO25: 225586.7146 | DP25: 225586.7146 | DQ25: 225586.7146 | DR25: 225586.7146 | DS25: 225586.7146 | DT25: 225586.7146 | DU25: 225586.7146 | DV25: 225586.7146 | DW25: 225586.7146 | DX25: 225586.7146 | DY25: 225586.7146 | DZ25: 225586.7146 | EA25: 225586.7146 | EB25: 225586.7146 | EC25: 225586.7146 | ED25: 225586.7146 | EE25: 225586.7146 | EF25: 225586.7146 | EG25: 225586.7146 | EH25: 225586.7146 | EI25: 225586.7146 | EJ25: 225586.7146 | EK25: =EK24*EK22 -> 225586.7146 | EL25: 225586.7146 | EM25: 225586.7146 | EN25: 225586.7146 | EO25: 225586.7146 | EP25: 225586.7146 | EQ25: 225586.7146 | ER25: 225586.7146 | ES25: 225586.7146 | ET25: 225586.7146 | EU25: 225586.7146 | EV25: 225586.7146 | EW25: 225586.7146 | EX25: 225586.7146 | EY25: 225586.7146 | EZ25: 225586.7146 | FA25: 225586.7146 | FB25: 225586.7146 | FC25: 225586.7146 | FD25: 225586.7146 | FE25: 225586.7146 | FF25: 225586.7146 | FG25: 225586.7146 | FH25: 225586.7146 | FI25: 225586.7146 | FJ25: 225586.7146 | FK25: 225586.7146 | FL25: 225586.7146 | FM25: 225586.7146 | FN25: 225586.7146 | FO25: 225586.7146 | FP25: 225586.7146 | FQ25: 225586.7146 | FR25: 225586.7146 | FS25: 225586.7146 | FT25: 225586.7146 | FU25: 225586.7146 | FV25: 225586.7146 | FW25: 225586.7146 | FX25: 225586.7146 | FY25: 225586.7146 | FZ25: 225586.7146 | GA25: 225586.7146 | GB25: 225586.7146 | GC25: 225586.7146 | GD25: 225586.7146 | GE25: 225586.7146 | GF25: 225586.7146 | GG25: 225586.7146 | GH25: 225586.7146 | GI25: 225586.7146 | GJ25: 225586.7146 | GK25: 225586.7146 | GL25: 225586.7146 | GM25: 225586.7146 | GN25: 225586.7146 | GO25: 225586.7146 | GP25: 225586.7146 | GQ25: 225586.7146 | GR25: 225586.7146 | GS25: 225586.7146 | GT25: 225586.7146 | GU25: 225586.7146 | GV25: 225586.7146 | GW25: =GW24*GW22 -> 225586.7146 | GX25: 225586.7146 | GY25: 225586.7146 | GZ25: 225586.7146 | HA25: 225586.7146 | HB25: 225586.7146 | HC25: 225586.7146 | HD25: 225586.7146 | HE25: 225586.7146 | HF25: 225586.7146 | HG25: 225586.7146 | HH25: 225586.7146 | HI25: 225586.7146 | HJ25: 225586.7146 | HK25: 225586.7146 | HL25: 225586.7146 | HM25: 225586.7146 | HN25: 225586.7146 | HO25: 225586.7146 | HP25: 225586.7146 | HQ25: 225586.7146 | HR25: 225586.7146 | HS25: 225586.7146 | HT25: 225586.7146 | HU25: 225586.7146 | HV25: 225586.7146 | HW25: 225586.7146 | HX25: 225586.7146 | HY25: 225586.7146 | HZ25: 225586.7146 | IA25: 225586.7146 | IB25: 225586.7146 | IC25: 225586.7146 | ID25: 225586.7146 | IE25: 225586.7146 | IF25: 225586.7146 | IG25: 225586.7146 | IH25: 225586.7146 | II25: 225586.7146 | IJ25: 225586.7146 | IK25: 225586.7146 | IL25: 225586.7146 | IM25: 225586.7146 | IN25: 225586.7146 | IO25: 225586.7146 | IP25: 225586.7146 | IQ25: 225586.7146 | IR25: 225586.7146 | IS25: 225586.7146 | IT25: 225586.7146 | IU25: 225586.7146 | IV25: 225586.7146 | IW25: 225586.7146 | IX25: 225586.7146 | IY25: 225586.7146 | IZ25: 225586.7146 | JA25: 225586.7146 | JB25: 225586.7146 | JC25: 225586.7146 | JD25: 225586.7146 | JE25: 225586.7146 | JF25: 225586.7146 | JG25: 225586.7146 | JH25: 225586.7146 | JI25: =JI24*JI22 -> 225586.7146 | JJ25: 225586.7146 | JK25: 225586.7146 | JL25: 225586.7146 | JM25: 225586.7146 | JN25: 225586.7146 | JO25: 225586.7146 | JP25: 225586.7146 | JQ25: 225586.7146 | JR25: 225586.7146 | JS25: 225586.7146 | JT25: 225586.7146 | JU25: 225586.7146 | JV25: 225586.7146 | JW25: 225586.7146 | JX25: 225586.7146 | JY25: 225586.7146 | JZ25: 225586.7146 | KA25: 225586.7146 | KB25: 225586.7146 | KC25: 225586.7146 | KD25: 225586.7146 | KE25: 225586.7146 | KF25: 225586.7146 | KG25: 225586.7146 | KH25: 225586.7146 | KI25: 225586.7146 | KJ25: 225586.7146 | KK25: 225586.7146 | KL25: 225586.7146 | KM25: 225586.7146 | KN25: 225586.7146 | KO25: 225586.7146 | KP25: 225586.7146 | KQ25: 225586.7146 | KR25: 225586.7146 | KS25: 225586.7146 | KT25: 225586.7146 | KU25: 225586.7146 | KV25: 225586.7146 | KW25: 225586.7146 | KX25: 225586.7146 | KY25: 225586.7146 | KZ25: 225586.7146 | LA25: 225586.7146 | LB25: 225586.7146 | LC25: 225586.7146 | LD25: 225586.7146 | LE25: 225586.7146 | LF25: 225586.7146 | LG25: 225586.7146 | LH25: 225586.7146 | LI25: 225586.7146 | LJ25: 225586.7146 | LK25: 225586.7146 | LL25: 225586.7146 | LM25: 225586.7146 | LN25: 225586.7146 | LO25: 225586.7146 | LP25: 225586.7146 | LQ25: 225586.7146 | LR25: 225586.7146 | LS25: 225586.7146 | LT25: 225586.7146 | LU25: =LU24*LU22 -> 225586.7146 | LV25: 225586.7146 | LW25: 225586.7146 | LX25: 225586.7146 | LY25: 225586.7146 | LZ25: 225586.7146 | MA25: 225586.7146 | MB25: 225586.7146 | MC25: 225586.7146 | MD25: 225586.7146 | ME25: 225586.7146 | MF25: 225586.7146 | MG25: 225586.7146 | MH25: 225586.7146 | MI25: 225586.7146 | MJ25: 225586.7146 | MK25: 225586.7146 | ML25: 225586.7146 | MM25: 225586.7146 | MN25: 225586.7146 | MO25: 225586.7146 | MP25: 225586.7146 | MQ25: 225586.7146 | MR25: 225586.7146 | MS25: 225586.7146 | MT25: 225586.7146 | MU25: 225586.7146 | MV25: 225586.7146 | MW25: 225586.7146 | MX25: 225586.7146 | MY25: 225586.7146 | MZ25: 225586.7146 | NA25: 225586.7146 | NB25: 225586.7146 | NC25: 225586.7146 | ND25: 225586.7146 | NE25: 225586.7146 | NF25: 225586.7146 | NG25: 225586.7146 | NH25: 225586.7146 | NI25: 225586.7146 | NJ25: 225586.7146 | NK25: 225586.7146 | NL25: 225586.7146 | NM25: 225586.7146 | NN25: 225586.7146 | NO25: 225586.7146 | NP25: 225586.7146 | NQ25: 225586.7146 | NR25: 225586.7146 | NS25: 225586.7146 | NT25: 225586.7146 | NU25: 225586.7146 | NV25: 225586.7146 | NW25: 225586.7146 | NX25: 225586.7146 | NY25: 225586.7146 | NZ25: 225586.7146 | OA25: 225586.7146 | OB25: 225586.7146 | OC25: 225586.7146 | OD25: 225586.7146 | OE25: 225586.7146 | OF25: 225586.7146 | OG25: =OG24*OG22 -> 225586.7146 | OH25: 225586.7146 | OI25: 225586.7146 | OJ25: 225586.7146 | OK25: 225586.7146 | OL25: 225586.7146 | OM25: 225586.7146 | ON25: 225586.7146 | OO25: 225586.7146 | OP25: 225586.7146 | OQ25: 225586.7146 | OR25: 225586.7146 | OS25: 225586.7146 | OT25: 225586.7146 | OU25: 225586.7146 | OV25: 225586.7146 | OW25: 225586.7146 | OX25: 225586.7146 | OY25: 225586.7146 | OZ25: 225586.7146 | PA25: 225586.7146 | PB25: 225586.7146 | PC25: 225586.7146 | PD25: 225586.7146 | PE25: 225586.7146 | PF25: 225586.7146 | PG25: 225586.7146 | PH25: 225586.7146 | PI25: 225586.7146 | PJ25: 225586.7146 | PK25: 225586.7146 | PL25: 225586.7146 | PM25: 225586.7146 | PN25: 225586.7146 | PO25: 225586.7146 | PP25: 225586.7146 | PQ25: 225586.7146 | PR25: 225586.7146 | PS25: 225586.7146 | PT25: 225586.7146 | PU25: 225586.7146 | PV25: 225586.7146 | PW25: 225586.7146 | PX25: 225586.7146 | PY25: 225586.7146 | PZ25: 225586.7146 | QA25: 0 | QB25: 0 | QC25: 0 | QD25: 0 | QE25: 0 | QF25: 0 | QG25: 0 | QH25: 0 | QI25: 0 | QJ25: 0 | QK25: 0 | QL25: 0 | QM25: 0 | QN25: 0 | QO25: 0 | QP25: 0 | QQ25: 0 | QR25: 0 | QS25: =QS24*QS22 -> 0 | QT25: 0 | QU25: 0 | QV25: 0 | QW25: 0 | QX25: 0 | QY25: 0 | QZ25: 0 | RA25: 0 | RB25: 0 | RC25: 0 | RD25: 0 | RE25: 0 | RF25: 0 | RG25: 0 | RH25: 0 | RI25: 0 | RJ25: 0 | RK25: 0 | RL25: 0 | RM25: 0 | RN25: 0 | RO25: 0 | RP25: 0 | RQ25: 0 | RR25: 0 | RS25: 0 | RT25: 0 | RU25: 0 | RV25: 0 | RW25: 0 | RX25: 0 | RY25: 0 | RZ25: 0 | SA25: 0 | SB25: 0 | SC25: 0 | SD25: 0 | SE25: 0 | SF25: 0 | SG25: 0 | SH25: 0 | SI25: 0 | SJ25: 0 | SK25: 0 | SL25: 0 | SM25: 0 | SN25: 0 | SO25: 0 | SP25: 0 | SQ25: 0
D27: Age in Periods | G27: Months | L27: =K27+L7 -> 0 | M27: =L27+M7 -> 0 | N27: 0 | O27: 0 | P27: 0 | Q27: 0 | R27: 0 | S27: 0 | T27: 0 | U27: 0 | V27: 0 | W27: 1 | X27: 2 | Y27: 3 | Z27: 4 | AA27: 5 | AB27: 6 | AC27: 7 | AD27: 8 | AE27: 9 | AF27: 10 | AG27: 11 | AH27: 12 | AI27: 13 | AJ27: 14 | AK27: 15 | AL27: 16 | AM27: 17 | AN27: 18 | AO27: 19 | AP27: 20 | AQ27: 21 | AR27: 22 | AS27: 23 | AT27: 24 | AU27: 25 | AV27: 26 | AW27: 27 | AX27: 28 | AY27: 29 | AZ27: 30 | BA27: 31 | BB27: 32 | BC27: 33 | BD27: 34 | BE27: 35 | BF27: 36 | BG27: 37 | BH27: 38 | BI27: 39 | BJ27: 40 | BK27: 41 | BL27: 42 | BM27: 43 | BN27: 44 | BO27: 45 | BP27: 46 | BQ27: 47 | BR27: 48 | BS27: 49 | BT27: 50 | BU27: 51 | BV27: 52 | BW27: 53 | BX27: 54 | BY27: =BX27+BY7 -> 55 | BZ27: 56 | CA27: 57 | CB27: 58 | CC27: 59 | CD27: 60 | CE27: 61 | CF27: 62 | CG27: 63 | CH27: 64 | CI27: 65 | CJ27: 66 | CK27: 67 | CL27: 68 | CM27: 69 | CN27: 70 | CO27: 71 | CP27: 72 | CQ27: 73 | CR27: 74 | CS27: 75 | CT27: 76 | CU27: 77 | CV27: 78 | CW27: 79 | CX27: 80 | CY27: 81 | CZ27: 82 | DA27: 83 | DB27: 84 | DC27: 85 | DD27: 86 | DE27: 87 | DF27: 88 | DG27: 89 | DH27: 90 | DI27: 91 | DJ27: 92 | DK27: 93 | DL27: 94 | DM27: 95 | DN27: 96 | DO27: 97 | DP27: 98 | DQ27: 99 | DR27: 100 | DS27: 101 | DT27: 102 | DU27: 103 | DV27: 104 | DW27: 105 | DX27: 106 | DY27: 107 | DZ27: 108 | EA27: 109 | EB27: 110 | EC27: 111 | ED27: 112 | EE27: 113 | EF27: 114 | EG27: 115 | EH27: 116 | EI27: 117 | EJ27: 118 | EK27: =EJ27+EK7 -> 119 | EL27: 120 | EM27: 121 | EN27: 122 | EO27: 123 | EP27: 124 | EQ27: 125 | ER27: 126 | ES27: 127 | ET27: 128 | EU27: 129 | EV27: 130 | EW27: 131 | EX27: 132 | EY27: 133 | EZ27: 134 | FA27: 135 | FB27: 136 | FC27: 137 | FD27: 138 | FE27: 139 | FF27: 140 | FG27: 141 | FH27: 142 | FI27: 143 | FJ27: 144 | FK27: 145 | FL27: 146 | FM27: 147 | FN27: 148 | FO27: 149 | FP27: 150 | FQ27: 151 | FR27: 152 | FS27: 153 | FT27: 154 | FU27: 155 | FV27: 156 | FW27: 157 | FX27: 158 | FY27: 159 | FZ27: 160 | GA27: 161 | GB27: 162 | GC27: 163 | GD27: 164 | GE27: 165 | GF27: 166 | GG27: 167 | GH27: 168 | GI27: 169 | GJ27: 170 | GK27: 171 | GL27: 172 | GM27: 173 | GN27: 174 | GO27: 175 | GP27: 176 | GQ27: 177 | GR27: 178 | GS27: 179 | GT27: 180 | GU27: 181 | GV27: 182 | GW27: =GV27+GW7 -> 183 | GX27: 184 | GY27: 185 | GZ27: 186 | HA27: 187 | HB27: 188 | HC27: 189 | HD27: 190 | HE27: 191 | HF27: 192 | HG27: 193 | HH27: 194 | HI27: 195 | HJ27: 196 | HK27: 197 | HL27: 198 | HM27: 199 | HN27: 200 | HO27: 201 | HP27: 202 | HQ27: 203 | HR27: 204 | HS27: 205 | HT27: 206 | HU27: 207 | HV27: 208 | HW27: 209 | HX27: 210 | HY27: 211 | HZ27: 212 | IA27: 213 | IB27: 214 | IC27: 215 | ID27: 216 | IE27: 217 | IF27: 218 | IG27: 219 | IH27: 220 | II27: 221 | IJ27: 222 | IK27: 223 | IL27: 224 | IM27: 225 | IN27: 226 | IO27: 227 | IP27: 228 | IQ27: 229 | IR27: 230 | IS27: 231 | IT27: 232 | IU27: 233 | IV27: 234 | IW27: 235 | IX27: 236 | IY27: 237 | IZ27: 238 | JA27: 239 | JB27: 240 | JC27: 241 | JD27: 242 | JE27: 243 | JF27: 244 | JG27: 245 | JH27: 246 | JI27: =JH27+JI7 -> 247 | JJ27: 248 | JK27: 249 | JL27: 250 | JM27: 251 | JN27: 252 | JO27: 253 | JP27: 254 | JQ27: 255 | JR27: 256 | JS27: 257 | JT27: 258 | JU27: 259 | JV27: 260 | JW27: 261 | JX27: 262 | JY27: 263 | JZ27: 264 | KA27: 265 | KB27: 266 | KC27: 267 | KD27: 268 | KE27: 269 | KF27: 270 | KG27: 271 | KH27: 272 | KI27: 273 | KJ27: 274 | KK27: 275 | KL27: 276 | KM27: 277 | KN27: 278 | KO27: 279 | KP27: 280 | KQ27: 281 | KR27: 282 | KS27: 283 | KT27: 284 | KU27: 285 | KV27: 286 | KW27: 287 | KX27: 288 | KY27: 289 | KZ27: 290 | LA27: 291 | LB27: 292 | LC27: 293 | LD27: 294 | LE27: 295 | LF27: 296 | LG27: 297 | LH27: 298 | LI27: 299 | LJ27: 300 | LK27: 301 | LL27: 302 | LM27: 303 | LN27: 304 | LO27: 305 | LP27: 306 | LQ27: 307 | LR27: 308 | LS27: 309 | LT27: 310 | LU27: =LT27+LU7 -> 311 | LV27: 312 | LW27: 313 | LX27: 314 | LY27: 315 | LZ27: 316 | MA27: 317 | MB27: 318 | MC27: 319 | MD27: 320 | ME27: 321 | MF27: 322 | MG27: 323 | MH27: 324 | MI27: 325 | MJ27: 326 | MK27: 327 | ML27: 328 | MM27: 329 | MN27: 330 | MO27: 331 | MP27: 332 | MQ27: 333 | MR27: 334 | MS27: 335 | MT27: 336 | MU27: 337 | MV27: 338 | MW27: 339 | MX27: 340 | MY27: 341 | MZ27: 342 | NA27: 343 | NB27: 344 | NC27: 345 | ND27: 346 | NE27: 347 | NF27: 348 | NG27: 349 | NH27: 350 | NI27: 351 | NJ27: 352 | NK27: 353 | NL27: 354 | NM27: 355 | NN27: 356 | NO27: 357 | NP27: 358 | NQ27: 359 | NR27: 360 | NS27: 361 | NT27: 362 | NU27: 363 | NV27: 364 | NW27: 365 | NX27: 366 | NY27: 367 | NZ27: 368 | OA27: 369 | OB27: 370 | OC27: 371 | OD27: 372 | OE27: 373 | OF27: 374 | OG27: =OF27+OG7 -> 375 | OH27: 376 | OI27: 377 | OJ27: 378 | OK27: 379 | OL27: 380 | OM27: 381 | ON27: 382 | OO27: 383 | OP27: 384 | OQ27: 385 | OR27: 386 | OS27: 387 | OT27: 388 | OU27: 389 | OV27: 390 | OW27: 391 | OX27: 392 | OY27: 393 | OZ27: 394 | PA27: 395 | PB27: 396 | PC27: 397 | PD27: 398 | PE27: 399 | PF27: 400 | PG27: 401 | PH27: 402 | PI27: 403 | PJ27: 404 | PK27: 405 | PL27: 406 | PM27: 407 | PN27: 408 | PO27: 409 | PP27: 410 | PQ27: 411 | PR27: 412 | PS27: 413 | PT27: 414 | PU27: 415 | PV27: 416 | PW27: 417 | PX27: 418 | PY27: 419 | PZ27: 420 | QA27: 420 | QB27: 420 | QC27: 420 | QD27: 420 | QE27: 420 | QF27: 420 | QG27: 420 | QH27: 420 | QI27: 420 | QJ27: 420 | QK27: 420 | QL27: 420 | QM27: 420 | QN27: 420 | QO27: 420 | QP27: 420 | QQ27: 420 | QR27: 420 | QS27: =QR27+QS7 -> 420 | QT27: 420 | QU27: 420 | QV27: 420 | QW27: 420 | QX27: 420 | QY27: 420 | QZ27: 420 | RA27: 420 | RB27: 420 | RC27: 420 | RD27: 420 | RE27: 420 | RF27: 420 | RG27: 420 | RH27: 420 | RI27: 420 | RJ27: 420 | RK27: 420 | RL27: 420 | RM27: 420 | RN27: 420 | RO27: 420 | RP27: 420 | RQ27: 420 | RR27: 420 | RS27: 420 | RT27: 420 | RU27: 420 | RV27: 420 | RW27: 420 | RX27: 420 | RY27: 420 | RZ27: 420 | SA27: 420 | SB27: 420 | SC27: 420 | SD27: 420 | SE27: 420 | SF27: 420 | SG27: 420 | SH27: 420 | SI27: 420 | SJ27: 420 | SK27: 420 | SL27: 420 | SM27: 420 | SN27: 420 | SO27: 420 | SP27: 420 | SQ27: 420
D28: Age in Years | G28: Years | L28: =ROUNDUP(L27/Months,0) -> 0 | M28: 0 | N28: 0 | O28: 0 | P28: 0 | Q28: 0 | R28: 0 | S28: 0 | T28: 0 | U28: 0 | V28: 0 | W28: 1 | X28: 1 | Y28: 1 | Z28: 1 | AA28: 1 | AB28: 1 | AC28: 1 | AD28: 1 | AE28: 1 | AF28: 1 | AG28: 1 | AH28: 1 | AI28: 2 | AJ28: 2 | AK28: 2 | AL28: 2 | AM28: 2 | AN28: 2 | AO28: 2 | AP28: 2 | AQ28: 2 | AR28: 2 | AS28: 2 | AT28: 2 | AU28: 3 | AV28: 3 | AW28: 3 | AX28: 3 | AY28: 3 | AZ28: 3 | BA28: 3 | BB28: 3 | BC28: 3 | BD28: 3 | BE28: 3 | BF28: 3 | BG28: 4 | BH28: 4 | BI28: 4 | BJ28: 4 | BK28: 4 | BL28: 4 | BM28: 4 | BN28: 4 | BO28: 4 | BP28: 4 | BQ28: 4 | BR28: 4 | BS28: 5 | BT28: 5 | BU28: 5 | BV28: 5 | BW28: 5 | BX28: =ROUNDUP(BX27/Months,0) -> 5 | BY28: 5 | BZ28: 5 | CA28: 5 | CB28: 5 | CC28: 5 | CD28: 5 | CE28: 6 | CF28: 6 | CG28: 6 | CH28: 6 | CI28: 6 | CJ28: 6 | CK28: 6 | CL28: 6 | CM28: 6 | CN28: 6 | CO28: 6 | CP28: 6 | CQ28: 7 | CR28: 7 | CS28: 7 | CT28: 7 | CU28: 7 | CV28: 7 | CW28: 7 | CX28: 7 | CY28: 7 | CZ28: 7 | DA28: 7 | DB28: 7 | DC28: 8 | DD28: 8 | DE28: 8 | DF28: 8 | DG28: 8 | DH28: 8 | DI28: 8 | DJ28: 8 | DK28: 8 | DL28: 8 | DM28: 8 | DN28: 8 | DO28: 9 | DP28: 9 | DQ28: 9 | DR28: 9 | DS28: 9 | DT28: 9 | DU28: 9 | DV28: 9 | DW28: 9 | DX28: 9 | DY28: 9 | DZ28: 9 | EA28: 10 | EB28: 10 | EC28: 10 | ED28: 10 | EE28: 10 | EF28: 10 | EG28: 10 | EH28: 10 | EI28: 10 | EJ28: =ROUNDUP(EJ27/Months,0) -> 10 | EK28: 10 | EL28: 10 | EM28: 11 | EN28: 11 | EO28: 11 | EP28: 11 | EQ28: 11 | ER28: 11 | ES28: 11 | ET28: 11 | EU28: 11 | EV28: 11 | EW28: 11 | EX28: 11 | EY28: 12 | EZ28: 12 | FA28: 12 | FB28: 12 | FC28: 12 | FD28: 12 | FE28: 12 | FF28: 12 | FG28: 12 | FH28: 12 | FI28: 12 | FJ28: 12 | FK28: 13 | FL28: 13 | FM28: 13 | FN28: 13 | FO28: 13 | FP28: 13 | FQ28: 13 | FR28: 13 | FS28: 13 | FT28: 13 | FU28: 13 | FV28: 13 | FW28: 14 | FX28: 14 | FY28: 14 | FZ28: 14 | GA28: 14 | GB28: 14 | GC28: 14 | GD28: 14 | GE28: 14 | GF28: 14 | GG28: 14 | GH28: 14 | GI28: 15 | GJ28: 15 | GK28: 15 | GL28: 15 | GM28: 15 | GN28: 15 | GO28: 15 | GP28: 15 | GQ28: 15 | GR28: 15 | GS28: 15 | GT28: 15 | GU28: 16 | GV28: =ROUNDUP(GV27/Months,0) -> 16 | GW28: 16 | GX28: 16 | GY28: 16 | GZ28: 16 | HA28: 16 | HB28: 16 | HC28: 16 | HD28: 16 | HE28: 16 | HF28: 16 | HG28: 17 | HH28: 17 | HI28: 17 | HJ28: 17 | HK28: 17 | HL28: 17 | HM28: 17 | HN28: 17 | HO28: 17 | HP28: 17 | HQ28: 17 | HR28: 17 | HS28: 18 | HT28: 18 | HU28: 18 | HV28: 18 | HW28: 18 | HX28: 18 | HY28: 18 | HZ28: 18 | IA28: 18 | IB28: 18 | IC28: 18 | ID28: 18 | IE28: 19 | IF28: 19 | IG28: 19 | IH28: 19 | II28: 19 | IJ28: 19 | IK28: 19 | IL28: 19 | IM28: 19 | IN28: 19 | IO28: 19 | IP28: 19 | IQ28: 20 | IR28: 20 | IS28: 20 | IT28: 20 | IU28: 20 | IV28: 20 | IW28: 20 | IX28: 20 | IY28: 20 | IZ28: 20 | JA28: 20 | JB28: 20 | JC28: 21 | JD28: 21 | JE28: 21 | JF28: 21 | JG28: 21 | JH28: =ROUNDUP(JH27/Months,0) -> 21 | JI28: 21 | JJ28: 21 | JK28: 21 | JL28: 21 | JM28: 21 | JN28: 21 | JO28: 22 | JP28: 22 | JQ28: 22 | JR28: 22 | JS28: 22 | JT28: 22 | JU28: 22 | JV28: 22 | JW28: 22 | JX28: 22 | JY28: 22 | JZ28: 22 | KA28: 23 | KB28: 23 | KC28: 23 | KD28: 23 | KE28: 23 | KF28: 23 | KG28: 23 | KH28: 23 | KI28: 23 | KJ28: 23 | KK28: 23 | KL28: 23 | KM28: 24 | KN28: 24 | KO28: 24 | KP28: 24 | KQ28: 24 | KR28: 24 | KS28: 24 | KT28: 24 | KU28: 24 | KV28: 24 | KW28: 24 | KX28: 24 | KY28: 25 | KZ28: 25 | LA28: 25 | LB28: 25 | LC28: 25 | LD28: 25 | LE28: 25 | LF28: 25 | LG28: 25 | LH28: 25 | LI28: 25 | LJ28: 25 | LK28: 26 | LL28: 26 | LM28: 26 | LN28: 26 | LO28: 26 | LP28: 26 | LQ28: 26 | LR28: 26 | LS28: 26 | LT28: =ROUNDUP(LT27/Months,0) -> 26 | LU28: 26 | LV28: 26 | LW28: 27 | LX28: 27 | LY28: 27 | LZ28: 27 | MA28: 27 | MB28: 27 | MC28: 27 | MD28: 27 | ME28: 27 | MF28: 27 | MG28: 27 | MH28: 27 | MI28: 28 | MJ28: 28 | MK28: 28 | ML28: 28 | MM28: 28 | MN28: 28 | MO28: 28 | MP28: 28 | MQ28: 28 | MR28: 28 | MS28: 28 | MT28: 28 | MU28: 29 | MV28: 29 | MW28: 29 | MX28: 29 | MY28: 29 | MZ28: 29 | NA28: 29 | NB28: 29 | NC28: 29 | ND28: 29 | NE28: 29 | NF28: 29 | NG28: 30 | NH28: 30 | NI28: 30 | NJ28: 30 | NK28: 30 | NL28: 30 | NM28: 30 | NN28: 30 | NO28: 30 | NP28: 30 | NQ28: 30 | NR28: 30 | NS28: 31 | NT28: 31 | NU28: 31 | NV28: 31 | NW28: 31 | NX28: 31 | NY28: 31 | NZ28: 31 | OA28: 31 | OB28: 31 | OC28: 31 | OD28: 31 | OE28: 32 | OF28: =ROUNDUP(OF27/Months,0) -> 32 | OG28: 32 | OH28: 32 | OI28: 32 | OJ28: 32 | OK28: 32 | OL28: 32 | OM28: 32 | ON28: 32 | OO28: 32 | OP28: 32 | OQ28: 33 | OR28: 33 | OS28: 33 | OT28: 33 | OU28: 33 | OV28: 33 | OW28: 33 | OX28: 33 | OY28: 33 | OZ28: 33 | PA28: 33 | PB28: 33 | PC28: 34 | PD28: 34 | PE28: 34 | PF28: 34 | PG28: 34 | PH28: 34 | PI28: 34 | PJ28: 34 | PK28: 34 | PL28: 34 | PM28: 34 | PN28: 34 | PO28: 35 | PP28: 35 | PQ28: 35 | PR28: 35 | PS28: 35 | PT28: 35 | PU28: 35 | PV28: 35 | PW28: 35 | PX28: 35 | PY28: 35 | PZ28: 35 | QA28: 35 | QB28: 35 | QC28: 35 | QD28: 35 | QE28: 35 | QF28: 35 | QG28: 35 | QH28: 35 | QI28: 35 | QJ28: 35 | QK28: 35 | QL28: 35 | QM28: 35 | QN28: 35 | QO28: 35 | QP28: 35 | QQ28: 35 | QR28: =ROUNDUP(QR27/Months,0) -> 35 | QS28: 35 | QT28: 35 | QU28: 35 | QV28: 35 | QW28: 35 | QX28: 35 | QY28: 35 | QZ28: 35 | RA28: 35 | RB28: 35 | RC28: 35 | RD28: 35 | RE28: 35 | RF28: 35 | RG28: 35 | RH28: 35 | RI28: 35 | RJ28: 35 | RK28: 35 | RL28: 35 | RM28: 35 | RN28: 35 | RO28: 35 | RP28: 35 | RQ28: 35 | RR28: 35 | RS28: 35 | RT28: 35 | RU28: 35 | RV28: 35 | RW28: 35 | RX28: 35 | RY28: 35 | RZ28: 35 | SA28: 35 | SB28: 35 | SC28: 35 | SD28: 35 | SE28: 35 | SF28: 35 | SG28: 35 | SH28: 35 | SI28: 35 | SJ28: 35 | SK28: 35 | SL28: 35 | SM28: 35 | SN28: 35 | SO28: 35 | SP28: 35 | SQ28: 35
D29: Annual Degradation | E29: =InputS!D41 -> Base Degradation | G29: % p.a. | L29: =LOOKUP(L28,InputS!35:35,InputS!41:41) -> 0 | M29: =LOOKUP(M28,InputS!35:35,InputS!41:41) -> 0 | N29: =LOOKUP(N28,InputS!35:35,InputS!41:41) -> 0 | O29: =LOOKUP(O28,InputS!35:35,InputS!41:41) -> 0 | P29: =LOOKUP(P28,InputS!35:35,InputS!41:41) -> 0 | Q29: =LOOKUP(Q28,InputS!35:35,InputS!41:41) -> 0 | R29: =LOOKUP(R28,InputS!35:35,InputS!41:41) -> 0 | S29: =LOOKUP(S28,InputS!35:35,InputS!41:41) -> 0 | T29: =LOOKUP(T28,InputS!35:35,InputS!41:41) -> 0 | U29: =LOOKUP(U28,InputS!35:35,InputS!41:41) -> 0 | V29: =LOOKUP(V28,InputS!35:35,InputS!41:41) -> 0 | W29: =LOOKUP(W28,InputS!35:35,InputS!41:41) -> 0.0075 | X29: =LOOKUP(X28,InputS!35:35,InputS!41:41) -> 0.0075 | Y29: =LOOKUP(Y28,InputS!35:35,InputS!41:41) -> 0.0075 | Z29: =LOOKUP(Z28,InputS!35:35,InputS!41:41) -> 0.0075 | AA29: =LOOKUP(AA28,InputS!35:35,InputS!41:41) -> 0.0075 | AB29: =LOOKUP(AB28,InputS!35:35,InputS!41:41) -> 0.0075 | AC29: =LOOKUP(AC28,InputS!35:35,InputS!41:41) -> 0.0075 | AD29: =LOOKUP(AD28,InputS!35:35,InputS!41:41) -> 0.0075 | AE29: =LOOKUP(AE28,InputS!35:35,InputS!41:41) -> 0.0075 | AF29: =LOOKUP(AF28,InputS!35:35,InputS!41:41) -> 0.0075 | AG29: =LOOKUP(AG28,InputS!35:35,InputS!41:41) -> 0.0075 | AH29: =LOOKUP(AH28,InputS!35:35,InputS!41:41) -> 0.0075 | AI29: =LOOKUP(AI28,InputS!35:35,InputS!41:41) -> 0.005 | AJ29: =LOOKUP(AJ28,InputS!35:35,InputS!41:41) -> 0.005 | AK29: =LOOKUP(AK28,InputS!35:35,InputS!41:41) -> 0.005 | AL29: =LOOKUP(AL28,InputS!35:35,InputS!41:41) -> 0.005 | AM29: =LOOKUP(AM28,InputS!35:35,InputS!41:41) -> 0.005 | AN29: =LOOKUP(AN28,InputS!35:35,InputS!41:41) -> 0.005 | AO29: =LOOKUP(AO28,InputS!35:35,InputS!41:41) -> 0.005 | AP29: =LOOKUP(AP28,InputS!35:35,InputS!41:41) -> 0.005 | AQ29: =LOOKUP(AQ28,InputS!35:35,InputS!41:41) -> 0.005 | AR29: =LOOKUP(AR28,InputS!35:35,InputS!41:41) -> 0.005 | AS29: =LOOKUP(AS28,InputS!35:35,InputS!41:41) -> 0.005 | AT29: =LOOKUP(AT28,InputS!35:35,InputS!41:41) -> 0.005 | AU29: =LOOKUP(AU28,InputS!35:35,InputS!41:41) -> 0.005 | AV29: =LOOKUP(AV28,InputS!35:35,InputS!41:41) -> 0.005 | AW29: =LOOKUP(AW28,InputS!35:35,InputS!41:41) -> 0.005 | AX29: =LOOKUP(AX28,InputS!35:35,InputS!41:41) -> 0.005 | AY29: =LOOKUP(AY28,InputS!35:35,InputS!41:41) -> 0.005 | AZ29: =LOOKUP(AZ28,InputS!35:35,InputS!41:41) -> 0.005 | BA29: =LOOKUP(BA28,InputS!35:35,InputS!41:41) -> 0.005 | BB29: =LOOKUP(BB28,InputS!35:35,InputS!41:41) -> 0.005 | BC29: =LOOKUP(BC28,InputS!35:35,InputS!41:41) -> 0.005 | BD29: =LOOKUP(BD28,InputS!35:35,InputS!41:41) -> 0.005 | BE29: =LOOKUP(BE28,InputS!35:35,InputS!41:41) -> 0.005 | BF29: =LOOKUP(BF28,InputS!35:35,InputS!41:41) -> 0.005 | BG29: =LOOKUP(BG28,InputS!35:35,InputS!41:41) -> 0.005 | BH29: =LOOKUP(BH28,InputS!35:35,InputS!41:41) -> 0.005 | BI29: =LOOKUP(BI28,InputS!35:35,InputS!41:41) -> 0.005 | BJ29: =LOOKUP(BJ28,InputS!35:35,InputS!41:41) -> 0.005 | BK29: =LOOKUP(BK28,InputS!35:35,InputS!41:41) -> 0.005 | BL29: =LOOKUP(BL28,InputS!35:35,InputS!41:41) -> 0.005 | BM29: =LOOKUP(BM28,InputS!35:35,InputS!41:41) -> 0.005 | BN29: =LOOKUP(BN28,InputS!35:35,InputS!41:41) -> 0.005 | BO29: =LOOKUP(BO28,InputS!35:35,InputS!41:41) -> 0.005 | BP29: =LOOKUP(BP28,InputS!35:35,InputS!41:41) -> 0.005 | BQ29: =LOOKUP(BQ28,InputS!35:35,InputS!41:41) -> 0.005 | BR29: =LOOKUP(BR28,InputS!35:35,InputS!41:41) -> 0.005 | BS29: =LOOKUP(BS28,InputS!35:35,InputS!41:41) -> 0.005 | BT29: =LOOKUP(BT28,InputS!35:35,InputS!41:41) -> 0.005 | BU29: =LOOKUP(BU28,InputS!35:35,InputS!41:41) -> 0.005 | BV29: =LOOKUP(BV28,InputS!35:35,InputS!41:41) -> 0.005 | BW29: =LOOKUP(BW28,InputS!35:35,InputS!41:41) -> 0.005 | BX29: =LOOKUP(BX28,InputS!35:35,InputS!41:41) -> 0.005 | BY29: =LOOKUP(BY28,InputS!35:35,InputS!41:41) -> 0.005 | BZ29: =LOOKUP(BZ28,InputS!35:35,InputS!41:41) -> 0.005 | CA29: =LOOKUP(CA28,InputS!35:35,InputS!41:41) -> 0.005 | CB29: =LOOKUP(CB28,InputS!35:35,InputS!41:41) -> 0.005 | CC29: =LOOKUP(CC28,InputS!35:35,InputS!41:41) -> 0.005 | CD29: =LOOKUP(CD28,InputS!35:35,InputS!41:41) -> 0.005 | CE29: =LOOKUP(CE28,InputS!35:35,InputS!41:41) -> 0.005 | CF29: =LOOKUP(CF28,InputS!35:35,InputS!41:41) -> 0.005 | CG29: =LOOKUP(CG28,InputS!35:35,InputS!41:41) -> 0.005 | CH29: =LOOKUP(CH28,InputS!35:35,InputS!41:41) -> 0.005 | CI29: =LOOKUP(CI28,InputS!35:35,InputS!41:41) -> 0.005 | CJ29: =LOOKUP(CJ28,InputS!35:35,InputS!41:41) -> 0.005 | CK29: =LOOKUP(CK28,InputS!35:35,InputS!41:41) -> 0.005 | CL29: =LOOKUP(CL28,InputS!35:35,InputS!41:41) -> 0.005 | CM29: =LOOKUP(CM28,InputS!35:35,InputS!41:41) -> 0.005 | CN29: =LOOKUP(CN28,InputS!35:35,InputS!41:41) -> 0.005 | CO29: =LOOKUP(CO28,InputS!35:35,InputS!41:41) -> 0.005 | CP29: =LOOKUP(CP28,InputS!35:35,InputS!41:41) -> 0.005 | CQ29: =LOOKUP(CQ28,InputS!35:35,InputS!41:41) -> 0.005 | CR29: =LOOKUP(CR28,InputS!35:35,InputS!41:41) -> 0.005 | CS29: =LOOKUP(CS28,InputS!35:35,InputS!41:41) -> 0.005 | CT29: =LOOKUP(CT28,InputS!35:35,InputS!41:41) -> 0.005 | CU29: =LOOKUP(CU28,InputS!35:35,InputS!41:41) -> 0.005 | CV29: =LOOKUP(CV28,InputS!35:35,InputS!41:41) -> 0.005 | CW29: =LOOKUP(CW28,InputS!35:35,InputS!41:41) -> 0.005 | CX29: =LOOKUP(CX28,InputS!35:35,InputS!41:41) -> 0.005 | CY29: =LOOKUP(CY28,InputS!35:35,InputS!41:41) -> 0.005 | CZ29: =LOOKUP(CZ28,InputS!35:35,InputS!41:41) -> 0.005 | DA29: =LOOKUP(DA28,InputS!35:35,InputS!41:41) -> 0.005 | DB29: =LOOKUP(DB28,InputS!35:35,InputS!41:41) -> 0.005 | DC29: =LOOKUP(DC28,InputS!35:35,InputS!41:41) -> 0.005 | DD29: =LOOKUP(DD28,InputS!35:35,InputS!41:41) -> 0.005 | DE29: =LOOKUP(DE28,InputS!35:35,InputS!41:41) -> 0.005 | DF29: =LOOKUP(DF28,InputS!35:35,InputS!41:41) -> 0.005 | DG29: =LOOKUP(DG28,InputS!35:35,InputS!41:41) -> 0.005 | DH29: =LOOKUP(DH28,InputS!35:35,InputS!41:41) -> 0.005 | DI29: =LOOKUP(DI28,InputS!35:35,InputS!41:41) -> 0.005 | DJ29: =LOOKUP(DJ28,InputS!35:35,InputS!41:41) -> 0.005 | DK29: =LOOKUP(DK28,InputS!35:35,InputS!41:41) -> 0.005 | DL29: =LOOKUP(DL28,InputS!35:35,InputS!41:41) -> 0.005 | DM29: =LOOKUP(DM28,InputS!35:35,InputS!41:41) -> 0.005 | DN29: =LOOKUP(DN28,InputS!35:35,InputS!41:41) -> 0.005 | DO29: =LOOKUP(DO28,InputS!35:35,InputS!41:41) -> 0.005 | DP29: =LOOKUP(DP28,InputS!35:35,InputS!41:41) -> 0.005 | DQ29: =LOOKUP(DQ28,InputS!35:35,InputS!41:41) -> 0.005 | DR29: =LOOKUP(DR28,InputS!35:35,InputS!41:41) -> 0.005 | DS29: =LOOKUP(DS28,InputS!35:35,InputS!41:41) -> 0.005 | DT29: =LOOKUP(DT28,InputS!35:35,InputS!41:41) -> 0.005 | DU29: =LOOKUP(DU28,InputS!35:35,InputS!41:41) -> 0.005 | DV29: =LOOKUP(DV28,InputS!35:35,InputS!41:41) -> 0.005 | DW29: =LOOKUP(DW28,InputS!35:35,InputS!41:41) -> 0.005 | DX29: =LOOKUP(DX28,InputS!35:35,InputS!41:41) -> 0.005 | DY29: =LOOKUP(DY28,InputS!35:35,InputS!41:41) -> 0.005 | DZ29: =LOOKUP(DZ28,InputS!35:35,InputS!41:41) -> 0.005 | EA29: =LOOKUP(EA28,InputS!35:35,InputS!41:41) -> 0.005 | EB29: =LOOKUP(EB28,InputS!35:35,InputS!41:41) -> 0.005 | EC29: =LOOKUP(EC28,InputS!35:35,InputS!41:41) -> 0.005 | ED29: =LOOKUP(ED28,InputS!35:35,InputS!41:41) -> 0.005 | EE29: =LOOKUP(EE28,InputS!35:35,InputS!41:41) -> 0.005 | EF29: =LOOKUP(EF28,InputS!35:35,InputS!41:41) -> 0.005 | EG29: =LOOKUP(EG28,InputS!35:35,InputS!41:41) -> 0.005 | EH29: =LOOKUP(EH28,InputS!35:35,InputS!41:41) -> 0.005 | EI29: =LOOKUP(EI28,InputS!35:35,InputS!41:41) -> 0.005 | EJ29: =LOOKUP(EJ28,InputS!35:35,InputS!41:41) -> 0.005 | EK29: =LOOKUP(EK28,InputS!35:35,InputS!41:41) -> 0.005 | EL29: =LOOKUP(EL28,InputS!35:35,InputS!41:41) -> 0.005 | EM29: =LOOKUP(EM28,InputS!35:35,InputS!41:41) -> 0.005 | EN29: =LOOKUP(EN28,InputS!35:35,InputS!41:41) -> 0.005 | EO29: =LOOKUP(EO28,InputS!35:35,InputS!41:41) -> 0.005 | EP29: =LOOKUP(EP28,InputS!35:35,InputS!41:41) -> 0.005 | EQ29: =LOOKUP(EQ28,InputS!35:35,InputS!41:41) -> 0.005 | ER29: =LOOKUP(ER28,InputS!35:35,InputS!41:41) -> 0.005 | ES29: =LOOKUP(ES28,InputS!35:35,InputS!41:41) -> 0.005 | ET29: =LOOKUP(ET28,InputS!35:35,InputS!41:41) -> 0.005 | EU29: =LOOKUP(EU28,InputS!35:35,InputS!41:41) -> 0.005 | EV29: =LOOKUP(EV28,InputS!35:35,InputS!41:41) -> 0.005 | EW29: =LOOKUP(EW28,InputS!35:35,InputS!41:41) -> 0.005 | EX29: =LOOKUP(EX28,InputS!35:35,InputS!41:41) -> 0.005 | EY29: =LOOKUP(EY28,InputS!35:35,InputS!41:41) -> 0.005 | EZ29: =LOOKUP(EZ28,InputS!35:35,InputS!41:41) -> 0.005 | FA29: =LOOKUP(FA28,InputS!35:35,InputS!41:41) -> 0.005 | FB29: =LOOKUP(FB28,InputS!35:35,InputS!41:41) -> 0.005 | FC29: =LOOKUP(FC28,InputS!35:35,InputS!41:41) -> 0.005 | FD29: =LOOKUP(FD28,InputS!35:35,InputS!41:41) -> 0.005 | FE29: =LOOKUP(FE28,InputS!35:35,InputS!41:41) -> 0.005 | FF29: =LOOKUP(FF28,InputS!35:35,InputS!41:41) -> 0.005 | FG29: =LOOKUP(FG28,InputS!35:35,InputS!41:41) -> 0.005 | FH29: =LOOKUP(FH28,InputS!35:35,InputS!41:41) -> 0.005 | FI29: =LOOKUP(FI28,InputS!35:35,InputS!41:41) -> 0.005 | FJ29: =LOOKUP(FJ28,InputS!35:35,InputS!41:41) -> 0.005 | FK29: =LOOKUP(FK28,InputS!35:35,InputS!41:41) -> 0.005 | FL29: =LOOKUP(FL28,InputS!35:35,InputS!41:41) -> 0.005 | FM29: =LOOKUP(FM28,InputS!35:35,InputS!41:41) -> 0.005 | FN29: =LOOKUP(FN28,InputS!35:35,InputS!41:41) -> 0.005 | FO29: =LOOKUP(FO28,InputS!35:35,InputS!41:41) -> 0.005 | FP29: =LOOKUP(FP28,InputS!35:35,InputS!41:41) -> 0.005 | FQ29: =LOOKUP(FQ28,InputS!35:35,InputS!41:41) -> 0.005 | FR29: =LOOKUP(FR28,InputS!35:35,InputS!41:41) -> 0.005 | FS29: =LOOKUP(FS28,InputS!35:35,InputS!41:41) -> 0.005 | FT29: =LOOKUP(FT28,InputS!35:35,InputS!41:41) -> 0.005 | FU29: =LOOKUP(FU28,InputS!35:35,InputS!41:41) -> 0.005 | FV29: =LOOKUP(FV28,InputS!35:35,InputS!41:41) -> 0.005 | FW29: =LOOKUP(FW28,InputS!35:35,InputS!41:41) -> 0.005 | FX29: =LOOKUP(FX28,InputS!35:35,InputS!41:41) -> 0.005 | FY29: =LOOKUP(FY28,InputS!35:35,InputS!41:41) -> 0.005 | FZ29: =LOOKUP(FZ28,InputS!35:35,InputS!41:41) -> 0.005 | GA29: =LOOKUP(GA28,InputS!35:35,InputS!41:41) -> 0.005 | GB29: =LOOKUP(GB28,InputS!35:35,InputS!41:41) -> 0.005 | GC29: =LOOKUP(GC28,InputS!35:35,InputS!41:41) -> 0.005 | GD29: =LOOKUP(GD28,InputS!35:35,InputS!41:41) -> 0.005 | GE29: =LOOKUP(GE28,InputS!35:35,InputS!41:41) -> 0.005 | GF29: =LOOKUP(GF28,InputS!35:35,InputS!41:41) -> 0.005 | GG29: =LOOKUP(GG28,InputS!35:35,InputS!41:41) -> 0.005 | GH29: =LOOKUP(GH28,InputS!35:35,InputS!41:41) -> 0.005 | GI29: =LOOKUP(GI28,InputS!35:35,InputS!41:41) -> 0.005 | GJ29: =LOOKUP(GJ28,InputS!35:35,InputS!41:41) -> 0.005 | GK29: =LOOKUP(GK28,InputS!35:35,InputS!41:41) -> 0.005 | GL29: =LOOKUP(GL28,InputS!35:35,InputS!41:41) -> 0.005 | GM29: =LOOKUP(GM28,InputS!35:35,InputS!41:41) -> 0.005 | GN29: =LOOKUP(GN28,InputS!35:35,InputS!41:41) -> 0.005 | GO29: =LOOKUP(GO28,InputS!35:35,InputS!41:41) -> 0.005 | GP29: =LOOKUP(GP28,InputS!35:35,InputS!41:41) -> 0.005 | GQ29: =LOOKUP(GQ28,InputS!35:35,InputS!41:41) -> 0.005 | GR29: =LOOKUP(GR28,InputS!35:35,InputS!41:41) -> 0.005 | GS29: =LOOKUP(GS28,InputS!35:35,InputS!41:41) -> 0.005 | GT29: =LOOKUP(GT28,InputS!35:35,InputS!41:41) -> 0.005 | GU29: =LOOKUP(GU28,InputS!35:35,InputS!41:41) -> 0.005 | GV29: =LOOKUP(GV28,InputS!35:35,InputS!41:41) -> 0.005 | GW29: =LOOKUP(GW28,InputS!35:35,InputS!41:41) -> 0.005 | GX29: =LOOKUP(GX28,InputS!35:35,InputS!41:41) -> 0.005 | GY29: =LOOKUP(GY28,InputS!35:35,InputS!41:41) -> 0.005 | GZ29: =LOOKUP(GZ28,InputS!35:35,InputS!41:41) -> 0.005 | HA29: =LOOKUP(HA28,InputS!35:35,InputS!41:41) -> 0.005 | HB29: =LOOKUP(HB28,InputS!35:35,InputS!41:41) -> 0.005 | HC29: =LOOKUP(HC28,InputS!35:35,InputS!41:41) -> 0.005 | HD29: =LOOKUP(HD28,InputS!35:35,InputS!41:41) -> 0.005 | HE29: =LOOKUP(HE28,InputS!35:35,InputS!41:41) -> 0.005 | HF29: =LOOKUP(HF28,InputS!35:35,InputS!41:41) -> 0.005 | HG29: =LOOKUP(HG28,InputS!35:35,InputS!41:41) -> 0.005 | HH29: =LOOKUP(HH28,InputS!35:35,InputS!41:41) -> 0.005 | HI29: =LOOKUP(HI28,InputS!35:35,InputS!41:41) -> 0.005 | HJ29: =LOOKUP(HJ28,InputS!35:35,InputS!41:41) -> 0.005 | HK29: =LOOKUP(HK28,InputS!35:35,InputS!41:41) -> 0.005 | HL29: =LOOKUP(HL28,InputS!35:35,InputS!41:41) -> 0.005 | HM29: =LOOKUP(HM28,InputS!35:35,InputS!41:41) -> 0.005 | HN29: =LOOKUP(HN28,InputS!35:35,InputS!41:41) -> 0.005 | HO29: =LOOKUP(HO28,InputS!35:35,InputS!41:41) -> 0.005 | HP29: =LOOKUP(HP28,InputS!35:35,InputS!41:41) -> 0.005 | HQ29: =LOOKUP(HQ28,InputS!35:35,InputS!41:41) -> 0.005 | HR29: =LOOKUP(HR28,InputS!35:35,InputS!41:41) -> 0.005 | HS29: =LOOKUP(HS28,InputS!35:35,InputS!41:41) -> 0.005 | HT29: =LOOKUP(HT28,InputS!35:35,InputS!41:41) -> 0.005 | HU29: =LOOKUP(HU28,InputS!35:35,InputS!41:41) -> 0.005 | HV29: =LOOKUP(HV28,InputS!35:35,InputS!41:41) -> 0.005 | HW29: =LOOKUP(HW28,InputS!35:35,InputS!41:41) -> 0.005 | HX29: =LOOKUP(HX28,InputS!35:35,InputS!41:41) -> 0.005 | HY29: =LOOKUP(HY28,InputS!35:35,InputS!41:41) -> 0.005 | HZ29: =LOOKUP(HZ28,InputS!35:35,InputS!41:41) -> 0.005 | IA29: =LOOKUP(IA28,InputS!35:35,InputS!41:41) -> 0.005 | IB29: =LOOKUP(IB28,InputS!35:35,InputS!41:41) -> 0.005 | IC29: =LOOKUP(IC28,InputS!35:35,InputS!41:41) -> 0.005 | ID29: =LOOKUP(ID28,InputS!35:35,InputS!41:41) -> 0.005 | IE29: =LOOKUP(IE28,InputS!35:35,InputS!41:41) -> 0.005 | IF29: =LOOKUP(IF28,InputS!35:35,InputS!41:41) -> 0.005 | IG29: =LOOKUP(IG28,InputS!35:35,InputS!41:41) -> 0.005 | IH29: =LOOKUP(IH28,InputS!35:35,InputS!41:41) -> 0.005 | II29: =LOOKUP(II28,InputS!35:35,InputS!41:41) -> 0.005 | IJ29: =LOOKUP(IJ28,InputS!35:35,InputS!41:41) -> 0.005 | IK29: =LOOKUP(IK28,InputS!35:35,InputS!41:41) -> 0.005 | IL29: =LOOKUP(IL28,InputS!35:35,InputS!41:41) -> 0.005 | IM29: =LOOKUP(IM28,InputS!35:35,InputS!41:41) -> 0.005 | IN29: =LOOKUP(IN28,InputS!35:35,InputS!41:41) -> 0.005 | IO29: =LOOKUP(IO28,InputS!35:35,InputS!41:41) -> 0.005 | IP29: =LOOKUP(IP28,InputS!35:35,InputS!41:41) -> 0.005 | IQ29: =LOOKUP(IQ28,InputS!35:35,InputS!41:41) -> 0.005 | IR29: =LOOKUP(IR28,InputS!35:35,InputS!41:41) -> 0.005 | IS29: =LOOKUP(IS28,InputS!35:35,InputS!41:41) -> 0.005 | IT29: =LOOKUP(IT28,InputS!35:35,InputS!41:41) -> 0.005 | IU29: =LOOKUP(IU28,InputS!35:35,InputS!41:41) -> 0.005 | IV29: =LOOKUP(IV28,InputS!35:35,InputS!41:41) -> 0.005 | IW29: =LOOKUP(IW28,InputS!35:35,InputS!41:41) -> 0.005 | IX29: =LOOKUP(IX28,InputS!35:35,InputS!41:41) -> 0.005 | IY29: =LOOKUP(IY28,InputS!35:35,InputS!41:41) -> 0.005 | IZ29: =LOOKUP(IZ28,InputS!35:35,InputS!41:41) -> 0.005 | JA29: =LOOKUP(JA28,InputS!35:35,InputS!41:41) -> 0.005 | JB29: =LOOKUP(JB28,InputS!35:35,InputS!41:41) -> 0.005 | JC29: =LOOKUP(JC28,InputS!35:35,InputS!41:41) -> 0.005 | JD29: =LOOKUP(JD28,InputS!35:35,InputS!41:41) -> 0.005 | JE29: =LOOKUP(JE28,InputS!35:35,InputS!41:41) -> 0.005 | JF29: =LOOKUP(JF28,InputS!35:35,InputS!41:41) -> 0.005 | JG29: =LOOKUP(JG28,InputS!35:35,InputS!41:41) -> 0.005 | JH29: =LOOKUP(JH28,InputS!35:35,InputS!41:41) -> 0.005 | JI29: =LOOKUP(JI28,InputS!35:35,InputS!41:41) -> 0.005 | JJ29: =LOOKUP(JJ28,InputS!35:35,InputS!41:41) -> 0.005 | JK29: =LOOKUP(JK28,InputS!35:35,InputS!41:41) -> 0.005 | JL29: =LOOKUP(JL28,InputS!35:35,InputS!41:41) -> 0.005 | JM29: =LOOKUP(JM28,InputS!35:35,InputS!41:41) -> 0.005 | JN29: =LOOKUP(JN28,InputS!35:35,InputS!41:41) -> 0.005 | JO29: =LOOKUP(JO28,InputS!35:35,InputS!41:41) -> 0.005 | JP29: =LOOKUP(JP28,InputS!35:35,InputS!41:41) -> 0.005 | JQ29: =LOOKUP(JQ28,InputS!35:35,InputS!41:41) -> 0.005 | JR29: =LOOKUP(JR28,InputS!35:35,InputS!41:41) -> 0.005 | JS29: =LOOKUP(JS28,InputS!35:35,InputS!41:41) -> 0.005 | JT29: =LOOKUP(JT28,InputS!35:35,InputS!41:41) -> 0.005 | JU29: =LOOKUP(JU28,InputS!35:35,InputS!41:41) -> 0.005 | JV29: =LOOKUP(JV28,InputS!35:35,InputS!41:41) -> 0.005 | JW29: =LOOKUP(JW28,InputS!35:35,InputS!41:41) -> 0.005 | JX29: =LOOKUP(JX28,InputS!35:35,InputS!41:41) -> 0.005 | JY29: =LOOKUP(JY28,InputS!35:35,InputS!41:41) -> 0.005 | JZ29: =LOOKUP(JZ28,InputS!35:35,InputS!41:41) -> 0.005 | KA29: =LOOKUP(KA28,InputS!35:35,InputS!41:41) -> 0.005 | KB29: =LOOKUP(KB28,InputS!35:35,InputS!41:41) -> 0.005 | KC29: =LOOKUP(KC28,InputS!35:35,InputS!41:41) -> 0.005 | KD29: =LOOKUP(KD28,InputS!35:35,InputS!41:41) -> 0.005 | KE29: =LOOKUP(KE28,InputS!35:35,InputS!41:41) -> 0.005 | KF29: =LOOKUP(KF28,InputS!35:35,InputS!41:41) -> 0.005 | KG29: =LOOKUP(KG28,InputS!35:35,InputS!41:41) -> 0.005 | KH29: =LOOKUP(KH28,InputS!35:35,InputS!41:41) -> 0.005 | KI29: =LOOKUP(KI28,InputS!35:35,InputS!41:41) -> 0.005 | KJ29: =LOOKUP(KJ28,InputS!35:35,InputS!41:41) -> 0.005 | KK29: =LOOKUP(KK28,InputS!35:35,InputS!41:41) -> 0.005 | KL29: =LOOKUP(KL28,InputS!35:35,InputS!41:41) -> 0.005 | KM29: =LOOKUP(KM28,InputS!35:35,InputS!41:41) -> 0.005 | KN29: =LOOKUP(KN28,InputS!35:35,InputS!41:41) -> 0.005 | KO29: =LOOKUP(KO28,InputS!35:35,InputS!41:41) -> 0.005 | KP29: =LOOKUP(KP28,InputS!35:35,InputS!41:41) -> 0.005 | KQ29: =LOOKUP(KQ28,InputS!35:35,InputS!41:41) -> 0.005 | KR29: =LOOKUP(KR28,InputS!35:35,InputS!41:41) -> 0.005 | KS29: =LOOKUP(KS28,InputS!35:35,InputS!41:41) -> 0.005 | KT29: =LOOKUP(KT28,InputS!35:35,InputS!41:41) -> 0.005 | KU29: =LOOKUP(KU28,InputS!35:35,InputS!41:41) -> 0.005 | KV29: =LOOKUP(KV28,InputS!35:35,InputS!41:41) -> 0.005 | KW29: =LOOKUP(KW28,InputS!35:35,InputS!41:41) -> 0.005 | KX29: =LOOKUP(KX28,InputS!35:35,InputS!41:41) -> 0.005 | KY29: =LOOKUP(KY28,InputS!35:35,InputS!41:41) -> 0.005 | KZ29: =LOOKUP(KZ28,InputS!35:35,InputS!41:41) -> 0.005 | LA29: =LOOKUP(LA28,InputS!35:35,InputS!41:41) -> 0.005 | LB29: =LOOKUP(LB28,InputS!35:35,InputS!41:41) -> 0.005 | LC29: =LOOKUP(LC28,InputS!35:35,InputS!41:41) -> 0.005 | LD29: =LOOKUP(LD28,InputS!35:35,InputS!41:41) -> 0.005 | LE29: =LOOKUP(LE28,InputS!35:35,InputS!41:41) -> 0.005 | LF29: =LOOKUP(LF28,InputS!35:35,InputS!41:41) -> 0.005 | LG29: =LOOKUP(LG28,InputS!35:35,InputS!41:41) -> 0.005 | LH29: =LOOKUP(LH28,InputS!35:35,InputS!41:41) -> 0.005 | LI29: =LOOKUP(LI28,InputS!35:35,InputS!41:41) -> 0.005 | LJ29: =LOOKUP(LJ28,InputS!35:35,InputS!41:41) -> 0.005 | LK29: =LOOKUP(LK28,InputS!35:35,InputS!41:41) -> 0.005 | LL29: =LOOKUP(LL28,InputS!35:35,InputS!41:41) -> 0.005 | LM29: =LOOKUP(LM28,InputS!35:35,InputS!41:41) -> 0.005 | LN29: =LOOKUP(LN28,InputS!35:35,InputS!41:41) -> 0.005 | LO29: =LOOKUP(LO28,InputS!35:35,InputS!41:41) -> 0.005 | LP29: =LOOKUP(LP28,InputS!35:35,InputS!41:41) -> 0.005 | LQ29: =LOOKUP(LQ28,InputS!35:35,InputS!41:41) -> 0.005 | LR29: =LOOKUP(LR28,InputS!35:35,InputS!41:41) -> 0.005 | LS29: =LOOKUP(LS28,InputS!35:35,InputS!41:41) -> 0.005 | LT29: =LOOKUP(LT28,InputS!35:35,InputS!41:41) -> 0.005 | LU29: =LOOKUP(LU28,InputS!35:35,InputS!41:41) -> 0.005 | LV29: =LOOKUP(LV28,InputS!35:35,InputS!41:41) -> 0.005 | LW29: =LOOKUP(LW28,InputS!35:35,InputS!41:41) -> 0.005 | LX29: =LOOKUP(LX28,InputS!35:35,InputS!41:41) -> 0.005 | LY29: =LOOKUP(LY28,InputS!35:35,InputS!41:41) -> 0.005 | LZ29: =LOOKUP(LZ28,InputS!35:35,InputS!41:41) -> 0.005 | MA29: =LOOKUP(MA28,InputS!35:35,InputS!41:41) -> 0.005 | MB29: =LOOKUP(MB28,InputS!35:35,InputS!41:41) -> 0.005 | MC29: =LOOKUP(MC28,InputS!35:35,InputS!41:41) -> 0.005 | MD29: =LOOKUP(MD28,InputS!35:35,InputS!41:41) -> 0.005 | ME29: =LOOKUP(ME28,InputS!35:35,InputS!41:41) -> 0.005 | MF29: =LOOKUP(MF28,InputS!35:35,InputS!41:41) -> 0.005 | MG29: =LOOKUP(MG28,InputS!35:35,InputS!41:41) -> 0.005 | MH29: =LOOKUP(MH28,InputS!35:35,InputS!41:41) -> 0.005 | MI29: =LOOKUP(MI28,InputS!35:35,InputS!41:41) -> 0.005 | MJ29: =LOOKUP(MJ28,InputS!35:35,InputS!41:41) -> 0.005 | MK29: =LOOKUP(MK28,InputS!35:35,InputS!41:41) -> 0.005 | ML29: =LOOKUP(ML28,InputS!35:35,InputS!41:41) -> 0.005 | MM29: =LOOKUP(MM28,InputS!35:35,InputS!41:41) -> 0.005 | MN29: =LOOKUP(MN28,InputS!35:35,InputS!41:41) -> 0.005 | MO29: =LOOKUP(MO28,InputS!35:35,InputS!41:41) -> 0.005 | MP29: =LOOKUP(MP28,InputS!35:35,InputS!41:41) -> 0.005 | MQ29: =LOOKUP(MQ28,InputS!35:35,InputS!41:41) -> 0.005 | MR29: =LOOKUP(MR28,InputS!35:35,InputS!41:41) -> 0.005 | MS29: =LOOKUP(MS28,InputS!35:35,InputS!41:41) -> 0.005 | MT29: =LOOKUP(MT28,InputS!35:35,InputS!41:41) -> 0.005 | MU29: =LOOKUP(MU28,InputS!35:35,InputS!41:41) -> 0.005 | MV29: =LOOKUP(MV28,InputS!35:35,InputS!41:41) -> 0.005 | MW29: =LOOKUP(MW28,InputS!35:35,InputS!41:41) -> 0.005 | MX29: =LOOKUP(MX28,InputS!35:35,InputS!41:41) -> 0.005 | MY29: =LOOKUP(MY28,InputS!35:35,InputS!41:41) -> 0.005 | MZ29: =LOOKUP(MZ28,InputS!35:35,InputS!41:41) -> 0.005 | NA29: =LOOKUP(NA28,InputS!35:35,InputS!41:41) -> 0.005 | NB29: =LOOKUP(NB28,InputS!35:35,InputS!41:41) -> 0.005 | NC29: =LOOKUP(NC28,InputS!35:35,InputS!41:41) -> 0.005 | ND29: =LOOKUP(ND28,InputS!35:35,InputS!41:41) -> 0.005 | NE29: =LOOKUP(NE28,InputS!35:35,InputS!41:41) -> 0.005 | NF29: =LOOKUP(NF28,InputS!35:35,InputS!41:41) -> 0.005 | NG29: =LOOKUP(NG28,InputS!35:35,InputS!41:41) -> 0.005 | NH29: =LOOKUP(NH28,InputS!35:35,InputS!41:41) -> 0.005 | NI29: =LOOKUP(NI28,InputS!35:35,InputS!41:41) -> 0.005 | NJ29: =LOOKUP(NJ28,InputS!35:35,InputS!41:41) -> 0.005 | NK29: =LOOKUP(NK28,InputS!35:35,InputS!41:41) -> 0.005 | NL29: =LOOKUP(NL28,InputS!35:35,InputS!41:41) -> 0.005 | NM29: =LOOKUP(NM28,InputS!35:35,InputS!41:41) -> 0.005 | NN29: =LOOKUP(NN28,InputS!35:35,InputS!41:41) -> 0.005 | NO29: =LOOKUP(NO28,InputS!35:35,InputS!41:41) -> 0.005 | NP29: =LOOKUP(NP28,InputS!35:35,InputS!41:41) -> 0.005 | NQ29: =LOOKUP(NQ28,InputS!35:35,InputS!41:41) -> 0.005 | NR29: =LOOKUP(NR28,InputS!35:35,InputS!41:41) -> 0.005 | NS29: =LOOKUP(NS28,InputS!35:35,InputS!41:41) -> 0.005 | NT29: =LOOKUP(NT28,InputS!35:35,InputS!41:41) -> 0.005 | NU29: =LOOKUP(NU28,InputS!35:35,InputS!41:41) -> 0.005 | NV29: =LOOKUP(NV28,InputS!35:35,InputS!41:41) -> 0.005 | NW29: =LOOKUP(NW28,InputS!35:35,InputS!41:41) -> 0.005 | NX29: =LOOKUP(NX28,InputS!35:35,InputS!41:41) -> 0.005 | NY29: =LOOKUP(NY28,InputS!35:35,InputS!41:41) -> 0.005 | NZ29: =LOOKUP(NZ28,InputS!35:35,InputS!41:41) -> 0.005 | OA29: =LOOKUP(OA28,InputS!35:35,InputS!41:41) -> 0.005 | OB29: =LOOKUP(OB28,InputS!35:35,InputS!41:41) -> 0.005 | OC29: =LOOKUP(OC28,InputS!35:35,InputS!41:41) -> 0.005 | OD29: =LOOKUP(OD28,InputS!35:35,InputS!41:41) -> 0.005 | OE29: =LOOKUP(OE28,InputS!35:35,InputS!41:41) -> 0.005 | OF29: =LOOKUP(OF28,InputS!35:35,InputS!41:41) -> 0.005 | OG29: =LOOKUP(OG28,InputS!35:35,InputS!41:41) -> 0.005 | OH29: =LOOKUP(OH28,InputS!35:35,InputS!41:41) -> 0.005 | OI29: =LOOKUP(OI28,InputS!35:35,InputS!41:41) -> 0.005 | OJ29: =LOOKUP(OJ28,InputS!35:35,InputS!41:41) -> 0.005 | OK29: =LOOKUP(OK28,InputS!35:35,InputS!41:41) -> 0.005 | OL29: =LOOKUP(OL28,InputS!35:35,InputS!41:41) -> 0.005 | OM29: =LOOKUP(OM28,InputS!35:35,InputS!41:41) -> 0.005 | ON29: =LOOKUP(ON28,InputS!35:35,InputS!41:41) -> 0.005 | OO29: =LOOKUP(OO28,InputS!35:35,InputS!41:41) -> 0.005 | OP29: =LOOKUP(OP28,InputS!35:35,InputS!41:41) -> 0.005 | OQ29: =LOOKUP(OQ28,InputS!35:35,InputS!41:41) -> 0.005 | OR29: =LOOKUP(OR28,InputS!35:35,InputS!41:41) -> 0.005 | OS29: =LOOKUP(OS28,InputS!35:35,InputS!41:41) -> 0.005 | OT29: =LOOKUP(OT28,InputS!35:35,InputS!41:41) -> 0.005 | OU29: =LOOKUP(OU28,InputS!35:35,InputS!41:41) -> 0.005 | OV29: =LOOKUP(OV28,InputS!35:35,InputS!41:41) -> 0.005 | OW29: =LOOKUP(OW28,InputS!35:35,InputS!41:41) -> 0.005 | OX29: =LOOKUP(OX28,InputS!35:35,InputS!41:41) -> 0.005 | OY29: =LOOKUP(OY28,InputS!35:35,InputS!41:41) -> 0.005 | OZ29: =LOOKUP(OZ28,InputS!35:35,InputS!41:41) -> 0.005 | PA29: =LOOKUP(PA28,InputS!35:35,InputS!41:41) -> 0.005 | PB29: =LOOKUP(PB28,InputS!35:35,InputS!41:41) -> 0.005 | PC29: =LOOKUP(PC28,InputS!35:35,InputS!41:41) -> 0.005 | PD29: =LOOKUP(PD28,InputS!35:35,InputS!41:41) -> 0.005 | PE29: =LOOKUP(PE28,InputS!35:35,InputS!41:41) -> 0.005 | PF29: =LOOKUP(PF28,InputS!35:35,InputS!41:41) -> 0.005 | PG29: =LOOKUP(PG28,InputS!35:35,InputS!41:41) -> 0.005 | PH29: =LOOKUP(PH28,InputS!35:35,InputS!41:41) -> 0.005 | PI29: =LOOKUP(PI28,InputS!35:35,InputS!41:41) -> 0.005 | PJ29: =LOOKUP(PJ28,InputS!35:35,InputS!41:41) -> 0.005 | PK29: =LOOKUP(PK28,InputS!35:35,InputS!41:41) -> 0.005 | PL29: =LOOKUP(PL28,InputS!35:35,InputS!41:41) -> 0.005 | PM29: =LOOKUP(PM28,InputS!35:35,InputS!41:41) -> 0.005 | PN29: =LOOKUP(PN28,InputS!35:35,InputS!41:41) -> 0.005 | PO29: =LOOKUP(PO28,InputS!35:35,InputS!41:41) -> 0.005 | PP29: =LOOKUP(PP28,InputS!35:35,InputS!41:41) -> 0.005 | PQ29: =LOOKUP(PQ28,InputS!35:35,InputS!41:41) -> 0.005 | PR29: =LOOKUP(PR28,InputS!35:35,InputS!41:41) -> 0.005 | PS29: =LOOKUP(PS28,InputS!35:35,InputS!41:41) -> 0.005 | PT29: =LOOKUP(PT28,InputS!35:35,InputS!41:41) -> 0.005 | PU29: =LOOKUP(PU28,InputS!35:35,InputS!41:41) -> 0.005 | PV29: =LOOKUP(PV28,InputS!35:35,InputS!41:41) -> 0.005 | PW29: =LOOKUP(PW28,InputS!35:35,InputS!41:41) -> 0.005 | PX29: =LOOKUP(PX28,InputS!35:35,InputS!41:41) -> 0.005 | PY29: =LOOKUP(PY28,InputS!35:35,InputS!41:41) -> 0.005 | PZ29: =LOOKUP(PZ28,InputS!35:35,InputS!41:41) -> 0.005 | QA29: =LOOKUP(QA28,InputS!35:35,InputS!41:41) -> 0.005 | QB29: =LOOKUP(QB28,InputS!35:35,InputS!41:41) -> 0.005 | QC29: =LOOKUP(QC28,InputS!35:35,InputS!41:41) -> 0.005 | QD29: =LOOKUP(QD28,InputS!35:35,InputS!41:41) -> 0.005 | QE29: =LOOKUP(QE28,InputS!35:35,InputS!41:41) -> 0.005 | QF29: =LOOKUP(QF28,InputS!35:35,InputS!41:41) -> 0.005 | QG29: =LOOKUP(QG28,InputS!35:35,InputS!41:41) -> 0.005 | QH29: =LOOKUP(QH28,InputS!35:35,InputS!41:41) -> 0.005 | QI29: =LOOKUP(QI28,InputS!35:35,InputS!41:41) -> 0.005 | QJ29: =LOOKUP(QJ28,InputS!35:35,InputS!41:41) -> 0.005 | QK29: =LOOKUP(QK28,InputS!35:35,InputS!41:41) -> 0.005 | QL29: =LOOKUP(QL28,InputS!35:35,InputS!41:41) -> 0.005 | QM29: =LOOKUP(QM28,InputS!35:35,InputS!41:41) -> 0.005 | QN29: =LOOKUP(QN28,InputS!35:35,InputS!41:41) -> 0.005 | QO29: =LOOKUP(QO28,InputS!35:35,InputS!41:41) -> 0.005 | QP29: =LOOKUP(QP28,InputS!35:35,InputS!41:41) -> 0.005 | QQ29: =LOOKUP(QQ28,InputS!35:35,InputS!41:41) -> 0.005 | QR29: =LOOKUP(QR28,InputS!35:35,InputS!41:41) -> 0.005 | QS29: =LOOKUP(QS28,InputS!35:35,InputS!41:41) -> 0.005 | QT29: =LOOKUP(QT28,InputS!35:35,InputS!41:41) -> 0.005 | QU29: =LOOKUP(QU28,InputS!35:35,InputS!41:41) -> 0.005 | QV29: =LOOKUP(QV28,InputS!35:35,InputS!41:41) -> 0.005 | QW29: =LOOKUP(QW28,InputS!35:35,InputS!41:41) -> 0.005 | QX29: =LOOKUP(QX28,InputS!35:35,InputS!41:41) -> 0.005 | QY29: =LOOKUP(QY28,InputS!35:35,InputS!41:41) -> 0.005 | QZ29: =LOOKUP(QZ28,InputS!35:35,InputS!41:41) -> 0.005 | RA29: =LOOKUP(RA28,InputS!35:35,InputS!41:41) -> 0.005 | RB29: =LOOKUP(RB28,InputS!35:35,InputS!41:41) -> 0.005 | RC29: =LOOKUP(RC28,InputS!35:35,InputS!41:41) -> 0.005 | RD29: =LOOKUP(RD28,InputS!35:35,InputS!41:41) -> 0.005 | RE29: =LOOKUP(RE28,InputS!35:35,InputS!41:41) -> 0.005 | RF29: =LOOKUP(RF28,InputS!35:35,InputS!41:41) -> 0.005 | RG29: =LOOKUP(RG28,InputS!35:35,InputS!41:41) -> 0.005 | RH29: =LOOKUP(RH28,InputS!35:35,InputS!41:41) -> 0.005 | RI29: =LOOKUP(RI28,InputS!35:35,InputS!41:41) -> 0.005 | RJ29: =LOOKUP(RJ28,InputS!35:35,InputS!41:41) -> 0.005 | RK29: =LOOKUP(RK28,InputS!35:35,InputS!41:41) -> 0.005 | RL29: =LOOKUP(RL28,InputS!35:35,InputS!41:41) -> 0.005 | RM29: =LOOKUP(RM28,InputS!35:35,InputS!41:41) -> 0.005 | RN29: =LOOKUP(RN28,InputS!35:35,InputS!41:41) -> 0.005 | RO29: =LOOKUP(RO28,InputS!35:35,InputS!41:41) -> 0.005 | RP29: =LOOKUP(RP28,InputS!35:35,InputS!41:41) -> 0.005 | RQ29: =LOOKUP(RQ28,InputS!35:35,InputS!41:41) -> 0.005 | RR29: =LOOKUP(RR28,InputS!35:35,InputS!41:41) -> 0.005 | RS29: =LOOKUP(RS28,InputS!35:35,InputS!41:41) -> 0.005 | RT29: =LOOKUP(RT28,InputS!35:35,InputS!41:41) -> 0.005 | RU29: =LOOKUP(RU28,InputS!35:35,InputS!41:41) -> 0.005 | RV29: =LOOKUP(RV28,InputS!35:35,InputS!41:41) -> 0.005 | RW29: =LOOKUP(RW28,InputS!35:35,InputS!41:41) -> 0.005 | RX29: =LOOKUP(RX28,InputS!35:35,InputS!41:41) -> 0.005 | RY29: =LOOKUP(RY28,InputS!35:35,InputS!41:41) -> 0.005 | RZ29: =LOOKUP(RZ28,InputS!35:35,InputS!41:41) -> 0.005 | SA29: =LOOKUP(SA28,InputS!35:35,InputS!41:41) -> 0.005 | SB29: =LOOKUP(SB28,InputS!35:35,InputS!41:41) -> 0.005 | SC29: =LOOKUP(SC28,InputS!35:35,InputS!41:41) -> 0.005 | SD29: =LOOKUP(SD28,InputS!35:35,InputS!41:41) -> 0.005 | SE29: =LOOKUP(SE28,InputS!35:35,InputS!41:41) -> 0.005 | SF29: =LOOKUP(SF28,InputS!35:35,InputS!41:41) -> 0.005 | SG29: =LOOKUP(SG28,InputS!35:35,InputS!41:41) -> 0.005 | SH29: =LOOKUP(SH28,InputS!35:35,InputS!41:41) -> 0.005 | SI29: =LOOKUP(SI28,InputS!35:35,InputS!41:41) -> 0.005 | SJ29: =LOOKUP(SJ28,InputS!35:35,InputS!41:41) -> 0.005 | SK29: =LOOKUP(SK28,InputS!35:35,InputS!41:41) -> 0.005 | SL29: =LOOKUP(SL28,InputS!35:35,InputS!41:41) -> 0.005 | SM29: =LOOKUP(SM28,InputS!35:35,InputS!41:41) -> 0.005 | SN29: =LOOKUP(SN28,InputS!35:35,InputS!41:41) -> 0.005 | SO29: =LOOKUP(SO28,InputS!35:35,InputS!41:41) -> 0.005 | SP29: =LOOKUP(SP28,InputS!35:35,InputS!41:41) -> 0.005 | SQ29: =LOOKUP(SQ28,InputS!35:35,InputS!41:41) -> 0.005
D30: Monthly Degradation | G30: % p.p. | L30: =(1+L29)^(1/Months)-1 -> 0 | M30: 0 | N30: 0 | O30: 0 | P30: 0 | Q30: 0 | R30: 0 | S30: 0 | T30: 0 | U30: 0 | V30: 0 | W30: 0.0006228618011 | X30: 0.0006228618011 | Y30: 0.0006228618011 | Z30: 0.0006228618011 | AA30: 0.0006228618011 | AB30: 0.0006228618011 | AC30: 0.0006228618011 | AD30: 0.0006228618011 | AE30: 0.0006228618011 | AF30: 0.0006228618011 | AG30: 0.0006228618011 | AH30: 0.0006228618011 | AI30: 0.0004157148447 | AJ30: 0.0004157148447 | AK30: 0.0004157148447 | AL30: 0.0004157148447 | AM30: 0.0004157148447 | AN30: 0.0004157148447 | AO30: 0.0004157148447 | AP30: 0.0004157148447 | AQ30: 0.0004157148447 | AR30: 0.0004157148447 | AS30: 0.0004157148447 | AT30: 0.0004157148447 | AU30: 0.0004157148447 | AV30: 0.0004157148447 | AW30: 0.0004157148447 | AX30: 0.0004157148447 | AY30: 0.0004157148447 | AZ30: 0.0004157148447 | BA30: 0.0004157148447 | BB30: 0.0004157148447 | BC30: 0.0004157148447 | BD30: 0.0004157148447 | BE30: 0.0004157148447 | BF30: 0.0004157148447 | BG30: 0.0004157148447 | BH30: 0.0004157148447 | BI30: 0.0004157148447 | BJ30: 0.0004157148447 | BK30: 0.0004157148447 | BL30: 0.0004157148447 | BM30: 0.0004157148447 | BN30: 0.0004157148447 | BO30: 0.0004157148447 | BP30: 0.0004157148447 | BQ30: 0.0004157148447 | BR30: 0.0004157148447 | BS30: 0.0004157148447 | BT30: 0.0004157148447 | BU30: 0.0004157148447 | BV30: 0.0004157148447 | BW30: 0.0004157148447 | BX30: =(1+BX29)^(1/Months)-1 -> 0.0004157148447 | BY30: 0.0004157148447 | BZ30: 0.0004157148447 | CA30: 0.0004157148447 | CB30: 0.0004157148447 | CC30: 0.0004157148447 | CD30: 0.0004157148447 | CE30: 0.0004157148447 | CF30: 0.0004157148447 | CG30: 0.0004157148447 | CH30: 0.0004157148447 | CI30: 0.0004157148447 | CJ30: 0.0004157148447 | CK30: 0.0004157148447 | CL30: 0.0004157148447 | CM30: 0.0004157148447 | CN30: 0.0004157148447 | CO30: 0.0004157148447 | CP30: 0.0004157148447 | CQ30: 0.0004157148447 | CR30: 0.0004157148447 | CS30: 0.0004157148447 | CT30: 0.0004157148447 | CU30: 0.0004157148447 | CV30: 0.0004157148447 | CW30: 0.0004157148447 | CX30: 0.0004157148447 | CY30: 0.0004157148447 | CZ30: 0.0004157148447 | DA30: 0.0004157148447 | DB30: 0.0004157148447 | DC30: 0.0004157148447 | DD30: 0.0004157148447 | DE30: 0.0004157148447 | DF30: 0.0004157148447 | DG30: 0.0004157148447 | DH30: 0.0004157148447 | DI30: 0.0004157148447 | DJ30: 0.0004157148447 | DK30: 0.0004157148447 | DL30: 0.0004157148447 | DM30: 0.0004157148447 | DN30: 0.0004157148447 | DO30: 0.0004157148447 | DP30: 0.0004157148447 | DQ30: 0.0004157148447 | DR30: 0.0004157148447 | DS30: 0.0004157148447 | DT30: 0.0004157148447 | DU30: 0.0004157148447 | DV30: 0.0004157148447 | DW30: 0.0004157148447 | DX30: 0.0004157148447 | DY30: 0.0004157148447 | DZ30: 0.0004157148447 | EA30: 0.0004157148447 | EB30: 0.0004157148447 | EC30: 0.0004157148447 | ED30: 0.0004157148447 | EE30: 0.0004157148447 | EF30: 0.0004157148447 | EG30: 0.0004157148447 | EH30: 0.0004157148447 | EI30: 0.0004157148447 | EJ30: =(1+EJ29)^(1/Months)-1 -> 0.0004157148447 | EK30: 0.0004157148447 | EL30: 0.0004157148447 | EM30: 0.0004157148447 | EN30: 0.0004157148447 | EO30: 0.0004157148447 | EP30: 0.0004157148447 | EQ30: 0.0004157148447 | ER30: 0.0004157148447 | ES30: 0.0004157148447 | ET30: 0.0004157148447 | EU30: 0.0004157148447 | EV30: 0.0004157148447 | EW30: 0.0004157148447 | EX30: 0.0004157148447 | EY30: 0.0004157148447 | EZ30: 0.0004157148447 | FA30: 0.0004157148447 | FB30: 0.0004157148447 | FC30: 0.0004157148447 | FD30: 0.0004157148447 | FE30: 0.0004157148447 | FF30: 0.0004157148447 | FG30: 0.0004157148447 | FH30: 0.0004157148447 | FI30: 0.0004157148447 | FJ30: 0.0004157148447 | FK30: 0.0004157148447 | FL30: 0.0004157148447 | FM30: 0.0004157148447 | FN30: 0.0004157148447 | FO30: 0.0004157148447 | FP30: 0.0004157148447 | FQ30: 0.0004157148447 | FR30: 0.0004157148447 | FS30: 0.0004157148447 | FT30: 0.0004157148447 | FU30: 0.0004157148447 | FV30: 0.0004157148447 | FW30: 0.0004157148447 | FX30: 0.0004157148447 | FY30: 0.0004157148447 | FZ30: 0.0004157148447 | GA30: 0.0004157148447 | GB30: 0.0004157148447 | GC30: 0.0004157148447 | GD30: 0.0004157148447 | GE30: 0.0004157148447 | GF30: 0.0004157148447 | GG30: 0.0004157148447 | GH30: 0.0004157148447 | GI30: 0.0004157148447 | GJ30: 0.0004157148447 | GK30: 0.0004157148447 | GL30: 0.0004157148447 | GM30: 0.0004157148447 | GN30: 0.0004157148447 | GO30: 0.0004157148447 | GP30: 0.0004157148447 | GQ30: 0.0004157148447 | GR30: 0.0004157148447 | GS30: 0.0004157148447 | GT30: 0.0004157148447 | GU30: 0.0004157148447 | GV30: =(1+GV29)^(1/Months)-1 -> 0.0004157148447 | GW30: 0.0004157148447 | GX30: 0.0004157148447 | GY30: 0.0004157148447 | GZ30: 0.0004157148447 | HA30: 0.0004157148447 | HB30: 0.0004157148447 | HC30: 0.0004157148447 | HD30: 0.0004157148447 | HE30: 0.0004157148447 | HF30: 0.0004157148447 | HG30: 0.0004157148447 | HH30: 0.0004157148447 | HI30: 0.0004157148447 | HJ30: 0.0004157148447 | HK30: 0.0004157148447 | HL30: 0.0004157148447 | HM30: 0.0004157148447 | HN30: 0.0004157148447 | HO30: 0.0004157148447 | HP30: 0.0004157148447 | HQ30: 0.0004157148447 | HR30: 0.0004157148447 | HS30: 0.0004157148447 | HT30: 0.0004157148447 | HU30: 0.0004157148447 | HV30: 0.0004157148447 | HW30: 0.0004157148447 | HX30: 0.0004157148447 | HY30: 0.0004157148447 | HZ30: 0.0004157148447 | IA30: 0.0004157148447 | IB30: 0.0004157148447 | IC30: 0.0004157148447 | ID30: 0.0004157148447 | IE30: 0.0004157148447 | IF30: 0.0004157148447 | IG30: 0.0004157148447 | IH30: 0.0004157148447 | II30: 0.0004157148447 | IJ30: 0.0004157148447 | IK30: 0.0004157148447 | IL30: 0.0004157148447 | IM30: 0.0004157148447 | IN30: 0.0004157148447 | IO30: 0.0004157148447 | IP30: 0.0004157148447 | IQ30: 0.0004157148447 | IR30: 0.0004157148447 | IS30: 0.0004157148447 | IT30: 0.0004157148447 | IU30: 0.0004157148447 | IV30: 0.0004157148447 | IW30: 0.0004157148447 | IX30: 0.0004157148447 | IY30: 0.0004157148447 | IZ30: 0.0004157148447 | JA30: 0.0004157148447 | JB30: 0.0004157148447 | JC30: 0.0004157148447 | JD30: 0.0004157148447 | JE30: 0.0004157148447 | JF30: 0.0004157148447 | JG30: 0.0004157148447 | JH30: =(1+JH29)^(1/Months)-1 -> 0.0004157148447 | JI30: 0.0004157148447 | JJ30: 0.0004157148447 | JK30: 0.0004157148447 | JL30: 0.0004157148447 | JM30: 0.0004157148447 | JN30: 0.0004157148447 | JO30: 0.0004157148447 | JP30: 0.0004157148447 | JQ30: 0.0004157148447 | JR30: 0.0004157148447 | JS30: 0.0004157148447 | JT30: 0.0004157148447 | JU30: 0.0004157148447 | JV30: 0.0004157148447 | JW30: 0.0004157148447 | JX30: 0.0004157148447 | JY30: 0.0004157148447 | JZ30: 0.0004157148447 | KA30: 0.0004157148447 | KB30: 0.0004157148447 | KC30: 0.0004157148447 | KD30: 0.0004157148447 | KE30: 0.0004157148447 | KF30: 0.0004157148447 | KG30: 0.0004157148447 | KH30: 0.0004157148447 | KI30: 0.0004157148447 | KJ30: 0.0004157148447 | KK30: 0.0004157148447 | KL30: 0.0004157148447 | KM30: 0.0004157148447 | KN30: 0.0004157148447 | KO30: 0.0004157148447 | KP30: 0.0004157148447 | KQ30: 0.0004157148447 | KR30: 0.0004157148447 | KS30: 0.0004157148447 | KT30: 0.0004157148447 | KU30: 0.0004157148447 | KV30: 0.0004157148447 | KW30: 0.0004157148447 | KX30: 0.0004157148447 | KY30: 0.0004157148447 | KZ30: 0.0004157148447 | LA30: 0.0004157148447 | LB30: 0.0004157148447 | LC30: 0.0004157148447 | LD30: 0.0004157148447 | LE30: 0.0004157148447 | LF30: 0.0004157148447 | LG30: 0.0004157148447 | LH30: 0.0004157148447 | LI30: 0.0004157148447 | LJ30: 0.0004157148447 | LK30: 0.0004157148447 | LL30: 0.0004157148447 | LM30: 0.0004157148447 | LN30: 0.0004157148447 | LO30: 0.0004157148447 | LP30: 0.0004157148447 | LQ30: 0.0004157148447 | LR30: 0.0004157148447 | LS30: 0.0004157148447 | LT30: =(1+LT29)^(1/Months)-1 -> 0.0004157148447 | LU30: 0.0004157148447 | LV30: 0.0004157148447 | LW30: 0.0004157148447 | LX30: 0.0004157148447 | LY30: 0.0004157148447 | LZ30: 0.0004157148447 | MA30: 0.0004157148447 | MB30: 0.0004157148447 | MC30: 0.0004157148447 | MD30: 0.0004157148447 | ME30: 0.0004157148447 | MF30: 0.0004157148447 | MG30: 0.0004157148447 | MH30: 0.0004157148447 | MI30: 0.0004157148447 | MJ30: 0.0004157148447 | MK30: 0.0004157148447 | ML30: 0.0004157148447 | MM30: 0.0004157148447 | MN30: 0.0004157148447 | MO30: 0.0004157148447 | MP30: 0.0004157148447 | MQ30: 0.0004157148447 | MR30: 0.0004157148447 | MS30: 0.0004157148447 | MT30: 0.0004157148447 | MU30: 0.0004157148447 | MV30: 0.0004157148447 | MW30: 0.0004157148447 | MX30: 0.0004157148447 | MY30: 0.0004157148447 | MZ30: 0.0004157148447 | NA30: 0.0004157148447 | NB30: 0.0004157148447 | NC30: 0.0004157148447 | ND30: 0.0004157148447 | NE30: 0.0004157148447 | NF30: 0.0004157148447 | NG30: 0.0004157148447 | NH30: 0.0004157148447 | NI30: 0.0004157148447 | NJ30: 0.0004157148447 | NK30: 0.0004157148447 | NL30: 0.0004157148447 | NM30: 0.0004157148447 | NN30: 0.0004157148447 | NO30: 0.0004157148447 | NP30: 0.0004157148447 | NQ30: 0.0004157148447 | NR30: 0.0004157148447 | NS30: 0.0004157148447 | NT30: 0.0004157148447 | NU30: 0.0004157148447 | NV30: 0.0004157148447 | NW30: 0.0004157148447 | NX30: 0.0004157148447 | NY30: 0.0004157148447 | NZ30: 0.0004157148447 | OA30: 0.0004157148447 | OB30: 0.0004157148447 | OC30: 0.0004157148447 | OD30: 0.0004157148447 | OE30: 0.0004157148447 | OF30: =(1+OF29)^(1/Months)-1 -> 0.0004157148447 | OG30: 0.0004157148447 | OH30: 0.0004157148447 | OI30: 0.0004157148447 | OJ30: 0.0004157148447 | OK30: 0.0004157148447 | OL30: 0.0004157148447 | OM30: 0.0004157148447 | ON30: 0.0004157148447 | OO30: 0.0004157148447 | OP30: 0.0004157148447 | OQ30: 0.0004157148447 | OR30: 0.0004157148447 | OS30: 0.0004157148447 | OT30: 0.0004157148447 | OU30: 0.0004157148447 | OV30: 0.0004157148447 | OW30: 0.0004157148447 | OX30: 0.0004157148447 | OY30: 0.0004157148447 | OZ30: 0.0004157148447 | PA30: 0.0004157148447 | PB30: 0.0004157148447 | PC30: 0.0004157148447 | PD30: 0.0004157148447 | PE30: 0.0004157148447 | PF30: 0.0004157148447 | PG30: 0.0004157148447 | PH30: 0.0004157148447 | PI30: 0.0004157148447 | PJ30: 0.0004157148447 | PK30: 0.0004157148447 | PL30: 0.0004157148447 | PM30: 0.0004157148447 | PN30: 0.0004157148447 | PO30: 0.0004157148447 | PP30: 0.0004157148447 | PQ30: 0.0004157148447 | PR30: 0.0004157148447 | PS30: 0.0004157148447 | PT30: 0.0004157148447 | PU30: 0.0004157148447 | PV30: 0.0004157148447 | PW30: 0.0004157148447 | PX30: 0.0004157148447 | PY30: 0.0004157148447 | PZ30: 0.0004157148447 | QA30: 0.0004157148447 | QB30: 0.0004157148447 | QC30: 0.0004157148447 | QD30: 0.0004157148447 | QE30: 0.0004157148447 | QF30: 0.0004157148447 | QG30: 0.0004157148447 | QH30: 0.0004157148447 | QI30: 0.0004157148447 | QJ30: 0.0004157148447 | QK30: 0.0004157148447 | QL30: 0.0004157148447 | QM30: 0.0004157148447 | QN30: 0.0004157148447 | QO30: 0.0004157148447 | QP30: 0.0004157148447 | QQ30: 0.0004157148447 | QR30: =(1+QR29)^(1/Months)-1 -> 0.0004157148447 | QS30: 0.0004157148447 | QT30: 0.0004157148447 | QU30: 0.0004157148447 | QV30: 0.0004157148447 | QW30: 0.0004157148447 | QX30: 0.0004157148447 | QY30: 0.0004157148447 | QZ30: 0.0004157148447 | RA30: 0.0004157148447 | RB30: 0.0004157148447 | RC30: 0.0004157148447 | RD30: 0.0004157148447 | RE30: 0.0004157148447 | RF30: 0.0004157148447 | RG30: 0.0004157148447 | RH30: 0.0004157148447 | RI30: 0.0004157148447 | RJ30: 0.0004157148447 | RK30: 0.0004157148447 | RL30: 0.0004157148447 | RM30: 0.0004157148447 | RN30: 0.0004157148447 | RO30: 0.0004157148447 | RP30: 0.0004157148447 | RQ30: 0.0004157148447 | RR30: 0.0004157148447 | RS30: 0.0004157148447 | RT30: 0.0004157148447 | RU30: 0.0004157148447 | RV30: 0.0004157148447 | RW30: 0.0004157148447 | RX30: 0.0004157148447 | RY30: 0.0004157148447 | RZ30: 0.0004157148447 | SA30: 0.0004157148447 | SB30: 0.0004157148447 | SC30: 0.0004157148447 | SD30: 0.0004157148447 | SE30: 0.0004157148447 | SF30: 0.0004157148447 | SG30: 0.0004157148447 | SH30: 0.0004157148447 | SI30: 0.0004157148447 | SJ30: 0.0004157148447 | SK30: 0.0004157148447 | SL30: 0.0004157148447 | SM30: 0.0004157148447 | SN30: 0.0004157148447 | SO30: 0.0004157148447 | SP30: 0.0004157148447 | SQ30: 0.0004157148447
D31: Monthly Degradation Index | G31: Index | K31: 1 | L31: =K31*(1-L30) -> 1 | M31: =L31*(1-M30) -> 1 | N31: 1 | O31: 1 | P31: 1 | Q31: 1 | R31: 1 | S31: 1 | T31: 1 | U31: 1 | V31: 1 | W31: 0.9993771382 | X31: 0.9987546644 | Y31: 0.9981325782 | Z31: 0.9975108796 | AA31: 0.9968895681 | AB31: 0.9962686437 | AC31: 0.995648106 | AD31: 0.9950279549 | AE31: 0.99440819 | AF31: 0.9937888111 | AG31: 0.993169818 | AH31: 0.9925512104 | AI31: 0.9921385922 | AJ31: 0.9917261454 | AK31: 0.9913138702 | AL31: 0.9909017663 | AM31: 0.9904898337 | AN31: 0.9900780724 | AO31: 0.9896664822 | AP31: 0.9892550632 | AQ31: 0.9888438151 | AR31: 0.9884327381 | AS31: 0.9880218319 | AT31: 0.9876110966 | AU31: 0.987200532 | AV31: 0.9867901381 | AW31: 0.9863799148 | AX31: 0.985969862 | AY31: 0.9855599797 | AZ31: 0.9851502678 | BA31: 0.9847407262 | BB31: 0.9843313548 | BC31: 0.9839221537 | BD31: 0.9835131226 | BE31: 0.9831042616 | BF31: 0.9826955706 | BG31: 0.9822870495 | BH31: 0.9818786982 | BI31: 0.9814705166 | BJ31: 0.9810625047 | BK31: 0.9806546625 | BL31: 0.9802469898 | BM31: 0.9798394866 | BN31: 0.9794321528 | BO31: 0.9790249883 | BP31: 0.978617993 | BQ31: 0.978211167 | BR31: 0.9778045101 | BS31: 0.9773980223 | BT31: 0.9769917034 | BU31: 0.9765855534 | BV31: 0.9761795723 | BW31: 0.97577376 | BX31: 0.9753681164 | BY31: =BX31*(1-BY30) -> 0.9749626414 | BZ31: 0.9745573349 | CA31: 0.974152197 | CB31: 0.9737472274 | CC31: 0.9733424263 | CD31: 0.9729377934 | CE31: 0.9725333287 | CF31: 0.9721290321 | CG31: 0.9717249037 | CH31: 0.9713209432 | CI31: 0.9709171507 | CJ31: 0.970513526 | CK31: 0.9701100691 | CL31: 0.9697067799 | CM31: 0.9693036584 | CN31: 0.9689007045 | CO31: 0.9684979181 | CP31: 0.9680952992 | CQ31: 0.9676928476 | CR31: 0.9672905633 | CS31: 0.9668884462 | CT31: 0.9664864964 | CU31: 0.9660847136 | CV31: 0.9656830978 | CW31: 0.965281649 | CX31: 0.9648803671 | CY31: 0.964479252 | CZ31: 0.9640783037 | DA31: 0.963677522 | DB31: 0.963276907 | DC31: 0.9628764585 | DD31: 0.9624761764 | DE31: 0.9620760608 | DF31: 0.9616761115 | DG31: 0.9612763284 | DH31: 0.9608767116 | DI31: 0.9604772609 | DJ31: 0.9600779762 | DK31: 0.9596788576 | DL31: 0.9592799048 | DM31: 0.9588811179 | DN31: 0.9584824968 | DO31: 0.9580840414 | DP31: 0.9576857517 | DQ31: 0.9572876275 | DR31: 0.9568896688 | DS31: 0.9564918756 | DT31: 0.9560942477 | DU31: 0.9556967851 | DV31: 0.9552994878 | DW31: 0.9549023556 | DX31: 0.9545053885 | DY31: 0.9541085864 | DZ31: 0.9537119493 | EA31: 0.9533154771 | EB31: 0.9529191697 | EC31: 0.9525230271 | ED31: 0.9521270491 | EE31: 0.9517312358 | EF31: 0.951335587 | EG31: 0.9509401026 | EH31: 0.9505447827 | EI31: 0.9501496272 | EJ31: 0.9497546358 | EK31: =EJ31*(1-EK30) -> 0.9493598087 | EL31: 0.9489651458 | EM31: 0.9485706469 | EN31: 0.948176312 | EO31: 0.947782141 | EP31: 0.9473881339 | EQ31: 0.9469942906 | ER31: 0.946600611 | ES31: 0.9462070951 | ET31: 0.9458137428 | EU31: 0.9454205539 | EV31: 0.9450275286 | EW31: 0.9446346666 | EX31: 0.944241968 | EY31: 0.9438494326 | EZ31: 0.9434570603 | FA31: 0.9430648512 | FB31: 0.9426728052 | FC31: 0.9422809221 | FD31: 0.9418892019 | FE31: 0.9414976446 | FF31: 0.9411062501 | FG31: 0.9407150182 | FH31: 0.940323949 | FI31: 0.9399330424 | FJ31: 0.9395422983 | FK31: 0.9391517166 | FL31: 0.9387612973 | FM31: 0.9383710403 | FN31: 0.9379809455 | FO31: 0.9375910129 | FP31: 0.9372012424 | FQ31: 0.9368116339 | FR31: 0.9364221874 | FS31: 0.9360329028 | FT31: 0.9356437801 | FU31: 0.935254819 | FV31: 0.9348660197 | FW31: 0.934477382 | FX31: 0.9340889059 | FY31: 0.9337005913 | FZ31: 0.9333124381 | GA31: 0.9329244463 | GB31: 0.9325366157 | GC31: 0.9321489464 | GD31: 0.9317614383 | GE31: 0.9313740912 | GF31: 0.9309869052 | GG31: 0.9305998801 | GH31: 0.9302130159 | GI31: 0.9298263125 | GJ31: 0.9294397699 | GK31: 0.929053388 | GL31: 0.9286671667 | GM31: 0.928281106 | GN31: 0.9278952058 | GO31: 0.927509466 | GP31: 0.9271238865 | GQ31: 0.9267384674 | GR31: 0.9263532084 | GS31: 0.9259681096 | GT31: 0.9255831709 | GU31: 0.9251983923 | GV31: 0.9248137736 | GW31: =GV31*(1-GW30) -> 0.9244293148 | GX31: 0.9240450158 | GY31: 0.9236608765 | GZ31: 0.923276897 | HA31: 0.9228930771 | HB31: 0.9225094167 | HC31: 0.9221259159 | HD31: 0.9217425745 | HE31: 0.9213593924 | HF31: 0.9209763696 | HG31: 0.9205935061 | HH31: 0.9202108017 | HI31: 0.9198282564 | HJ31: 0.9194458701 | HK31: 0.9190636428 | HL31: 0.9186815744 | HM31: 0.9182996649 | HN31: 0.9179179141 | HO31: 0.9175363219 | HP31: 0.9171548885 | HQ31: 0.9167736136 | HR31: 0.9163924972 | HS31: 0.9160115392 | HT31: 0.9156307396 | HU31: 0.9152500983 | HV31: 0.9148696153 | HW31: 0.9144892904 | HX31: 0.9141091236 | HY31: 0.9137291149 | HZ31: 0.9133492641 | IA31: 0.9129695713 | IB31: 0.9125900363 | IC31: 0.9122106591 | ID31: 0.9118314395 | IE31: 0.9114523777 | IF31: 0.9110734734 | IG31: 0.9106947266 | IH31: 0.9103161373 | II31: 0.9099377054 | IJ31: 0.9095594308 | IK31: 0.9091813134 | IL31: 0.9088033532 | IM31: 0.9084255502 | IN31: 0.9080479042 | IO31: 0.9076704152 | IP31: 0.9072930831 | IQ31: 0.9069159079 | IR31: 0.9065388895 | IS31: 0.9061620279 | IT31: 0.9057853229 | IU31: 0.9054087745 | IV31: 0.9050323826 | IW31: 0.9046561472 | IX31: 0.9042800682 | IY31: 0.9039041456 | IZ31: 0.9035283792 | JA31: 0.903152769 | JB31: 0.902777315 | JC31: 0.9024020171 | JD31: 0.9020268752 | JE31: 0.9016518892 | JF31: 0.9012770591 | JG31: 0.9009023849 | JH31: 0.9005278664 | JI31: =JH31*(1-JI30) -> 0.9001535036 | JJ31: 0.8997792964 | JK31: 0.8994052448 | JL31: 0.8990313487 | JM31: 0.898657608 | JN31: 0.8982840227 | JO31: 0.8979105927 | JP31: 0.8975373179 | JQ31: 0.8971641983 | JR31: 0.8967912339 | JS31: 0.8964184244 | JT31: 0.89604577 | JU31: 0.8956732705 | JV31: 0.8953009258 | JW31: 0.8949287359 | JX31: 0.8945567007 | JY31: 0.8941848202 | JZ31: 0.8938130943 | KA31: 0.893441523 | KB31: 0.8930701061 | KC31: 0.8926988436 | KD31: 0.8923277354 | KE31: 0.8919567815 | KF31: 0.8915859818 | KG31: 0.8912153363 | KH31: 0.8908448449 | KI31: 0.8904745074 | KJ31: 0.890104324 | KK31: 0.8897342944 | KL31: 0.8893644186 | KM31: 0.8889946966 | KN31: 0.8886251283 | KO31: 0.8882557137 | KP31: 0.8878864526 | KQ31: 0.887517345 | KR31: 0.8871483909 | KS31: 0.8867795901 | KT31: 0.8864109427 | KU31: 0.8860424485 | KV31: 0.8856741075 | KW31: 0.8853059196 | KX31: 0.8849378848 | KY31: 0.884570003 | KZ31: 0.8842022741 | LA31: 0.8838346981 | LB31: 0.8834672749 | LC31: 0.8831000045 | LD31: 0.8827328867 | LE31: 0.8823659215 | LF31: 0.8819991089 | LG31: 0.8816324488 | LH31: 0.8812659411 | LI31: 0.8808995857 | LJ31: 0.8805333827 | LK31: 0.8801673319 | LL31: 0.8798014333 | LM31: 0.8794356868 | LN31: 0.8790700923 | LO31: 0.8787046498 | LP31: 0.8783393592 | LQ31: 0.8779742205 | LR31: 0.8776092336 | LS31: 0.8772443984 | LT31: 0.8768797149 | LU31: =LT31*(1-LU30) -> 0.876515183 | LV31: 0.8761508026 | LW31: 0.8757865737 | LX31: 0.8754224962 | LY31: 0.8750585701 | LZ31: 0.8746947953 | MA31: 0.8743311717 | MB31: 0.8739676992 | MC31: 0.8736043779 | MD31: 0.8732412076 | ME31: 0.8728781882 | MF31: 0.8725153198 | MG31: 0.8721526022 | MH31: 0.8717900355 | MI31: 0.8714276194 | MJ31: 0.871065354 | MK31: 0.8707032392 | ML31: 0.8703412749 | MM31: 0.8699794612 | MN31: 0.8696177978 | MO31: 0.8692562848 | MP31: 0.868894922 | MQ31: 0.8685337095 | MR31: 0.8681726471 | MS31: 0.8678117349 | MT31: 0.8674509727 | MU31: 0.8670903604 | MV31: 0.8667298981 | MW31: 0.8663695856 | MX31: 0.8660094229 | MY31: 0.8656494099 | MZ31: 0.8652895466 | NA31: 0.8649298329 | NB31: 0.8645702687 | NC31: 0.864210854 | ND31: 0.8638515888 | NE31: 0.8634924728 | NF31: 0.8631335062 | NG31: 0.8627746888 | NH31: 0.8624160205 | NI31: 0.8620575014 | NJ31: 0.8616991313 | NK31: 0.8613409102 | NL31: 0.860982838 | NM31: 0.8606249146 | NN31: 0.8602671401 | NO31: 0.8599095142 | NP31: 0.8595520371 | NQ31: 0.8591947086 | NR31: 0.8588375286 | NS31: 0.858480497 | NT31: 0.858123614 | NU31: 0.8577668792 | NV31: 0.8574102928 | NW31: 0.8570538546 | NX31: 0.8566975646 | NY31: 0.8563414227 | NZ31: 0.8559854289 | OA31: 0.855629583 | OB31: 0.8552738851 | OC31: 0.8549183351 | OD31: 0.8545629328 | OE31: 0.8542076783 | OF31: 0.8538525715 | OG31: =OF31*(1-OG30) -> 0.8534976123 | OH31: 0.8531428007 | OI31: 0.8527881366 | OJ31: 0.8524336199 | OK31: 0.8520792506 | OL31: 0.8517250286 | OM31: 0.8513709538 | ON31: 0.8510170263 | OO31: 0.8506632459 | OP31: 0.8503096125 | OQ31: 0.8499561262 | OR31: 0.8496027868 | OS31: 0.8492495943 | OT31: 0.8488965487 | OU31: 0.8485436498 | OV31: 0.8481908976 | OW31: 0.847838292 | OX31: 0.8474858331 | OY31: 0.8471335206 | OZ31: 0.8467813547 | PA31: 0.8464293351 | PB31: 0.8460774618 | PC31: 0.8457257349 | PD31: 0.8453741541 | PE31: 0.8450227195 | PF31: 0.8446714311 | PG31: 0.8443202886 | PH31: 0.8439692921 | PI31: 0.8436184416 | PJ31: 0.8432677369 | PK31: 0.8429171779 | PL31: 0.8425667648 | PM31: 0.8422164972 | PN31: 0.8418663753 | PO31: 0.841516399 | PP31: 0.8411665681 | PQ31: 0.8408168827 | PR31: 0.8404673426 | PS31: 0.8401179479 | PT31: 0.8397686984 | PU31: 0.8394195941 | PV31: 0.8390706349 | PW31: 0.8387218208 | PX31: 0.8383731517 | PY31: 0.8380246275 | PZ31: 0.8376762482 | QA31: 0.8373280138 | QB31: 0.8369799241 | QC31: 0.8366319791 | QD31: 0.8362841788 | QE31: 0.835936523 | QF31: 0.8355890118 | QG31: 0.835241645 | QH31: 0.8348944227 | QI31: 0.8345473447 | QJ31: 0.834200411 | QK31: 0.8338536215 | QL31: 0.8335069761 | QM31: 0.8331604749 | QN31: 0.8328141177 | QO31: 0.8324679046 | QP31: 0.8321218353 | QQ31: 0.8317759099 | QR31: 0.8314301283 | QS31: =QR31*(1-QS30) -> 0.8310844904 | QT31: 0.8307389963 | QU31: 0.8303936458 | QV31: 0.8300484388 | QW31: 0.8297033753 | QX31: 0.8293584553 | QY31: 0.8290136787 | QZ31: 0.8286690454 | RA31: 0.8283245554 | RB31: 0.8279802086 | RC31: 0.8276360049 | RD31: 0.8272919443 | RE31: 0.8269480268 | RF31: 0.8266042522 | RG31: 0.8262606206 | RH31: 0.8259171318 | RI31: 0.8255737857 | RJ31: 0.8252305825 | RK31: 0.8248875219 | RL31: 0.8245446039 | RM31: 0.8242018284 | RN31: 0.8238591955 | RO31: 0.823516705 | RP31: 0.8231743569 | RQ31: 0.8228321511 | RR31: 0.8224900876 | RS31: 0.8221481662 | RT31: 0.821806387 | RU31: 0.8214647499 | RV31: 0.8211232548 | RW31: 0.8207819017 | RX31: 0.8204406905 | RY31: 0.8200996211 | RZ31: 0.8197586935 | SA31: 0.8194179076 | SB31: 0.8190772635 | SC31: 0.8187367609 | SD31: 0.8183963999 | SE31: 0.8180561803 | SF31: 0.8177161022 | SG31: 0.8173761655 | SH31: 0.8170363701 | SI31: 0.8166967159 | SJ31: 0.816357203 | SK31: 0.8160178312 | SL31: 0.8156786005 | SM31: 0.8153395108 | SN31: 0.815000562 | SO31: 0.8146617542 | SP31: 0.8143230872 | SQ31: 0.813984561
D32: Annual Generation after Degradation | G32: MWH | L32: =L31*L25 -> 0 | M32: =M31*M25 -> 0 | N32: 0 | O32: 0 | P32: 0 | Q32: 0 | R32: 0 | S32: 0 | T32: 0 | U32: 0 | V32: 0 | W32: 225446.2053 | X32: 225305.7834 | Y32: 225165.4491 | Z32: 225025.2021 | AA32: 224885.0425 | AB32: 224744.9702 | AC32: 224604.9851 | AD32: 224465.0873 | AE32: 224325.2765 | AF32: 224185.5529 | AG32: 224045.9163 | AH32: 223906.3666 | AI32: 223813.2854 | AJ32: 223720.2429 | AK32: 223627.2391 | AL32: 223534.2739 | AM32: 223441.3474 | AN32: 223348.4595 | AO32: 223255.6103 | AP32: 223162.7996 | AQ32: 223070.0275 | AR32: 222977.294 | AS32: 222884.599 | AT32: 222791.9426 | AU32: 222699.3247 | AV32: 222606.7452 | AW32: 222514.2043 | AX32: 222421.7019 | AY32: 222329.2379 | AZ32: 222236.8123 | BA32: 222144.4252 | BB32: 222052.0764 | BC32: 221959.7661 | BD32: 221867.4941 | BE32: 221775.2605 | BF32: 221683.0652 | BG32: 221590.9083 | BH32: 221498.7897 | BI32: 221406.7093 | BJ32: 221314.6673 | BK32: 221222.6635 | BL32: 221130.6979 | BM32: 221038.7706 | BN32: 220946.8815 | BO32: 220855.0306 | BP32: 220763.2179 | BQ32: 220671.4434 | BR32: 220579.707 | BS32: 220488.0087 | BT32: 220396.3486 | BU32: 220304.7265 | BV32: 220213.1426 | BW32: 220121.5967 | BX32: 220030.0889 | BY32: =BY31*BY25 -> 219938.6191 | BZ32: 219847.1874 | CA32: 219755.7936 | CB32: 219664.4379 | CC32: 219573.1201 | CD32: 219481.8403 | CE32: 219390.5985 | CF32: 219299.3945 | CG32: 219208.2285 | CH32: 219117.1004 | CI32: 219026.0102 | CJ32: 218934.9578 | CK32: 218843.9433 | CL32: 218752.9666 | CM32: 218662.0278 | CN32: 218571.1267 | CO32: 218480.2634 | CP32: 218389.438 | CQ32: 218298.6502 | CR32: 218207.9002 | CS32: 218117.188 | CT32: 218026.5134 | CU32: 217935.8766 | CV32: 217845.2774 | CW32: 217754.7159 | CX32: 217664.192 | CY32: 217573.7058 | CZ32: 217483.2571 | DA32: 217392.8461 | DB32: 217302.4727 | DC32: 217212.1368 | DD32: 217121.8385 | DE32: 217031.5777 | DF32: 216941.3545 | DG32: 216851.1688 | DH32: 216761.0205 | DI32: 216670.9097 | DJ32: 216580.8364 | DK32: 216490.8006 | DL32: 216400.8021 | DM32: 216310.8411 | DN32: 216220.9175 | DO32: 216131.0312 | DP32: 216041.1823 | DQ32: 215951.3708 | DR32: 215861.5966 | DS32: 215771.8597 | DT32: 215682.1602 | DU32: 215592.4979 | DV32: 215502.8729 | DW32: 215413.2852 | DX32: 215323.7347 | DY32: 215234.2214 | DZ32: 215144.7453 | EA32: 215055.3065 | EB32: 214965.9048 | EC32: 214876.5403 | ED32: 214787.2129 | EE32: 214697.9227 | EF32: 214608.6695 | EG32: 214519.4535 | EH32: 214430.2746 | EI32: 214341.1328 | EJ32: 214252.028 | EK32: =EK31*EK25 -> 214162.9602 | EL32: 214073.9295 | EM32: 213984.9358 | EN32: 213895.9791 | EO32: 213807.0593 | EP32: 213718.1766 | EQ32: 213629.3308 | ER32: 213540.5219 | ES32: 213451.7499 | ET32: 213363.0149 | EU32: 213274.3167 | EV32: 213185.6554 | EW32: 213097.0309 | EX32: 213008.4433 | EY32: 212919.8926 | EZ32: 212831.3786 | FA32: 212742.9014 | FB32: 212654.4611 | FC32: 212566.0574 | FD32: 212477.6906 | FE32: 212389.3604 | FF32: 212301.067 | FG32: 212212.8103 | FH32: 212124.5903 | FI32: 212036.407 | FJ32: 211948.2603 | FK32: 211860.1503 | FL32: 211772.0768 | FM32: 211684.0401 | FN32: 211596.0399 | FO32: 211508.0762 | FP32: 211420.1492 | FQ32: 211332.2587 | FR32: 211244.4047 | FS32: 211156.5873 | FT32: 211068.8064 | FU32: 210981.0619 | FV32: 210893.354 | FW32: 210805.6825 | FX32: 210718.0474 | FY32: 210630.4488 | FZ32: 210542.8866 | GA32: 210455.3608 | GB32: 210367.8714 | GC32: 210280.4183 | GD32: 210193.0016 | GE32: 210105.6213 | GF32: 210018.2773 | GG32: 209930.9696 | GH32: 209843.6981 | GI32: 209756.463 | GJ32: 209669.2641 | GK32: 209582.1015 | GL32: 209494.9751 | GM32: 209407.8849 | GN32: 209320.831 | GO32: 209233.8132 | GP32: 209146.8316 | GQ32: 209059.8861 | GR32: 208972.9768 | GS32: 208886.1037 | GT32: 208799.2666 | GU32: 208712.4657 | GV32: 208625.7008 | GW32: =GW31*GW25 -> 208538.972 | GX32: 208452.2793 | GY32: 208365.6225 | GZ32: 208279.0019 | HA32: 208192.4172 | HB32: 208105.8685 | HC32: 208019.3558 | HD32: 207932.8791 | HE32: 207846.4383 | HF32: 207760.0334 | HG32: 207673.6645 | HH32: 207587.3315 | HI32: 207501.0344 | HJ32: 207414.7731 | HK32: 207328.5477 | HL32: 207242.3581 | HM32: 207156.2044 | HN32: 207070.0865 | HO32: 206984.0044 | HP32: 206897.9581 | HQ32: 206811.9475 | HR32: 206725.9727 | HS32: 206640.0337 | HT32: 206554.1303 | HU32: 206468.2627 | HV32: 206382.4308 | HW32: 206296.6346 | HX32: 206210.874 | HY32: 206125.1491 | HZ32: 206039.4598 | IA32: 205953.8061 | IB32: 205868.1881 | IC32: 205782.6056 | ID32: 205697.0587 | IE32: 205611.5474 | IF32: 205526.0716 | IG32: 205440.6314 | IH32: 205355.2267 | II32: 205269.8574 | IJ32: 205184.5237 | IK32: 205099.2255 | IL32: 205013.9627 | IM32: 204928.7353 | IN32: 204843.5434 | IO32: 204758.3869 | IP32: 204673.2658 | IQ32: 204588.1801 | IR32: 204503.1297 | IS32: 204418.1148 | IT32: 204333.1351 | IU32: 204248.1908 | IV32: 204163.2818 | IW32: 204078.4081 | IX32: 203993.5697 | IY32: 203908.7665 | IZ32: 203823.9986 | JA32: 203739.2659 | JB32: 203654.5685 | JC32: 203569.9063 | JD32: 203485.2792 | JE32: 203400.6874 | JF32: 203316.1307 | JG32: 203231.6092 | JH32: 203147.1228 | JI32: =JI31*JI25 -> 203062.6715 | JJ32: 202978.2553 | JK32: 202893.8743 | JL32: 202809.5283 | JM32: 202725.2173 | JN32: 202640.9415 | JO32: 202556.7006 | JP32: 202472.4948 | JQ32: 202388.324 | JR32: 202304.1881 | JS32: 202220.0873 | JT32: 202136.0214 | JU32: 202051.9904 | JV32: 201967.9944 | JW32: 201884.0333 | JX32: 201800.1071 | JY32: 201716.2158 | JZ32: 201632.3594 | KA32: 201548.5379 | KB32: 201464.7511 | KC32: 201380.9992 | KD32: 201297.2822 | KE32: 201213.5999 | KF32: 201129.9524 | KG32: 201046.3397 | KH32: 200962.7618 | KI32: 200879.2186 | KJ32: 200795.7101 | KK32: 200712.2363 | KL32: 200628.7973 | KM32: 200545.3929 | KN32: 200462.0232 | KO32: 200378.6882 | KP32: 200295.3878 | KQ32: 200212.122 | KR32: 200128.8909 | KS32: 200045.6943 | KT32: 199962.5323 | KU32: 199879.405 | KV32: 199796.3121 | KW32: 199713.2538 | KX32: 199630.2301 | KY32: 199547.2408 | KZ32: 199464.2861 | LA32: 199381.3658 | LB32: 199298.48 | LC32: 199215.6287 | LD32: 199132.8118 | LE32: 199050.0293 | LF32: 198967.2813 | LG32: 198884.5676 | LH32: 198801.8883 | LI32: 198719.2434 | LJ32: 198636.6329 | LK32: 198554.0567 | LL32: 198471.5148 | LM32: 198389.0073 | LN32: 198306.534 | LO32: 198224.0951 | LP32: 198141.6904 | LQ32: 198059.3199 | LR32: 197976.9837 | LS32: 197894.6817 | LT32: 197812.414 | LU32: =LU31*LU25 -> 197730.1804 | LV32: 197647.9811 | LW32: 197565.8159 | LX32: 197483.6848 | LY32: 197401.5879 | LZ32: 197319.5251 | MA32: 197237.4965 | MB32: 197155.5019 | MC32: 197073.5415 | MD32: 196991.6151 | ME32: 196909.7227 | MF32: 196827.8644 | MG32: 196746.0402 | MH32: 196664.2499 | MI32: 196582.4937 | MJ32: 196500.7714 | MK32: 196419.0831 | ML32: 196337.4288 | MM32: 196255.8084 | MN32: 196174.222 | MO32: 196092.6694 | MP32: 196011.1508 | MQ32: 195929.666 | MR32: 195848.2152 | MS32: 195766.7982 | MT32: 195685.415 | MU32: 195604.0657 | MV32: 195522.7502 | MW32: 195441.4684 | MX32: 195360.2205 | MY32: 195279.0064 | MZ32: 195197.826 | NA32: 195116.6794 | NB32: 195035.5665 | NC32: 194954.4873 | ND32: 194873.4418 | NE32: 194792.43 | NF32: 194711.4519 | NG32: 194630.5075 | NH32: 194549.5967 | NI32: 194468.7195 | NJ32: 194387.876 | NK32: 194307.0661 | NL32: 194226.2897 | NM32: 194145.547 | NN32: 194064.8378 | NO32: 193984.1622 | NP32: 193903.5201 | NQ32: 193822.9115 | NR32: 193742.3364 | NS32: 193661.7949 | NT32: 193581.2868 | NU32: 193500.8122 | NV32: 193420.371 | NW32: 193339.9633 | NX32: 193259.589 | NY32: 193179.2481 | NZ32: 193098.9406 | OA32: 193018.6665 | OB32: 192938.4258 | OC32: 192858.2185 | OD32: 192778.0444 | OE32: 192697.9037 | OF32: 192617.7964 | OG32: =OG31*OG25 -> 192537.7223 | OH32: 192457.6815 | OI32: 192377.674 | OJ32: 192297.6997 | OK32: 192217.7587 | OL32: 192137.8509 | OM32: 192057.9764 | ON32: 191978.135 | OO32: 191898.3269 | OP32: 191818.5519 | OQ32: 191738.8101 | OR32: 191659.1014 | OS32: 191579.4259 | OT32: 191499.7835 | OU32: 191420.1741 | OV32: 191340.5979 | OW32: 191261.0548 | OX32: 191181.5448 | OY32: 191102.0677 | OZ32: 191022.6238 | PA32: 190943.2128 | PB32: 190863.8349 | PC32: 190784.49 | PD32: 190705.178 | PE32: 190625.8991 | PF32: 190546.653 | PG32: 190467.44 | PH32: 190388.2598 | PI32: 190309.1126 | PJ32: 190229.9983 | PK32: 190150.9169 | PL32: 190071.8683 | PM32: 189992.8526 | PN32: 189913.8697 | PO32: 189834.9197 | PP32: 189756.0025 | PQ32: 189677.1182 | PR32: 189598.2666 | PS32: 189519.4477 | PT32: 189440.6617 | PU32: 189361.9084 | PV32: 189283.1878 | PW32: 189204.5 | PX32: 189125.8449 | PY32: 189047.2225 | PZ32: 188968.6327 | QA32: 0 | QB32: 0 | QC32: 0 | QD32: 0 | QE32: 0 | QF32: 0 | QG32: 0 | QH32: 0 | QI32: 0 | QJ32: 0 | QK32: 0 | QL32: 0 | QM32: 0 | QN32: 0 | QO32: 0 | QP32: 0 | QQ32: 0 | QR32: 0 | QS32: =QS31*QS25 -> 0 | QT32: 0 | QU32: 0 | QV32: 0 | QW32: 0 | QX32: 0 | QY32: 0 | QZ32: 0 | RA32: 0 | RB32: 0 | RC32: 0 | RD32: 0 | RE32: 0 | RF32: 0 | RG32: 0 | RH32: 0 | RI32: 0 | RJ32: 0 | RK32: 0 | RL32: 0 | RM32: 0 | RN32: 0 | RO32: 0 | RP32: 0 | RQ32: 0 | RR32: 0 | RS32: 0 | RT32: 0 | RU32: 0 | RV32: 0 | RW32: 0 | RX32: 0 | RY32: 0 | RZ32: 0 | SA32: 0 | SB32: 0 | SC32: 0 | SD32: 0 | SE32: 0 | SF32: 0 | SG32: 0 | SH32: 0 | SI32: 0 | SJ32: 0 | SK32: 0 | SL32: 0 | SM32: 0 | SN32: 0 | SO32: 0 | SP32: 0 | SQ32: 0
D34: Month Number | G34: Month | L34: =MONTH(L4) -> 1 | M34: =MONTH(M4) -> 2 | N34: 3 | O34: 4 | P34: 5 | Q34: 6 | R34: 7 | S34: 8 | T34: 9 | U34: 10 | V34: 11 | W34: 12 | X34: 1 | Y34: 2 | Z34: 3 | AA34: 4 | AB34: 5 | AC34: 6 | AD34: 7 | AE34: 8 | AF34: 9 | AG34: 10 | AH34: 11 | AI34: 12 | AJ34: 1 | AK34: 2 | AL34: 3 | AM34: 4 | AN34: 5 | AO34: 6 | AP34: 7 | AQ34: 8 | AR34: 9 | AS34: 10 | AT34: 11 | AU34: 12 | AV34: 1 | AW34: 2 | AX34: 3 | AY34: 4 | AZ34: 5 | BA34: 6 | BB34: 7 | BC34: 8 | BD34: 9 | BE34: 10 | BF34: 11 | BG34: 12 | BH34: 1 | BI34: 2 | BJ34: 3 | BK34: 4 | BL34: 5 | BM34: 6 | BN34: 7 | BO34: 8 | BP34: 9 | BQ34: 10 | BR34: 11 | BS34: 12 | BT34: 1 | BU34: 2 | BV34: 3 | BW34: 4 | BX34: 5 | BY34: =MONTH(BY4) -> 6 | BZ34: 7 | CA34: 8 | CB34: 9 | CC34: 10 | CD34: 11 | CE34: 12 | CF34: 1 | CG34: 2 | CH34: 3 | CI34: 4 | CJ34: 5 | CK34: 6 | CL34: 7 | CM34: 8 | CN34: 9 | CO34: 10 | CP34: 11 | CQ34: 12 | CR34: 1 | CS34: 2 | CT34: 3 | CU34: 4 | CV34: 5 | CW34: 6 | CX34: 7 | CY34: 8 | CZ34: 9 | DA34: 10 | DB34: 11 | DC34: 12 | DD34: 1 | DE34: 2 | DF34: 3 | DG34: 4 | DH34: 5 | DI34: 6 | DJ34: 7 | DK34: 8 | DL34: 9 | DM34: 10 | DN34: 11 | DO34: 12 | DP34: 1 | DQ34: 2 | DR34: 3 | DS34: 4 | DT34: 5 | DU34: 6 | DV34: 7 | DW34: 8 | DX34: 9 | DY34: 10 | DZ34: 11 | EA34: 12 | EB34: 1 | EC34: 2 | ED34: 3 | EE34: 4 | EF34: 5 | EG34: 6 | EH34: 7 | EI34: 8 | EJ34: 9 | EK34: =MONTH(EK4) -> 10 | EL34: 11 | EM34: 12 | EN34: 1 | EO34: 2 | EP34: 3 | EQ34: 4 | ER34: 5 | ES34: 6 | ET34: 7 | EU34: 8 | EV34: 9 | EW34: 10 | EX34: 11 | EY34: 12 | EZ34: 1 | FA34: 2 | FB34: 3 | FC34: 4 | FD34: 5 | FE34: 6 | FF34: 7 | FG34: 8 | FH34: 9 | FI34: 10 | FJ34: 11 | FK34: 12 | FL34: 1 | FM34: 2 | FN34: 3 | FO34: 4 | FP34: 5 | FQ34: 6 | FR34: 7 | FS34: 8 | FT34: 9 | FU34: 10 | FV34: 11 | FW34: 12 | FX34: 1 | FY34: 2 | FZ34: 3 | GA34: 4 | GB34: 5 | GC34: 6 | GD34: 7 | GE34: 8 | GF34: 9 | GG34: 10 | GH34: 11 | GI34: 12 | GJ34: 1 | GK34: 2 | GL34: 3 | GM34: 4 | GN34: 5 | GO34: 6 | GP34: 7 | GQ34: 8 | GR34: 9 | GS34: 10 | GT34: 11 | GU34: 12 | GV34: 1 | GW34: =MONTH(GW4) -> 2 | GX34: 3 | GY34: 4 | GZ34: 5 | HA34: 6 | HB34: 7 | HC34: 8 | HD34: 9 | HE34: 10 | HF34: 11 | HG34: 12 | HH34: 1 | HI34: 2 | HJ34: 3 | HK34: 4 | HL34: 5 | HM34: 6 | HN34: 7 | HO34: 8 | HP34: 9 | HQ34: 10 | HR34: 11 | HS34: 12 | HT34: 1 | HU34: 2 | HV34: 3 | HW34: 4 | HX34: 5 | HY34: 6 | HZ34: 7 | IA34: 8 | IB34: 9 | IC34: 10 | ID34: 11 | IE34: 12 | IF34: 1 | IG34: 2 | IH34: 3 | II34: 4 | IJ34: 5 | IK34: 6 | IL34: 7 | IM34: 8 | IN34: 9 | IO34: 10 | IP34: 11 | IQ34: 12 | IR34: 1 | IS34: 2 | IT34: 3 | IU34: 4 | IV34: 5 | IW34: 6 | IX34: 7 | IY34: 8 | IZ34: 9 | JA34: 10 | JB34: 11 | JC34: 12 | JD34: 1 | JE34: 2 | JF34: 3 | JG34: 4 | JH34: 5 | JI34: =MONTH(JI4) -> 6 | JJ34: 7 | JK34: 8 | JL34: 9 | JM34: 10 | JN34: 11 | JO34: 12 | JP34: 1 | JQ34: 2 | JR34: 3 | JS34: 4 | JT34: 5 | JU34: 6 | JV34: 7 | JW34: 8 | JX34: 9 | JY34: 10 | JZ34: 11 | KA34: 12 | KB34: 1 | KC34: 2 | KD34: 3 | KE34: 4 | KF34: 5 | KG34: 6 | KH34: 7 | KI34: 8 | KJ34: 9 | KK34: 10 | KL34: 11 | KM34: 12 | KN34: 1 | KO34: 2 | KP34: 3 | KQ34: 4 | KR34: 5 | KS34: 6 | KT34: 7 | KU34: 8 | KV34: 9 | KW34: 10 | KX34: 11 | KY34: 12 | KZ34: 1 | LA34: 2 | LB34: 3 | LC34: 4 | LD34: 5 | LE34: 6 | LF34: 7 | LG34: 8 | LH34: 9 | LI34: 10 | LJ34: 11 | LK34: 12 | LL34: 1 | LM34: 2 | LN34: 3 | LO34: 4 | LP34: 5 | LQ34: 6 | LR34: 7 | LS34: 8 | LT34: 9 | LU34: =MONTH(LU4) -> 10 | LV34: 11 | LW34: 12 | LX34: 1 | LY34: 2 | LZ34: 3 | MA34: 4 | MB34: 5 | MC34: 6 | MD34: 7 | ME34: 8 | MF34: 9 | MG34: 10 | MH34: 11 | MI34: 12 | MJ34: 1 | MK34: 2 | ML34: 3 | MM34: 4 | MN34: 5 | MO34: 6 | MP34: 7 | MQ34: 8 | MR34: 9 | MS34: 10 | MT34: 11 | MU34: 12 | MV34: 1 | MW34: 2 | MX34: 3 | MY34: 4 | MZ34: 5 | NA34: 6 | NB34: 7 | NC34: 8 | ND34: 9 | NE34: 10 | NF34: 11 | NG34: 12 | NH34: 1 | NI34: 2 | NJ34: 3 | NK34: 4 | NL34: 5 | NM34: 6 | NN34: 7 | NO34: 8 | NP34: 9 | NQ34: 10 | NR34: 11 | NS34: 12 | NT34: 1 | NU34: 2 | NV34: 3 | NW34: 4 | NX34: 5 | NY34: 6 | NZ34: 7 | OA34: 8 | OB34: 9 | OC34: 10 | OD34: 11 | OE34: 12 | OF34: 1 | OG34: =MONTH(OG4) -> 2 | OH34: 3 | OI34: 4 | OJ34: 5 | OK34: 6 | OL34: 7 | OM34: 8 | ON34: 9 | OO34: 10 | OP34: 11 | OQ34: 12 | OR34: 1 | OS34: 2 | OT34: 3 | OU34: 4 | OV34: 5 | OW34: 6 | OX34: 7 | OY34: 8 | OZ34: 9 | PA34: 10 | PB34: 11 | PC34: 12 | PD34: 1 | PE34: 2 | PF34: 3 | PG34: 4 | PH34: 5 | PI34: 6 | PJ34: 7 | PK34: 8 | PL34: 9 | PM34: 10 | PN34: 11 | PO34: 12 | PP34: 1 | PQ34: 2 | PR34: 3 | PS34: 4 | PT34: 5 | PU34: 6 | PV34: 7 | PW34: 8 | PX34: 9 | PY34: 10 | PZ34: 11 | QA34: 12 | QB34: 1 | QC34: 2 | QD34: 3 | QE34: 4 | QF34: 5 | QG34: 6 | QH34: 7 | QI34: 8 | QJ34: 9 | QK34: 10 | QL34: 11 | QM34: 12 | QN34: 1 | QO34: 2 | QP34: 3 | QQ34: 4 | QR34: 5 | QS34: =MONTH(QS4) -> 6 | QT34: 7 | QU34: 8 | QV34: 9 | QW34: 10 | QX34: 11 | QY34: 12 | QZ34: 1 | RA34: 2 | RB34: 3 | RC34: 4 | RD34: 5 | RE34: 6 | RF34: 7 | RG34: 8 | RH34: 9 | RI34: 10 | RJ34: 11 | RK34: 12 | RL34: 1 | RM34: 2 | RN34: 3 | RO34: 4 | RP34: 5 | RQ34: 6 | RR34: 7 | RS34: 8 | RT34: 9 | RU34: 10 | RV34: 11 | RW34: 12 | RX34: 1 | RY34: 2 | RZ34: 3 | SA34: 4 | SB34: 5 | SC34: 6 | SD34: 7 | SE34: 8 | SF34: 9 | SG34: 10 | SH34: 11 | SI34: 12 | SJ34: 1 | SK34: 2 | SL34: 3 | SM34: 4 | SN34: 5 | SO34: 6 | SP34: 7 | SQ34: 8
D35: Seasonality | G35: % | L35: =LOOKUP(L34,InputS!20:20,InputS!21:21) -> 0.06666666667 | M35: =LOOKUP(M34,InputS!20:20,InputS!21:21) -> 0.06666666667 | N35: =LOOKUP(N34,InputS!20:20,InputS!21:21) -> 0.08 | O35: =LOOKUP(O34,InputS!20:20,InputS!21:21) -> 0.085 | P35: =LOOKUP(P34,InputS!20:20,InputS!21:21) -> 0.09 | Q35: =LOOKUP(Q34,InputS!20:20,InputS!21:21) -> 0.12 | R35: =LOOKUP(R34,InputS!20:20,InputS!21:21) -> 0.12 | S35: =LOOKUP(S34,InputS!20:20,InputS!21:21) -> 0.09 | T35: =LOOKUP(T34,InputS!20:20,InputS!21:21) -> 0.08 | U35: =LOOKUP(U34,InputS!20:20,InputS!21:21) -> 0.07 | V35: =LOOKUP(V34,InputS!20:20,InputS!21:21) -> 0.065 | W35: =LOOKUP(W34,InputS!20:20,InputS!21:21) -> 0.06666666667 | X35: =LOOKUP(X34,InputS!20:20,InputS!21:21) -> 0.06666666667 | Y35: =LOOKUP(Y34,InputS!20:20,InputS!21:21) -> 0.06666666667 | Z35: =LOOKUP(Z34,InputS!20:20,InputS!21:21) -> 0.08 | AA35: =LOOKUP(AA34,InputS!20:20,InputS!21:21) -> 0.085 | AB35: =LOOKUP(AB34,InputS!20:20,InputS!21:21) -> 0.09 | AC35: =LOOKUP(AC34,InputS!20:20,InputS!21:21) -> 0.12 | AD35: =LOOKUP(AD34,InputS!20:20,InputS!21:21) -> 0.12 | AE35: =LOOKUP(AE34,InputS!20:20,InputS!21:21) -> 0.09 | AF35: =LOOKUP(AF34,InputS!20:20,InputS!21:21) -> 0.08 | AG35: =LOOKUP(AG34,InputS!20:20,InputS!21:21) -> 0.07 | AH35: =LOOKUP(AH34,InputS!20:20,InputS!21:21) -> 0.065 | AI35: =LOOKUP(AI34,InputS!20:20,InputS!21:21) -> 0.06666666667 | AJ35: =LOOKUP(AJ34,InputS!20:20,InputS!21:21) -> 0.06666666667 | AK35: =LOOKUP(AK34,InputS!20:20,InputS!21:21) -> 0.06666666667 | AL35: =LOOKUP(AL34,InputS!20:20,InputS!21:21) -> 0.08 | AM35: =LOOKUP(AM34,InputS!20:20,InputS!21:21) -> 0.085 | AN35: =LOOKUP(AN34,InputS!20:20,InputS!21:21) -> 0.09 | AO35: =LOOKUP(AO34,InputS!20:20,InputS!21:21) -> 0.12 | AP35: =LOOKUP(AP34,InputS!20:20,InputS!21:21) -> 0.12 | AQ35: =LOOKUP(AQ34,InputS!20:20,InputS!21:21) -> 0.09 | AR35: =LOOKUP(AR34,InputS!20:20,InputS!21:21) -> 0.08 | AS35: =LOOKUP(AS34,InputS!20:20,InputS!21:21) -> 0.07 | AT35: =LOOKUP(AT34,InputS!20:20,InputS!21:21) -> 0.065 | AU35: =LOOKUP(AU34,InputS!20:20,InputS!21:21) -> 0.06666666667 | AV35: =LOOKUP(AV34,InputS!20:20,InputS!21:21) -> 0.06666666667 | AW35: =LOOKUP(AW34,InputS!20:20,InputS!21:21) -> 0.06666666667 | AX35: =LOOKUP(AX34,InputS!20:20,InputS!21:21) -> 0.08 | AY35: =LOOKUP(AY34,InputS!20:20,InputS!21:21) -> 0.085 | AZ35: =LOOKUP(AZ34,InputS!20:20,InputS!21:21) -> 0.09 | BA35: =LOOKUP(BA34,InputS!20:20,InputS!21:21) -> 0.12 | BB35: =LOOKUP(BB34,InputS!20:20,InputS!21:21) -> 0.12 | BC35: =LOOKUP(BC34,InputS!20:20,InputS!21:21) -> 0.09 | BD35: =LOOKUP(BD34,InputS!20:20,InputS!21:21) -> 0.08 | BE35: =LOOKUP(BE34,InputS!20:20,InputS!21:21) -> 0.07 | BF35: =LOOKUP(BF34,InputS!20:20,InputS!21:21) -> 0.065 | BG35: =LOOKUP(BG34,InputS!20:20,InputS!21:21) -> 0.06666666667 | BH35: =LOOKUP(BH34,InputS!20:20,InputS!21:21) -> 0.06666666667 | BI35: =LOOKUP(BI34,InputS!20:20,InputS!21:21) -> 0.06666666667 | BJ35: =LOOKUP(BJ34,InputS!20:20,InputS!21:21) -> 0.08 | BK35: =LOOKUP(BK34,InputS!20:20,InputS!21:21) -> 0.085 | BL35: =LOOKUP(BL34,InputS!20:20,InputS!21:21) -> 0.09 | BM35: =LOOKUP(BM34,InputS!20:20,InputS!21:21) -> 0.12 | BN35: =LOOKUP(BN34,InputS!20:20,InputS!21:21) -> 0.12 | BO35: =LOOKUP(BO34,InputS!20:20,InputS!21:21) -> 0.09 | BP35: =LOOKUP(BP34,InputS!20:20,InputS!21:21) -> 0.08 | BQ35: =LOOKUP(BQ34,InputS!20:20,InputS!21:21) -> 0.07 | BR35: =LOOKUP(BR34,InputS!20:20,InputS!21:21) -> 0.065 | BS35: =LOOKUP(BS34,InputS!20:20,InputS!21:21) -> 0.06666666667 | BT35: =LOOKUP(BT34,InputS!20:20,InputS!21:21) -> 0.06666666667 | BU35: =LOOKUP(BU34,InputS!20:20,InputS!21:21) -> 0.06666666667 | BV35: =LOOKUP(BV34,InputS!20:20,InputS!21:21) -> 0.08 | BW35: =LOOKUP(BW34,InputS!20:20,InputS!21:21) -> 0.085 | BX35: =LOOKUP(BX34,InputS!20:20,InputS!21:21) -> 0.09 | BY35: =LOOKUP(BY34,InputS!20:20,InputS!21:21) -> 0.12 | BZ35: =LOOKUP(BZ34,InputS!20:20,InputS!21:21) -> 0.12 | CA35: =LOOKUP(CA34,InputS!20:20,InputS!21:21) -> 0.09 | CB35: =LOOKUP(CB34,InputS!20:20,InputS!21:21) -> 0.08 | CC35: =LOOKUP(CC34,InputS!20:20,InputS!21:21) -> 0.07 | CD35: =LOOKUP(CD34,InputS!20:20,InputS!21:21) -> 0.065 | CE35: =LOOKUP(CE34,InputS!20:20,InputS!21:21) -> 0.06666666667 | CF35: =LOOKUP(CF34,InputS!20:20,InputS!21:21) -> 0.06666666667 | CG35: =LOOKUP(CG34,InputS!20:20,InputS!21:21) -> 0.06666666667 | CH35: =LOOKUP(CH34,InputS!20:20,InputS!21:21) -> 0.08 | CI35: =LOOKUP(CI34,InputS!20:20,InputS!21:21) -> 0.085 | CJ35: =LOOKUP(CJ34,InputS!20:20,InputS!21:21) -> 0.09 | CK35: =LOOKUP(CK34,InputS!20:20,InputS!21:21) -> 0.12 | CL35: =LOOKUP(CL34,InputS!20:20,InputS!21:21) -> 0.12 | CM35: =LOOKUP(CM34,InputS!20:20,InputS!21:21) -> 0.09 | CN35: =LOOKUP(CN34,InputS!20:20,InputS!21:21) -> 0.08 | CO35: =LOOKUP(CO34,InputS!20:20,InputS!21:21) -> 0.07 | CP35: =LOOKUP(CP34,InputS!20:20,InputS!21:21) -> 0.065 | CQ35: =LOOKUP(CQ34,InputS!20:20,InputS!21:21) -> 0.06666666667 | CR35: =LOOKUP(CR34,InputS!20:20,InputS!21:21) -> 0.06666666667 | CS35: =LOOKUP(CS34,InputS!20:20,InputS!21:21) -> 0.06666666667 | CT35: =LOOKUP(CT34,InputS!20:20,InputS!21:21) -> 0.08 | CU35: =LOOKUP(CU34,InputS!20:20,InputS!21:21) -> 0.085 | CV35: =LOOKUP(CV34,InputS!20:20,InputS!21:21) -> 0.09 | CW35: =LOOKUP(CW34,InputS!20:20,InputS!21:21) -> 0.12 | CX35: =LOOKUP(CX34,InputS!20:20,InputS!21:21) -> 0.12 | CY35: =LOOKUP(CY34,InputS!20:20,InputS!21:21) -> 0.09 | CZ35: =LOOKUP(CZ34,InputS!20:20,InputS!21:21) -> 0.08 | DA35: =LOOKUP(DA34,InputS!20:20,InputS!21:21) -> 0.07 | DB35: =LOOKUP(DB34,InputS!20:20,InputS!21:21) -> 0.065 | DC35: =LOOKUP(DC34,InputS!20:20,InputS!21:21) -> 0.06666666667 | DD35: =LOOKUP(DD34,InputS!20:20,InputS!21:21) -> 0.06666666667 | DE35: =LOOKUP(DE34,InputS!20:20,InputS!21:21) -> 0.06666666667 | DF35: =LOOKUP(DF34,InputS!20:20,InputS!21:21) -> 0.08 | DG35: =LOOKUP(DG34,InputS!20:20,InputS!21:21) -> 0.085 | DH35: =LOOKUP(DH34,InputS!20:20,InputS!21:21) -> 0.09 | DI35: =LOOKUP(DI34,InputS!20:20,InputS!21:21) -> 0.12 | DJ35: =LOOKUP(DJ34,InputS!20:20,InputS!21:21) -> 0.12 | DK35: =LOOKUP(DK34,InputS!20:20,InputS!21:21) -> 0.09 | DL35: =LOOKUP(DL34,InputS!20:20,InputS!21:21) -> 0.08 | DM35: =LOOKUP(DM34,InputS!20:20,InputS!21:21) -> 0.07 | DN35: =LOOKUP(DN34,InputS!20:20,InputS!21:21) -> 0.065 | DO35: =LOOKUP(DO34,InputS!20:20,InputS!21:21) -> 0.06666666667 | DP35: =LOOKUP(DP34,InputS!20:20,InputS!21:21) -> 0.06666666667 | DQ35: =LOOKUP(DQ34,InputS!20:20,InputS!21:21) -> 0.06666666667 | DR35: =LOOKUP(DR34,InputS!20:20,InputS!21:21) -> 0.08 | DS35: =LOOKUP(DS34,InputS!20:20,InputS!21:21) -> 0.085 | DT35: =LOOKUP(DT34,InputS!20:20,InputS!21:21) -> 0.09 | DU35: =LOOKUP(DU34,InputS!20:20,InputS!21:21) -> 0.12 | DV35: =LOOKUP(DV34,InputS!20:20,InputS!21:21) -> 0.12 | DW35: =LOOKUP(DW34,InputS!20:20,InputS!21:21) -> 0.09 | DX35: =LOOKUP(DX34,InputS!20:20,InputS!21:21) -> 0.08 | DY35: =LOOKUP(DY34,InputS!20:20,InputS!21:21) -> 0.07 | DZ35: =LOOKUP(DZ34,InputS!20:20,InputS!21:21) -> 0.065 | EA35: =LOOKUP(EA34,InputS!20:20,InputS!21:21) -> 0.06666666667 | EB35: =LOOKUP(EB34,InputS!20:20,InputS!21:21) -> 0.06666666667 | EC35: =LOOKUP(EC34,InputS!20:20,InputS!21:21) -> 0.06666666667 | ED35: =LOOKUP(ED34,InputS!20:20,InputS!21:21) -> 0.08 | EE35: =LOOKUP(EE34,InputS!20:20,InputS!21:21) -> 0.085 | EF35: =LOOKUP(EF34,InputS!20:20,InputS!21:21) -> 0.09 | EG35: =LOOKUP(EG34,InputS!20:20,InputS!21:21) -> 0.12 | EH35: =LOOKUP(EH34,InputS!20:20,InputS!21:21) -> 0.12 | EI35: =LOOKUP(EI34,InputS!20:20,InputS!21:21) -> 0.09 | EJ35: =LOOKUP(EJ34,InputS!20:20,InputS!21:21) -> 0.08 | EK35: =LOOKUP(EK34,InputS!20:20,InputS!21:21) -> 0.07 | EL35: =LOOKUP(EL34,InputS!20:20,InputS!21:21) -> 0.065 | EM35: =LOOKUP(EM34,InputS!20:20,InputS!21:21) -> 0.06666666667 | EN35: =LOOKUP(EN34,InputS!20:20,InputS!21:21) -> 0.06666666667 | EO35: =LOOKUP(EO34,InputS!20:20,InputS!21:21) -> 0.06666666667 | EP35: =LOOKUP(EP34,InputS!20:20,InputS!21:21) -> 0.08 | EQ35: =LOOKUP(EQ34,InputS!20:20,InputS!21:21) -> 0.085 | ER35: =LOOKUP(ER34,InputS!20:20,InputS!21:21) -> 0.09 | ES35: =LOOKUP(ES34,InputS!20:20,InputS!21:21) -> 0.12 | ET35: =LOOKUP(ET34,InputS!20:20,InputS!21:21) -> 0.12 | EU35: =LOOKUP(EU34,InputS!20:20,InputS!21:21) -> 0.09 | EV35: =LOOKUP(EV34,InputS!20:20,InputS!21:21) -> 0.08 | EW35: =LOOKUP(EW34,InputS!20:20,InputS!21:21) -> 0.07 | EX35: =LOOKUP(EX34,InputS!20:20,InputS!21:21) -> 0.065 | EY35: =LOOKUP(EY34,InputS!20:20,InputS!21:21) -> 0.06666666667 | EZ35: =LOOKUP(EZ34,InputS!20:20,InputS!21:21) -> 0.06666666667 | FA35: =LOOKUP(FA34,InputS!20:20,InputS!21:21) -> 0.06666666667 | FB35: =LOOKUP(FB34,InputS!20:20,InputS!21:21) -> 0.08 | FC35: =LOOKUP(FC34,InputS!20:20,InputS!21:21) -> 0.085 | FD35: =LOOKUP(FD34,InputS!20:20,InputS!21:21) -> 0.09 | FE35: =LOOKUP(FE34,InputS!20:20,InputS!21:21) -> 0.12 | FF35: =LOOKUP(FF34,InputS!20:20,InputS!21:21) -> 0.12 | FG35: =LOOKUP(FG34,InputS!20:20,InputS!21:21) -> 0.09 | FH35: =LOOKUP(FH34,InputS!20:20,InputS!21:21) -> 0.08 | FI35: =LOOKUP(FI34,InputS!20:20,InputS!21:21) -> 0.07 | FJ35: =LOOKUP(FJ34,InputS!20:20,InputS!21:21) -> 0.065 | FK35: =LOOKUP(FK34,InputS!20:20,InputS!21:21) -> 0.06666666667 | FL35: =LOOKUP(FL34,InputS!20:20,InputS!21:21) -> 0.06666666667 | FM35: =LOOKUP(FM34,InputS!20:20,InputS!21:21) -> 0.06666666667 | FN35: =LOOKUP(FN34,InputS!20:20,InputS!21:21) -> 0.08 | FO35: =LOOKUP(FO34,InputS!20:20,InputS!21:21) -> 0.085 | FP35: =LOOKUP(FP34,InputS!20:20,InputS!21:21) -> 0.09 | FQ35: =LOOKUP(FQ34,InputS!20:20,InputS!21:21) -> 0.12 | FR35: =LOOKUP(FR34,InputS!20:20,InputS!21:21) -> 0.12 | FS35: =LOOKUP(FS34,InputS!20:20,InputS!21:21) -> 0.09 | FT35: =LOOKUP(FT34,InputS!20:20,InputS!21:21) -> 0.08 | FU35: =LOOKUP(FU34,InputS!20:20,InputS!21:21) -> 0.07 | FV35: =LOOKUP(FV34,InputS!20:20,InputS!21:21) -> 0.065 | FW35: =LOOKUP(FW34,InputS!20:20,InputS!21:21) -> 0.06666666667 | FX35: =LOOKUP(FX34,InputS!20:20,InputS!21:21) -> 0.06666666667 | FY35: =LOOKUP(FY34,InputS!20:20,InputS!21:21) -> 0.06666666667 | FZ35: =LOOKUP(FZ34,InputS!20:20,InputS!21:21) -> 0.08 | GA35: =LOOKUP(GA34,InputS!20:20,InputS!21:21) -> 0.085 | GB35: =LOOKUP(GB34,InputS!20:20,InputS!21:21) -> 0.09 | GC35: =LOOKUP(GC34,InputS!20:20,InputS!21:21) -> 0.12 | GD35: =LOOKUP(GD34,InputS!20:20,InputS!21:21) -> 0.12 | GE35: =LOOKUP(GE34,InputS!20:20,InputS!21:21) -> 0.09 | GF35: =LOOKUP(GF34,InputS!20:20,InputS!21:21) -> 0.08 | GG35: =LOOKUP(GG34,InputS!20:20,InputS!21:21) -> 0.07 | GH35: =LOOKUP(GH34,InputS!20:20,InputS!21:21) -> 0.065 | GI35: =LOOKUP(GI34,InputS!20:20,InputS!21:21) -> 0.06666666667 | GJ35: =LOOKUP(GJ34,InputS!20:20,InputS!21:21) -> 0.06666666667 | GK35: =LOOKUP(GK34,InputS!20:20,InputS!21:21) -> 0.06666666667 | GL35: =LOOKUP(GL34,InputS!20:20,InputS!21:21) -> 0.08 | GM35: =LOOKUP(GM34,InputS!20:20,InputS!21:21) -> 0.085 | GN35: =LOOKUP(GN34,InputS!20:20,InputS!21:21) -> 0.09 | GO35: =LOOKUP(GO34,InputS!20:20,InputS!21:21) -> 0.12 | GP35: =LOOKUP(GP34,InputS!20:20,InputS!21:21) -> 0.12 | GQ35: =LOOKUP(GQ34,InputS!20:20,InputS!21:21) -> 0.09 | GR35: =LOOKUP(GR34,InputS!20:20,InputS!21:21) -> 0.08 | GS35: =LOOKUP(GS34,InputS!20:20,InputS!21:21) -> 0.07 | GT35: =LOOKUP(GT34,InputS!20:20,InputS!21:21) -> 0.065 | GU35: =LOOKUP(GU34,InputS!20:20,InputS!21:21) -> 0.06666666667 | GV35: =LOOKUP(GV34,InputS!20:20,InputS!21:21) -> 0.06666666667 | GW35: =LOOKUP(GW34,InputS!20:20,InputS!21:21) -> 0.06666666667 | GX35: =LOOKUP(GX34,InputS!20:20,InputS!21:21) -> 0.08 | GY35: =LOOKUP(GY34,InputS!20:20,InputS!21:21) -> 0.085 | GZ35: =LOOKUP(GZ34,InputS!20:20,InputS!21:21) -> 0.09 | HA35: =LOOKUP(HA34,InputS!20:20,InputS!21:21) -> 0.12 | HB35: =LOOKUP(HB34,InputS!20:20,InputS!21:21) -> 0.12 | HC35: =LOOKUP(HC34,InputS!20:20,InputS!21:21) -> 0.09 | HD35: =LOOKUP(HD34,InputS!20:20,InputS!21:21) -> 0.08 | HE35: =LOOKUP(HE34,InputS!20:20,InputS!21:21) -> 0.07 | HF35: =LOOKUP(HF34,InputS!20:20,InputS!21:21) -> 0.065 | HG35: =LOOKUP(HG34,InputS!20:20,InputS!21:21) -> 0.06666666667 | HH35: =LOOKUP(HH34,InputS!20:20,InputS!21:21) -> 0.06666666667 | HI35: =LOOKUP(HI34,InputS!20:20,InputS!21:21) -> 0.06666666667 | HJ35: =LOOKUP(HJ34,InputS!20:20,InputS!21:21) -> 0.08 | HK35: =LOOKUP(HK34,InputS!20:20,InputS!21:21) -> 0.085 | HL35: =LOOKUP(HL34,InputS!20:20,InputS!21:21) -> 0.09 | HM35: =LOOKUP(HM34,InputS!20:20,InputS!21:21) -> 0.12 | HN35: =LOOKUP(HN34,InputS!20:20,InputS!21:21) -> 0.12 | HO35: =LOOKUP(HO34,InputS!20:20,InputS!21:21) -> 0.09 | HP35: =LOOKUP(HP34,InputS!20:20,InputS!21:21) -> 0.08 | HQ35: =LOOKUP(HQ34,InputS!20:20,InputS!21:21) -> 0.07 | HR35: =LOOKUP(HR34,InputS!20:20,InputS!21:21) -> 0.065 | HS35: =LOOKUP(HS34,InputS!20:20,InputS!21:21) -> 0.06666666667 | HT35: =LOOKUP(HT34,InputS!20:20,InputS!21:21) -> 0.06666666667 | HU35: =LOOKUP(HU34,InputS!20:20,InputS!21:21) -> 0.06666666667 | HV35: =LOOKUP(HV34,InputS!20:20,InputS!21:21) -> 0.08 | HW35: =LOOKUP(HW34,InputS!20:20,InputS!21:21) -> 0.085 | HX35: =LOOKUP(HX34,InputS!20:20,InputS!21:21) -> 0.09 | HY35: =LOOKUP(HY34,InputS!20:20,InputS!21:21) -> 0.12 | HZ35: =LOOKUP(HZ34,InputS!20:20,InputS!21:21) -> 0.12 | IA35: =LOOKUP(IA34,InputS!20:20,InputS!21:21) -> 0.09 | IB35: =LOOKUP(IB34,InputS!20:20,InputS!21:21) -> 0.08 | IC35: =LOOKUP(IC34,InputS!20:20,InputS!21:21) -> 0.07 | ID35: =LOOKUP(ID34,InputS!20:20,InputS!21:21) -> 0.065 | IE35: =LOOKUP(IE34,InputS!20:20,InputS!21:21) -> 0.06666666667 | IF35: =LOOKUP(IF34,InputS!20:20,InputS!21:21) -> 0.06666666667 | IG35: =LOOKUP(IG34,InputS!20:20,InputS!21:21) -> 0.06666666667 | IH35: =LOOKUP(IH34,InputS!20:20,InputS!21:21) -> 0.08 | II35: =LOOKUP(II34,InputS!20:20,InputS!21:21) -> 0.085 | IJ35: =LOOKUP(IJ34,InputS!20:20,InputS!21:21) -> 0.09 | IK35: =LOOKUP(IK34,InputS!20:20,InputS!21:21) -> 0.12 | IL35: =LOOKUP(IL34,InputS!20:20,InputS!21:21) -> 0.12 | IM35: =LOOKUP(IM34,InputS!20:20,InputS!21:21) -> 0.09 | IN35: =LOOKUP(IN34,InputS!20:20,InputS!21:21) -> 0.08 | IO35: =LOOKUP(IO34,InputS!20:20,InputS!21:21) -> 0.07 | IP35: =LOOKUP(IP34,InputS!20:20,InputS!21:21) -> 0.065 | IQ35: =LOOKUP(IQ34,InputS!20:20,InputS!21:21) -> 0.06666666667 | IR35: =LOOKUP(IR34,InputS!20:20,InputS!21:21) -> 0.06666666667 | IS35: =LOOKUP(IS34,InputS!20:20,InputS!21:21) -> 0.06666666667 | IT35: =LOOKUP(IT34,InputS!20:20,InputS!21:21) -> 0.08 | IU35: =LOOKUP(IU34,InputS!20:20,InputS!21:21) -> 0.085 | IV35: =LOOKUP(IV34,InputS!20:20,InputS!21:21) -> 0.09 | IW35: =LOOKUP(IW34,InputS!20:20,InputS!21:21) -> 0.12 | IX35: =LOOKUP(IX34,InputS!20:20,InputS!21:21) -> 0.12 | IY35: =LOOKUP(IY34,InputS!20:20,InputS!21:21) -> 0.09 | IZ35: =LOOKUP(IZ34,InputS!20:20,InputS!21:21) -> 0.08 | JA35: =LOOKUP(JA34,InputS!20:20,InputS!21:21) -> 0.07 | JB35: =LOOKUP(JB34,InputS!20:20,InputS!21:21) -> 0.065 | JC35: =LOOKUP(JC34,InputS!20:20,InputS!21:21) -> 0.06666666667 | JD35: =LOOKUP(JD34,InputS!20:20,InputS!21:21) -> 0.06666666667 | JE35: =LOOKUP(JE34,InputS!20:20,InputS!21:21) -> 0.06666666667 | JF35: =LOOKUP(JF34,InputS!20:20,InputS!21:21) -> 0.08 | JG35: =LOOKUP(JG34,InputS!20:20,InputS!21:21) -> 0.085 | JH35: =LOOKUP(JH34,InputS!20:20,InputS!21:21) -> 0.09 | JI35: =LOOKUP(JI34,InputS!20:20,InputS!21:21) -> 0.12 | JJ35: =LOOKUP(JJ34,InputS!20:20,InputS!21:21) -> 0.12 | JK35: =LOOKUP(JK34,InputS!20:20,InputS!21:21) -> 0.09 | JL35: =LOOKUP(JL34,InputS!20:20,InputS!21:21) -> 0.08 | JM35: =LOOKUP(JM34,InputS!20:20,InputS!21:21) -> 0.07 | JN35: =LOOKUP(JN34,InputS!20:20,InputS!21:21) -> 0.065 | JO35: =LOOKUP(JO34,InputS!20:20,InputS!21:21) -> 0.06666666667 | JP35: =LOOKUP(JP34,InputS!20:20,InputS!21:21) -> 0.06666666667 | JQ35: =LOOKUP(JQ34,InputS!20:20,InputS!21:21) -> 0.06666666667 | JR35: =LOOKUP(JR34,InputS!20:20,InputS!21:21) -> 0.08 | JS35: =LOOKUP(JS34,InputS!20:20,InputS!21:21) -> 0.085 | JT35: =LOOKUP(JT34,InputS!20:20,InputS!21:21) -> 0.09 | JU35: =LOOKUP(JU34,InputS!20:20,InputS!21:21) -> 0.12 | JV35: =LOOKUP(JV34,InputS!20:20,InputS!21:21) -> 0.12 | JW35: =LOOKUP(JW34,InputS!20:20,InputS!21:21) -> 0.09 | JX35: =LOOKUP(JX34,InputS!20:20,InputS!21:21) -> 0.08 | JY35: =LOOKUP(JY34,InputS!20:20,InputS!21:21) -> 0.07 | JZ35: =LOOKUP(JZ34,InputS!20:20,InputS!21:21) -> 0.065 | KA35: =LOOKUP(KA34,InputS!20:20,InputS!21:21) -> 0.06666666667 | KB35: =LOOKUP(KB34,InputS!20:20,InputS!21:21) -> 0.06666666667 | KC35: =LOOKUP(KC34,InputS!20:20,InputS!21:21) -> 0.06666666667 | KD35: =LOOKUP(KD34,InputS!20:20,InputS!21:21) -> 0.08 | KE35: =LOOKUP(KE34,InputS!20:20,InputS!21:21) -> 0.085 | KF35: =LOOKUP(KF34,InputS!20:20,InputS!21:21) -> 0.09 | KG35: =LOOKUP(KG34,InputS!20:20,InputS!21:21) -> 0.12 | KH35: =LOOKUP(KH34,InputS!20:20,InputS!21:21) -> 0.12 | KI35: =LOOKUP(KI34,InputS!20:20,InputS!21:21) -> 0.09 | KJ35: =LOOKUP(KJ34,InputS!20:20,InputS!21:21) -> 0.08 | KK35: =LOOKUP(KK34,InputS!20:20,InputS!21:21) -> 0.07 | KL35: =LOOKUP(KL34,InputS!20:20,InputS!21:21) -> 0.065 | KM35: =LOOKUP(KM34,InputS!20:20,InputS!21:21) -> 0.06666666667 | KN35: =LOOKUP(KN34,InputS!20:20,InputS!21:21) -> 0.06666666667 | KO35: =LOOKUP(KO34,InputS!20:20,InputS!21:21) -> 0.06666666667 | KP35: =LOOKUP(KP34,InputS!20:20,InputS!21:21) -> 0.08 | KQ35: =LOOKUP(KQ34,InputS!20:20,InputS!21:21) -> 0.085 | KR35: =LOOKUP(KR34,InputS!20:20,InputS!21:21) -> 0.09 | KS35: =LOOKUP(KS34,InputS!20:20,InputS!21:21) -> 0.12 | KT35: =LOOKUP(KT34,InputS!20:20,InputS!21:21) -> 0.12 | KU35: =LOOKUP(KU34,InputS!20:20,InputS!21:21) -> 0.09 | KV35: =LOOKUP(KV34,InputS!20:20,InputS!21:21) -> 0.08 | KW35: =LOOKUP(KW34,InputS!20:20,InputS!21:21) -> 0.07 | KX35: =LOOKUP(KX34,InputS!20:20,InputS!21:21) -> 0.065 | KY35: =LOOKUP(KY34,InputS!20:20,InputS!21:21) -> 0.06666666667 | KZ35: =LOOKUP(KZ34,InputS!20:20,InputS!21:21) -> 0.06666666667 | LA35: =LOOKUP(LA34,InputS!20:20,InputS!21:21) -> 0.06666666667 | LB35: =LOOKUP(LB34,InputS!20:20,InputS!21:21) -> 0.08 | LC35: =LOOKUP(LC34,InputS!20:20,InputS!21:21) -> 0.085 | LD35: =LOOKUP(LD34,InputS!20:20,InputS!21:21) -> 0.09 | LE35: =LOOKUP(LE34,InputS!20:20,InputS!21:21) -> 0.12 | LF35: =LOOKUP(LF34,InputS!20:20,InputS!21:21) -> 0.12 | LG35: =LOOKUP(LG34,InputS!20:20,InputS!21:21) -> 0.09 | LH35: =LOOKUP(LH34,InputS!20:20,InputS!21:21) -> 0.08 | LI35: =LOOKUP(LI34,InputS!20:20,InputS!21:21) -> 0.07 | LJ35: =LOOKUP(LJ34,InputS!20:20,InputS!21:21) -> 0.065 | LK35: =LOOKUP(LK34,InputS!20:20,InputS!21:21) -> 0.06666666667 | LL35: =LOOKUP(LL34,InputS!20:20,InputS!21:21) -> 0.06666666667 | LM35: =LOOKUP(LM34,InputS!20:20,InputS!21:21) -> 0.06666666667 | LN35: =LOOKUP(LN34,InputS!20:20,InputS!21:21) -> 0.08 | LO35: =LOOKUP(LO34,InputS!20:20,InputS!21:21) -> 0.085 | LP35: =LOOKUP(LP34,InputS!20:20,InputS!21:21) -> 0.09 | LQ35: =LOOKUP(LQ34,InputS!20:20,InputS!21:21) -> 0.12 | LR35: =LOOKUP(LR34,InputS!20:20,InputS!21:21) -> 0.12 | LS35: =LOOKUP(LS34,InputS!20:20,InputS!21:21) -> 0.09 | LT35: =LOOKUP(LT34,InputS!20:20,InputS!21:21) -> 0.08 | LU35: =LOOKUP(LU34,InputS!20:20,InputS!21:21) -> 0.07 | LV35: =LOOKUP(LV34,InputS!20:20,InputS!21:21) -> 0.065 | LW35: =LOOKUP(LW34,InputS!20:20,InputS!21:21) -> 0.06666666667 | LX35: =LOOKUP(LX34,InputS!20:20,InputS!21:21) -> 0.06666666667 | LY35: =LOOKUP(LY34,InputS!20:20,InputS!21:21) -> 0.06666666667 | LZ35: =LOOKUP(LZ34,InputS!20:20,InputS!21:21) -> 0.08 | MA35: =LOOKUP(MA34,InputS!20:20,InputS!21:21) -> 0.085 | MB35: =LOOKUP(MB34,InputS!20:20,InputS!21:21) -> 0.09 | MC35: =LOOKUP(MC34,InputS!20:20,InputS!21:21) -> 0.12 | MD35: =LOOKUP(MD34,InputS!20:20,InputS!21:21) -> 0.12 | ME35: =LOOKUP(ME34,InputS!20:20,InputS!21:21) -> 0.09 | MF35: =LOOKUP(MF34,InputS!20:20,InputS!21:21) -> 0.08 | MG35: =LOOKUP(MG34,InputS!20:20,InputS!21:21) -> 0.07 | MH35: =LOOKUP(MH34,InputS!20:20,InputS!21:21) -> 0.065 | MI35: =LOOKUP(MI34,InputS!20:20,InputS!21:21) -> 0.06666666667 | MJ35: =LOOKUP(MJ34,InputS!20:20,InputS!21:21) -> 0.06666666667 | MK35: =LOOKUP(MK34,InputS!20:20,InputS!21:21) -> 0.06666666667 | ML35: =LOOKUP(ML34,InputS!20:20,InputS!21:21) -> 0.08 | MM35: =LOOKUP(MM34,InputS!20:20,InputS!21:21) -> 0.085 | MN35: =LOOKUP(MN34,InputS!20:20,InputS!21:21) -> 0.09 | MO35: =LOOKUP(MO34,InputS!20:20,InputS!21:21) -> 0.12 | MP35: =LOOKUP(MP34,InputS!20:20,InputS!21:21) -> 0.12 | MQ35: =LOOKUP(MQ34,InputS!20:20,InputS!21:21) -> 0.09 | MR35: =LOOKUP(MR34,InputS!20:20,InputS!21:21) -> 0.08 | MS35: =LOOKUP(MS34,InputS!20:20,InputS!21:21) -> 0.07 | MT35: =LOOKUP(MT34,InputS!20:20,InputS!21:21) -> 0.065 | MU35: =LOOKUP(MU34,InputS!20:20,InputS!21:21) -> 0.06666666667 | MV35: =LOOKUP(MV34,InputS!20:20,InputS!21:21) -> 0.06666666667 | MW35: =LOOKUP(MW34,InputS!20:20,InputS!21:21) -> 0.06666666667 | MX35: =LOOKUP(MX34,InputS!20:20,InputS!21:21) -> 0.08 | MY35: =LOOKUP(MY34,InputS!20:20,InputS!21:21) -> 0.085 | MZ35: =LOOKUP(MZ34,InputS!20:20,InputS!21:21) -> 0.09 | NA35: =LOOKUP(NA34,InputS!20:20,InputS!21:21) -> 0.12 | NB35: =LOOKUP(NB34,InputS!20:20,InputS!21:21) -> 0.12 | NC35: =LOOKUP(NC34,InputS!20:20,InputS!21:21) -> 0.09 | ND35: =LOOKUP(ND34,InputS!20:20,InputS!21:21) -> 0.08 | NE35: =LOOKUP(NE34,InputS!20:20,InputS!21:21) -> 0.07 | NF35: =LOOKUP(NF34,InputS!20:20,InputS!21:21) -> 0.065 | NG35: =LOOKUP(NG34,InputS!20:20,InputS!21:21) -> 0.06666666667 | NH35: =LOOKUP(NH34,InputS!20:20,InputS!21:21) -> 0.06666666667 | NI35: =LOOKUP(NI34,InputS!20:20,InputS!21:21) -> 0.06666666667 | NJ35: =LOOKUP(NJ34,InputS!20:20,InputS!21:21) -> 0.08 | NK35: =LOOKUP(NK34,InputS!20:20,InputS!21:21) -> 0.085 | NL35: =LOOKUP(NL34,InputS!20:20,InputS!21:21) -> 0.09 | NM35: =LOOKUP(NM34,InputS!20:20,InputS!21:21) -> 0.12 | NN35: =LOOKUP(NN34,InputS!20:20,InputS!21:21) -> 0.12 | NO35: =LOOKUP(NO34,InputS!20:20,InputS!21:21) -> 0.09 | NP35: =LOOKUP(NP34,InputS!20:20,InputS!21:21) -> 0.08 | NQ35: =LOOKUP(NQ34,InputS!20:20,InputS!21:21) -> 0.07 | NR35: =LOOKUP(NR34,InputS!20:20,InputS!21:21) -> 0.065 | NS35: =LOOKUP(NS34,InputS!20:20,InputS!21:21) -> 0.06666666667 | NT35: =LOOKUP(NT34,InputS!20:20,InputS!21:21) -> 0.06666666667 | NU35: =LOOKUP(NU34,InputS!20:20,InputS!21:21) -> 0.06666666667 | NV35: =LOOKUP(NV34,InputS!20:20,InputS!21:21) -> 0.08 | NW35: =LOOKUP(NW34,InputS!20:20,InputS!21:21) -> 0.085 | NX35: =LOOKUP(NX34,InputS!20:20,InputS!21:21) -> 0.09 | NY35: =LOOKUP(NY34,InputS!20:20,InputS!21:21) -> 0.12 | NZ35: =LOOKUP(NZ34,InputS!20:20,InputS!21:21) -> 0.12 | OA35: =LOOKUP(OA34,InputS!20:20,InputS!21:21) -> 0.09 | OB35: =LOOKUP(OB34,InputS!20:20,InputS!21:21) -> 0.08 | OC35: =LOOKUP(OC34,InputS!20:20,InputS!21:21) -> 0.07 | OD35: =LOOKUP(OD34,InputS!20:20,InputS!21:21) -> 0.065 | OE35: =LOOKUP(OE34,InputS!20:20,InputS!21:21) -> 0.06666666667 | OF35: =LOOKUP(OF34,InputS!20:20,InputS!21:21) -> 0.06666666667 | OG35: =LOOKUP(OG34,InputS!20:20,InputS!21:21) -> 0.06666666667 | OH35: =LOOKUP(OH34,InputS!20:20,InputS!21:21) -> 0.08 | OI35: =LOOKUP(OI34,InputS!20:20,InputS!21:21) -> 0.085 | OJ35: =LOOKUP(OJ34,InputS!20:20,InputS!21:21) -> 0.09 | OK35: =LOOKUP(OK34,InputS!20:20,InputS!21:21) -> 0.12 | OL35: =LOOKUP(OL34,InputS!20:20,InputS!21:21) -> 0.12 | OM35: =LOOKUP(OM34,InputS!20:20,InputS!21:21) -> 0.09 | ON35: =LOOKUP(ON34,InputS!20:20,InputS!21:21) -> 0.08 | OO35: =LOOKUP(OO34,InputS!20:20,InputS!21:21) -> 0.07 | OP35: =LOOKUP(OP34,InputS!20:20,InputS!21:21) -> 0.065 | OQ35: =LOOKUP(OQ34,InputS!20:20,InputS!21:21) -> 0.06666666667 | OR35: =LOOKUP(OR34,InputS!20:20,InputS!21:21) -> 0.06666666667 | OS35: =LOOKUP(OS34,InputS!20:20,InputS!21:21) -> 0.06666666667 | OT35: =LOOKUP(OT34,InputS!20:20,InputS!21:21) -> 0.08 | OU35: =LOOKUP(OU34,InputS!20:20,InputS!21:21) -> 0.085 | OV35: =LOOKUP(OV34,InputS!20:20,InputS!21:21) -> 0.09 | OW35: =LOOKUP(OW34,InputS!20:20,InputS!21:21) -> 0.12 | OX35: =LOOKUP(OX34,InputS!20:20,InputS!21:21) -> 0.12 | OY35: =LOOKUP(OY34,InputS!20:20,InputS!21:21) -> 0.09 | OZ35: =LOOKUP(OZ34,InputS!20:20,InputS!21:21) -> 0.08 | PA35: =LOOKUP(PA34,InputS!20:20,InputS!21:21) -> 0.07 | PB35: =LOOKUP(PB34,InputS!20:20,InputS!21:21) -> 0.065 | PC35: =LOOKUP(PC34,InputS!20:20,InputS!21:21) -> 0.06666666667 | PD35: =LOOKUP(PD34,InputS!20:20,InputS!21:21) -> 0.06666666667 | PE35: =LOOKUP(PE34,InputS!20:20,InputS!21:21) -> 0.06666666667 | PF35: =LOOKUP(PF34,InputS!20:20,InputS!21:21) -> 0.08 | PG35: =LOOKUP(PG34,InputS!20:20,InputS!21:21) -> 0.085 | PH35: =LOOKUP(PH34,InputS!20:20,InputS!21:21) -> 0.09 | PI35: =LOOKUP(PI34,InputS!20:20,InputS!21:21) -> 0.12 | PJ35: =LOOKUP(PJ34,InputS!20:20,InputS!21:21) -> 0.12 | PK35: =LOOKUP(PK34,InputS!20:20,InputS!21:21) -> 0.09 | PL35: =LOOKUP(PL34,InputS!20:20,InputS!21:21) -> 0.08 | PM35: =LOOKUP(PM34,InputS!20:20,InputS!21:21) -> 0.07 | PN35: =LOOKUP(PN34,InputS!20:20,InputS!21:21) -> 0.065 | PO35: =LOOKUP(PO34,InputS!20:20,InputS!21:21) -> 0.06666666667 | PP35: =LOOKUP(PP34,InputS!20:20,InputS!21:21) -> 0.06666666667 | PQ35: =LOOKUP(PQ34,InputS!20:20,InputS!21:21) -> 0.06666666667 | PR35: =LOOKUP(PR34,InputS!20:20,InputS!21:21) -> 0.08 | PS35: =LOOKUP(PS34,InputS!20:20,InputS!21:21) -> 0.085 | PT35: =LOOKUP(PT34,InputS!20:20,InputS!21:21) -> 0.09 | PU35: =LOOKUP(PU34,InputS!20:20,InputS!21:21) -> 0.12 | PV35: =LOOKUP(PV34,InputS!20:20,InputS!21:21) -> 0.12 | PW35: =LOOKUP(PW34,InputS!20:20,InputS!21:21) -> 0.09 | PX35: =LOOKUP(PX34,InputS!20:20,InputS!21:21) -> 0.08 | PY35: =LOOKUP(PY34,InputS!20:20,InputS!21:21) -> 0.07 | PZ35: =LOOKUP(PZ34,InputS!20:20,InputS!21:21) -> 0.065 | QA35: =LOOKUP(QA34,InputS!20:20,InputS!21:21) -> 0.06666666667 | QB35: =LOOKUP(QB34,InputS!20:20,InputS!21:21) -> 0.06666666667 | QC35: =LOOKUP(QC34,InputS!20:20,InputS!21:21) -> 0.06666666667 | QD35: =LOOKUP(QD34,InputS!20:20,InputS!21:21) -> 0.08 | QE35: =LOOKUP(QE34,InputS!20:20,InputS!21:21) -> 0.085 | QF35: =LOOKUP(QF34,InputS!20:20,InputS!21:21) -> 0.09 | QG35: =LOOKUP(QG34,InputS!20:20,InputS!21:21) -> 0.12 | QH35: =LOOKUP(QH34,InputS!20:20,InputS!21:21) -> 0.12 | QI35: =LOOKUP(QI34,InputS!20:20,InputS!21:21) -> 0.09 | QJ35: =LOOKUP(QJ34,InputS!20:20,InputS!21:21) -> 0.08 | QK35: =LOOKUP(QK34,InputS!20:20,InputS!21:21) -> 0.07 | QL35: =LOOKUP(QL34,InputS!20:20,InputS!21:21) -> 0.065 | QM35: =LOOKUP(QM34,InputS!20:20,InputS!21:21) -> 0.06666666667 | QN35: =LOOKUP(QN34,InputS!20:20,InputS!21:21) -> 0.06666666667 | QO35: =LOOKUP(QO34,InputS!20:20,InputS!21:21) -> 0.06666666667 | QP35: =LOOKUP(QP34,InputS!20:20,InputS!21:21) -> 0.08 | QQ35: =LOOKUP(QQ34,InputS!20:20,InputS!21:21) -> 0.085 | QR35: =LOOKUP(QR34,InputS!20:20,InputS!21:21) -> 0.09 | QS35: =LOOKUP(QS34,InputS!20:20,InputS!21:21) -> 0.12 | QT35: =LOOKUP(QT34,InputS!20:20,InputS!21:21) -> 0.12 | QU35: =LOOKUP(QU34,InputS!20:20,InputS!21:21) -> 0.09 | QV35: =LOOKUP(QV34,InputS!20:20,InputS!21:21) -> 0.08 | QW35: =LOOKUP(QW34,InputS!20:20,InputS!21:21) -> 0.07 | QX35: =LOOKUP(QX34,InputS!20:20,InputS!21:21) -> 0.065 | QY35: =LOOKUP(QY34,InputS!20:20,InputS!21:21) -> 0.06666666667 | QZ35: =LOOKUP(QZ34,InputS!20:20,InputS!21:21) -> 0.06666666667 | RA35: =LOOKUP(RA34,InputS!20:20,InputS!21:21) -> 0.06666666667 | RB35: =LOOKUP(RB34,InputS!20:20,InputS!21:21) -> 0.08 | RC35: =LOOKUP(RC34,InputS!20:20,InputS!21:21) -> 0.085 | RD35: =LOOKUP(RD34,InputS!20:20,InputS!21:21) -> 0.09 | RE35: =LOOKUP(RE34,InputS!20:20,InputS!21:21) -> 0.12 | RF35: =LOOKUP(RF34,InputS!20:20,InputS!21:21) -> 0.12 | RG35: =LOOKUP(RG34,InputS!20:20,InputS!21:21) -> 0.09 | RH35: =LOOKUP(RH34,InputS!20:20,InputS!21:21) -> 0.08 | RI35: =LOOKUP(RI34,InputS!20:20,InputS!21:21) -> 0.07 | RJ35: =LOOKUP(RJ34,InputS!20:20,InputS!21:21) -> 0.065 | RK35: =LOOKUP(RK34,InputS!20:20,InputS!21:21) -> 0.06666666667 | RL35: =LOOKUP(RL34,InputS!20:20,InputS!21:21) -> 0.06666666667 | RM35: =LOOKUP(RM34,InputS!20:20,InputS!21:21) -> 0.06666666667 | RN35: =LOOKUP(RN34,InputS!20:20,InputS!21:21) -> 0.08 | RO35: =LOOKUP(RO34,InputS!20:20,InputS!21:21) -> 0.085 | RP35: =LOOKUP(RP34,InputS!20:20,InputS!21:21) -> 0.09 | RQ35: =LOOKUP(RQ34,InputS!20:20,InputS!21:21) -> 0.12 | RR35: =LOOKUP(RR34,InputS!20:20,InputS!21:21) -> 0.12 | RS35: =LOOKUP(RS34,InputS!20:20,InputS!21:21) -> 0.09 | RT35: =LOOKUP(RT34,InputS!20:20,InputS!21:21) -> 0.08 | RU35: =LOOKUP(RU34,InputS!20:20,InputS!21:21) -> 0.07 | RV35: =LOOKUP(RV34,InputS!20:20,InputS!21:21) -> 0.065 | RW35: =LOOKUP(RW34,InputS!20:20,InputS!21:21) -> 0.06666666667 | RX35: =LOOKUP(RX34,InputS!20:20,InputS!21:21) -> 0.06666666667 | RY35: =LOOKUP(RY34,InputS!20:20,InputS!21:21) -> 0.06666666667 | RZ35: =LOOKUP(RZ34,InputS!20:20,InputS!21:21) -> 0.08 | SA35: =LOOKUP(SA34,InputS!20:20,InputS!21:21) -> 0.085 | SB35: =LOOKUP(SB34,InputS!20:20,InputS!21:21) -> 0.09 | SC35: =LOOKUP(SC34,InputS!20:20,InputS!21:21) -> 0.12 | SD35: =LOOKUP(SD34,InputS!20:20,InputS!21:21) -> 0.12 | SE35: =LOOKUP(SE34,InputS!20:20,InputS!21:21) -> 0.09 | SF35: =LOOKUP(SF34,InputS!20:20,InputS!21:21) -> 0.08 | SG35: =LOOKUP(SG34,InputS!20:20,InputS!21:21) -> 0.07 | SH35: =LOOKUP(SH34,InputS!20:20,InputS!21:21) -> 0.065 | SI35: =LOOKUP(SI34,InputS!20:20,InputS!21:21) -> 0.06666666667 | SJ35: =LOOKUP(SJ34,InputS!20:20,InputS!21:21) -> 0.06666666667 | SK35: =LOOKUP(SK34,InputS!20:20,InputS!21:21) -> 0.06666666667 | SL35: =LOOKUP(SL34,InputS!20:20,InputS!21:21) -> 0.08 | SM35: =LOOKUP(SM34,InputS!20:20,InputS!21:21) -> 0.085 | SN35: =LOOKUP(SN34,InputS!20:20,InputS!21:21) -> 0.09 | SO35: =LOOKUP(SO34,InputS!20:20,InputS!21:21) -> 0.12 | SP35: =LOOKUP(SP34,InputS!20:20,InputS!21:21) -> 0.12 | SQ35: =LOOKUP(SQ34,InputS!20:20,InputS!21:21) -> 0.09
D36: Seasonal Generation | G36: MWH | J36: =SUM(K36:XFD36) -> 7224865.959 | L36: =L35*L32 -> 0 | M36: =M35*M32 -> 0 | N36: 0 | O36: 0 | P36: 0 | Q36: 0 | R36: 0 | S36: 0 | T36: 0 | U36: 0 | V36: 0 | W36: 15029.74702 | X36: 15020.38556 | Y36: 15011.02994 | Z36: 18002.01617 | AA36: 19115.22861 | AB36: 20227.04732 | AC36: 26952.59822 | AD36: 26935.81047 | AE36: 20189.27489 | AF36: 17934.84423 | AG36: 15683.21414 | AH36: 14553.91383 | AI36: 14920.8857 | AJ36: 14914.68286 | AK36: 14908.48261 | AL36: 17882.74192 | AM36: 18992.51453 | AN36: 20101.36136 | AO36: 26790.67323 | AP36: 26779.53595 | AQ36: 20076.30248 | AR36: 17838.18352 | AS36: 15601.92193 | AT36: 14481.47627 | AU36: 14846.62164 | AV36: 14840.44968 | AW36: 14834.28029 | AX36: 17793.73615 | AY36: 18897.98522 | AZ36: 20001.31311 | BA36: 26657.33102 | BB36: 26646.24917 | BC36: 19976.37895 | BD36: 17749.39953 | BE36: 15524.26823 | BF36: 14409.39924 | BG36: 14772.72722 | BH36: 14766.58598 | BI36: 14760.44729 | BJ36: 17705.17338 | BK36: 18803.9264 | BL36: 19901.76281 | BM36: 26524.65247 | BN36: 26513.62578 | BO36: 19876.95276 | BP36: 17661.05743 | BQ36: 15447.00103 | BR36: 14337.68095 | BS36: 14699.20058 | BT36: 14693.0899 | BU36: 14686.98177 | BV36: 17617.05141 | BW36: 18710.33572 | BX36: 19802.708 | BY36: =BY35*BY32 -> 26392.63429 | BZ36: 26381.66248 | CA36: 19778.02143 | CB36: 17573.15503 | CC36: 15370.11841 | CD36: 14266.31962 | CE36: 14626.0399 | CF36: 14619.95964 | CG36: 14613.8819 | CH36: 17529.36803 | CI36: 18617.21086 | CJ36: 19704.1462 | CK36: 26261.27319 | CL36: 26250.35599 | CM36: 19679.5825 | CN36: 17485.69014 | CO36: 15293.61844 | CP36: 14195.31347 | CQ36: 14553.24335 | CR36: 14547.19335 | CS36: 14541.14586 | CT36: 17442.12107 | CU36: 18524.54951 | CV36: 19606.07496 | CW36: 26130.5659 | CX36: 26119.70304 | CY36: 19581.63352 | CZ36: 17398.66057 | DA36: 15217.49923 | DB36: 14124.66072 | DC36: 14480.80912 | DD36: 14474.78923 | DE36: 14468.77185 | DF36: 17355.30836 | DG36: 18432.34934 | DH36: 19508.49185 | DI36: 26000.50917 | DJ36: 25989.70037 | DK36: 19484.17205 | DL36: 17312.06417 | DM36: 15141.75888 | DN36: 14054.35963 | DO36: 14408.73541 | DP36: 14402.74549 | DQ36: 14396.75805 | DR36: 17268.92773 | DS36: 18340.60808 | DT36: 19411.39442 | DU36: 25871.09975 | DV36: 25860.34475 | DW36: 19387.19566 | DX36: 17225.89877 | DY36: 15066.3955 | DZ36: 13984.40845 | EA36: 14337.02043 | EB36: 14331.06032 | EC36: 14325.10268 | ED36: 17182.97703 | EE36: 18249.32343 | EF36: 19314.78026 | EG36: 25742.33442 | EH36: 25731.63295 | EI36: 19290.70195 | EJ36: 17140.16224 | EK36: =EK35*EK32 -> 14991.40722 | EL36: 13914.80542 | EM36: 14265.66239 | EN36: 14259.73194 | EO36: 14253.80396 | EP36: 17097.45413 | EQ36: 18158.49311 | ER36: 19218.64697 | ES36: 25614.20999 | ET36: 25603.56178 | EU36: 19194.6885 | EV36: 17054.85243 | EW36: 14916.79217 | EX36: 13845.54882 | EY36: 14194.6595 | EZ36: 14188.75857 | FA36: 14182.8601 | FB36: 17012.35688 | FC36: 18068.11488 | FD36: 19122.99215 | FE36: 25486.72325 | FF36: 25476.12804 | FG36: 19099.15293 | FH36: 16969.96723 | FI36: 14842.54849 | FJ36: 13776.63692 | FK36: 14124.01002 | FL36: 14118.13846 | FM36: 14112.26934 | FN36: 16927.68319 | FO36: 17978.18648 | FP36: 19027.81343 | FQ36: 25359.87104 | FR36: 25349.32857 | FS36: 19004.09286 | FT36: 16885.50451 | FU36: 14768.67434 | FV36: 13708.06801 | FW36: 14053.71217 | FX36: 14047.86983 | FY36: 14042.02992 | FZ36: 16843.43093 | GA36: 17888.70567 | GB36: 18933.10842 | GC36: 25233.6502 | GD36: 25223.1602 | GE36: 18909.50592 | GF36: 16801.46218 | GG36: 14695.16787 | GH36: 13639.84038 | GI36: 13983.7642 | GJ36: 13977.95094 | GK36: 13972.1401 | GL36: 16759.59801 | GM36: 17799.67022 | GN36: 18838.87479 | GO36: 25108.05758 | GP36: 25097.61979 | GQ36: 18815.38975 | GR36: 16717.83815 | GS36: 14622.02726 | GT36: 13571.95233 | GU36: 13914.16438 | GV36: 13908.38005 | GW36: =GW35*GW32 -> 13902.59813 | GX36: 16676.18234 | GY36: 17711.07792 | GZ36: 18745.11017 | HA36: 24983.09006 | HB36: 24972.70422 | HC36: 18721.74202 | HD36: 16634.63033 | HE36: 14549.25068 | HF36: 13504.40217 | HG36: 13844.91097 | HH36: 13839.15543 | HI36: 13833.40229 | HJ36: 16593.18185 | HK36: 17622.92655 | HL36: 18651.81223 | HM36: 24858.74453 | HN36: 24848.41038 | HO36: 18628.5604 | HP36: 16551.83665 | HQ36: 14476.83633 | HR36: 13437.18823 | HS36: 13776.00224 | HT36: 13770.27536 | HU36: 13764.55085 | HV36: 16510.59446 | HW36: 17535.21394 | HX36: 18558.97866 | HY36: 24735.01789 | HZ36: 24724.73517 | IA36: 18535.84255 | IB36: 16469.45504 | IC36: 14404.78239 | ID36: 13370.30882 | IE36: 13707.43649 | IF36: 13701.73811 | IG36: 13696.04209 | IH36: 16428.41813 | II36: 17447.93788 | IJ36: 18466.60713 | IK36: 24611.90706 | IL36: 24601.67552 | IM36: 18443.58618 | IN36: 16387.48347 | IO36: 14333.08708 | IP36: 13303.76228 | IQ36: 13639.21201 | IR36: 13633.54198 | IS36: 13627.87432 | IT36: 16346.65081 | IU36: 17361.09622 | IV36: 18374.69536 | IW36: 24489.40897 | IX36: 24479.22836 | IY36: 18351.78899 | IZ36: 16305.91989 | JA36: 14261.74862 | JB36: 13237.54695 | JC36: 13571.32709 | JD36: 13565.68528 | JE36: 13560.04583 | JF36: 16265.29046 | JG36: 17274.68678 | JH36: 18283.24105 | JI36: =JI35*JI32 -> 24367.52058 | JJ36: 24357.39064 | JK36: 18260.44868 | JL36: 16224.76226 | JM36: 14190.76521 | JN36: 13171.66119 | JO36: 13503.78004 | JP36: 13498.16632 | JQ36: 13492.55493 | JR36: 16184.33505 | JS36: 17188.70742 | JT36: 18192.24192 | JU36: 24246.23885 | JV36: 24236.15933 | JW36: 18169.563 | JX36: 16144.00857 | JY36: 14120.13511 | JZ36: 13106.10336 | KA36: 13436.56919 | KB36: 13430.98341 | KC36: 13425.39995 | KD36: 16103.78257 | KE36: 17103.15599 | KF36: 18101.69572 | KG36: 24125.56077 | KH36: 24115.53141 | KI36: 18079.12967 | KJ36: 16063.65681 | KK36: 14049.85654 | KL36: 13040.87182 | KM36: 13369.69286 | KN36: 13364.13488 | KO36: 13358.57921 | KP36: 16023.63102 | KQ36: 17018.03037 | KR36: 18011.60018 | KS36: 24005.48332 | KT36: 23995.50388 | KU36: 17989.14645 | KV36: 15983.70497 | KW36: 13979.92777 | KX36: 12975.96495 | KY36: 13303.14939 | KZ36: 13297.61907 | LA36: 13292.09105 | LB36: 15943.8784 | LC36: 16933.32844 | LD36: 17921.95306 | LE36: 23886.00352 | LF36: 23876.07375 | LG36: 17899.61108 | LH36: 15904.15107 | LI36: 13910.34704 | LJ36: 12911.38114 | LK36: 13236.93711 | LL36: 13231.43432 | LM36: 13225.93382 | LN36: 15864.52272 | LO36: 16849.04808 | LP36: 17832.75213 | LQ36: 23767.11839 | LR36: 23757.23805 | LS36: 17810.52136 | LT36: 15824.99312 | LU36: =LU35*LU32 -> 13841.11263 | LV36: 12847.11877 | LW36: 13171.05439 | LX36: 13165.57899 | LY36: 13160.10586 | LZ36: 15785.56201 | MA36: 16765.1872 | MB36: 17743.99517 | MC36: 23648.82498 | MD36: 23638.99381 | ME36: 17721.87505 | MF36: 15746.22915 | MG36: 13772.22281 | MH36: 12783.17624 | MI36: 13105.49958 | MJ36: 13100.05143 | MK36: 13094.60554 | ML36: 15706.9943 | MM36: 16681.74371 | MN36: 17655.67998 | MO36: 23531.12033 | MP36: 23521.33809 | MQ36: 17633.66994 | MR36: 15667.85721 | MS36: 13703.67587 | MT36: 12719.55197 | MU36: 13040.27104 | MV36: 13034.85001 | MW36: 13029.43123 | MX36: 15628.81764 | MY36: 16598.71554 | MZ36: 17567.80434 | NA36: 23414.00152 | NB36: 23404.26798 | NC36: 17545.90386 | ND36: 15589.87534 | NE36: 13635.4701 | NF36: 12656.24437 | NG36: 12975.36717 | NH36: 12969.97311 | NI36: 12964.5813 | NJ36: 15551.03008 | NK36: 16516.10062 | NL36: 17480.36608 | NM36: 23297.46564 | NN36: 23287.78054 | NO36: 17458.5746 | NP36: 15512.28161 | NQ36: 13567.60381 | NR36: 12593.25187 | NS36: 12910.78633 | NT36: 12905.41912 | NU36: 12900.05415 | NV36: 15473.62968 | NW36: 16433.89688 | NX36: 17393.36301 | NY36: 23181.50978 | NZ36: 23171.87288 | OA36: 17371.67999 | OB36: 15435.07407 | OC36: 13500.07529 | OD36: 12530.57289 | OE36: 12846.52692 | OF36: 12841.18642 | OG36: =OG35*OG32 -> 12835.84815 | OH36: 15396.61452 | OI36: 16352.10229 | OJ36: 17306.79297 | OK36: 23066.13105 | OL36: 23056.54211 | OM36: 17285.21787 | ON36: 15358.2508 | OO36: 13432.88288 | OP36: 12468.20587 | OQ36: 12782.58734 | OR36: 12777.27343 | OS36: 12771.96172 | OT36: 15319.98268 | OU36: 16270.7148 | OV36: 17220.65381 | OW36: 22951.32658 | OX36: 22941.78537 | OY36: 17199.1861 | OZ36: 15281.8099 | PA36: 13366.0249 | PB36: 12406.14927 | PC36: 12718.966 | PD36: 12713.67854 | PE36: 12708.39327 | PF36: 15243.73224 | PG36: 16189.7324 | PH36: 17134.94339 | PI36: 22837.09351 | PJ36: 22827.59979 | PK36: 17113.58252 | PL36: 15205.74946 | PM36: 13299.49968 | PN36: 12344.40153 | PO36: 12655.66132 | PP36: 12650.40017 | PQ36: 12645.14121 | PR36: 15167.86132 | PS36: 16109.15306 | PT36: 17049.65955 | PU36: 22723.42901 | PV36: 22713.98254 | PW36: 17028.405 | PX36: 15130.06759 | PY36: 13233.30557 | PZ36: 12282.96113 | QA36: 0 | QB36: 0 | QC36: 0 | QD36: 0 | QE36: 0 | QF36: 0 | QG36: 0 | QH36: 0 | QI36: 0 | QJ36: 0 | QK36: 0 | QL36: 0 | QM36: 0 | QN36: 0 | QO36: 0 | QP36: 0 | QQ36: 0 | QR36: 0 | QS36: =QS35*QS32 -> 0 | QT36: 0 | QU36: 0 | QV36: 0 | QW36: 0 | QX36: 0 | QY36: 0 | QZ36: 0 | RA36: 0 | RB36: 0 | RC36: 0 | RD36: 0 | RE36: 0 | RF36: 0 | RG36: 0 | RH36: 0 | RI36: 0 | RJ36: 0 | RK36: 0 | RL36: 0 | RM36: 0 | RN36: 0 | RO36: 0 | RP36: 0 | RQ36: 0 | RR36: 0 | RS36: 0 | RT36: 0 | RU36: 0 | RV36: 0 | RW36: 0 | RX36: 0 | RY36: 0 | RZ36: 0 | SA36: 0 | SB36: 0 | SC36: 0 | SD36: 0 | SE36: 0 | SF36: 0 | SG36: 0 | SH36: 0 | SI36: 0 | SJ36: 0 | SK36: 0 | SL36: 0 | SM36: 0 | SN36: 0 | SO36: 0 | SP36: 0 | SQ36: 0
B38: Cash Flow
C39: Inflation Index
D40: Year | G40: Year | L40: =YEAR(L4) -> 2023 | M40: =YEAR(M4) -> 2023 | N40: 2023 | O40: 2023 | P40: 2023 | Q40: 2023 | R40: 2023 | S40: 2023 | T40: 2023 | U40: 2023 | V40: 2023 | W40: 2023 | X40: 2024 | Y40: 2024 | Z40: 2024 | AA40: 2024 | AB40: 2024 | AC40: 2024 | AD40: 2024 | AE40: 2024 | AF40: 2024 | AG40: 2024 | AH40: 2024 | AI40: 2024 | AJ40: 2025 | AK40: 2025 | AL40: 2025 | AM40: 2025 | AN40: 2025 | AO40: 2025 | AP40: 2025 | AQ40: 2025 | AR40: 2025 | AS40: 2025 | AT40: 2025 | AU40: 2025 | AV40: 2026 | AW40: 2026 | AX40: 2026 | AY40: 2026 | AZ40: 2026 | BA40: 2026 | BB40: 2026 | BC40: 2026 | BD40: 2026 | BE40: 2026 | BF40: 2026 | BG40: 2026 | BH40: 2027 | BI40: 2027 | BJ40: 2027 | BK40: 2027 | BL40: 2027 | BM40: 2027 | BN40: 2027 | BO40: 2027 | BP40: 2027 | BQ40: 2027 | BR40: 2027 | BS40: 2027 | BT40: 2028 | BU40: 2028 | BV40: 2028 | BW40: 2028 | BX40: 2028 | BY40: =YEAR(BY4) -> 2028 | BZ40: 2028 | CA40: 2028 | CB40: 2028 | CC40: 2028 | CD40: 2028 | CE40: 2028 | CF40: 2029 | CG40: 2029 | CH40: 2029 | CI40: 2029 | CJ40: 2029 | CK40: 2029 | CL40: 2029 | CM40: 2029 | CN40: 2029 | CO40: 2029 | CP40: 2029 | CQ40: 2029 | CR40: 2030 | CS40: 2030 | CT40: 2030 | CU40: 2030 | CV40: 2030 | CW40: 2030 | CX40: 2030 | CY40: 2030 | CZ40: 2030 | DA40: 2030 | DB40: 2030 | DC40: 2030 | DD40: 2031 | DE40: 2031 | DF40: 2031 | DG40: 2031 | DH40: 2031 | DI40: 2031 | DJ40: 2031 | DK40: 2031 | DL40: 2031 | DM40: 2031 | DN40: 2031 | DO40: 2031 | DP40: 2032 | DQ40: 2032 | DR40: 2032 | DS40: 2032 | DT40: 2032 | DU40: 2032 | DV40: 2032 | DW40: 2032 | DX40: 2032 | DY40: 2032 | DZ40: 2032 | EA40: 2032 | EB40: 2033 | EC40: 2033 | ED40: 2033 | EE40: 2033 | EF40: 2033 | EG40: 2033 | EH40: 2033 | EI40: 2033 | EJ40: 2033 | EK40: =YEAR(EK4) -> 2033 | EL40: 2033 | EM40: 2033 | EN40: 2034 | EO40: 2034 | EP40: 2034 | EQ40: 2034 | ER40: 2034 | ES40: 2034 | ET40: 2034 | EU40: 2034 | EV40: 2034 | EW40: 2034 | EX40: 2034 | EY40: 2034 | EZ40: 2035 | FA40: 2035 | FB40: 2035 | FC40: 2035 | FD40: 2035 | FE40: 2035 | FF40: 2035 | FG40: 2035 | FH40: 2035 | FI40: 2035 | FJ40: 2035 | FK40: 2035 | FL40: 2036 | FM40: 2036 | FN40: 2036 | FO40: 2036 | FP40: 2036 | FQ40: 2036 | FR40: 2036 | FS40: 2036 | FT40: 2036 | FU40: 2036 | FV40: 2036 | FW40: 2036 | FX40: 2037 | FY40: 2037 | FZ40: 2037 | GA40: 2037 | GB40: 2037 | GC40: 2037 | GD40: 2037 | GE40: 2037 | GF40: 2037 | GG40: 2037 | GH40: 2037 | GI40: 2037 | GJ40: 2038 | GK40: 2038 | GL40: 2038 | GM40: 2038 | GN40: 2038 | GO40: 2038 | GP40: 2038 | GQ40: 2038 | GR40: 2038 | GS40: 2038 | GT40: 2038 | GU40: 2038 | GV40: 2039 | GW40: =YEAR(GW4) -> 2039 | GX40: 2039 | GY40: 2039 | GZ40: 2039 | HA40: 2039 | HB40: 2039 | HC40: 2039 | HD40: 2039 | HE40: 2039 | HF40: 2039 | HG40: 2039 | HH40: 2040 | HI40: 2040 | HJ40: 2040 | HK40: 2040 | HL40: 2040 | HM40: 2040 | HN40: 2040 | HO40: 2040 | HP40: 2040 | HQ40: 2040 | HR40: 2040 | HS40: 2040 | HT40: 2041 | HU40: 2041 | HV40: 2041 | HW40: 2041 | HX40: 2041 | HY40: 2041 | HZ40: 2041 | IA40: 2041 | IB40: 2041 | IC40: 2041 | ID40: 2041 | IE40: 2041 | IF40: 2042 | IG40: 2042 | IH40: 2042 | II40: 2042 | IJ40: 2042 | IK40: 2042 | IL40: 2042 | IM40: 2042 | IN40: 2042 | IO40: 2042 | IP40: 2042 | IQ40: 2042 | IR40: 2043 | IS40: 2043 | IT40: 2043 | IU40: 2043 | IV40: 2043 | IW40: 2043 | IX40: 2043 | IY40: 2043 | IZ40: 2043 | JA40: 2043 | JB40: 2043 | JC40: 2043 | JD40: 2044 | JE40: 2044 | JF40: 2044 | JG40: 2044 | JH40: 2044 | JI40: =YEAR(JI4) -> 2044 | JJ40: 2044 | JK40: 2044 | JL40: 2044 | JM40: 2044 | JN40: 2044 | JO40: 2044 | JP40: 2045 | JQ40: 2045 | JR40: 2045 | JS40: 2045 | JT40: 2045 | JU40: 2045 | JV40: 2045 | JW40: 2045 | JX40: 2045 | JY40: 2045 | JZ40: 2045 | KA40: 2045 | KB40: 2046 | KC40: 2046 | KD40: 2046 | KE40: 2046 | KF40: 2046 | KG40: 2046 | KH40: 2046 | KI40: 2046 | KJ40: 2046 | KK40: 2046 | KL40: 2046 | KM40: 2046 | KN40: 2047 | KO40: 2047 | KP40: 2047 | KQ40: 2047 | KR40: 2047 | KS40: 2047 | KT40: 2047 | KU40: 2047 | KV40: 2047 | KW40: 2047 | KX40: 2047 | KY40: 2047 | KZ40: 2048 | LA40: 2048 | LB40: 2048 | LC40: 2048 | LD40: 2048 | LE40: 2048 | LF40: 2048 | LG40: 2048 | LH40: 2048 | LI40: 2048 | LJ40: 2048 | LK40: 2048 | LL40: 2049 | LM40: 2049 | LN40: 2049 | LO40: 2049 | LP40: 2049 | LQ40: 2049 | LR40: 2049 | LS40: 2049 | LT40: 2049 | LU40: =YEAR(LU4) -> 2049 | LV40: 2049 | LW40: 2049 | LX40: 2050 | LY40: 2050 | LZ40: 2050 | MA40: 2050 | MB40: 2050 | MC40: 2050 | MD40: 2050 | ME40: 2050 | MF40: 2050 | MG40: 2050 | MH40: 2050 | MI40: 2050 | MJ40: 2051 | MK40: 2051 | ML40: 2051 | MM40: 2051 | MN40: 2051 | MO40: 2051 | MP40: 2051 | MQ40: 2051 | MR40: 2051 | MS40: 2051 | MT40: 2051 | MU40: 2051 | MV40: 2052 | MW40: 2052 | MX40: 2052 | MY40: 2052 | MZ40: 2052 | NA40: 2052 | NB40: 2052 | NC40: 2052 | ND40: 2052 | NE40: 2052 | NF40: 2052 | NG40: 2052 | NH40: 2053 | NI40: 2053 | NJ40: 2053 | NK40: 2053 | NL40: 2053 | NM40: 2053 | NN40: 2053 | NO40: 2053 | NP40: 2053 | NQ40: 2053 | NR40: 2053 | NS40: 2053 | NT40: 2054 | NU40: 2054 | NV40: 2054 | NW40: 2054 | NX40: 2054 | NY40: 2054 | NZ40: 2054 | OA40: 2054 | OB40: 2054 | OC40: 2054 | OD40: 2054 | OE40: 2054 | OF40: 2055 | OG40: =YEAR(OG4) -> 2055 | OH40: 2055 | OI40: 2055 | OJ40: 2055 | OK40: 2055 | OL40: 2055 | OM40: 2055 | ON40: 2055 | OO40: 2055 | OP40: 2055 | OQ40: 2055 | OR40: 2056 | OS40: 2056 | OT40: 2056 | OU40: 2056 | OV40: 2056 | OW40: 2056 | OX40: 2056 | OY40: 2056 | OZ40: 2056 | PA40: 2056 | PB40: 2056 | PC40: 2056 | PD40: 2057 | PE40: 2057 | PF40: 2057 | PG40: 2057 | PH40: 2057 | PI40: 2057 | PJ40: 2057 | PK40: 2057 | PL40: 2057 | PM40: 2057 | PN40: 2057 | PO40: 2057 | PP40: 2058 | PQ40: 2058 | PR40: 2058 | PS40: 2058 | PT40: 2058 | PU40: 2058 | PV40: 2058 | PW40: 2058 | PX40: 2058 | PY40: 2058 | PZ40: 2058 | QA40: 2058 | QB40: 2059 | QC40: 2059 | QD40: 2059 | QE40: 2059 | QF40: 2059 | QG40: 2059 | QH40: 2059 | QI40: 2059 | QJ40: 2059 | QK40: 2059 | QL40: 2059 | QM40: 2059 | QN40: 2060 | QO40: 2060 | QP40: 2060 | QQ40: 2060 | QR40: 2060 | QS40: =YEAR(QS4) -> 2060 | QT40: 2060 | QU40: 2060 | QV40: 2060 | QW40: 2060 | QX40: 2060 | QY40: 2060 | QZ40: 2061 | RA40: 2061 | RB40: 2061 | RC40: 2061 | RD40: 2061 | RE40: 2061 | RF40: 2061 | RG40: 2061 | RH40: 2061 | RI40: 2061 | RJ40: 2061 | RK40: 2061 | RL40: 2062 | RM40: 2062 | RN40: 2062 | RO40: 2062 | RP40: 2062 | RQ40: 2062 | RR40: 2062 | RS40: 2062 | RT40: 2062 | RU40: 2062 | RV40: 2062 | RW40: 2062 | RX40: 2063 | RY40: 2063 | RZ40: 2063 | SA40: 2063 | SB40: 2063 | SC40: 2063 | SD40: 2063 | SE40: 2063 | SF40: 2063 | SG40: 2063 | SH40: 2063 | SI40: 2063 | SJ40: 2064 | SK40: 2064 | SL40: 2064 | SM40: 2064 | SN40: 2064 | SO40: 2064 | SP40: 2064 | SQ40: 2064
